Workbook

Sheet TDB
A2: DATE | B2: (Tous)
A4: Collectif / CC | B4: famille | C4: Offre
B5: ADSL | C5: Flybox | D5: IEW | E5: Postpayé | F5: Prépayé | G5: Total général | H5: Réengagements | J5: SMARTPHONES | L5: PORTABILITE | N5: RELAX
A6: CC | H6: CC | I6: Nbr de Réengagements | J6: CC | K6: Nbr de Smartphones | L6: CC | M6: Nbr | N6: Nbr
A7: ABLOUNA | C7: 5 | D7: 1 | E7: 3 | F7: 12 | G7: 21 | H7: ABLOUNA | I7: =VLOOKUP(A7,Reeng!A:B,2,0) -> 1 | J7: ABLOUNA | K7: =COUNTIFS('journal des ventes'!A:A,TDB!J7,'journal des ventes'!L:L,"OK") -> 2 | L7: ABLOUNA | M7: =VLOOKUP(A7,PORTA!A:B,2,0) -> 4 | N7: =VLOOKUP(A7,Relax!A:B,2,0) -> 0
A8: AmiraX | F8: 0 | G8: 0 | H8: AmiraX | I8: =VLOOKUP(A8,Reeng!A:B,2,0) -> 0 | J8: AmiraX | K8: =COUNTIFS('journal des ventes'!A:A,TDB!J8,'journal des ventes'!L:L,"OK") -> 0 | L8: AmiraX | M8: =VLOOKUP(A8,PORTA!A:B,2,0) -> 0 | N8: =VLOOKUP(A8,Relax!A:B,2,0) -> 0
A9: ASLOGHM | C9: 1 | D9: 3 | E9: 1 | F9: 8 | G9: 13 | H9: ASLOGHM | I9: =VLOOKUP(A9,Reeng!A:B,2,0) -> 3 | J9: ASLOGHM | K9: =COUNTIFS('journal des ventes'!A:A,TDB!J9,'journal des ventes'!L:L,"OK") -> 0 | L9: ASLOGHM | M9: =VLOOKUP(A9,PORTA!A:B,2,0) -> 7 | N9: =VLOOKUP(A9,Relax!A:B,2,0) -> 4
A10: HanenX | B10: 1 | F10: 0 | G10: 1 | H10: HanenX | I10: =VLOOKUP(A10,Reeng!A:B,2,0) -> 0 | J10: HanenX | K10: =COUNTIFS('journal des ventes'!A:A,TDB!J10,'journal des ventes'!L:L,"OK") -> 0 | L10: HanenX | M10: =VLOOKUP(A10,PORTA!A:B,2,0) -> 0 | N10: =VLOOKUP(A10,Relax!A:B,2,0) -> 0
A11: RIGRAIET | C11: 1 | F11: 1 | G11: 2 | H11: RIGRAIET | I11: =VLOOKUP(A11,Reeng!A:B,2,0) -> 4 | J11: RIGRAIET | K11: =COUNTIFS('journal des ventes'!A:A,TDB!J11,'journal des ventes'!L:L,"OK") -> 1 | L11: RIGRAIET | M11: =VLOOKUP(A11,PORTA!A:B,2,0) -> 4 | N11: =VLOOKUP(A11,Relax!A:B,2,0) -> 32
A12: SIGHW | C12: 3 | D12: 3 | F12: 1 | G12: 7 | H12: SIGHW | I12: =VLOOKUP(A12,Reeng!A:B,2,0) -> 4 | J12: SIGHW | K12: =COUNTIFS('journal des ventes'!A:A,TDB!J12,'journal des ventes'!L:L,"OK") -> 6 | L12: SIGHW | M12: =VLOOKUP(A12,PORTA!A:B,2,0) -> 26 | N12: =VLOOKUP(A12,Relax!A:B,2,0) -> 39
A13: Total général | B13: 1 | C13: 10 | D13: 7 | E13: 4 | F13: 22 | G13: 44 | I13: =SUM(I7:I12) -> 12 | K13: =SUM(K7:K12) -> 9 | M13: =SUM(M7:M12) -> 41 | N13: =SUM(N7:N12) -> 75
A23: Spécifique FLY | B23: famille | C23: Offre
B24: Flybox | C24: Total général
A25: CC
A26: ABLOUNA | B26: 5 | C26: 5
A27: ASLOGHM | B27: 1 | C27: 1
A28: RIGRAIET | B28: 1 | C28: 1
A29: SIGHW | B29: 3 | C29: 3
A30: Total général | B30: 10 | C30: 10

Sheet juillet
B1: Kairouan
B2: Voix Prepaid | C2: POST | D2: réengagement | E2: clé 3G | F2: FLYBOX | G2: ADSL | H2: EQUIPEMENT | I2: Portabilité | J2: Orange Relax | K2: RC
A3: Objectif | B3: 540 | C3: 91 | D3: 46 | E3: 146 | F3: 30 | G3: 5 | H3: 72 | I3: 100 | J3: 70 | K3: 100
A4: Réalisation | B4: =IFERROR((GETPIVOTDATA("Nbre de Points",TDB!$A$4,"famille","Prépayé")),0) -> 22 | C4: =IFERROR((GETPIVOTDATA("Nbre de Points",TDB!$A$4,"famille","Postpayé")),0) -> 4 | D4: =TDB!I13 -> 12 | E4: =IFERROR((GETPIVOTDATA("Nbre de Points",TDB!$A$4,"famille","IEW")),0) -> 7 | F4: =IFERROR((GETPIVOTDATA("Nbre de Points",TDB!$A$4,"famille","Flybox")),0) -> 10 | G4: =IFERROR((GETPIVOTDATA("Nbre de Points",TDB!$A$4,"famille","ADSL")),0) -> 1 | H4: =TDB!K13 -> 9 | I4: =TDB!M13 -> 41 | J4: =TDB!N13 -> 75 | K4: 100
A5: Taux d'atteinte | B5: =B4/B3 -> 0.04074074074 | C5: =C4/C3 -> 0.04395604396 | D5: 0.2608695652 | E5: 0.04794520548 | F5: 0.3333333333 | G5: 0.2 | H5: 0.125 | I5: 0.41 | J5: =J4/J3 -> 1.071428571 | K5: 1
A6: Poids | B6: 0.15 | C6: 0.12 | D6: 0.1 | E6: 0.11 | F6: 0.11 | G6: 0.08 | H6: 0.1 | I6: 0 | J6: 0.08 | K6: 0.15
A7: Taux Avec poids | B7: =B6*B5 -> 0.006111111111 | C7: =C6*C5 -> 0.005274725275 | D7: 0.02608695652 | E7: 0.005273972603 | F7: 0.03666666667 | G7: 0.016 | H7: 0.0125 | I7: 0 | J7: 0.08571428571 | K7: 0.15
A8: Atterissage | B8: =((B4/$B$20)*$B$19)+B4 -> 45.69230769 | C8: 8.307692308 | D8: 24.92307692 | E8: 14.53846154 | F8: 20.76923077 | G8: 2.076923077 | H8: 18.69230769 | I8: 85.15384615 | J8: =((J4/$B$20)*$B$19)+J4 -> 155.7692308 | K8: =K5 -> 1
A9: % Atterissage | B9: =B8/B3 -> 0.08461538462 | C9: 0.09129332206 | D9: 0.5418060201 | E9: 0.09957850369 | F9: 0.6923076923 | G9: 0.4153846154 | H9: 0.2596153846 | I9: 0.8515384615 | J9: 2.225274725 | K9: =K6 -> 0.15
A10: % Atteinte | B10: =SUM(B7:K7) -> 0.3436277179
A11: TOTAL sur Atterissage | B11: =B9*B6+C6*C9+D6*D9+E6*E9+F6*F9+G6*G9+H6*H9+I6*I9+J6*J9+K6 -> 0.5521498756
A12: Poids RB | B12: 0.15 | C12: 0.12 | D12: 0.1 | E12: 0.11 | F12: 0.11 | G12: 0.08 | H12: 0.1 | I12: 0 | J12: 0.08 | K12: 0.15
A13: Taux Avec poids | B13: =B12*B5 -> 0.006111111111 | C13: =C12*C5 -> 0.005274725275 | D13: 0.02608695652 | E13: 0.005273972603 | F13: 0.03666666667 | G13: 0.016 | H13: 0.0125 | I13: 0 | J13: 0.08571428571 | K13: 0.15
A14: TOTAL RB | B14: =SUM(B13:K13) -> 0.3436277179
A16: Date départ Mois | B16: 2017-08-01
A17: aujourd'hui | B17: =TODAY() -> 2017-08-16
A18: Fate fin du mois | B18: 2017-08-31
A19: Nbre de jours restant | B19: =NETWORKDAYS.INTL(B17,B18,11,0) -> 14
A20: Nbre de Jours travaillés | B20: =(NETWORKDAYS.INTL(B16,B17,11,0))-1 -> 13

Sheet analyse
B1: Kairouan | N1: Nbr | O1: Poids
B2: Prépayé | C2: Post | D2: IEW | E2: Flybox | F2: ADSL | G2: Portabilité | H2: Equipement | I2: Recharge | J2: Réeng | K2: Relax | L2: Total | M2: CC | N2: 4 | O2: 10
A3: OBJECTIF | B3: =juillet!B3 -> 540 | C3: =juillet!C3 -> 91 | D3: =juillet!E3 -> 146 | E3: =juillet!F3 -> 30 | F3: =juillet!G3 -> 5 | G3: =juillet!I3 -> 100 | H3: =juillet!H3 -> 72 | I3: =B3*0.75 -> 405 | J3: =juillet!D3 -> 46 | K3: =juillet!J3 -> 70 | M3: TC | N3: 0 | O3: 6
A4: CC | B4: =ROUNDUP((B3/$N$2),0) -> 135 | C4: =ROUNDUP((C3/$N$2),0) -> 23 | D4: 37 | E4: 8 | F4: 2 | G4: =10 -> 10 | H4: 18 | I4: 102 | J4: 12 | K4: 18 | M4: Total equipe | O4: =O2*N2+O3*N3 -> 40
A5: CC | B5: =B4 -> 135 | C5: =C4 -> 23 | D5: 37 | E5: 8 | F5: 2 | G5: 10 | H5: 18 | I5: 102 | J5: 12 | K5: 18 | M5: Majoration obj | O5: 1
A6: Poids | B6: =juillet!G6 -> 0.08 | C6: =juillet!F6 -> 0.11 | D6: =juillet!E6 -> 0.11 | E6: =juillet!C6 -> 0.12 | F6: =juillet!B6 -> 0.15 | G6: =juillet!D6 -> 0.1 | H6: =juillet!I6 -> 0 | I6: =juillet!H6 -> 0.1 | J6: =juillet!I6 -> 0 | K6: 0 | L6: =SUM(B6:K6) -> 0.77 | M6: Obj après réduction | O6: 1
A8: USER | B8: Prépayé | C8: Post | D8: IEW | E8: Flybox | F8: ADSL | G8: Portabilité | H8: Equipement | I8: Recharge | J8: Réeng | K8: Relax
A9: ABLOUNA | B9: =GETPIVOTDATA("Nbre de Points",TDB!$A$4,"famille","Prépayé","CC",A9)/analyse!B4 -> 0.08888888889 | C9: =GETPIVOTDATA("Nbre de Points",TDB!$A$4,"famille","Postpayé","CC",A9)/analyse!$C$4 -> 0.1304347826 | D9: =GETPIVOTDATA("Nbre de Points",TDB!$A$4,"famille","IEW","CC",A9)/analyse!$D$4 -> 0.02702702703 | E9: =GETPIVOTDATA("Nbre de Points",TDB!$A$4,"famille","Flybox","CC",A9)/analyse!$E$4 -> 0.625 | F9: =IFERROR((GETPIVOTDATA("Nbre de Points",TDB!$A$4,"famille","ADSL","CC",A9)/analyse!$F$4),0) -> 0 | G9: =LOOKUP($A9,TDB!$A$7:$A$16,TDB!$M$7:$M$16)/$G$4 -> 0.4 | H9: =LOOKUP($A9,TDB!$A$7:$A$16,TDB!$K$7:$K$16)/$G$4 -> 0.2 | I9: =TDB!K7/analyse!I4 -> 0.01960784314 | J9: =LOOKUP($A9,TDB!$A$7:$A$16,TDB!$I$7:$I$16)/$G$4 -> 0.1 | K9: =LOOKUP($A9,TDB!$A$7:$A$16,TDB!$N$7:$N$16)/$G$4 -> 0
A10: ASLOGHM | B10: =GETPIVOTDATA("Nbre de Points",TDB!$A$4,"famille","Prépayé","CC",A10)/analyse!B4 -> 0.05925925926 | C10: =GETPIVOTDATA("Nbre de Points",TDB!$A$4,"famille","Postpayé","CC",A10)/analyse!$C$4 -> 0.04347826087 | D10: =GETPIVOTDATA("Nbre de Points",TDB!$A$4,"famille","IEW","CC",A10)/analyse!$D$4 -> 0.08108108108 | E10: =GETPIVOTDATA("Nbre de Points",TDB!$A$4,"famille","Flybox","CC",A10)/analyse!$E$4 -> 0.125 | F10: =IFERROR((GETPIVOTDATA("Nbre de Points",TDB!$A$4,"famille","ADSL","CC",A10)/analyse!$F$4),0) -> 0 | G10: =LOOKUP($A10,TDB!$A$7:$A$16,TDB!$M$7:$M$16)/$G$4 -> 0.7 | H10: =LOOKUP($A10,TDB!$A$7:$A$16,TDB!$K$7:$K$16)/$G$4 -> 0 | I10: =TDB!K8/analyse!I4 -> 0 | J10: =LOOKUP($A10,TDB!$A$7:$A$16,TDB!$I$7:$I$16)/$G$4 -> 0.3 | K10: =LOOKUP($A10,TDB!$A$7:$A$16,TDB!$N$7:$N$16)/$G$4 -> 0.4
A11: RIGRAIET | B11: =GETPIVOTDATA("Nbre de Points",TDB!$A$4,"famille","Prépayé","CC",A11)/analyse!B4 -> 0.007407407407 | C11: =GETPIVOTDATA("Nbre de Points",TDB!$A$4,"famille","Postpayé","CC",A11)/analyse!$C$4 -> 0 | D11: =GETPIVOTDATA("Nbre de Points",TDB!$A$4,"famille","IEW","CC",A11)/analyse!$D$4 -> 0 | E11: =GETPIVOTDATA("Nbre de Points",TDB!$A$4,"famille","Flybox","CC",A11)/analyse!$E$4 -> 0.125 | F11: =IFERROR((GETPIVOTDATA("Nbre de Points",TDB!$A$4,"famille","ADSL","CC",A11)/analyse!$F$4),0) -> 0 | G11: =LOOKUP($A11,TDB!$A$7:$A$16,TDB!$M$7:$M$16)/$G$4 -> 0.4 | H11: =LOOKUP($A11,TDB!$A$7:$A$16,TDB!$K$7:$K$16)/$G$4 -> 0.1 | I11: =TDB!K15/analyse!I5 -> 0 | J11: =LOOKUP($A11,TDB!$A$7:$A$16,TDB!$I$7:$I$16)/$G$4 -> 0.4 | K11: =LOOKUP($A11,TDB!$A$7:$A$16,TDB!$N$7:$N$16)/$G$4 -> 3.2
A12: SIGHW | B12: =GETPIVOTDATA("Nbre de Points",TDB!$A$4,"famille","Prépayé","CC",A12)/analyse!B4 -> 0.007407407407 | C12: =GETPIVOTDATA("Nbre de Points",TDB!$A$4,"famille","Postpayé","CC",A12)/analyse!$C$4 -> 0 | D12: =GETPIVOTDATA("Nbre de Points",TDB!$A$4,"famille","IEW","CC",A12)/analyse!$D$4 -> 0.08108108108 | E12: =GETPIVOTDATA("Nbre de Points",TDB!$A$4,"famille","Flybox","CC",A12)/analyse!$E$4 -> 0.375 | F12: =IFERROR((GETPIVOTDATA("Nbre de Points",TDB!$A$4,"famille","ADSL","CC",A12)/analyse!$F$4),0) -> 0 | G12: =LOOKUP($A12,TDB!$A$7:$A$16,TDB!$M$7:$M$16)/$G$4 -> 2.6 | H12: =LOOKUP($A12,TDB!$A$7:$A$16,TDB!$K$7:$K$16)/$G$4 -> 0.6 | I12: =TDB!K11/analyse!I5 -> 0.009803921569 | J12: =LOOKUP($A12,TDB!$A$7:$A$16,TDB!$I$7:$I$16)/$G$4 -> 0.4 | K12: =LOOKUP($A12,TDB!$A$7:$A$16,TDB!$N$7:$N$16)/$G$4 -> 3.9
A13: AmiraX | B13: =GETPIVOTDATA("Nbre de Points",TDB!$A$4,"famille","Prépayé","CC",A13)/analyse!B4 -> 0 | C13: =GETPIVOTDATA("Nbre de Points",TDB!$A$4,"famille","Postpayé","CC",A13)/analyse!$C$4 -> 0 | D13: =GETPIVOTDATA("Nbre de Points",TDB!$A$4,"famille","IEW","CC",A13)/analyse!$D$4 -> 0 | E13: =GETPIVOTDATA("Nbre de Points",TDB!$A$4,"famille","Flybox","CC",A13)/analyse!$E$4 -> 0 | F13: =IFERROR((GETPIVOTDATA("Nbre de Points",TDB!$A$4,"famille","ADSL","CC",A13)/analyse!$F$4),0) -> 0 | G13: =LOOKUP($A13,TDB!$A$7:$A$16,TDB!$M$7:$M$16)/$G$4 -> 0 | H13: =LOOKUP($A13,TDB!$A$7:$A$16,TDB!$K$7:$K$16)/$G$4 -> 0 | I13: =TDB!K12/analyse!I4 -> 0.05882352941 | J13: =LOOKUP($A13,TDB!$A$7:$A$16,TDB!$I$7:$I$16)/$G$4 -> 0 | K13: =LOOKUP($A13,TDB!$A$7:$A$16,TDB!$N$7:$N$16)/$G$4 -> 0
A14: HanenX | B14: =GETPIVOTDATA("Nbre de Points",TDB!$A$4,"famille","Prépayé","CC",A14)/analyse!B4 -> 0 | C14: =GETPIVOTDATA("Nbre de Points",TDB!$A$4,"famille","Postpayé","CC",A14)/analyse!$C$4 -> 0 | D14: =GETPIVOTDATA("Nbre de Points",TDB!$A$4,"famille","IEW","CC",A14)/analyse!$D$4 -> 0 | E14: =GETPIVOTDATA("Nbre de Points",TDB!$A$4,"famille","Flybox","CC",A14)/analyse!$E$4 -> 0 | F14: =IFERROR((GETPIVOTDATA("Nbre de Points",TDB!$A$4,"famille","ADSL","CC",A14)/analyse!$F$4),0) -> 0.5 | G14: =LOOKUP($A14,TDB!$A$7:$A$16,TDB!$M$7:$M$16)/$G$4 -> 0 | H14: =LOOKUP($A14,TDB!$A$7:$A$16,TDB!$K$7:$K$16)/$G$4 -> 0 | I14: =TDB!K13/analyse!I5 -> 0.08823529412 | J14: =LOOKUP($A14,TDB!$A$7:$A$16,TDB!$I$7:$I$16)/$G$4 -> 0 | K14: =LOOKUP($A14,TDB!$A$7:$A$16,TDB!$N$7:$N$16)/$G$4 -> 0
B15: =GETPIVOTDATA("Nbre de Points",TDB!$A$4,"famille","Prépayé","CC",A15)/analyse!B4 ->  | C15: =GETPIVOTDATA("Nbre de Points",TDB!$A$4,"famille","Postpayé","CC",A15)/analyse!$C$4 ->  | D15: =GETPIVOTDATA("Nbre de Points",TDB!$A$4,"famille","IEW","CC",A15)/analyse!$D$4 ->  | E15: =GETPIVOTDATA("Nbre de Points",TDB!$A$4,"famille","Flybox","CC",A15)/analyse!$E$4 ->  | F15: =IFERROR((GETPIVOTDATA("Nbre de Points",TDB!$A$4,"famille","ADSL","CC",A15)/analyse!$F$4),0) -> 0 | G15: =LOOKUP($A15,TDB!$A$7:$A$16,TDB!$M$7:$M$16)/$G$4 ->  | H15: =LOOKUP($A15,TDB!$A$7:$A$16,TDB!$K$7:$K$16)/$G$4 ->  | I15: =TDB!K9/analyse!I4 -> 0 | J15: =LOOKUP($A15,TDB!$A$7:$A$16,TDB!$I$7:$I$16)/$G$4 ->  | K15: =LOOKUP($A15,TDB!$A$7:$A$16,TDB!$N$7:$N$16)/$G$4 -> 
B16: =GETPIVOTDATA("Nbre de Points",TDB!$A$4,"famille","Prépayé","CC",A16)/analyse!B5 ->  | C16: =GETPIVOTDATA("Nbre de Points",TDB!$A$4,"famille","Postpayé","CC",A16)/analyse!$C$5 ->  | D16: =GETPIVOTDATA("Nbre de Points",TDB!$A$4,"famille","IEW","CC",A16)/analyse!$D$5 ->  | E16: =GETPIVOTDATA("Nbre de Points",TDB!$A$4,"famille","Flybox","CC",A16)/analyse!$E$5 ->  | F16: =IFERROR((GETPIVOTDATA("Nbre de Points",TDB!$A$4,"famille","ADSL","CC",A16)/analyse!$F$5),0) -> 0 | G16: =LOOKUP($A16,TDB!$A$7:$A$16,TDB!$M$7:$M$16)/$G$5 ->  | H16: =LOOKUP($A16,TDB!$A$7:$A$16,TDB!$K$7:$K$16)/$G$5 ->  | I16: =TDB!K10/analyse!I4 -> 0 | J16: =LOOKUP($A16,TDB!$A$7:$A$16,TDB!$I$7:$I$16)/$G$5 ->  | K16: =LOOKUP($A16,TDB!$A$7:$A$16,TDB!$N$7:$N$16)/$G$5 -> 
B17: =GETPIVOTDATA("Nbre de Points",TDB!$A$4,"famille","Prépayé","CC",A17)/analyse!B5 ->  | C17: =GETPIVOTDATA("Nbre de Points",TDB!$A$4,"famille","Postpayé","CC",A17)/analyse!$C$5 ->  | D17: =GETPIVOTDATA("Nbre de Points",TDB!$A$4,"famille","IEW","CC",A17)/analyse!$D$5 ->  | E17: =GETPIVOTDATA("Nbre de Points",TDB!$A$4,"famille","Flybox","CC",A17)/analyse!$E$5 ->  | F17: =IFERROR((GETPIVOTDATA("Nbre de Points",TDB!$A$4,"famille","ADSL","CC",A17)/analyse!$F$5),0) -> 0 | G17: =LOOKUP($A17,TDB!$A$7:$A$16,TDB!$M$7:$M$16)/$G$5 ->  | H17: =LOOKUP($A17,TDB!$A$7:$A$16,TDB!$K$7:$K$16)/$G$5 ->  | I17: =TDB!K14/analyse!I5 -> 0 | J17: =LOOKUP($A17,TDB!$A$7:$A$16,TDB!$I$7:$I$16)/$G$5 ->  | K17: =LOOKUP($A17,TDB!$A$7:$A$16,TDB!$N$7:$N$16)/$G$5 -> 
B18: =GETPIVOTDATA("Nbre de Points",TDB!$A$4,"famille","Prépayé","CC",A18)/analyse!B5 ->  | C18: =GETPIVOTDATA("Nbre de Points",TDB!$A$4,"famille","Postpayé","CC",A18)/analyse!$C$5 ->  | D18: =GETPIVOTDATA("Nbre de Points",TDB!$A$4,"famille","IEW","CC",A18)/analyse!$D$5 ->  | E18: =GETPIVOTDATA("Nbre de Points",TDB!$A$4,"famille","Flybox","CC",A18)/analyse!$E$5 ->  | F18: =IFERROR((GETPIVOTDATA("Nbre de Points",TDB!$A$4,"famille","ADSL","CC",A18)/analyse!$F$5),0) -> 0 | G18: =LOOKUP($A18,TDB!$A$7:$A$16,TDB!$M$7:$M$16)/$G$5 ->  | H18: =LOOKUP($A18,TDB!$A$7:$A$16,TDB!$K$7:$K$16)/$G$5 ->  | I18: =TDB!K16/analyse!I4 -> 0 | J18: =LOOKUP($A18,TDB!$A$7:$A$16,TDB!$I$7:$I$16)/$G$5 ->  | K18: =LOOKUP($A18,TDB!$A$7:$A$16,TDB!$N$7:$N$16)/$G$5 -> 
A22: USER | B22: Prépayé | C22: Post | D22: IEW | E22: Flybox | F22: ADSL | G22: Portabilité | H22: Equipement | I22: Recharge | J22: Réeng | K22: Relax
A23: ABLOUNA | B23: =B9*B$6 -> 0.007111111111 | C23: =C9*C$6 -> 0.01434782609 | D23: 0.002972972973 | E23: 0.075 | F23: 0 | G23: 0.04 | H23: 0 | I23: 0.001960784314 | J23: 0 | K23: 0
A24: ASLOGHM | B24: =B10*B$6 -> 0.004740740741 | C24: 0.004782608696 | D24: 0.008918918919 | E24: 0.015 | F24: 0 | G24: 0.07 | H24: 0 | I24: 0 | J24: 0 | K24: 0
A25: RIGRAIET | B25: =B11*B$6 -> 0.0005925925926 | C25: 0 | D25: 0 | E25: 0.015 | F25: 0 | G25: 0.04 | H25: 0 | I25: 0 | J25: 0 | K25: 0
A26: SIGHW | B26: =B12*B$6 -> 0.0005925925926 | C26: 0 | D26: 0.008918918919 | E26: 0.045 | F26: 0 | G26: 0.26 | H26: 0 | I26: 0.0009803921569 | J26: 0 | K26: 0
A27: AmiraX | B27: =B13*B$6 -> 0 | C27: 0 | D27: 0 | E27: 0 | F27: 0 | G27: 0 | H27: 0 | I27: 0.005882352941 | J27: 0 | K27: 0
A28: HanenX | B28: =B14*B$6 -> 0 | C28: 0 | D28: 0 | E28: 0 | F28: 0.075 | G28: 0 | H28: 0 | I28: 0.008823529412 | J28: 0 | K28: 0
B29: =B15*B$6 ->  | F29: 0 | I29: 0
B30: =B16*B$6 ->  | F30: 0 | I30: 0
B31: =B17*B$6 ->  | F31: 0 | I31: 0
B32: =B18*B$6 ->  | F32: 0 | I32: 0

Sheet ETAT DES ECARTS
E2: Reste à activer / mois
B3: Prépayé | C3: Post | D3: IEW | E3: Flybox | F3: ADSL | G3: Portabilité | H3: Equipement | I3: Recharge | J3: Réeng | K3: Relax
A4: ABLOUNA | B4: =analyse!$B$4-GETPIVOTDATA("Nbre de Points",TDB!$A$4,"famille","Prépayé","CC",A4) -> 123 | C4: =analyse!$C$4-GETPIVOTDATA("Nbre de Points",TDB!$A$4,"famille","Postpayé","CC",A4) -> 20 | D4: =analyse!$D$4-GETPIVOTDATA("Nbre de Points",TDB!$A$4,"famille","IEW","CC",A4) -> 36 | E4: =analyse!$E$4-GETPIVOTDATA("Nbre de Points",TDB!$A$4,"famille","Flybox","CC",A4) -> 3 | F4: =IFERROR((analyse!$F$4-GETPIVOTDATA("Nbre de Points",TDB!$A$4,"famille","ADSL","CC",A4)),0) -> 2 | G4: =analyse!$G$4-LOOKUP($A4,TDB!$A$7:$A$16,TDB!$M$7:$M$16) -> 6 | H4: =analyse!$G$4-LOOKUP($A4,TDB!$A$7:$A$16,TDB!$K$7:$K$16) -> 8 | I4: =analyse!$I$4 -> 102 | J4: =analyse!$J$4-LOOKUP($A4,TDB!$A$7:$A$16,TDB!$I$7:$I$16) -> 11 | K4: =analyse!$K$4-LOOKUP($A4,TDB!$A$7:$A$16,TDB!$N$7:$N$16) -> 18
A5: ASLOGHM | B5: =analyse!$B$4-GETPIVOTDATA("Nbre de Points",TDB!$A$4,"famille","Prépayé","CC",A5) -> 127 | C5: =analyse!$C$4-GETPIVOTDATA("Nbre de Points",TDB!$A$4,"famille","Postpayé","CC",A5) -> 22 | D5: =analyse!$D$4-GETPIVOTDATA("Nbre de Points",TDB!$A$4,"famille","IEW","CC",A5) -> 34 | E5: =analyse!$E$4-GETPIVOTDATA("Nbre de Points",TDB!$A$4,"famille","Flybox","CC",A5) -> 7 | F5: =IFERROR((analyse!$F$4-GETPIVOTDATA("Nbre de Points",TDB!$A$4,"famille","ADSL","CC",A5)),0) -> 2 | G5: =analyse!$G$4-LOOKUP($A5,TDB!$A$7:$A$16,TDB!$M$7:$M$16) -> 3 | H5: =analyse!$G$4-LOOKUP($A5,TDB!$A$7:$A$16,TDB!$K$7:$K$16) -> 10 | I5: =analyse!$I$4 -> 102 | J5: =analyse!$J$4-LOOKUP($A5,TDB!$A$7:$A$16,TDB!$I$7:$I$16) -> 9 | K5: =analyse!$K$4-LOOKUP($A5,TDB!$A$7:$A$16,TDB!$N$7:$N$16) -> 14
A6: RIGRAIET | B6: =analyse!$B$4-GETPIVOTDATA("Nbre de Points",TDB!$A$4,"famille","Prépayé","CC",A6) -> 134 | C6: =analyse!$C$4-GETPIVOTDATA("Nbre de Points",TDB!$A$4,"famille","Postpayé","CC",A6) -> 23 | D6: =analyse!$D$4-GETPIVOTDATA("Nbre de Points",TDB!$A$4,"famille","IEW","CC",A6) -> 37 | E6: =analyse!$E$4-GETPIVOTDATA("Nbre de Points",TDB!$A$4,"famille","Flybox","CC",A6) -> 7 | F6: =IFERROR((analyse!$F$4-GETPIVOTDATA("Nbre de Points",TDB!$A$4,"famille","ADSL","CC",A6)),0) -> 2 | G6: =analyse!$G$4-LOOKUP($A6,TDB!$A$7:$A$16,TDB!$M$7:$M$16) -> 6 | H6: =analyse!$G$4-LOOKUP($A6,TDB!$A$7:$A$16,TDB!$K$7:$K$16) -> 9 | I6: =analyse!$I$4 -> 102 | J6: =analyse!$J$4-LOOKUP($A6,TDB!$A$7:$A$16,TDB!$I$7:$I$16) -> 8 | K6: =analyse!$K$4-LOOKUP($A6,TDB!$A$7:$A$16,TDB!$N$7:$N$16) -> -14
A7: SIGHW | B7: =analyse!$B$4-GETPIVOTDATA("Nbre de Points",TDB!$A$4,"famille","Prépayé","CC",A7) -> 134 | C7: =analyse!$C$4-GETPIVOTDATA("Nbre de Points",TDB!$A$4,"famille","Postpayé","CC",A7) -> 23 | D7: =analyse!$D$4-GETPIVOTDATA("Nbre de Points",TDB!$A$4,"famille","IEW","CC",A7) -> 34 | E7: =analyse!$E$4-GETPIVOTDATA("Nbre de Points",TDB!$A$4,"famille","Flybox","CC",A7) -> 5 | F7: =IFERROR((analyse!$F$4-GETPIVOTDATA("Nbre de Points",TDB!$A$4,"famille","ADSL","CC",A7)),0) -> 2 | G7: =analyse!$G$4-LOOKUP($A7,TDB!$A$7:$A$16,TDB!$M$7:$M$16) -> -16 | H7: =analyse!$G$4-LOOKUP($A7,TDB!$A$7:$A$16,TDB!$K$7:$K$16) -> 4 | I7: =analyse!$I$4 -> 102 | J7: =analyse!$J$4-LOOKUP($A7,TDB!$A$7:$A$16,TDB!$I$7:$I$16) -> 8 | K7: =analyse!$K$4-LOOKUP($A7,TDB!$A$7:$A$16,TDB!$N$7:$N$16) -> -21
A8: AmiraX | B8: =analyse!$B$4-GETPIVOTDATA("Nbre de Points",TDB!$A$4,"famille","Prépayé","CC",A8) -> 135 | C8: =analyse!$C$4-GETPIVOTDATA("Nbre de Points",TDB!$A$4,"famille","Postpayé","CC",A8) -> 23 | D8: =analyse!$D$4-GETPIVOTDATA("Nbre de Points",TDB!$A$4,"famille","IEW","CC",A8) -> 37 | E8: =analyse!$E$4-GETPIVOTDATA("Nbre de Points",TDB!$A$4,"famille","Flybox","CC",A8) -> 8 | F8: =IFERROR((analyse!$F$4-GETPIVOTDATA("Nbre de Points",TDB!$A$4,"famille","ADSL","CC",A8)),0) -> 2 | G8: =analyse!$G$4-LOOKUP($A8,TDB!$A$7:$A$16,TDB!$M$7:$M$16) -> 10 | H8: =analyse!$G$4-LOOKUP($A8,TDB!$A$7:$A$16,TDB!$K$7:$K$16) -> 10 | I8: =analyse!$I$4 -> 102 | J8: =analyse!$J$4-LOOKUP($A8,TDB!$A$7:$A$16,TDB!$I$7:$I$16) -> 12 | K8: =analyse!$K$4-LOOKUP($A8,TDB!$A$7:$A$16,TDB!$N$7:$N$16) -> 18
A9: HanenX | B9: =analyse!$B$4-GETPIVOTDATA("Nbre de Points",TDB!$A$4,"famille","Prépayé","CC",A9) -> 135 | C9: =analyse!$C$4-GETPIVOTDATA("Nbre de Points",TDB!$A$4,"famille","Postpayé","CC",A9) -> 23 | D9: =analyse!$D$4-GETPIVOTDATA("Nbre de Points",TDB!$A$4,"famille","IEW","CC",A9) -> 37 | E9: =analyse!$E$4-GETPIVOTDATA("Nbre de Points",TDB!$A$4,"famille","Flybox","CC",A9) -> 8 | F9: =IFERROR((analyse!$F$4-GETPIVOTDATA("Nbre de Points",TDB!$A$4,"famille","ADSL","CC",A9)),0) -> 1 | G9: =analyse!$G$4-LOOKUP($A9,TDB!$A$7:$A$16,TDB!$M$7:$M$16) -> 10 | H9: =analyse!$G$4-LOOKUP($A9,TDB!$A$7:$A$16,TDB!$K$7:$K$16) -> 10 | I9: =analyse!$I$4 -> 102 | J9: =analyse!$J$4-LOOKUP($A9,TDB!$A$7:$A$16,TDB!$I$7:$I$16) -> 12 | K9: =analyse!$K$4-LOOKUP($A9,TDB!$A$7:$A$16,TDB!$N$7:$N$16) -> 18
A10: - | B10: =analyse!$B$4-GETPIVOTDATA("Nbre de Points",TDB!$A$4,"famille","Prépayé","CC",A10) ->  | C10: =analyse!$C$4-GETPIVOTDATA("Nbre de Points",TDB!$A$4,"famille","Postpayé","CC",A10) ->  | D10: =analyse!$D$4-GETPIVOTDATA("Nbre de Points",TDB!$A$4,"famille","IEW","CC",A10) ->  | E10: =analyse!$E$4-GETPIVOTDATA("Nbre de Points",TDB!$A$4,"famille","Flybox","CC",A10) ->  | F10: =IFERROR((analyse!$F$4-GETPIVOTDATA("Nbre de Points",TDB!$A$4,"famille","ADSL","CC",A10)),0) -> 0 | G10: =analyse!$G$4-LOOKUP($A10,TDB!$A$7:$A$16,TDB!$M$7:$M$16) ->  | H10: =analyse!$G$4-LOOKUP($A10,TDB!$A$7:$A$16,TDB!$K$7:$K$16) ->  | I10: =analyse!$I$4 -> 102 | J10: =analyse!$J$4-LOOKUP($A10,TDB!$A$7:$A$16,TDB!$I$7:$I$16) ->  | K10: =analyse!$K$4-LOOKUP($A10,TDB!$A$7:$A$16,TDB!$N$7:$N$16) -> 
B11: =analyse!$B$5-GETPIVOTDATA("Nbre de Points",TDB!$A$4,"famille","Prépayé","CC",A11) ->  | C11: =analyse!$C$5-GETPIVOTDATA("Nbre de Points",TDB!$A$4,"famille","Postpayé","CC",A11) ->  | D11: =analyse!$D$5-GETPIVOTDATA("Nbre de Points",TDB!$A$4,"famille","IEW","CC",A11) ->  | E11: =analyse!$E$5-GETPIVOTDATA("Nbre de Points",TDB!$A$4,"famille","Flybox","CC",A11) ->  | F11: =IFERROR((analyse!$F$5-GETPIVOTDATA("Nbre de Points",TDB!$A$4,"famille","ADSL","CC",A11)),0) -> 0 | G11: =analyse!$G$5-LOOKUP($A11,TDB!$A$7:$A$16,TDB!$M$7:$M$16) ->  | H11: =analyse!$G$5-LOOKUP($A11,TDB!$A$7:$A$16,TDB!$K$7:$K$16) ->  | I11: =analyse!$I$5 -> 102 | J11: =analyse!$J$5-LOOKUP($A11,TDB!$A$7:$A$16,TDB!$I$7:$I$16) ->  | K11: =analyse!$K$5-LOOKUP($A11,TDB!$A$7:$A$16,TDB!$N$7:$N$16) -> 
B12: =analyse!$B$5-GETPIVOTDATA("Nbre de Points",TDB!$A$4,"famille","Prépayé","CC",A12) ->  | C12: =analyse!$C$5-GETPIVOTDATA("Nbre de Points",TDB!$A$4,"famille","Postpayé","CC",A12) ->  | D12: =analyse!$D$5-GETPIVOTDATA("Nbre de Points",TDB!$A$4,"famille","IEW","CC",A12) ->  | E12: =analyse!$E$5-GETPIVOTDATA("Nbre de Points",TDB!$A$4,"famille","Flybox","CC",A12) ->  | F12: =IFERROR((analyse!$F$5-GETPIVOTDATA("Nbre de Points",TDB!$A$4,"famille","ADSL","CC",A12)),0) -> 0 | G12: =analyse!$G$5-LOOKUP($A12,TDB!$A$7:$A$16,TDB!$M$7:$M$16) ->  | H12: =analyse!$G$5-LOOKUP($A12,TDB!$A$7:$A$16,TDB!$K$7:$K$16) ->  | I12: =analyse!$I$5 -> 102 | J12: =analyse!$J$5-LOOKUP($A12,TDB!$A$7:$A$16,TDB!$I$7:$I$16) ->  | K12: =analyse!$K$5-LOOKUP($A12,TDB!$A$7:$A$16,TDB!$N$7:$N$16) -> 
B13: =analyse!$B$5-GETPIVOTDATA("Nbre de Points",TDB!$A$4,"famille","Prépayé","CC",A13) ->  | C13: =analyse!$C$5-GETPIVOTDATA("Nbre de Points",TDB!$A$4,"famille","Postpayé","CC",A13) ->  | D13: =analyse!$D$5-GETPIVOTDATA("Nbre de Points",TDB!$A$4,"famille","IEW","CC",A13) ->  | E13: =analyse!$E$5-GETPIVOTDATA("Nbre de Points",TDB!$A$4,"famille","Flybox","CC",A13) ->  | F13: =IFERROR((analyse!$F$5-GETPIVOTDATA("Nbre de Points",TDB!$A$4,"famille","ADSL","CC",A13)),0) -> 0 | G13: =analyse!$G$5-LOOKUP($A13,TDB!$A$7:$A$16,TDB!$M$7:$M$16) ->  | H13: =analyse!$G$5-LOOKUP($A13,TDB!$A$7:$A$16,TDB!$K$7:$K$16) ->  | I13: =analyse!$I$5 -> 102 | J13: =analyse!$J$5-LOOKUP($A13,TDB!$A$7:$A$16,TDB!$I$7:$I$16) ->  | K13: =analyse!$K$5-LOOKUP($A13,TDB!$A$7:$A$16,TDB!$N$7:$N$16) -> 
A16: WALIDMES | B16: =analyse!B5-TDB!B19 -> 135 | C16: =analyse!C5-TDB!C19 -> 23 | D16: =analyse!D5-TDB!D19 -> 37 | E16: =analyse!E5-TDB!E19 -> 8 | F16: =analyse!F5-TDB!F19 -> 2 | G16: =analyse!G5-TDB!I19 -> 10 | H16: =analyse!$H$4-TDB!M19 -> 18 | I16: =analyse!I5-TDB!K19 -> 102
E17: Reste à activer / jour
B18: Prépayé | C18: Post | D18: IEW | E18: Flybox | F18: ADSL | G18: Portabilité | H18: Equipement | I18: Recharge | J18: Réeng | K18: Relax
A19: ABLOUNA | B19: =ROUNDUP((B4/juillet!$B$19),0) -> 9 | C19: =ROUNDUP((C4/juillet!$B$19),0) -> 2 | D19: =ROUNDUP((D4/juillet!$B$19),0) -> 3 | E19: =ROUNDUP((E4/juillet!$B$19),0) -> 1 | F19: =ROUNDUP((F4/juillet!$B$19),0) -> 1 | G19: =ROUNDUP((G4/juillet!$B$19),0) -> 1 | H19: =ROUNDUP((H4/juillet!$B$19),0) -> 1 | I19: =ROUNDUP((I4/juillet!$B$19),0) -> 8 | J19: =ROUNDUP((J4/juillet!$B$19),0) -> 1 | K19: =ROUNDUP((K4/juillet!$B$19),0) -> 2
A20: ASLOGHM | B20: =ROUNDUP((B5/juillet!$B$19),0) -> 10 | C20: =ROUNDUP((C5/juillet!$B$19),0) -> 2 | D20: =ROUNDUP((D5/juillet!$B$19),0) -> 3 | E20: =ROUNDUP((E5/juillet!$B$19),0) -> 1 | F20: =ROUNDUP((F5/juillet!$B$19),0) -> 1 | G20: =ROUNDUP((G5/juillet!$B$19),0) -> 1 | H20: =ROUNDUP((H5/juillet!$B$19),0) -> 1 | I20: =ROUNDUP((I5/juillet!$B$19),0) -> 8 | J20: =ROUNDUP((J5/juillet!$B$19),0) -> 1 | K20: =ROUNDUP((K5/juillet!$B$19),0) -> 1
A21: RIGRAIET | B21: =ROUNDUP((B6/juillet!$B$19),0) -> 10 | C21: =ROUNDUP((C6/juillet!$B$19),0) -> 2 | D21: =ROUNDUP((D6/juillet!$B$19),0) -> 3 | E21: =ROUNDUP((E6/juillet!$B$19),0) -> 1 | F21: =ROUNDUP((F6/juillet!$B$19),0) -> 1 | G21: =ROUNDUP((G6/juillet!$B$19),0) -> 1 | H21: =ROUNDUP((H6/juillet!$B$19),0) -> 1 | I21: =ROUNDUP((I6/juillet!$B$19),0) -> 8 | J21: =ROUNDUP((J6/juillet!$B$19),0) -> 1 | K21: =ROUNDUP((K6/juillet!$B$19),0) -> -1
A22: SIGHW | B22: =ROUNDUP((B7/juillet!$B$19),0) -> 10 | C22: =ROUNDUP((C7/juillet!$B$19),0) -> 2 | D22: =ROUNDUP((D7/juillet!$B$19),0) -> 3 | E22: =ROUNDUP((E7/juillet!$B$19),0) -> 1 | F22: =ROUNDUP((F7/juillet!$B$19),0) -> 1 | G22: =ROUNDUP((G7/juillet!$B$19),0) -> -2 | H22: =ROUNDUP((H7/juillet!$B$19),0) -> 1 | I22: =ROUNDUP((I7/juillet!$B$19),0) -> 8 | J22: =ROUNDUP((J7/juillet!$B$19),0) -> 1 | K22: =ROUNDUP((K7/juillet!$B$19),0) -> -2
A23: AmiraX | B23: =ROUNDUP((B8/juillet!$B$19),0) -> 10 | C23: =ROUNDUP((C8/juillet!$B$19),0) -> 2 | D23: =ROUNDUP((D8/juillet!$B$19),0) -> 3 | E23: =ROUNDUP((E8/juillet!$B$19),0) -> 1 | F23: =ROUNDUP((F8/juillet!$B$19),0) -> 1 | G23: =ROUNDUP((G8/juillet!$B$19),0) -> 1 | H23: =ROUNDUP((H8/juillet!$B$19),0) -> 1 | I23: =ROUNDUP((I8/juillet!$B$19),0) -> 8 | J23: =ROUNDUP((J8/juillet!$B$19),0) -> 1 | K23: =ROUNDUP((K8/juillet!$B$19),0) -> 2
A24: HanenX | B24: =ROUNDUP((B9/juillet!$B$19),0) -> 10 | C24: =ROUNDUP((C9/juillet!$B$19),0) -> 2 | D24: =ROUNDUP((D9/juillet!$B$19),0) -> 3 | E24: =ROUNDUP((E9/juillet!$B$19),0) -> 1 | F24: =ROUNDUP((F9/juillet!$B$19),0) -> 1 | G24: =ROUNDUP((G9/juillet!$B$19),0) -> 1 | H24: =ROUNDUP((H9/juillet!$B$19),0) -> 1 | I24: =ROUNDUP((I9/juillet!$B$19),0) -> 8 | J24: =ROUNDUP((J9/juillet!$B$19),0) -> 1 | K24: =ROUNDUP((K9/juillet!$B$19),0) -> 2
B25: =ROUNDUP((B10/juillet!$B$19),0) ->  | C25: =ROUNDUP((C10/juillet!$B$19),0) ->  | D25: =ROUNDUP((D10/juillet!$B$19),0) ->  | E25: =ROUNDUP((E10/juillet!$B$19),0) ->  | F25: =ROUNDUP((F10/juillet!$B$19),0) -> 0 | G25: =ROUNDUP((G10/juillet!$B$19),0) ->  | H25: =ROUNDUP((H10/juillet!$B$19),0) ->  | I25: =ROUNDUP((I10/juillet!$B$19),0) -> 8 | J25: =ROUNDUP((J10/juillet!$B$19),0) ->  | K25: =ROUNDUP((K10/juillet!$B$19),0) -> 
B26: =ROUNDUP((B11/juillet!$B$19),0) ->  | C26: =ROUNDUP((C11/juillet!$B$19),0) ->  | D26: =ROUNDUP((D11/juillet!$B$19),0) ->  | E26: =ROUNDUP((E11/juillet!$B$19),0) ->  | F26: =ROUNDUP((F11/juillet!$B$19),0) -> 0 | G26: =ROUNDUP((G11/juillet!$B$19),0) ->  | H26: =ROUNDUP((H11/juillet!$B$19),0) ->  | I26: =ROUNDUP((I11/juillet!$B$19),0) -> 8 | J26: =ROUNDUP((J11/juillet!$B$19),0) ->  | K26: =ROUNDUP((K11/juillet!$B$19),0) -> 
B27: =ROUNDUP((B12/juillet!$B$19),0) ->  | C27: =ROUNDUP((C12/juillet!$B$19),0) ->  | D27: =ROUNDUP((D12/juillet!$B$19),0) ->  | E27: =ROUNDUP((E12/juillet!$B$19),0) ->  | F27: =ROUNDUP((F12/juillet!$B$19),0) -> 0 | G27: =ROUNDUP((G12/juillet!$B$19),0) ->  | H27: =ROUNDUP((H12/juillet!$B$19),0) ->  | I27: =ROUNDUP((I12/juillet!$B$19),0) -> 8 | J27: =ROUNDUP((J12/juillet!$B$19),0) ->  | K27: =ROUNDUP((K12/juillet!$B$19),0) -> 
B28: =ROUNDUP((B13/juillet!$B$19),0) ->  | C28: =ROUNDUP((C13/juillet!$B$19),0) ->  | D28: =ROUNDUP((D13/juillet!$B$19),0) ->  | E28: =ROUNDUP((E13/juillet!$B$19),0) ->  | F28: =ROUNDUP((F13/juillet!$B$19),0) -> 0 | G28: =ROUNDUP((G13/juillet!$B$19),0) ->  | H28: =ROUNDUP((H13/juillet!$B$19),0) ->  | I28: =ROUNDUP((I13/juillet!$B$19),0) -> 8 | J28: =ROUNDUP((J13/juillet!$B$19),0) ->  | K28: =ROUNDUP((K13/juillet!$B$19),0) -> 

Sheet Spécifique (hidden)
B1: FLYBOX | C1: POST | D1: porta | E1: Cases | F1: Taux d'atteinte Spécifique | G1: Note d'EVAL | H1: INDIV | I1: INDIV ACCELEL | J1: Commission
A2: AYOUSSE1 | B2: =VLOOKUP($A2,analyse!$A$8:$K$18,5,0) ->  | C2: =VLOOKUP($A2,analyse!$A$8:$K$18,3,0) ->  | D2: =VLOOKUP(A2,analyse!A8:I20,8,0) ->  | E2: =VLOOKUP(A2,'CAES REJETES'!A:F,6,0) ->  | F2: =((B2*15%)+(C2*15%)+(D2*15%)+(E2*15%)/60%) ->  | G2: 1 | H2: =F2+(G2*40%) ->  | I2: =IF(H2<100%,H2,L2) ->  | J2: =I2*juillet!$B$10 ->  | L2: =100%+((H2-100%)*2) -> 
A3: ECHERIF | B3: =VLOOKUP($A3,analyse!$A$8:$K$18,5,0) ->  | C3: =VLOOKUP($A3,analyse!$A$8:$K$18,3,0) ->  | D3: =VLOOKUP(A3,analyse!A9:I21,8,0) ->  | E3: =VLOOKUP(A3,'CAES REJETES'!A:F,6,0) ->  | G3: 1 | J3: =I3*juillet!$B$10 -> 
A4: FOUADA | B4: =VLOOKUP($A4,analyse!$A$8:$K$18,5,0) ->  | C4: =VLOOKUP($A4,analyse!$A$8:$K$18,3,0) ->  | D4: =VLOOKUP(A4,analyse!A10:I22,8,0) ->  | E4: =VLOOKUP(A4,'CAES REJETES'!A:F,6,0) ->  | G4: 1 | J4: =I4*juillet!$B$10 -> 
A5: HAMEUR | B5: =VLOOKUP($A5,analyse!$A$8:$K$18,5,0) ->  | C5: =VLOOKUP($A5,analyse!$A$8:$K$18,3,0) ->  | D5: =VLOOKUP(A5,analyse!A11:I23,8,0) ->  | E5: =VLOOKUP(A5,'CAES REJETES'!A:F,6,0) ->  | G5: 1 | J5: =I5*juillet!$B$10 -> 
A6: HAMMONG | B6: =VLOOKUP($A6,analyse!$A$8:$K$18,5,0) ->  | C6: =VLOOKUP($A6,analyse!$A$8:$K$18,3,0) ->  | D6: =VLOOKUP(A6,analyse!A12:I24,8,0) ->  | E6: =VLOOKUP(A6,'CAES REJETES'!A:F,6,0) ->  | G6: 1 | J6: =I6*juillet!$B$10 -> 
A7: ISAOUDI | B7: =VLOOKUP($A7,analyse!$A$8:$K$18,5,0) ->  | C7: =VLOOKUP($A7,analyse!$A$8:$K$18,3,0) ->  | D7: =VLOOKUP(A7,analyse!A13:I25,8,0) ->  | E7: =VLOOKUP(A7,'CAES REJETES'!A:F,6,0) ->  | G7: 1 | J7: =I7*juillet!$B$10 -> 
A8: KHMILA | B8: =VLOOKUP($A8,analyse!$A$8:$K$18,5,0) ->  | C8: =VLOOKUP($A8,analyse!$A$8:$K$18,3,0) ->  | D8: =VLOOKUP(A8,analyse!A14:I26,8,0) ->  | E8: =VLOOKUP(A8,'CAES REJETES'!A:F,6,0) ->  | G8: 0.1 | J8: =I8*juillet!$B$10 -> 
A9: MBHASSIN | B9: =VLOOKUP($A9,analyse!$A$8:$K$18,5,0) ->  | C9: =VLOOKUP($A9,analyse!$A$8:$K$18,3,0) ->  | D9: =VLOOKUP(A9,analyse!A15:I27,8,0) ->  | E9: =VLOOKUP(A9,'CAES REJETES'!A:F,6,0) ->  | G9: 1 | J9: =I9*juillet!$B$10 -> 
A10: SDHAHRI | B10: =VLOOKUP($A10,analyse!$A$8:$K$18,5,0) ->  | C10: =VLOOKUP($A10,analyse!$A$8:$K$18,3,0) ->  | D10: =VLOOKUP(A10,analyse!A16:I28,8,0) ->  | E10: =VLOOKUP(A10,'CAES REJETES'!A:F,6,0) ->  | G10: 1 | J10: =I10*juillet!$B$10 -> 
A11: TLEJMI | B11: =VLOOKUP($A11,analyse!$A$8:$K$18,5,0) ->  | C11: =VLOOKUP($A11,analyse!$A$8:$K$18,3,0) ->  | D11: =VLOOKUP(A11,analyse!A17:I29,8,0) ->  | E11: =VLOOKUP(A11,'CAES REJETES'!A:F,6,0) ->  | F11: =((B11*15%)+(C11*15%)+(D11*15%)+(E11*15%)/60%) ->  | G11: 2 | H11: =F11+(G11*40%) ->  | I11: =IF(H11<100%,H11,L11) ->  | J11: =I11*juillet!$B$10 -> 
A13: Moyenne | B13: =AVERAGE(F2:F10) -> 
A14: RB | B14: =B13*juillet!B14 -> 

Sheet Contrats
A1: Numéro de Série | B1: MSISDN | C1: DATE | D1: Nom et Prenom | E1: Offre | F1: Groupe Client | G1: Nbre de Points | H1: famille | I1: CC | J1: ETAT
A2: 0000001 | E2: Test | G2: 0 | H2: Prépayé | I2: ABLOUNA
A3: 0000002 | E3: Test | G3: 0 | H3: Prépayé | I3: ASLOGHM
A4: 0000003 | E4: Test | G4: 0 | H4: Prépayé | I4: RIGRAIET
A5: 0000004 | E5: Test | G5: 0 | H5: Prépayé | I5: SIGHW
A6: 0000005 | E6: Test | G6: 0 | H6: Prépayé | I6: AmiraX
A7: 0000006 | E7: Test | G7: 0 | H7: Prépayé | I7: HanenX
A8: 0000007 | E8: Test | G8: 0 | H8: Prépayé | I8: -
A9: 0000008 | E9: Test | G9: 0 | H9: Prépayé | I9: -
A10: 0000009 | E10: Test | G10: 0 | H10: Prépayé | I10: -
A11: 0000010 | E11: Test | G11: 0 | H11: Prépayé | I11: -
A12: -- | B12: -- | C12: -- | D12: -- | E12: -- | F12: --
A13: 892160100124728421 | B13: 51465718 | C13: 15/08/2017 | D13: NEBIL ZAYENI | E13: Clé 3G Pass | F13: Grand public | G13: =VLOOKUP(E13,BAREME!A:C,3,0) -> 1 | H13: =VLOOKUP(E13,BAREME!A:C,2,0) -> IEW | I13: =VLOOKUP(A13,SOLD!A:J,2,0) ->  | J13: =VLOOKUP(A13,'Doucher contrats'!A:B,2,0) -> 
A14: 892160100124728422 | B14: 51293626 | C14: 15/08/2017 | D14: MONAEM ZORGATI | E14: Clé 3G Simply | F14: Prepaid | G14: =VLOOKUP(E14,BAREME!A:C,3,0) -> 1 | H14: =VLOOKUP(E14,BAREME!A:C,2,0) -> IEW | I14: =VLOOKUP(A14,SOLD!A:J,2,0) ->  | J14: =VLOOKUP(A14,'Doucher contrats'!A:B,2,0) -> 
A15: 892160100124728423 | B15: 51296198 | C15: 15/08/2017 | D15: FARID KALBOUSI | E15: Clé 3G Pass | F15: Grand public | G15: =VLOOKUP(E15,BAREME!A:C,3,0) -> 1 | H15: =VLOOKUP(E15,BAREME!A:C,2,0) -> IEW | I15: =VLOOKUP(A15,SOLD!A:J,2,0) ->  | J15: =VLOOKUP(A15,'Doucher contrats'!A:B,2,0) -> 
A16: 892160100124728424 | B16: 51924192 | C16: 15/08/2017 | D16: AHMED HAMED | E16: Clé 3G Simply | F16: Grand public | G16: =VLOOKUP(E16,BAREME!A:C,3,0) -> 1 | H16: =VLOOKUP(E16,BAREME!A:C,2,0) -> IEW | I16: =VLOOKUP(A16,SOLD!A:J,2,0) ->  | J16: =VLOOKUP(A16,'Doucher contrats'!A:B,2,0) -> 
A17: 892160100124728425 | B17: 51923294 | C17: 15/08/2017 | D17: AHMED HAMED | E17: Clé 3G Simply | F17: Grand public | G17: =VLOOKUP(E17,BAREME!A:C,3,0) -> 1 | H17: =VLOOKUP(E17,BAREME!A:C,2,0) -> IEW | I17: =VLOOKUP(A17,SOLD!A:J,2,0) ->  | J17: =VLOOKUP(A17,'Doucher contrats'!A:B,2,0) -> 
A18: 892160100124728426 | B18: 51924326 | C18: 15/08/2017 | D18: EL LILI NADIA | E18: Clé 3G Simply | F18: Grand public | G18: =VLOOKUP(E18,BAREME!A:C,3,0) -> 1 | H18: =VLOOKUP(E18,BAREME!A:C,2,0) -> IEW | I18: =VLOOKUP(A18,SOLD!A:J,2,0) ->  | J18: =VLOOKUP(A18,'Doucher contrats'!A:B,2,0) -> 
A19: 892160100124729145 | B19: 51803600 | C19: 15/08/2017 | D19: HOSNI ABDALLAH | E19: Clé 3G Simply | F19: Grand public | G19: =VLOOKUP(E19,BAREME!A:C,3,0) -> 1 | H19: =VLOOKUP(E19,BAREME!A:C,2,0) -> IEW | I19: =VLOOKUP(A19,SOLD!A:J,2,0) -> ABLOUNA | J19: =VLOOKUP(A19,'Doucher contrats'!A:B,2,0) -> 
A20: 892160100124729149 | B20: 51289487 | C20: 15/08/2017 | D20: AMIRA SALEM | E20: Clé 3G Pass | F20: Grand public | G20: =VLOOKUP(E20,BAREME!A:C,3,0) -> 1 | H20: =VLOOKUP(E20,BAREME!A:C,2,0) -> IEW | I20: =VLOOKUP(A20,SOLD!A:J,2,0) ->  | J20: =VLOOKUP(A20,'Doucher contrats'!A:B,2,0) -> 
A21: 892160100124729151 | B21: 51292383 | C21: 15/08/2017 | D21: SARA SMA | E21: Clé 3G Pass | F21: Grand public | G21: =VLOOKUP(E21,BAREME!A:C,3,0) -> 1 | H21: =VLOOKUP(E21,BAREME!A:C,2,0) -> IEW | I21: =VLOOKUP(A21,SOLD!A:J,2,0) ->  | J21: =VLOOKUP(A21,'Doucher contrats'!A:B,2,0) -> 
A22: 892160100124729152 | B22: 51436814 | C22: 15/08/2017 | D22: OUMAIMA MARZOUK | E22: Clé 3G Pass | F22: Grand public | G22: =VLOOKUP(E22,BAREME!A:C,3,0) -> 1 | H22: =VLOOKUP(E22,BAREME!A:C,2,0) -> IEW | I22: =VLOOKUP(A22,SOLD!A:J,2,0) -> ASLOGHM | J22: =VLOOKUP(A22,'Doucher contrats'!A:B,2,0) -> 
A23: 892160100124729153 | B23: 51266763 | C23: 15/08/2017 | D23: ANIS ECHATTI | E23: Clé 3G Pass | F23: Grand public | G23: =VLOOKUP(E23,BAREME!A:C,3,0) -> 1 | H23: =VLOOKUP(E23,BAREME!A:C,2,0) -> IEW | I23: =VLOOKUP(A23,SOLD!A:J,2,0) -> SIGHW | J23: =VLOOKUP(A23,'Doucher contrats'!A:B,2,0) -> 
A24: 892160100124729154 | B24: 51401002 | C24: 15/08/2017 | D24: FATHI AMARA | E24: Clé 3G Simply | F24: Grand public | G24: =VLOOKUP(E24,BAREME!A:C,3,0) -> 1 | H24: =VLOOKUP(E24,BAREME!A:C,2,0) -> IEW | I24: =VLOOKUP(A24,SOLD!A:J,2,0) -> ASLOGHM | J24: =VLOOKUP(A24,'Doucher contrats'!A:B,2,0) -> 
A25: 892160100122554915 | B25: 58915358 | C25: 15/08/2017 | D25: ANIS ECHATTI | E25: Welcome sim | F25: Grand public | G25: =VLOOKUP(E25,BAREME!A:C,3,0) -> 1 | H25: =VLOOKUP(E25,BAREME!A:C,2,0) -> Prépayé | I25: =VLOOKUP(A25,SOLD!A:J,2,0) -> SIGHW | J25: =VLOOKUP(A25,'Doucher contrats'!A:B,2,0) -> 
A26: 892160100122554924 | B26: 53215420 | C26: 15/08/2017 | D26: ABD AZIZ DHIBE | E26: 1000 Pourcent | F26: Prepaid | G26: =VLOOKUP(E26,BAREME!A:C,3,0) -> 1 | H26: =VLOOKUP(E26,BAREME!A:C,2,0) -> Prépayé | I26: =VLOOKUP(A26,SOLD!A:J,2,0) -> ABLOUNA | J26: =VLOOKUP(A26,'Doucher contrats'!A:B,2,0) -> 
A27: 892160100122554927 | B27: 56321129 | C27: 15/08/2017 | D27: HAMZA WARTENI | E27: 1000 Pourcent | F27: Grand public | G27: =VLOOKUP(E27,BAREME!A:C,3,0) -> 1 | H27: =VLOOKUP(E27,BAREME!A:C,2,0) -> Prépayé | I27: =VLOOKUP(A27,SOLD!A:J,2,0) ->  | J27: =VLOOKUP(A27,'Doucher contrats'!A:B,2,0) -> 
A28: 892160100122554928 | B28: 58950810 | C28: 15/08/2017 | D28: FARID KALBOUSI | E28: 1000 Pourcent | F28: Grand public | G28: =VLOOKUP(E28,BAREME!A:C,3,0) -> 1 | H28: =VLOOKUP(E28,BAREME!A:C,2,0) -> Prépayé | I28: =VLOOKUP(A28,SOLD!A:J,2,0) ->  | J28: =VLOOKUP(A28,'Doucher contrats'!A:B,2,0) -> 
A29: 892160100122554929 | B29: 55480447 | C29: 15/08/2017 | D29: MARWEN EL KARAKNI | E29: 1000 Pourcent | F29: Prepaid | G29: =VLOOKUP(E29,BAREME!A:C,3,0) -> 1 | H29: =VLOOKUP(E29,BAREME!A:C,2,0) -> Prépayé | I29: =VLOOKUP(A29,SOLD!A:J,2,0) ->  | J29: =VLOOKUP(A29,'Doucher contrats'!A:B,2,0) -> 
A30: 892160100122554930 | B30: 54217533 | C30: 15/08/2017 | D30: OUMAIMA MARZOUK | E30: 1000 Pourcent | F30: Grand public | G30: =VLOOKUP(E30,BAREME!A:C,3,0) -> 1 | H30: =VLOOKUP(E30,BAREME!A:C,2,0) -> Prépayé | I30: =VLOOKUP(A30,SOLD!A:J,2,0) -> ASLOGHM | J30: =VLOOKUP(A30,'Doucher contrats'!A:B,2,0) -> 
A31: 892160100122554931 | B31: 52373302 | C31: 15/08/2017 | D31: AMIRA SALEM | E31: 1000 Pourcent | F31: Grand public | G31: =VLOOKUP(E31,BAREME!A:C,3,0) -> 1 | H31: =VLOOKUP(E31,BAREME!A:C,2,0) -> Prépayé | I31: =VLOOKUP(A31,SOLD!A:J,2,0) ->  | J31: =VLOOKUP(A31,'Doucher contrats'!A:B,2,0) -> 
A32: 892160100122554932 | B32: 54552487 | C32: 15/08/2017 | D32: HABIB EL KHEDHIRI | E32: 1000 Pourcent | F32: Prepaid | G32: =VLOOKUP(E32,BAREME!A:C,3,0) -> 1 | H32: =VLOOKUP(E32,BAREME!A:C,2,0) -> Prépayé | I32: =VLOOKUP(A32,SOLD!A:J,2,0) -> ABLOUNA | J32: =VLOOKUP(A32,'Doucher contrats'!A:B,2,0) -> 
A33: 892160100122554935 | B33: 54981400 | C33: 15/08/2017 | D33: HABIB EL KHEDHIRI | E33: 1000 Pourcent | F33: Prepaid | G33: =VLOOKUP(E33,BAREME!A:C,3,0) -> 1 | H33: =VLOOKUP(E33,BAREME!A:C,2,0) -> Prépayé | I33: =VLOOKUP(A33,SOLD!A:J,2,0) -> ABLOUNA | J33: =VLOOKUP(A33,'Doucher contrats'!A:B,2,0) -> 
A34: 892160100122554944 | B34: 55201225 | C34: 15/08/2017 | D34: SAID IMEM | E34: 1000 Pourcent | F34: Grand public | G34: =VLOOKUP(E34,BAREME!A:C,3,0) -> 1 | H34: =VLOOKUP(E34,BAREME!A:C,2,0) -> Prépayé | I34: =VLOOKUP(A34,SOLD!A:J,2,0) -> ASLOGHM | J34: =VLOOKUP(A34,'Doucher contrats'!A:B,2,0) -> 
A35: 892160100122554946 | B35: 53885196 | C35: 15/08/2017 | D35: AHMED CHAKROUN | E35: 1000 Pourcent | F35: Grand public | G35: =VLOOKUP(E35,BAREME!A:C,3,0) -> 1 | H35: =VLOOKUP(E35,BAREME!A:C,2,0) -> Prépayé | I35: =VLOOKUP(A35,SOLD!A:J,2,0) -> ASLOGHM | J35: =VLOOKUP(A35,'Doucher contrats'!A:B,2,0) -> 
A36: 892160100122554947 | B36: 54601093 | C36: 15/08/2017 | D36: MOHAMED GARBI | E36: 1000 Pourcent | F36: Grand public | G36: =VLOOKUP(E36,BAREME!A:C,3,0) -> 1 | H36: =VLOOKUP(E36,BAREME!A:C,2,0) -> Prépayé | I36: =VLOOKUP(A36,SOLD!A:J,2,0) -> ASLOGHM | J36: =VLOOKUP(A36,'Doucher contrats'!A:B,2,0) -> 
A37: 892160100122554948 | B37: 52370269 | C37: 15/08/2017 | D37: SARA SMA | E37: 1000 Pourcent | F37: Grand public | G37: =VLOOKUP(E37,BAREME!A:C,3,0) -> 1 | H37: =VLOOKUP(E37,BAREME!A:C,2,0) -> Prépayé | I37: =VLOOKUP(A37,SOLD!A:J,2,0) ->  | J37: =VLOOKUP(A37,'Doucher contrats'!A:B,2,0) -> 
A38: 892160100122555717 | B38: 50563196 | C38: 15/08/2017 | D38: HATEM GAICHE | E38: 1000 Pourcent | F38: Grand public | G38: =VLOOKUP(E38,BAREME!A:C,3,0) -> 1 | H38: =VLOOKUP(E38,BAREME!A:C,2,0) -> Prépayé | I38: =VLOOKUP(A38,SOLD!A:J,2,0) -> RIGRAIET | J38: =VLOOKUP(A38,'Doucher contrats'!A:B,2,0) -> 
A39: 892160100122555718 | B39: 50916104 | C39: 15/08/2017 | D39: NEBIL ZAYENI | E39: 1000 Pourcent | F39: Grand public | G39: =VLOOKUP(E39,BAREME!A:C,3,0) -> 1 | H39: =VLOOKUP(E39,BAREME!A:C,2,0) -> Prépayé | I39: =VLOOKUP(A39,SOLD!A:J,2,0) ->  | J39: =VLOOKUP(A39,'Doucher contrats'!A:B,2,0) -> 
A40: 892160100122555727 | B40: 56320960 | C40: 15/08/2017 | D40: NOURA BOURGUIBA | E40: Welcome sim | F40: Grand public | G40: =VLOOKUP(E40,BAREME!A:C,3,0) -> 1 | H40: =VLOOKUP(E40,BAREME!A:C,2,0) -> Prépayé | I40: =VLOOKUP(A40,SOLD!A:J,2,0) -> ABLOUNA | J40: =VLOOKUP(A40,'Doucher contrats'!A:B,2,0) -> 
A41: 892160100123469072 | B41: 56732525 | C41: 15/08/2017 | D41: AYMAN BEN SIK ALI | E41: El Jam3ia Mobile | F41: Prepaid | G41: =VLOOKUP(E41,BAREME!A:C,3,0) -> 1 | H41: =VLOOKUP(E41,BAREME!A:C,2,0) -> Prépayé | I41: =VLOOKUP(A41,SOLD!A:J,2,0) -> ABLOUNA | J41: =VLOOKUP(A41,'Doucher contrats'!A:B,2,0) -> 
A42: 892160100123469073 | B42: 56732526 | C42: 15/08/2017 | D42: AYMAN BEN SIK ALI | E42: El Jam3ia Mobile | F42: Prepaid | G42: =VLOOKUP(E42,BAREME!A:C,3,0) -> 1 | H42: =VLOOKUP(E42,BAREME!A:C,2,0) -> Prépayé | I42: =VLOOKUP(A42,SOLD!A:J,2,0) -> ABLOUNA | J42: =VLOOKUP(A42,'Doucher contrats'!A:B,2,0) -> 
A43: 892160100123469074 | B43: 56732527 | C43: 15/08/2017 | D43: MOHAMED GHAZI HOUAS | E43: El Jam3ia Mobile | F43: Grand public | G43: =VLOOKUP(E43,BAREME!A:C,3,0) -> 1 | H43: =VLOOKUP(E43,BAREME!A:C,2,0) -> Prépayé | I43: =VLOOKUP(A43,SOLD!A:J,2,0) -> ASLOGHM | J43: =VLOOKUP(A43,'Doucher contrats'!A:B,2,0) -> 
A44: 892160100123469081 | B44: 56732534 | C44: 15/08/2017 | D44: MAKHLOUF AYMEN | E44: El Jam3ia Mobile | F44: Grand public | G44: =VLOOKUP(E44,BAREME!A:C,3,0) -> 1 | H44: =VLOOKUP(E44,BAREME!A:C,2,0) -> Prépayé | I44: =VLOOKUP(A44,SOLD!A:J,2,0) -> ASLOGHM | J44: =VLOOKUP(A44,'Doucher contrats'!A:B,2,0) -> 
A45: 892160100123469082 | B45: 56732535 | C45: 15/08/2017 | D45: MAKHLOUF AYMEN | E45: El Jam3ia Mobile | F45: Grand public | G45: =VLOOKUP(E45,BAREME!A:C,3,0) -> 1 | H45: =VLOOKUP(E45,BAREME!A:C,2,0) -> Prépayé | I45: =VLOOKUP(A45,SOLD!A:J,2,0) -> ASLOGHM | J45: =VLOOKUP(A45,'Doucher contrats'!A:B,2,0) -> 
A46: 892160100123469100 | B46: 56732557 | C46: 15/08/2017 | D46: MOHAMED GHAZI HOUAS | E46: El Jam3ia Mobile | F46: Grand public | G46: =VLOOKUP(E46,BAREME!A:C,3,0) -> 1 | H46: =VLOOKUP(E46,BAREME!A:C,2,0) -> Prépayé | I46: =VLOOKUP(A46,SOLD!A:J,2,0) -> ASLOGHM | J46: =VLOOKUP(A46,'Doucher contrats'!A:B,2,0) -> 
A47: 892160100123469110 | B47: 56732568 | C47: 15/08/2017 | D47: ALEXIA MACCHIAVELLI | E47: El Jam3ia Mobile | F47: Grand public | G47: =VLOOKUP(E47,BAREME!A:C,3,0) -> 1 | H47: =VLOOKUP(E47,BAREME!A:C,2,0) -> Prépayé | I47: =VLOOKUP(A47,SOLD!A:J,2,0) -> ABLOUNA | J47: =VLOOKUP(A47,'Doucher contrats'!A:B,2,0) -> 
A48: 892160100123469137 | B48: 56732596 | C48: 15/08/2017 | D48: ABDELHAMID AMIMI | E48: El Jam3ia Mobile | F48: Grand public | G48: =VLOOKUP(E48,BAREME!A:C,3,0) -> 1 | H48: =VLOOKUP(E48,BAREME!A:C,2,0) -> Prépayé | I48: =VLOOKUP(A48,SOLD!A:J,2,0) -> ABLOUNA | J48: =VLOOKUP(A48,'Doucher contrats'!A:B,2,0) -> 
A49: 892160100123469138 | B49: 56732597 | C49: 15/08/2017 | D49: ABDELHAMID AMIMI | E49: El Jam3ia Mobile | F49: Grand public | G49: =VLOOKUP(E49,BAREME!A:C,3,0) -> 1 | H49: =VLOOKUP(E49,BAREME!A:C,2,0) -> Prépayé | I49: =VLOOKUP(A49,SOLD!A:J,2,0) -> ABLOUNA | J49: =VLOOKUP(A49,'Doucher contrats'!A:B,2,0) -> 
A50: 892160100123469154 | B50: 56732614 | C50: 15/08/2017 | D50: ELMAHDI BOUHLEL | E50: El Jam3ia Mobile | F50: Prepaid | G50: =VLOOKUP(E50,BAREME!A:C,3,0) -> 1 | H50: =VLOOKUP(E50,BAREME!A:C,2,0) -> Prépayé | I50: =VLOOKUP(A50,SOLD!A:J,2,0) -> ABLOUNA | J50: =VLOOKUP(A50,'Doucher contrats'!A:B,2,0) -> 
A51: 892160100123469165 | B51: 56732625 | C51: 15/08/2017 | D51: RANIA SABBEGH | E51: El Jam3ia Mobile | F51: Prepaid | G51: =VLOOKUP(E51,BAREME!A:C,3,0) -> 1 | H51: =VLOOKUP(E51,BAREME!A:C,2,0) -> Prépayé | I51: =VLOOKUP(A51,SOLD!A:J,2,0) -> ABLOUNA | J51: =VLOOKUP(A51,'Doucher contrats'!A:B,2,0) -> 
A52: 892160100123469166 | B52: 56732627 | C52: 15/08/2017 | D52: HABIB EL KHEDHIRI | E52: El Jam3ia Mobile | F52: Prepaid | G52: =VLOOKUP(E52,BAREME!A:C,3,0) -> 1 | H52: =VLOOKUP(E52,BAREME!A:C,2,0) -> Prépayé | I52: =VLOOKUP(A52,SOLD!A:J,2,0) -> ABLOUNA | J52: =VLOOKUP(A52,'Doucher contrats'!A:B,2,0) -> 
A53: 892160100206713346 | B53: 31504708 | C53: 14/08/2017 | D53: AMINE KALEL | E53: Flybox home | F53: Pro | G53: =VLOOKUP(E53,BAREME!A:C,3,0) -> 1 | H53: =VLOOKUP(E53,BAREME!A:C,2,0) -> Flybox | I53: =VLOOKUP(A53,SOLD!A:J,2,0) -> ABLOUNA | J53: =VLOOKUP(A53,'Doucher contrats'!A:B,2,0) -> 
A54: 892160100206713347 | B54: 54976261 | C54: 14/08/2017 | D54: MONGI KCHICHI | E54: Flybox MAX | F54: Grand public | G54: =VLOOKUP(E54,BAREME!A:C,3,0) -> 1 | H54: =VLOOKUP(E54,BAREME!A:C,2,0) -> Flybox | I54: =VLOOKUP(A54,SOLD!A:J,2,0) -> SIGHW | J54: =VLOOKUP(A54,'Doucher contrats'!A:B,2,0) -> 
A55: 892160100206713351 | B55: 54976094 | C55: 12/08/2017 | D55: SAMIR AJROUD | E55: Flybox MAX | F55: Grand public | G55: =VLOOKUP(E55,BAREME!A:C,3,0) -> 1 | H55: =VLOOKUP(E55,BAREME!A:C,2,0) -> Flybox | I55: =VLOOKUP(A55,SOLD!A:J,2,0) -> RIGRAIET | J55: =VLOOKUP(A55,'Doucher contrats'!A:B,2,0) -> 
A56: 892160100206713352 | B56: 54975985 | C56: 12/08/2017 | D56: AHLEM MZOUGHI | E56: Flybox MAX | F56: Grand public | G56: =VLOOKUP(E56,BAREME!A:C,3,0) -> 1 | H56: =VLOOKUP(E56,BAREME!A:C,2,0) -> Flybox | I56: =VLOOKUP(A56,SOLD!A:J,2,0) -> ABLOUNA | J56: =VLOOKUP(A56,'Doucher contrats'!A:B,2,0) -> 
A57: 892160100117566082 | B57: 50599444 | C57: 12/08/2017 | D57: BELIGH LADHARI | E57: forfait optima 50 | F57: VIP | G57: =VLOOKUP(E57,BAREME!A:C,3,0) -> 3 | H57: =VLOOKUP(E57,BAREME!A:C,2,0) -> Postpayé | I57: =VLOOKUP(A57,SOLD!A:J,2,0) -> ABLOUNA | J57: =VLOOKUP(A57,'Doucher contrats'!A:B,2,0) -> 
A58: 892160100124728442 | B58: 51252791 | C58: 11/08/2017 | D58: MOHAMED ZGAR | E58: Forfait clé 3G Intense | F58: Grand public | G58: =VLOOKUP(E58,BAREME!A:C,3,0) -> 2 | H58: =VLOOKUP(E58,BAREME!A:C,2,0) -> IEW | I58: =VLOOKUP(A58,SOLD!A:J,2,0) -> SIGHW | J58: =VLOOKUP(A58,'Doucher contrats'!A:B,2,0) -> 
A59: 892160100206713353 | B59: 54975673 | C59: 11/08/2017 | D59: OTHMAN BEN SALEM | E59: Flybox MAX | F59: Grand public | G59: =VLOOKUP(E59,BAREME!A:C,3,0) -> 1 | H59: =VLOOKUP(E59,BAREME!A:C,2,0) -> Flybox | I59: =VLOOKUP(A59,SOLD!A:J,2,0) -> SIGHW | J59: =VLOOKUP(A59,'Doucher contrats'!A:B,2,0) -> 
A60: 892160100124728418 | B60: 51469884 | C60: 08/08/2017 | D60: YOUSSEF KRIFA | E60: Clé 3G Pass | F60: Grand public | G60: =VLOOKUP(E60,BAREME!A:C,3,0) -> 1 | H60: =VLOOKUP(E60,BAREME!A:C,2,0) -> IEW | I60: =VLOOKUP(A60,SOLD!A:J,2,0) -> ASLOGHM | J60: =VLOOKUP(A60,'Doucher contrats'!A:B,2,0) -> 
A61: 892160100206713357 | B61: 54974050 | C61: 08/08/2017 | D61: ROUAA YOUSSEF | E61: Flybox MAX | F61: Grand public | G61: =VLOOKUP(E61,BAREME!A:C,3,0) -> 1 | H61: =VLOOKUP(E61,BAREME!A:C,2,0) -> Flybox | I61: =VLOOKUP(A61,SOLD!A:J,2,0) -> ABLOUNA | J61: =VLOOKUP(A61,'Doucher contrats'!A:B,2,0) -> 
A62: 892160100206713359 | B62: 54973232 | C62: 07/08/2017 | D62: MONIA BAYA CHTTI | E62: Flybox MAX | F62: Grand public | G62: =VLOOKUP(E62,BAREME!A:C,3,0) -> 1 | H62: =VLOOKUP(E62,BAREME!A:C,2,0) -> Flybox | I62: =VLOOKUP(A62,SOLD!A:J,2,0) -> ASLOGHM | J62: =VLOOKUP(A62,'Doucher contrats'!A:B,2,0) -> 
A63: 892160100206713360 | B63: 54972224 | C63: 04/08/2017 | D63: WASSILA ESSRIDI | E63: Flybox MAX | F63: Grand public | G63: =VLOOKUP(E63,BAREME!A:C,3,0) -> 1 | H63: =VLOOKUP(E63,BAREME!A:C,2,0) -> Flybox | I63: =VLOOKUP(A63,SOLD!A:J,2,0) -> ABLOUNA | J63: =VLOOKUP(A63,'Doucher contrats'!A:B,2,0) -> 
A64: 892160100122555298 | B64: 54187357 | C64: 03/08/2017 | D64: WAJDI KHELIFI | E64: forfait mix 15 | F64: Grand public | G64: =VLOOKUP(E64,BAREME!A:C,3,0) -> 1 | H64: =VLOOKUP(E64,BAREME!A:C,2,0) -> Postpayé | I64: =VLOOKUP(A64,SOLD!A:J,2,0) -> ASLOGHM | J64: =VLOOKUP(A64,'Doucher contrats'!A:B,2,0) -> 
A65: 892160100206712307 | B65: 54970854 | C65: 03/08/2017 | D65: SIHEM AMIMI | E65: Flybox MAX | F65: Grand public | G65: =VLOOKUP(E65,BAREME!A:C,3,0) -> 1 | H65: =VLOOKUP(E65,BAREME!A:C,2,0) -> Flybox | I65: =VLOOKUP(A65,SOLD!A:J,2,0) -> SIGHW | J65: =VLOOKUP(A65,'Doucher contrats'!A:B,2,0) -> 
A66: 892160100206712303 | B66: 31511666 | C66: 01/08/2017 | D66: STE OCEAN INFORMATIQUE | E66: Flybox home | F66: Pro | G66: =VLOOKUP(E66,BAREME!A:C,3,0) -> 1 | H66: =VLOOKUP(E66,BAREME!A:C,2,0) -> Flybox | I66: =VLOOKUP(A66,SOLD!A:J,2,0) -> ABLOUNA | J66: =VLOOKUP(A66,'Doucher contrats'!A:B,2,0) -> 
A67: 892160100122555460 | B67: 54217995 | C67: 31/07/2017 | D67: MED BELKACEM | E67: Edawa5 | F67: Grand public | G67: =VLOOKUP(E67,BAREME!A:C,3,0) -> 1 | H67: =VLOOKUP(E67,BAREME!A:C,2,0) -> Prépayé | I67: =VLOOKUP(A67,SOLD!A:J,2,0) ->  | J67: =VLOOKUP(A67,'Doucher contrats'!A:B,2,0) -> 
A68: TG4566688888 | B68: 77123132 | C68: 01/08/2017 | D68: Sleh Amri | E68: ADSL HOME | F68: ADSL | G68: =VLOOKUP(E68,BAREME!A:C,3,0) -> 1 | H68: =VLOOKUP(E68,BAREME!A:C,2,0) -> ADSL | I68: =VLOOKUP(A68,SOLD!A:J,2,0) -> HanenX | J68: =VLOOKUP(A68,'Doucher contrats'!A:B,2,0) -> 
G69: =VLOOKUP(E69,BAREME!A:C,3,0) ->  | H69: =VLOOKUP(E69,BAREME!A:C,2,0) ->  | I69: =VLOOKUP(A69,SOLD!A:J,2,0) ->  | J69: =VLOOKUP(A69,'Doucher contrats'!A:B,2,0) -> 
G70: =VLOOKUP(E70,BAREME!A:C,3,0) ->  | H70: =VLOOKUP(E70,BAREME!A:C,2,0) ->  | I70: =VLOOKUP(A70,SOLD!A:J,2,0) ->  | J70: =VLOOKUP(A70,'Doucher contrats'!A:B,2,0) -> 
G71: =VLOOKUP(E71,BAREME!A:C,3,0) ->  | H71: =VLOOKUP(E71,BAREME!A:C,2,0) ->  | I71: =VLOOKUP(A71,SOLD!A:J,2,0) ->  | J71: =VLOOKUP(A71,'Doucher contrats'!A:B,2,0) -> 
G72: =VLOOKUP(E72,BAREME!A:C,3,0) ->  | H72: =VLOOKUP(E72,BAREME!A:C,2,0) ->  | I72: =VLOOKUP(A72,SOLD!A:J,2,0) ->  | J72: =VLOOKUP(A72,'Doucher contrats'!A:B,2,0) -> 
G73: =VLOOKUP(E73,BAREME!A:C,3,0) ->  | H73: =VLOOKUP(E73,BAREME!A:C,2,0) ->  | I73: =VLOOKUP(A73,SOLD!A:J,2,0) ->  | J73: =VLOOKUP(A73,'Doucher contrats'!A:B,2,0) -> 
G74: =VLOOKUP(E74,BAREME!A:C,3,0) ->  | H74: =VLOOKUP(E74,BAREME!A:C,2,0) ->  | I74: =VLOOKUP(A74,SOLD!A:J,2,0) ->  | J74: =VLOOKUP(A74,'Doucher contrats'!A:B,2,0) -> 
G75: =VLOOKUP(E75,BAREME!A:C,3,0) ->  | H75: =VLOOKUP(E75,BAREME!A:C,2,0) ->  | I75: =VLOOKUP(A75,SOLD!A:J,2,0) ->  | J75: =VLOOKUP(A75,'Doucher contrats'!A:B,2,0) -> 
G76: =VLOOKUP(E76,BAREME!A:C,3,0) ->  | H76: =VLOOKUP(E76,BAREME!A:C,2,0) ->  | I76: =VLOOKUP(A76,SOLD!A:J,2,0) ->  | J76: =VLOOKUP(A76,'Doucher contrats'!A:B,2,0) -> 
G77: =VLOOKUP(E77,BAREME!A:C,3,0) ->  | H77: =VLOOKUP(E77,BAREME!A:C,2,0) ->  | I77: =VLOOKUP(A77,SOLD!A:J,2,0) ->  | J77: =VLOOKUP(A77,'Doucher contrats'!A:B,2,0) -> 
G78: =VLOOKUP(E78,BAREME!A:C,3,0) ->  | H78: =VLOOKUP(E78,BAREME!A:C,2,0) ->  | I78: =VLOOKUP(A78,SOLD!A:J,2,0) ->  | J78: =VLOOKUP(A78,'Doucher contrats'!A:B,2,0) -> 
G79: =VLOOKUP(E79,BAREME!A:C,3,0) ->  | H79: =VLOOKUP(E79,BAREME!A:C,2,0) ->  | I79: =VLOOKUP(A79,SOLD!A:J,2,0) ->  | J79: =VLOOKUP(A79,'Doucher contrats'!A:B,2,0) -> 
G80: =VLOOKUP(E80,BAREME!A:C,3,0) ->  | H80: =VLOOKUP(E80,BAREME!A:C,2,0) ->  | I80: =VLOOKUP(A80,SOLD!A:J,2,0) ->  | J80: =VLOOKUP(A80,'Doucher contrats'!A:B,2,0) -> 
G81: =VLOOKUP(E81,BAREME!A:C,3,0) ->  | H81: =VLOOKUP(E81,BAREME!A:C,2,0) ->  | I81: =VLOOKUP(A81,SOLD!A:J,2,0) ->  | J81: =VLOOKUP(A81,'Doucher contrats'!A:B,2,0) -> 
G82: =VLOOKUP(E82,BAREME!A:C,3,0) ->  | H82: =VLOOKUP(E82,BAREME!A:C,2,0) ->  | I82: =VLOOKUP(A82,SOLD!A:J,2,0) ->  | J82: =VLOOKUP(A82,'Doucher contrats'!A:B,2,0) -> 
G83: =VLOOKUP(E83,BAREME!A:C,3,0) ->  | H83: =VLOOKUP(E83,BAREME!A:C,2,0) ->  | I83: =VLOOKUP(A83,SOLD!A:J,2,0) ->  | J83: =VLOOKUP(A83,'Doucher contrats'!A:B,2,0) -> 
G84: =VLOOKUP(E84,BAREME!A:C,3,0) ->  | H84: =VLOOKUP(E84,BAREME!A:C,2,0) ->  | I84: =VLOOKUP(A84,SOLD!A:J,2,0) ->  | J84: =VLOOKUP(A84,'Doucher contrats'!A:B,2,0) -> 
G85: =VLOOKUP(E85,BAREME!A:C,3,0) ->  | H85: =VLOOKUP(E85,BAREME!A:C,2,0) ->  | I85: =VLOOKUP(A85,SOLD!A:J,2,0) ->  | J85: =VLOOKUP(A85,'Doucher contrats'!A:B,2,0) -> 
G86: =VLOOKUP(E86,BAREME!A:C,3,0) ->  | H86: =VLOOKUP(E86,BAREME!A:C,2,0) ->  | I86: =VLOOKUP(A86,SOLD!A:J,2,0) ->  | J86: =VLOOKUP(A86,'Doucher contrats'!A:B,2,0) -> 
G87: =VLOOKUP(E87,BAREME!A:C,3,0) ->  | H87: =VLOOKUP(E87,BAREME!A:C,2,0) ->  | I87: =VLOOKUP(A87,SOLD!A:J,2,0) ->  | J87: =VLOOKUP(A87,'Doucher contrats'!A:B,2,0) -> 
G88: =VLOOKUP(E88,BAREME!A:C,3,0) ->  | H88: =VLOOKUP(E88,BAREME!A:C,2,0) ->  | I88: =VLOOKUP(A88,SOLD!A:J,2,0) ->  | J88: =VLOOKUP(A88,'Doucher contrats'!A:B,2,0) -> 
G89: =VLOOKUP(E89,BAREME!A:C,3,0) ->  | H89: =VLOOKUP(E89,BAREME!A:C,2,0) ->  | I89: =VLOOKUP(A89,SOLD!A:J,2,0) ->  | J89: =VLOOKUP(A89,'Doucher contrats'!A:B,2,0) -> 
G90: =VLOOKUP(E90,BAREME!A:C,3,0) ->  | H90: =VLOOKUP(E90,BAREME!A:C,2,0) ->  | I90: =VLOOKUP(A90,SOLD!A:J,2,0) ->  | J90: =VLOOKUP(A90,'Doucher contrats'!A:B,2,0) -> 
G91: =VLOOKUP(E91,BAREME!A:C,3,0) ->  | H91: =VLOOKUP(E91,BAREME!A:C,2,0) ->  | I91: =VLOOKUP(A91,SOLD!A:J,2,0) ->  | J91: =VLOOKUP(A91,'Doucher contrats'!A:B,2,0) -> 
G92: =VLOOKUP(E92,BAREME!A:C,3,0) ->  | H92: =VLOOKUP(E92,BAREME!A:C,2,0) ->  | I92: =VLOOKUP(A92,SOLD!A:J,2,0) ->  | J92: =VLOOKUP(A92,'Doucher contrats'!A:B,2,0) -> 
G93: =VLOOKUP(E93,BAREME!A:C,3,0) ->  | H93: =VLOOKUP(E93,BAREME!A:C,2,0) ->  | I93: =VLOOKUP(A93,SOLD!A:J,2,0) ->  | J93: =VLOOKUP(A93,'Doucher contrats'!A:B,2,0) -> 
G94: =VLOOKUP(E94,BAREME!A:C,3,0) ->  | H94: =VLOOKUP(E94,BAREME!A:C,2,0) ->  | I94: =VLOOKUP(A94,SOLD!A:J,2,0) ->  | J94: =VLOOKUP(A94,'Doucher contrats'!A:B,2,0) -> 
G95: =VLOOKUP(E95,BAREME!A:C,3,0) ->  | H95: =VLOOKUP(E95,BAREME!A:C,2,0) ->  | I95: =VLOOKUP(A95,SOLD!A:J,2,0) ->  | J95: =VLOOKUP(A95,'Doucher contrats'!A:B,2,0) -> 
G96: =VLOOKUP(E96,BAREME!A:C,3,0) ->  | H96: =VLOOKUP(E96,BAREME!A:C,2,0) ->  | I96: =VLOOKUP(A96,SOLD!A:J,2,0) ->  | J96: =VLOOKUP(A96,'Doucher contrats'!A:B,2,0) -> 
G97: =VLOOKUP(E97,BAREME!A:C,3,0) ->  | H97: =VLOOKUP(E97,BAREME!A:C,2,0) ->  | I97: =VLOOKUP(A97,SOLD!A:J,2,0) ->  | J97: =VLOOKUP(A97,'Doucher contrats'!A:B,2,0) -> 
G98: =VLOOKUP(E98,BAREME!A:C,3,0) ->  | H98: =VLOOKUP(E98,BAREME!A:C,2,0) ->  | I98: =VLOOKUP(A98,SOLD!A:J,2,0) ->  | J98: =VLOOKUP(A98,'Doucher contrats'!A:B,2,0) -> 
G99: =VLOOKUP(E99,BAREME!A:C,3,0) ->  | H99: =VLOOKUP(E99,BAREME!A:C,2,0) ->  | I99: =VLOOKUP(A99,SOLD!A:J,2,0) ->  | J99: =VLOOKUP(A99,'Doucher contrats'!A:B,2,0) -> 
G100: =VLOOKUP(E100,BAREME!A:C,3,0) ->  | H100: =VLOOKUP(E100,BAREME!A:C,2,0) ->  | I100: =VLOOKUP(A100,SOLD!A:J,2,0) ->  | J100: =VLOOKUP(A100,'Doucher contrats'!A:B,2,0) -> 
G101: =VLOOKUP(E101,BAREME!A:C,3,0) ->  | H101: =VLOOKUP(E101,BAREME!A:C,2,0) ->  | I101: =VLOOKUP(A101,SOLD!A:J,2,0) ->  | J101: =VLOOKUP(A101,'Doucher contrats'!A:B,2,0) -> 
G102: =VLOOKUP(E102,BAREME!A:C,3,0) ->  | H102: =VLOOKUP(E102,BAREME!A:C,2,0) ->  | I102: =VLOOKUP(A102,SOLD!A:J,2,0) ->  | J102: =VLOOKUP(A102,'Doucher contrats'!A:B,2,0) -> 
G103: =VLOOKUP(E103,BAREME!A:C,3,0) ->  | H103: =VLOOKUP(E103,BAREME!A:C,2,0) ->  | I103: =VLOOKUP(A103,SOLD!A:J,2,0) ->  | J103: =VLOOKUP(A103,'Doucher contrats'!A:B,2,0) -> 
G104: =VLOOKUP(E104,BAREME!A:C,3,0) ->  | H104: =VLOOKUP(E104,BAREME!A:C,2,0) ->  | I104: =VLOOKUP(A104,SOLD!A:J,2,0) ->  | J104: =VLOOKUP(A104,'Doucher contrats'!A:B,2,0) -> 
G105: =VLOOKUP(E105,BAREME!A:C,3,0) ->  | H105: =VLOOKUP(E105,BAREME!A:C,2,0) ->  | I105: =VLOOKUP(A105,SOLD!A:J,2,0) ->  | J105: =VLOOKUP(A105,'Doucher contrats'!A:B,2,0) -> 
G106: =VLOOKUP(E106,BAREME!A:C,3,0) ->  | H106: =VLOOKUP(E106,BAREME!A:C,2,0) ->  | I106: =VLOOKUP(A106,SOLD!A:J,2,0) ->  | J106: =VLOOKUP(A106,'Doucher contrats'!A:B,2,0) -> 
G107: =VLOOKUP(E107,BAREME!A:C,3,0) ->  | H107: =VLOOKUP(E107,BAREME!A:C,2,0) ->  | I107: =VLOOKUP(A107,SOLD!A:J,2,0) ->  | J107: =VLOOKUP(A107,'Doucher contrats'!A:B,2,0) -> 
G108: =VLOOKUP(E108,BAREME!A:C,3,0) ->  | H108: =VLOOKUP(E108,BAREME!A:C,2,0) ->  | I108: =VLOOKUP(A108,SOLD!A:J,2,0) ->  | J108: =VLOOKUP(A108,'Doucher contrats'!A:B,2,0) -> 
G109: =VLOOKUP(E109,BAREME!A:C,3,0) ->  | H109: =VLOOKUP(E109,BAREME!A:C,2,0) ->  | I109: =VLOOKUP(A109,SOLD!A:J,2,0) ->  | J109: =VLOOKUP(A109,'Doucher contrats'!A:B,2,0) -> 
G110: =VLOOKUP(E110,BAREME!A:C,3,0) ->  | H110: =VLOOKUP(E110,BAREME!A:C,2,0) ->  | I110: =VLOOKUP(A110,SOLD!A:J,2,0) ->  | J110: =VLOOKUP(A110,'Doucher contrats'!A:B,2,0) -> 
G111: =VLOOKUP(E111,BAREME!A:C,3,0) ->  | H111: =VLOOKUP(E111,BAREME!A:C,2,0) ->  | I111: =VLOOKUP(A111,SOLD!A:J,2,0) ->  | J111: =VLOOKUP(A111,'Doucher contrats'!A:B,2,0) -> 
G112: =VLOOKUP(E112,BAREME!A:C,3,0) ->  | H112: =VLOOKUP(E112,BAREME!A:C,2,0) ->  | I112: =VLOOKUP(A112,SOLD!A:J,2,0) ->  | J112: =VLOOKUP(A112,'Doucher contrats'!A:B,2,0) -> 
G113: =VLOOKUP(E113,BAREME!A:C,3,0) ->  | H113: =VLOOKUP(E113,BAREME!A:C,2,0) ->  | I113: =VLOOKUP(A113,SOLD!A:J,2,0) ->  | J113: =VLOOKUP(A113,'Doucher contrats'!A:B,2,0) -> 
G114: =VLOOKUP(E114,BAREME!A:C,3,0) ->  | H114: =VLOOKUP(E114,BAREME!A:C,2,0) ->  | I114: =VLOOKUP(A114,SOLD!A:J,2,0) ->  | J114: =VLOOKUP(A114,'Doucher contrats'!A:B,2,0) -> 
G115: =VLOOKUP(E115,BAREME!A:C,3,0) ->  | H115: =VLOOKUP(E115,BAREME!A:C,2,0) ->  | I115: =VLOOKUP(A115,SOLD!A:J,2,0) ->  | J115: =VLOOKUP(A115,'Doucher contrats'!A:B,2,0) -> 
G116: =VLOOKUP(E116,BAREME!A:C,3,0) ->  | H116: =VLOOKUP(E116,BAREME!A:C,2,0) ->  | I116: =VLOOKUP(A116,SOLD!A:J,2,0) ->  | J116: =VLOOKUP(A116,'Doucher contrats'!A:B,2,0) -> 
G117: =VLOOKUP(E117,BAREME!A:C,3,0) ->  | H117: =VLOOKUP(E117,BAREME!A:C,2,0) ->  | I117: =VLOOKUP(A117,SOLD!A:J,2,0) ->  | J117: =VLOOKUP(A117,'Doucher contrats'!A:B,2,0) -> 
G118: =VLOOKUP(E118,BAREME!A:C,3,0) ->  | H118: =VLOOKUP(E118,BAREME!A:C,2,0) ->  | I118: =VLOOKUP(A118,SOLD!A:J,2,0) ->  | J118: =VLOOKUP(A118,'Doucher contrats'!A:B,2,0) -> 
G119: =VLOOKUP(E119,BAREME!A:C,3,0) ->  | H119: =VLOOKUP(E119,BAREME!A:C,2,0) ->  | I119: =VLOOKUP(A119,SOLD!A:J,2,0) ->  | J119: =VLOOKUP(A119,'Doucher contrats'!A:B,2,0) -> 
G120: =VLOOKUP(E120,BAREME!A:C,3,0) ->  | H120: =VLOOKUP(E120,BAREME!A:C,2,0) ->  | I120: =VLOOKUP(A120,SOLD!A:J,2,0) ->  | J120: =VLOOKUP(A120,'Doucher contrats'!A:B,2,0) -> 
G121: =VLOOKUP(E121,BAREME!A:C,3,0) ->  | H121: =VLOOKUP(E121,BAREME!A:C,2,0) ->  | I121: =VLOOKUP(A121,SOLD!A:J,2,0) ->  | J121: =VLOOKUP(A121,'Doucher contrats'!A:B,2,0) -> 
G122: =VLOOKUP(E122,BAREME!A:C,3,0) ->  | H122: =VLOOKUP(E122,BAREME!A:C,2,0) ->  | I122: =VLOOKUP(A122,SOLD!A:J,2,0) ->  | J122: =VLOOKUP(A122,'Doucher contrats'!A:B,2,0) -> 
G123: =VLOOKUP(E123,BAREME!A:C,3,0) ->  | H123: =VLOOKUP(E123,BAREME!A:C,2,0) ->  | I123: =VLOOKUP(A123,SOLD!A:J,2,0) ->  | J123: =VLOOKUP(A123,'Doucher contrats'!A:B,2,0) -> 
G124: =VLOOKUP(E124,BAREME!A:C,3,0) ->  | H124: =VLOOKUP(E124,BAREME!A:C,2,0) ->  | I124: =VLOOKUP(A124,SOLD!A:J,2,0) ->  | J124: =VLOOKUP(A124,'Doucher contrats'!A:B,2,0) -> 
G125: =VLOOKUP(E125,BAREME!A:C,3,0) ->  | H125: =VLOOKUP(E125,BAREME!A:C,2,0) ->  | I125: =VLOOKUP(A125,SOLD!A:J,2,0) ->  | J125: =VLOOKUP(A125,'Doucher contrats'!A:B,2,0) -> 
G126: =VLOOKUP(E126,BAREME!A:C,3,0) ->  | H126: =VLOOKUP(E126,BAREME!A:C,2,0) ->  | I126: =VLOOKUP(A126,SOLD!A:J,2,0) ->  | J126: =VLOOKUP(A126,'Doucher contrats'!A:B,2,0) -> 
G127: =VLOOKUP(E127,BAREME!A:C,3,0) ->  | H127: =VLOOKUP(E127,BAREME!A:C,2,0) ->  | I127: =VLOOKUP(A127,SOLD!A:J,2,0) ->  | J127: =VLOOKUP(A127,'Doucher contrats'!A:B,2,0) -> 
G128: =VLOOKUP(E128,BAREME!A:C,3,0) ->  | H128: =VLOOKUP(E128,BAREME!A:C,2,0) ->  | I128: =VLOOKUP(A128,SOLD!A:J,2,0) ->  | J128: =VLOOKUP(A128,'Doucher contrats'!A:B,2,0) -> 
G129: =VLOOKUP(E129,BAREME!A:C,3,0) ->  | H129: =VLOOKUP(E129,BAREME!A:C,2,0) ->  | I129: =VLOOKUP(A129,SOLD!A:J,2,0) ->  | J129: =VLOOKUP(A129,'Doucher contrats'!A:B,2,0) -> 
G130: =VLOOKUP(E130,BAREME!A:C,3,0) ->  | H130: =VLOOKUP(E130,BAREME!A:C,2,0) ->  | I130: =VLOOKUP(A130,SOLD!A:J,2,0) ->  | J130: =VLOOKUP(A130,'Doucher contrats'!A:B,2,0) -> 
G131: =VLOOKUP(E131,BAREME!A:C,3,0) ->  | H131: =VLOOKUP(E131,BAREME!A:C,2,0) ->  | I131: =VLOOKUP(A131,SOLD!A:J,2,0) ->  | J131: =VLOOKUP(A131,'Doucher contrats'!A:B,2,0) -> 
G132: =VLOOKUP(E132,BAREME!A:C,3,0) ->  | H132: =VLOOKUP(E132,BAREME!A:C,2,0) ->  | I132: =VLOOKUP(A132,SOLD!A:J,2,0) ->  | J132: =VLOOKUP(A132,'Doucher contrats'!A:B,2,0) -> 
G133: =VLOOKUP(E133,BAREME!A:C,3,0) ->  | H133: =VLOOKUP(E133,BAREME!A:C,2,0) ->  | I133: =VLOOKUP(A133,SOLD!A:J,2,0) ->  | J133: =VLOOKUP(A133,'Doucher contrats'!A:B,2,0) -> 
G134: =VLOOKUP(E134,BAREME!A:C,3,0) ->  | H134: =VLOOKUP(E134,BAREME!A:C,2,0) ->  | I134: =VLOOKUP(A134,SOLD!A:J,2,0) ->  | J134: =VLOOKUP(A134,'Doucher contrats'!A:B,2,0) -> 
G135: =VLOOKUP(E135,BAREME!A:C,3,0) ->  | H135: =VLOOKUP(E135,BAREME!A:C,2,0) ->  | I135: =VLOOKUP(A135,SOLD!A:J,2,0) ->  | J135: =VLOOKUP(A135,'Doucher contrats'!A:B,2,0) -> 
G136: =VLOOKUP(E136,BAREME!A:C,3,0) ->  | H136: =VLOOKUP(E136,BAREME!A:C,2,0) ->  | I136: =VLOOKUP(A136,SOLD!A:J,2,0) ->  | J136: =VLOOKUP(A136,'Doucher contrats'!A:B,2,0) -> 
G137: =VLOOKUP(E137,BAREME!A:C,3,0) ->  | H137: =VLOOKUP(E137,BAREME!A:C,2,0) ->  | I137: =VLOOKUP(A137,SOLD!A:J,2,0) ->  | J137: =VLOOKUP(A137,'Doucher contrats'!A:B,2,0) -> 
G138: =VLOOKUP(E138,BAREME!A:C,3,0) ->  | H138: =VLOOKUP(E138,BAREME!A:C,2,0) ->  | I138: =VLOOKUP(A138,SOLD!A:J,2,0) ->  | J138: =VLOOKUP(A138,'Doucher contrats'!A:B,2,0) -> 
G139: =VLOOKUP(E139,BAREME!A:C,3,0) ->  | H139: =VLOOKUP(E139,BAREME!A:C,2,0) ->  | I139: =VLOOKUP(A139,SOLD!A:J,2,0) ->  | J139: =VLOOKUP(A139,'Doucher contrats'!A:B,2,0) -> 
G140: =VLOOKUP(E140,BAREME!A:C,3,0) ->  | H140: =VLOOKUP(E140,BAREME!A:C,2,0) ->  | I140: =VLOOKUP(A140,SOLD!A:J,2,0) ->  | J140: =VLOOKUP(A140,'Doucher contrats'!A:B,2,0) -> 
G141: =VLOOKUP(E141,BAREME!A:C,3,0) ->  | H141: =VLOOKUP(E141,BAREME!A:C,2,0) ->  | I141: =VLOOKUP(A141,SOLD!A:J,2,0) ->  | J141: =VLOOKUP(A141,'Doucher contrats'!A:B,2,0) -> 
G142: =VLOOKUP(E142,BAREME!A:C,3,0) ->  | H142: =VLOOKUP(E142,BAREME!A:C,2,0) ->  | I142: =VLOOKUP(A142,SOLD!A:J,2,0) ->  | J142: =VLOOKUP(A142,'Doucher contrats'!A:B,2,0) -> 
G143: =VLOOKUP(E143,BAREME!A:C,3,0) ->  | H143: =VLOOKUP(E143,BAREME!A:C,2,0) ->  | I143: =VLOOKUP(A143,SOLD!A:J,2,0) ->  | J143: =VLOOKUP(A143,'Doucher contrats'!A:B,2,0) -> 
G144: =VLOOKUP(E144,BAREME!A:C,3,0) ->  | H144: =VLOOKUP(E144,BAREME!A:C,2,0) ->  | I144: =VLOOKUP(A144,SOLD!A:J,2,0) ->  | J144: =VLOOKUP(A144,'Doucher contrats'!A:B,2,0) -> 
G145: =VLOOKUP(E145,BAREME!A:C,3,0) ->  | H145: =VLOOKUP(E145,BAREME!A:C,2,0) ->  | I145: =VLOOKUP(A145,SOLD!A:J,2,0) ->  | J145: =VLOOKUP(A145,'Doucher contrats'!A:B,2,0) -> 
G146: =VLOOKUP(E146,BAREME!A:C,3,0) ->  | H146: =VLOOKUP(E146,BAREME!A:C,2,0) ->  | I146: =VLOOKUP(A146,SOLD!A:J,2,0) ->  | J146: =VLOOKUP(A146,'Doucher contrats'!A:B,2,0) -> 
G147: =VLOOKUP(E147,BAREME!A:C,3,0) ->  | H147: =VLOOKUP(E147,BAREME!A:C,2,0) ->  | I147: =VLOOKUP(A147,SOLD!A:J,2,0) ->  | J147: =VLOOKUP(A147,'Doucher contrats'!A:B,2,0) -> 
G148: =VLOOKUP(E148,BAREME!A:C,3,0) ->  | H148: =VLOOKUP(E148,BAREME!A:C,2,0) ->  | I148: =VLOOKUP(A148,SOLD!A:J,2,0) ->  | J148: =VLOOKUP(A148,'Doucher contrats'!A:B,2,0) -> 
G149: =VLOOKUP(E149,BAREME!A:C,3,0) ->  | H149: =VLOOKUP(E149,BAREME!A:C,2,0) ->  | I149: =VLOOKUP(A149,SOLD!A:J,2,0) ->  | J149: =VLOOKUP(A149,'Doucher contrats'!A:B,2,0) -> 
G150: =VLOOKUP(E150,BAREME!A:C,3,0) ->  | H150: =VLOOKUP(E150,BAREME!A:C,2,0) ->  | I150: =VLOOKUP(A150,SOLD!A:J,2,0) ->  | J150: =VLOOKUP(A150,'Doucher contrats'!A:B,2,0) -> 
G151: =VLOOKUP(E151,BAREME!A:C,3,0) ->  | H151: =VLOOKUP(E151,BAREME!A:C,2,0) ->  | I151: =VLOOKUP(A151,SOLD!A:J,2,0) ->  | J151: =VLOOKUP(A151,'Doucher contrats'!A:B,2,0) -> 
G152: =VLOOKUP(E152,BAREME!A:C,3,0) ->  | H152: =VLOOKUP(E152,BAREME!A:C,2,0) ->  | I152: =VLOOKUP(A152,SOLD!A:J,2,0) ->  | J152: =VLOOKUP(A152,'Doucher contrats'!A:B,2,0) -> 
G153: =VLOOKUP(E153,BAREME!A:C,3,0) ->  | H153: =VLOOKUP(E153,BAREME!A:C,2,0) ->  | I153: =VLOOKUP(A153,SOLD!A:J,2,0) ->  | J153: =VLOOKUP(A153,'Doucher contrats'!A:B,2,0) -> 
G154: =VLOOKUP(E154,BAREME!A:C,3,0) ->  | H154: =VLOOKUP(E154,BAREME!A:C,2,0) ->  | I154: =VLOOKUP(A154,SOLD!A:J,2,0) ->  | J154: =VLOOKUP(A154,'Doucher contrats'!A:B,2,0) -> 
G155: =VLOOKUP(E155,BAREME!A:C,3,0) ->  | H155: =VLOOKUP(E155,BAREME!A:C,2,0) ->  | I155: =VLOOKUP(A155,SOLD!A:J,2,0) ->  | J155: =VLOOKUP(A155,'Doucher contrats'!A:B,2,0) -> 
G156: =VLOOKUP(E156,BAREME!A:C,3,0) ->  | H156: =VLOOKUP(E156,BAREME!A:C,2,0) ->  | I156: =VLOOKUP(A156,SOLD!A:J,2,0) ->  | J156: =VLOOKUP(A156,'Doucher contrats'!A:B,2,0) -> 
G157: =VLOOKUP(E157,BAREME!A:C,3,0) ->  | H157: =VLOOKUP(E157,BAREME!A:C,2,0) ->  | I157: =VLOOKUP(A157,SOLD!A:J,2,0) ->  | J157: =VLOOKUP(A157,'Doucher contrats'!A:B,2,0) -> 
G158: =VLOOKUP(E158,BAREME!A:C,3,0) ->  | H158: =VLOOKUP(E158,BAREME!A:C,2,0) ->  | I158: =VLOOKUP(A158,SOLD!A:J,2,0) ->  | J158: =VLOOKUP(A158,'Doucher contrats'!A:B,2,0) -> 
G159: =VLOOKUP(E159,BAREME!A:C,3,0) ->  | H159: =VLOOKUP(E159,BAREME!A:C,2,0) ->  | I159: =VLOOKUP(A159,SOLD!A:J,2,0) ->  | J159: =VLOOKUP(A159,'Doucher contrats'!A:B,2,0) -> 
G160: =VLOOKUP(E160,BAREME!A:C,3,0) ->  | H160: =VLOOKUP(E160,BAREME!A:C,2,0) ->  | I160: =VLOOKUP(A160,SOLD!A:J,2,0) ->  | J160: =VLOOKUP(A160,'Doucher contrats'!A:B,2,0) -> 
G161: =VLOOKUP(E161,BAREME!A:C,3,0) ->  | H161: =VLOOKUP(E161,BAREME!A:C,2,0) ->  | I161: =VLOOKUP(A161,SOLD!A:J,2,0) ->  | J161: =VLOOKUP(A161,'Doucher contrats'!A:B,2,0) -> 
G162: =VLOOKUP(E162,BAREME!A:C,3,0) ->  | H162: =VLOOKUP(E162,BAREME!A:C,2,0) ->  | I162: =VLOOKUP(A162,SOLD!A:J,2,0) ->  | J162: =VLOOKUP(A162,'Doucher contrats'!A:B,2,0) -> 
G163: =VLOOKUP(E163,BAREME!A:C,3,0) ->  | H163: =VLOOKUP(E163,BAREME!A:C,2,0) ->  | I163: =VLOOKUP(A163,SOLD!A:J,2,0) ->  | J163: =VLOOKUP(A163,'Doucher contrats'!A:B,2,0) -> 
G164: =VLOOKUP(E164,BAREME!A:C,3,0) ->  | H164: =VLOOKUP(E164,BAREME!A:C,2,0) ->  | I164: =VLOOKUP(A164,SOLD!A:J,2,0) ->  | J164: =VLOOKUP(A164,'Doucher contrats'!A:B,2,0) -> 
G165: =VLOOKUP(E165,BAREME!A:C,3,0) ->  | H165: =VLOOKUP(E165,BAREME!A:C,2,0) ->  | I165: =VLOOKUP(A165,SOLD!A:J,2,0) ->  | J165: =VLOOKUP(A165,'Doucher contrats'!A:B,2,0) -> 
G166: =VLOOKUP(E166,BAREME!A:C,3,0) ->  | H166: =VLOOKUP(E166,BAREME!A:C,2,0) ->  | I166: =VLOOKUP(A166,SOLD!A:J,2,0) ->  | J166: =VLOOKUP(A166,'Doucher contrats'!A:B,2,0) -> 
G167: =VLOOKUP(E167,BAREME!A:C,3,0) ->  | H167: =VLOOKUP(E167,BAREME!A:C,2,0) ->  | I167: =VLOOKUP(A167,SOLD!A:J,2,0) ->  | J167: =VLOOKUP(A167,'Doucher contrats'!A:B,2,0) -> 
G168: =VLOOKUP(E168,BAREME!A:C,3,0) ->  | H168: =VLOOKUP(E168,BAREME!A:C,2,0) ->  | I168: =VLOOKUP(A168,SOLD!A:J,2,0) ->  | J168: =VLOOKUP(A168,'Doucher contrats'!A:B,2,0) -> 
G169: =VLOOKUP(E169,BAREME!A:C,3,0) ->  | H169: =VLOOKUP(E169,BAREME!A:C,2,0) ->  | I169: =VLOOKUP(A169,SOLD!A:J,2,0) ->  | J169: =VLOOKUP(A169,'Doucher contrats'!A:B,2,0) -> 
G170: =VLOOKUP(E170,BAREME!A:C,3,0) ->  | H170: =VLOOKUP(E170,BAREME!A:C,2,0) ->  | I170: =VLOOKUP(A170,SOLD!A:J,2,0) ->  | J170: =VLOOKUP(A170,'Doucher contrats'!A:B,2,0) -> 
G171: =VLOOKUP(E171,BAREME!A:C,3,0) ->  | H171: =VLOOKUP(E171,BAREME!A:C,2,0) ->  | I171: =VLOOKUP(A171,SOLD!A:J,2,0) ->  | J171: =VLOOKUP(A171,'Doucher contrats'!A:B,2,0) -> 
G172: =VLOOKUP(E172,BAREME!A:C,3,0) ->  | H172: =VLOOKUP(E172,BAREME!A:C,2,0) ->  | I172: =VLOOKUP(A172,SOLD!A:J,2,0) ->  | J172: =VLOOKUP(A172,'Doucher contrats'!A:B,2,0) -> 
G173: =VLOOKUP(E173,BAREME!A:C,3,0) ->  | H173: =VLOOKUP(E173,BAREME!A:C,2,0) ->  | I173: =VLOOKUP(A173,SOLD!A:J,2,0) ->  | J173: =VLOOKUP(A173,'Doucher contrats'!A:B,2,0) -> 
G174: =VLOOKUP(E174,BAREME!A:C,3,0) ->  | H174: =VLOOKUP(E174,BAREME!A:C,2,0) ->  | I174: =VLOOKUP(A174,SOLD!A:J,2,0) ->  | J174: =VLOOKUP(A174,'Doucher contrats'!A:B,2,0) -> 
G175: =VLOOKUP(E175,BAREME!A:C,3,0) ->  | H175: =VLOOKUP(E175,BAREME!A:C,2,0) ->  | I175: =VLOOKUP(A175,SOLD!A:J,2,0) ->  | J175: =VLOOKUP(A175,'Doucher contrats'!A:B,2,0) -> 
G176: =VLOOKUP(E176,BAREME!A:C,3,0) ->  | H176: =VLOOKUP(E176,BAREME!A:C,2,0) ->  | I176: =VLOOKUP(A176,SOLD!A:J,2,0) ->  | J176: =VLOOKUP(A176,'Doucher contrats'!A:B,2,0) -> 
G177: =VLOOKUP(E177,BAREME!A:C,3,0) ->  | H177: =VLOOKUP(E177,BAREME!A:C,2,0) ->  | I177: =VLOOKUP(A177,SOLD!A:J,2,0) ->  | J177: =VLOOKUP(A177,'Doucher contrats'!A:B,2,0) -> 
G178: =VLOOKUP(E178,BAREME!A:C,3,0) ->  | H178: =VLOOKUP(E178,BAREME!A:C,2,0) ->  | I178: =VLOOKUP(A178,SOLD!A:J,2,0) ->  | J178: =VLOOKUP(A178,'Doucher contrats'!A:B,2,0) -> 
G179: =VLOOKUP(E179,BAREME!A:C,3,0) ->  | H179: =VLOOKUP(E179,BAREME!A:C,2,0) ->  | I179: =VLOOKUP(A179,SOLD!A:J,2,0) ->  | J179: =VLOOKUP(A179,'Doucher contrats'!A:B,2,0) -> 
G180: =VLOOKUP(E180,BAREME!A:C,3,0) ->  | H180: =VLOOKUP(E180,BAREME!A:C,2,0) ->  | I180: =VLOOKUP(A180,SOLD!A:J,2,0) ->  | J180: =VLOOKUP(A180,'Doucher contrats'!A:B,2,0) -> 
G181: =VLOOKUP(E181,BAREME!A:C,3,0) ->  | H181: =VLOOKUP(E181,BAREME!A:C,2,0) ->  | I181: =VLOOKUP(A181,SOLD!A:J,2,0) ->  | J181: =VLOOKUP(A181,'Doucher contrats'!A:B,2,0) -> 
G182: =VLOOKUP(E182,BAREME!A:C,3,0) ->  | H182: =VLOOKUP(E182,BAREME!A:C,2,0) ->  | I182: =VLOOKUP(A182,SOLD!A:J,2,0) ->  | J182: =VLOOKUP(A182,'Doucher contrats'!A:B,2,0) -> 
G183: =VLOOKUP(E183,BAREME!A:C,3,0) ->  | H183: =VLOOKUP(E183,BAREME!A:C,2,0) ->  | I183: =VLOOKUP(A183,SOLD!A:J,2,0) ->  | J183: =VLOOKUP(A183,'Doucher contrats'!A:B,2,0) -> 
G184: =VLOOKUP(E184,BAREME!A:C,3,0) ->  | H184: =VLOOKUP(E184,BAREME!A:C,2,0) ->  | I184: =VLOOKUP(A184,SOLD!A:J,2,0) ->  | J184: =VLOOKUP(A184,'Doucher contrats'!A:B,2,0) -> 
G185: =VLOOKUP(E185,BAREME!A:C,3,0) ->  | H185: =VLOOKUP(E185,BAREME!A:C,2,0) ->  | I185: =VLOOKUP(A185,SOLD!A:J,2,0) ->  | J185: =VLOOKUP(A185,'Doucher contrats'!A:B,2,0) -> 
G186: =VLOOKUP(E186,BAREME!A:C,3,0) ->  | H186: =VLOOKUP(E186,BAREME!A:C,2,0) ->  | I186: =VLOOKUP(A186,SOLD!A:J,2,0) ->  | J186: =VLOOKUP(A186,'Doucher contrats'!A:B,2,0) -> 
G187: =VLOOKUP(E187,BAREME!A:C,3,0) ->  | H187: =VLOOKUP(E187,BAREME!A:C,2,0) ->  | I187: =VLOOKUP(A187,SOLD!A:J,2,0) ->  | J187: =VLOOKUP(A187,'Doucher contrats'!A:B,2,0) -> 
G188: =VLOOKUP(E188,BAREME!A:C,3,0) ->  | H188: =VLOOKUP(E188,BAREME!A:C,2,0) ->  | I188: =VLOOKUP(A188,SOLD!A:J,2,0) ->  | J188: =VLOOKUP(A188,'Doucher contrats'!A:B,2,0) -> 
G189: =VLOOKUP(E189,BAREME!A:C,3,0) ->  | H189: =VLOOKUP(E189,BAREME!A:C,2,0) ->  | I189: =VLOOKUP(A189,SOLD!A:J,2,0) ->  | J189: =VLOOKUP(A189,'Doucher contrats'!A:B,2,0) -> 
G190: =VLOOKUP(E190,BAREME!A:C,3,0) ->  | H190: =VLOOKUP(E190,BAREME!A:C,2,0) ->  | I190: =VLOOKUP(A190,SOLD!A:J,2,0) ->  | J190: =VLOOKUP(A190,'Doucher contrats'!A:B,2,0) -> 
G191: =VLOOKUP(E191,BAREME!A:C,3,0) ->  | H191: =VLOOKUP(E191,BAREME!A:C,2,0) ->  | I191: =VLOOKUP(A191,SOLD!A:J,2,0) ->  | J191: =VLOOKUP(A191,'Doucher contrats'!A:B,2,0) -> 
G192: =VLOOKUP(E192,BAREME!A:C,3,0) ->  | H192: =VLOOKUP(E192,BAREME!A:C,2,0) ->  | I192: =VLOOKUP(A192,SOLD!A:J,2,0) ->  | J192: =VLOOKUP(A192,'Doucher contrats'!A:B,2,0) -> 
G193: =VLOOKUP(E193,BAREME!A:C,3,0) ->  | H193: =VLOOKUP(E193,BAREME!A:C,2,0) ->  | I193: =VLOOKUP(A193,SOLD!A:J,2,0) ->  | J193: =VLOOKUP(A193,'Doucher contrats'!A:B,2,0) -> 
G194: =VLOOKUP(E194,BAREME!A:C,3,0) ->  | H194: =VLOOKUP(E194,BAREME!A:C,2,0) ->  | I194: =VLOOKUP(A194,SOLD!A:J,2,0) ->  | J194: =VLOOKUP(A194,'Doucher contrats'!A:B,2,0) -> 
G195: =VLOOKUP(E195,BAREME!A:C,3,0) ->  | H195: =VLOOKUP(E195,BAREME!A:C,2,0) ->  | I195: =VLOOKUP(A195,SOLD!A:J,2,0) ->  | J195: =VLOOKUP(A195,'Doucher contrats'!A:B,2,0) -> 
G196: =VLOOKUP(E196,BAREME!A:C,3,0) ->  | H196: =VLOOKUP(E196,BAREME!A:C,2,0) ->  | I196: =VLOOKUP(A196,SOLD!A:J,2,0) ->  | J196: =VLOOKUP(A196,'Doucher contrats'!A:B,2,0) -> 
G197: =VLOOKUP(E197,BAREME!A:C,3,0) ->  | H197: =VLOOKUP(E197,BAREME!A:C,2,0) ->  | I197: =VLOOKUP(A197,SOLD!A:J,2,0) ->  | J197: =VLOOKUP(A197,'Doucher contrats'!A:B,2,0) -> 
G198: =VLOOKUP(E198,BAREME!A:C,3,0) ->  | H198: =VLOOKUP(E198,BAREME!A:C,2,0) ->  | I198: =VLOOKUP(A198,SOLD!A:J,2,0) ->  | J198: =VLOOKUP(A198,'Doucher contrats'!A:B,2,0) -> 
G199: =VLOOKUP(E199,BAREME!A:C,3,0) ->  | H199: =VLOOKUP(E199,BAREME!A:C,2,0) ->  | I199: =VLOOKUP(A199,SOLD!A:J,2,0) ->  | J199: =VLOOKUP(A199,'Doucher contrats'!A:B,2,0) -> 
G200: =VLOOKUP(E200,BAREME!A:C,3,0) ->  | H200: =VLOOKUP(E200,BAREME!A:C,2,0) ->  | I200: =VLOOKUP(A200,SOLD!A:J,2,0) ->  | J200: =VLOOKUP(A200,'Doucher contrats'!A:B,2,0) -> 
... 172 more rows

Sheet BAREME (hidden)
A1: 1000 Pourcent | B1: Prépayé | C1: 1
A2: 3ajab | B2: Prépayé | C2: 1
A3: ADSL HOME | B3: ADSL | C3: 1
A4: ala kifi | B4: Postpayé | C4: 2
A5: Clé 3G Pass | B5: IEW | C5: 1
A6: Edawa5 | B6: Prépayé | C6: 1
A7: Flybox home | B7: Flybox | C7: 1
A8: Forfait clé 3G Intense | B8: IEW | C8: 2
A9: Forfait clé 3G Premium | B9: IEW | C9: 3
A10: forfait mix 15 | B10: Postpayé | C10: 1
A11: forfait mix 20 | B11: Postpayé | C11: 1
A12: forfait mix 30 | B12: Postpayé | C12: 2
A13: forfait mix 50 | B13: Postpayé | C13: 3
A14: forfait together | B14: Prépayé | C14: 1
A15: Nouvelle offre Hybride 20Go | B15: Flybox | C15: 1
A16: Welcome sim | B16: Prépayé | C16: 1
A17: Offre Flexi | B17: Postpayé | C17: 2
A18: Clé 3G Simply | B18: IEW | C18: 1
A19: Flybox Prepayee | B19: IEW | C19: 1
A20: Boouj | B20: Prépayé | C20: 1
A21: forfait maitrise 20 | B21: Postpayé | C21: 1
A22: forfait maitrise 30 | B22: Postpayé | C22: 2
A23: El Jam3ia Mobile | B23: Prépayé | C23: 1
A24: Flybox Pro | B24: Flybox | C24: 2
A25: Iphone 100 | B25: Postpayé | C25: 4
A26: Forfait optima 200 | B26: Postpayé | C26: 7
A27: Connecti | B27: Prépayé | C27: 1
A28: Forfait mix 100 | B28: Postpayé | C28: 4
A29: forfait optima 100 | B29: Postpayé | C29: 4
A30: OPEN | B30: Prépayé | C30: 1
A31: forfait optima 150 | B31: Postpayé | C31: 5
A32: Forfait clé 3G Access | B32: IEW | C32: 1.5
A33: Iphone Mix | B33: Postpayé | C33: 3
A34: abonnement Platinum | B34: Postpayé | C34: 1
A35: ADSL HOME | B35: Postpayé | C35: 1
A36: ADSL LIVE | B36: Postpayé | C36: 2
A37: ADSL Livebox II | B37: Postpayé | C37: 2
A38: Offre M2M VPN | B38: Postpayé | C38: 1
A39: Flybox home | B39: Hybride | C39: 1
A40: Flybox PLUS | B40: Hybride | C40: 1
A41: Flybox Pro | B41: Postpayé | C41: 2
A42: Flybox Staff | B42: Hybride | C42: 1
A43: Forfait cle 3G Access | B43: Hybride | C43: 2
A44: Forfait clé 3G Intense | B44: Hybride | C44: 2
A45: Forfait cle 3G Premium | B45: Hybride | C45: 3
A46: Forfait IEW Convention | B46: Hybride | C46: 2
A47: forfait IEW Edition Limitée | B47: Hybride | C47: 2
A48: forfait IEW OTN | B48: Hybride | C48: 2
A49: forfait maitrise 10 | B49: Hybride | C49: 1
A50: forfait maitrise 120 | B50: Hybride | C50: 4
A51: forfait maitrise 20 | B51: Hybride | C51: 1
A52: forfait maitrise 30 | B52: Hybride | C52: 2
A53: forfait maitrise 40 | B53: Hybride | C53: 2
A54: forfait maitrise 50 | B54: Hybride | C54: 3
A55: forfait maitrise 80 | B55: Hybride | C55: 3
A56: Forfait mix 100 | B56: Postpayé | C56: 4
A57: forfait mix 15 | B57: Hybride | C57: 1
A58: forfait mix 20 | B58: Hybride | C58: 1
A59: forfait mix 30 | B59: Hybride | C59: 2
A60: forfait mix 50 | B60: Hybride | C60: 3
A61: Forfait Mix Coeur OTN 15 | B61: Hybride | C61: 1
A62: forfait mix OTN 150 | B62: Hybride | C62: 1
A63: forfait mix OTN 40 | B63: Hybride | C63: 1
A64: forfait mix OTN 80 | B64: Hybride | C64: 1
A65: forfait optima 100 | B65: Postpayé | C65: 4
A66: forfait optima 150 | B66: Postpayé | C66: 5
A67: Forfait optima 200 | B67: Postpayé | C67: 6
A68: forfait optima 3G+ 100 | B68: Postpayé | C68: 4
A69: forfait optima 3G+ 150 | B69: Postpayé | C69: 5
A70: forfait optima 3G+ 50 | B70: Postpayé | C70: 3
A71: forfait optima 50 | B71: Postpayé | C71: 3
A72: forfait optima OTN | B72: Postpayé | C72: 1
A73: Iphone 100 | B73: Postpayé | C73: 4
A74: Iphone 150 | B74: Postpayé | C74: 5
A75: Iphone 200 | B75: Postpayé | C75: 6
A76: Iphone 50 | B76: Postpayé | C76: 3
A77: Iphone Mix | B77: Hybride | C77: 3
A78: Iphone mix 100 | B78: Postpayé | C78: 4
A79: liberte | B79: Postpayé | C79: 1
A80: Maitrise Partenaire 10 | B80: Hybride | C80: 1
A81: Maitrise Partenaire 20 | B81: Hybride | C81: 1
A82: Maitrise Partenaire 50 | B82: Hybride | C82: 3
A83: OPTIMA VIP 100 | B83: Postpayé | C83: 4
A84: OPTIMA VIP 150 | B84: Postpayé | C84: 5
A85: OPTIMA VIP 50 | B85: Postpayé | C85: 3
A86: Perfetto | B86: Postpayé | C86: 2
A87: Smart Voice | B87: Postpayé | C87: 1
A88: Top du Top | B88: Hybride | C88: 2
A89: VIP gold | B89: Postpayé | C89: 1
A90: VOIP Entreprise Basic | B90: Hybride | C90: 1
A91: VOIP Entreprise Full | B91: Hybride | C91: 1
A92: Flybox MAX | B92: Flybox | C92: 1
A93: prepaye zen | B93: Prépayé | C93: 1
A94: Cle Max | B94: IEW | C94: 2
A95: ADSL ONE | B95: ADSL | C95: 1
A96: Tehabbel | B96: Prépayé | C96: 1
A97: Test | B97: Prépayé

Sheet SOLD (hidden)
A1: Numéro de série | B1: Utilisateur | C1: Code produit | D1: Nom du produit | E1: Date entrée | F1: Agence | G1: Code Agence | H1: Quantité | I1: Etat du produit | J1: Fournisseur
A2: 0000001 | B2: ABLOUNA | C2: 0000001
A3: 0000002 | B3: ASLOGHM | C3: 0000002
A4: 0000003 | B4: RIGRAIET | C4: 0000003
A5: 0000004 | B5: SIGHW | C5: 0000004
A6: 0000005 | B6: AmiraX | C6: 0000005
A7: 0000006 | B7: HanenX | C7: 0000006
A8: 0000007 | B8: - | C8: 0000007
A9: 0000008 | B9: - | C9: 0000008
A10: 0000009 | B10: - | C10: 0000009
A11: 0000010 | B11: - | C11: 0000010
A12: Numéro de série | B12: Utilisateur | C12: Code produit | D12: Nom du produit | E12: Date entrée | F12: Agence | G12: Code Agence | H12: Quantité | I12: Etat du produit | J12: Fournisseur
A13: 863605032642664 | B13: RIGRAIET | C13: 085001000011 | D13: FLYBOX B310 | E13: 2017-08-12 | F13: Franchise MSAKEN | G13: MSK0013F | H13: 1 | I13: SOLD | J13: Tunis Entrepot DCGP
A14: 892160100206713351 | B14: RIGRAIET | C14: 043008000001 | D14: CARTE SIM 4G FLYBOX | E14: 2017-08-12 | F14: Franchise MSAKEN | G14: MSK0013F | H14: 1 | I14: SOLD | J14: Tunis Entrepot DCGP
A15: TG6K17020004565 | B15: RIGRAIET | C15: 188003000016 | D15: Modem Huawei HG532 | E15: 2017-08-12 | F15: Franchise MSAKEN | G15: MSK0013F | H15: 1 | I15: SOLD | J15: Tunis Entrepot DCGP
A16: 892160100124729132 | B16: SIGHW | C16: 043007000004 | D16: CARTE SIM 4G DATA MULTI SIM | E16: 2017-08-10 | F16: Franchise MSAKEN | G16: MSK0013F | H16: 1 | I16: SOLD | J16: Tunis Entrepot DCGP
A17: 892160100122554918 | B17: SIGHW | C17: 043006000003 | D17: CARTE SIM 4G PRE MULTI SIM | E17: 2017-08-14 | F17: Franchise MSAKEN | G17: MSK0013F | H17: 1 | I17: SOLD | J17: Tunis Entrepot DCGP
B18: SIGHW | C18: 044004000010 | D18: Recharge Express | E18: 2017-08-10 | F18: Franchise MSAKEN | G18: MSK0013F | H18: 10 | I18: SOLD | J18: Tunis Entrepot DCGP
A19: 892160100122554937 | B19: ASLOGHM | C19: 043006000003 | D19: CARTE SIM 4G PRE MULTI SIM | E19: 2017-08-14 | F19: Franchise MSAKEN | G19: MSK0013F | H19: 1 | I19: SOLD | J19: Tunis Entrepot DCGP
A20: 892160100122555570 | B20: ABLOUNA | C20: 043006000003 | D20: CARTE SIM 4G PRE MULTI SIM | E20: 2017-08-10 | F20: Franchise MSAKEN | G20: MSK0013F | H20: 1 | I20: SOLD | J20: Tunis Entrepot DCGP
A21: 862497030355742 | B21: ABLOUNA | C21: 083013025002 | D21: HUAWEI GR5 2017 GOLD | E21: 2017-08-12 | F21: Franchise MSAKEN | G21: MSK0013F | H21: 1 | I21: SOLD | J21: Tunis Entrepot DCGP
A22: 892160100117566082 | B22: ABLOUNA | C22: 043006000007 | D22: CARTE SIM 4G POST MULTI SIM | E22: 2017-08-12 | F22: Franchise MSAKEN | G22: MSK0013F | H22: 1 | I22: SOLD | J22: Tunis Entrepot DCGP
A23: 862497030507847 | B23: ABLOUNA | C23: 083013025001 | D23: HUAWEI GR5 2017 SILVER | E23: 2017-08-12 | F23: Franchise MSAKEN | G23: MSK0013F | H23: 1 | I23: SOLD | J23: Tunis Entrepot DCGP
A24: 892160100123469163 | B24: ABLOUNA | C24: 043001000114 | D24: CARTE PREACTIVEE VD | E24: 2017-08-14 | F24: Franchise MSAKEN | G24: MSK0013F | H24: 1 | I24: SOLD | J24: Tunis Entrepot DCGP
A25: 352770077249508 | B25: ABLOUNA | C25: 045022002001 | D25: ORANGE IT 2110 | E25: 2017-08-14 | F25: Franchise MSAKEN | G25: MSK0013F | H25: 1 | I25: SOLD | J25: Tunis Entrepot DCGP
A26: 892160100122555679 | B26: RIGRAIET | C26: 043006000003 | D26: CARTE SIM 4G PRE MULTI SIM | E26: 2017-08-12 | F26: Franchise MSAKEN | G26: MSK0013F | H26: 1 | I26: SOLD | J26: Tunis Entrepot DCGP
B27: SIGHW | C27: 044004000010 | D27: Recharge Express | E27: 2017-08-14 | F27: Franchise MSAKEN | G27: MSK0013F | H27: 2 | I27: SOLD | J27: Tunis Entrepot DCGP
A28: 892160100122554890 | B28: SIGHW | C28: 043006000003 | D28: CARTE SIM 4G PRE MULTI SIM | E28: 2017-08-11 | F28: Franchise MSAKEN | G28: MSK0013F | H28: 1 | I28: SOLD | J28: Tunis Entrepot DCGP
B29: ABLOUNA | C29: 044004000010 | D29: Recharge Express | E29: 2017-08-10 | F29: Franchise MSAKEN | G29: MSK0013F | H29: 12 | I29: SOLD | J29: Tunis Entrepot DCGP
B30: RIGRAIET | C30: 044004000010 | D30: Recharge Express | E30: 2017-08-14 | F30: Franchise MSAKEN | G30: MSK0013F | H30: 5 | I30: SOLD | J30: Tunis Entrepot DCGP
A31: 892160100124729146 | B31: SIGHW | C31: 043007000004 | D31: CARTE SIM 4G DATA MULTI SIM | E31: 2017-08-14 | F31: Franchise MSAKEN | G31: MSK0013F | H31: 1 | I31: SOLD | J31: Tunis Entrepot DCGP
A32: 892160100124729143 | B32: ABLOUNA | C32: 043007000004 | D32: CARTE SIM 4G DATA MULTI SIM | E32: 2017-08-12 | F32: Franchise MSAKEN | G32: MSK0013F | H32: 1 | I32: SOLD | J32: Tunis Entrepot DCGP
B33: ASLOGHM | C33: 044004000010 | D33: Recharge Express | E33: 2017-08-14 | F33: Franchise MSAKEN | G33: MSK0013F | H33: 5 | I33: SOLD | J33: Tunis Entrepot DCGP
B34: RIGRAIET | C34: 044004000010 | D34: Recharge Express | E34: 2017-08-12 | F34: Franchise MSAKEN | G34: MSK0013F | H34: 10 | I34: SOLD | J34: Tunis Entrepot DCGP
A35: 892160100122555724 | B35: ABLOUNA | C35: 043006000003 | D35: CARTE SIM 4G PRE MULTI SIM | E35: 2017-08-12 | F35: Franchise MSAKEN | G35: MSK0013F | H35: 1 | I35: SOLD | J35: Tunis Entrepot DCGP
B36: ABLOUNA | C36: 044004000010 | D36: Recharge Express | E36: 2017-08-15 | F36: Franchise MSAKEN | G36: MSK0013F | H36: 5 | I36: SOLD | J36: Tunis Entrepot DCGP
B37: SIGHW | C37: 044004000010 | D37: Recharge Express | E37: 2017-08-10 | F37: Franchise MSAKEN | G37: MSK0013F | H37: 5 | I37: SOLD | J37: Tunis Entrepot DCGP
B38: ABLOUNA | C38: 044004000010 | D38: Recharge Express | E38: 2017-08-15 | F38: Franchise MSAKEN | G38: MSK0013F | H38: 12 | I38: SOLD | J38: Tunis Entrepot DCGP
A39: 892160100124728453 | B39: RIGRAIET | C39: 043007000004 | D39: CARTE SIM 4G DATA MULTI SIM | E39: 2017-08-12 | F39: Franchise MSAKEN | G39: MSK0013F | H39: 1 | I39: SOLD | J39: Tunis Entrepot DCGP
B40: SIGHW | C40: 044004000010 | D40: Recharge Express | E40: 2017-08-12 | F40: Franchise MSAKEN | G40: MSK0013F | H40: 15 | I40: SOLD | J40: Tunis Entrepot DCGP
A41: 892160100122555667 | B41: SIGHW | C41: 043006000003 | D41: CARTE SIM 4G PRE MULTI SIM | E41: 2017-08-12 | F41: Franchise MSAKEN | G41: MSK0013F | H41: 1 | I41: SOLD | J41: Tunis Entrepot DCGP
A42: 892160100122554895 | B42: ASLOGHM | C42: 043006000003 | D42: CARTE SIM 4G PRE MULTI SIM | E42: 2017-08-11 | F42: Franchise MSAKEN | G42: MSK0013F | H42: 1 | I42: SOLD | J42: Tunis Entrepot DCGP
B43: RIGRAIET | C43: 044004000010 | D43: Recharge Express | E43: 2017-08-14 | F43: Franchise MSAKEN | G43: MSK0013F | H43: 12 | I43: SOLD | J43: Tunis Entrepot DCGP
A44: 892160100122555674 | B44: SIGHW | C44: 043006000003 | D44: CARTE SIM 4G PRE MULTI SIM | E44: 2017-08-12 | F44: Franchise MSAKEN | G44: MSK0013F | H44: 1 | I44: SOLD | J44: Tunis Entrepot DCGP
B45: RIGRAIET | C45: 044004000010 | D45: Recharge Express | E45: 2017-08-11 | F45: Franchise MSAKEN | G45: MSK0013F | H45: 5 | I45: SOLD | J45: Tunis Entrepot DCGP
A46: 892160100122554906 | B46: RIGRAIET | C46: 043006000003 | D46: CARTE SIM 4G PRE MULTI SIM | E46: 2017-08-11 | F46: Franchise MSAKEN | G46: MSK0013F | H46: 1 | I46: SOLD | J46: Tunis Entrepot DCGP
B47: ABLOUNA | C47: 044004000010 | D47: Recharge Express | E47: 2017-08-11 | F47: Franchise MSAKEN | G47: MSK0013F | H47: 18 | I47: SOLD | J47: Tunis Entrepot DCGP
B48: ABLOUNA | C48: 044004000010 | D48: Recharge Express | E48: 2017-08-08 | F48: Franchise MSAKEN | G48: MSK0013F | H48: 20 | I48: SOLD | J48: Tunis Entrepot DCGP
A49: 892160100122555568 | B49: ABLOUNA | C49: 043006000003 | D49: CARTE SIM 4G PRE MULTI SIM | E49: 2017-08-08 | F49: Franchise MSAKEN | G49: MSK0013F | H49: 1 | I49: SOLD | J49: Tunis Entrepot DCGP
A50: 892160100124728419 | B50: ASLOGHM | C50: 043007000004 | D50: CARTE SIM 4G DATA MULTI SIM | E50: 2017-08-08 | F50: Franchise MSAKEN | G50: MSK0013F | H50: 1 | I50: SOLD | J50: Tunis Entrepot DCGP
A51: 892160100124728445 | B51: RIGRAIET | C51: 043007000004 | D51: CARTE SIM 4G DATA MULTI SIM | E51: 2017-08-11 | F51: Franchise MSAKEN | G51: MSK0013F | H51: 1 | I51: SOLD | J51: Tunis Entrepot DCGP
A52: 892160100122555689 | B52: ABLOUNA | C52: 043006000003 | D52: CARTE SIM 4G PRE MULTI SIM | E52: 2017-08-11 | F52: Franchise MSAKEN | G52: MSK0013F | H52: 1 | I52: SOLD | J52: Tunis Entrepot DCGP
A53: 892160100122554875 | B53: RIGRAIET | C53: 043006000003 | D53: CARTE SIM 4G PRE MULTI SIM | E53: 2017-08-11 | F53: Franchise MSAKEN | G53: MSK0013F | H53: 1 | I53: SOLD | J53: Tunis Entrepot DCGP
B54: RIGRAIET | C54: 044004000010 | D54: Recharge Express | E54: 2017-08-11 | F54: Franchise MSAKEN | G54: MSK0013F | H54: 5 | I54: SOLD | J54: Tunis Entrepot DCGP
A55: 892160100122554892 | B55: ASLOGHM | C55: 043006000003 | D55: CARTE SIM 4G PRE MULTI SIM | E55: 2017-08-11 | F55: Franchise MSAKEN | G55: MSK0013F | H55: 1 | I55: SOLD | J55: Tunis Entrepot DCGP
B56: SIGHW | C56: 044004000010 | D56: Recharge Express | E56: 2017-08-09 | F56: Franchise MSAKEN | G56: MSK0013F | H56: 20 | I56: SOLD | J56: Tunis Entrepot DCGP
B57: SIGHW | C57: 044004000010 | D57: Recharge Express | E57: 2017-08-09 | F57: Franchise MSAKEN | G57: MSK0013F | H57: 5 | I57: SOLD | J57: Tunis Entrepot DCGP
A58: 892160100122555464 | B58: SIGHW | C58: 043006000003 | D58: CARTE SIM 4G PRE MULTI SIM | E58: 2017-08-09 | F58: Franchise MSAKEN | G58: MSK0013F | H58: 1 | I58: SOLD | J58: Tunis Entrepot DCGP
A59: 892160100122555576 | B59: ABLOUNA | C59: 043006000003 | D59: CARTE SIM 4G PRE MULTI SIM | E59: 2017-08-09 | F59: Franchise MSAKEN | G59: MSK0013F | H59: 1 | I59: SOLD | J59: Tunis Entrepot DCGP
A60: 892160100122555609 | B60: RIGRAIET | C60: 043006000003 | D60: CARTE SIM 4G PRE MULTI SIM | E60: 2017-08-09 | F60: Franchise MSAKEN | G60: MSK0013F | H60: 1 | I60: SOLD | J60: Tunis Entrepot DCGP
B61: RIGRAIET | C61: 044004000010 | D61: Recharge Express | E61: 2017-08-14 | F61: Franchise MSAKEN | G61: MSK0013F | H61: 5 | I61: SOLD | J61: Tunis Entrepot DCGP
B62: SIGHW | C62: 044004000010 | D62: Recharge Express | E62: 2017-08-14 | F62: Franchise MSAKEN | G62: MSK0013F | H62: 5 | I62: SOLD | J62: Tunis Entrepot DCGP
B63: SIGHW | C63: 044004000010 | D63: Recharge Express | E63: 2017-08-14 | F63: Franchise MSAKEN | G63: MSK0013F | H63: 20 | I63: SOLD | J63: Tunis Entrepot DCGP
A64: 892160100122554886 | B64: ABLOUNA | C64: 043006000003 | D64: CARTE SIM 4G PRE MULTI SIM | E64: 2017-08-10 | F64: Franchise MSAKEN | G64: MSK0013F | H64: 1 | I64: SOLD | J64: Tunis Entrepot DCGP
B65: ASLOGHM | C65: 044004000010 | D65: Recharge Express | E65: 2017-08-10 | F65: Franchise MSAKEN | G65: MSK0013F | H65: 12 | I65: SOLD | J65: Tunis Entrepot DCGP
A66: 892160100122555653 | B66: SIGHW | C66: 043006000003 | D66: CARTE SIM 4G PRE MULTI SIM | E66: 2017-08-10 | F66: Franchise MSAKEN | G66: MSK0013F | H66: 1 | I66: SOLD | J66: Tunis Entrepot DCGP
B67: SIGHW | C67: 044004000010 | D67: Recharge Express | E67: 2017-08-12 | F67: Franchise MSAKEN | G67: MSK0013F | H67: 12 | I67: SOLD | J67: Tunis Entrepot DCGP
A68: 892160100122555573 | B68: ABLOUNA | C68: 043006000003 | D68: CARTE SIM 4G PRE MULTI SIM | E68: 2017-08-09 | F68: Franchise MSAKEN | G68: MSK0013F | H68: 1 | I68: SOLD | J68: Tunis Entrepot DCGP
B69: ABLOUNA | C69: 044004000010 | D69: Recharge Express | E69: 2017-08-09 | F69: Franchise MSAKEN | G69: MSK0013F | H69: 5 | I69: SOLD | J69: Tunis Entrepot DCGP
A70: 892160100124729140 | B70: RIGRAIET | C70: 043007000004 | D70: CARTE SIM 4G DATA MULTI SIM | E70: 2017-08-11 | F70: Franchise MSAKEN | G70: MSK0013F | H70: 1 | I70: SOLD | J70: Tunis Entrepot DCGP
B71: ABLOUNA | C71: 044004000010 | D71: Recharge Express | E71: 2017-08-15 | F71: Franchise MSAKEN | G71: MSK0013F | H71: 60 | I71: SOLD | J71: Tunis Entrepot DCGP
A72: 892160100124729145 | B72: ABLOUNA | C72: 043007000004 | D72: CARTE SIM 4G DATA MULTI SIM | E72: 2017-08-15 | F72: Franchise MSAKEN | G72: MSK0013F | H72: 1 | I72: SOLD | J72: Tunis Entrepot DCGP
B73: SIGHW | C73: 044004000010 | D73: Recharge Express | E73: 2017-08-12 | F73: Franchise MSAKEN | G73: MSK0013F | H73: 12 | I73: SOLD | J73: Tunis Entrepot DCGP
A74: 892160100122554853 | B74: SIGHW | C74: 043006000003 | D74: CARTE SIM 4G PRE MULTI SIM | E74: 2017-08-10 | F74: Franchise MSAKEN | G74: MSK0013F | H74: 1 | I74: SOLD | J74: Tunis Entrepot DCGP
A75: 892160100124729161 | B75: ABLOUNA | C75: 043007000004 | D75: CARTE SIM 4G DATA MULTI SIM | E75: 2017-08-09 | F75: Franchise MSAKEN | G75: MSK0013F | H75: 1 | I75: SOLD | J75: Tunis Entrepot DCGP
B76: SIGHW | C76: 044004000010 | D76: Recharge Express | E76: 2017-08-11 | F76: Franchise MSAKEN | G76: MSK0013F | H76: 25 | I76: SOLD | J76: Tunis Entrepot DCGP
B77: ASLOGHM | C77: 044004000010 | D77: Recharge Express | E77: 2017-08-11 | F77: Franchise MSAKEN | G77: MSK0013F | H77: 5 | I77: SOLD | J77: Tunis Entrepot DCGP
B78: ASLOGHM | C78: 044004000010 | D78: Recharge Express | E78: 2017-08-09 | F78: Franchise MSAKEN | G78: MSK0013F | H78: 20 | I78: SOLD | J78: Tunis Entrepot DCGP
A79: 892160100206713354 | B79: RIGRAIET | C79: 043008000001 | D79: CARTE SIM 4G FLYBOX | E79: 2017-08-11 | F79: Franchise MSAKEN | G79: MSK0013F | H79: 1 | I79: SOLD | J79: Tunis Entrepot DCGP
A80: 869907027307764 | B80: RIGRAIET | C80: 046002000041 | D80: CLE 4G E3372H | E80: 2017-08-14 | F80: Franchise MSAKEN | G80: MSK0013F | H80: 1 | I80: SOLD | J80: Tunis Entrepot DCGP
A81: 892160100124729144 | B81: RIGRAIET | C81: 043007000004 | D81: CARTE SIM 4G DATA MULTI SIM | E81: 2017-08-14 | F81: Franchise MSAKEN | G81: MSK0013F | H81: 1 | I81: SOLD | J81: Tunis Entrepot DCGP
B82: ASLOGHM | C82: 044004000010 | D82: Recharge Express | E82: 2017-08-12 | F82: Franchise MSAKEN | G82: MSK0013F | H82: 10 | I82: SOLD | J82: Tunis Entrepot DCGP
B83: SIGHW | C83: 044004000010 | D83: Recharge Express | E83: 2017-08-12 | F83: Franchise MSAKEN | G83: MSK0013F | H83: 10 | I83: SOLD | J83: Tunis Entrepot DCGP
A84: 892160100122555671 | B84: SIGHW | C84: 043006000003 | D84: CARTE SIM 4G PRE MULTI SIM | E84: 2017-08-12 | F84: Franchise MSAKEN | G84: MSK0013F | H84: 1 | I84: SOLD | J84: Tunis Entrepot DCGP
A85: 892160100122555672 | B85: SIGHW | C85: 043006000003 | D85: CARTE SIM 4G PRE MULTI SIM | E85: 2017-08-12 | F85: Franchise MSAKEN | G85: MSK0013F | H85: 1 | I85: SOLD | J85: Tunis Entrepot DCGP
B86: RIGRAIET | C86: 044004000010 | D86: Recharge Express | E86: 2017-08-09 | F86: Franchise MSAKEN | G86: MSK0013F | H86: 10 | I86: SOLD | J86: Tunis Entrepot DCGP
A87: 892160100206713349 | B87: SIGHW | C87: 043008000001 | D87: CARTE SIM 4G FLYBOX | E87: 2017-08-14 | F87: Franchise MSAKEN | G87: MSK0013F | H87: 1 | I87: SOLD | J87: Tunis Entrepot DCGP
A88: 892160100122555727 | B88: ABLOUNA | C88: 043006000003 | D88: CARTE SIM 4G PRE MULTI SIM | E88: 2017-08-15 | F88: Franchise MSAKEN | G88: MSK0013F | H88: 1 | I88: SOLD | J88: Tunis Entrepot DCGP
B89: ASLOGHM | C89: 044004000010 | D89: Recharge Express | E89: 2017-08-12 | F89: Franchise MSAKEN | G89: MSK0013F | H89: 10 | I89: SOLD | J89: Tunis Entrepot DCGP
A90: 892160100122555677 | B90: RIGRAIET | C90: 043006000003 | D90: CARTE SIM 4G PRE MULTI SIM | E90: 2017-08-12 | F90: Franchise MSAKEN | G90: MSK0013F | H90: 1 | I90: SOLD | J90: Tunis Entrepot DCGP
B91: RIGRAIET | C91: 999100001003 | D91: SERVICE TRANSFERT CONTACT | E91: 2017-08-11 | F91: Franchise MSAKEN | G91: MSK0013F | H91: 1 | I91: SOLD | J91: Tunis Entrepot DCGP
B92: ASLOGHM | C92: 044004000010 | D92: Recharge Express | E92: 2017-08-10 | F92: Franchise MSAKEN | G92: MSK0013F | H92: 10 | I92: SOLD | J92: Tunis Entrepot DCGP
B93: ABLOUNA | C93: 044004000010 | D93: Recharge Express | E93: 2017-08-10 | F93: Franchise MSAKEN | G93: MSK0013F | H93: 5 | I93: SOLD | J93: Tunis Entrepot DCGP
A94: 892160100122555569 | B94: ABLOUNA | C94: 043006000003 | D94: CARTE SIM 4G PRE MULTI SIM | E94: 2017-08-10 | F94: Franchise MSAKEN | G94: MSK0013F | H94: 1 | I94: SOLD | J94: Tunis Entrepot DCGP
B95: ASLOGHM | C95: 044004000010 | D95: Recharge Express | E95: 2017-08-08 | F95: Franchise MSAKEN | G95: MSK0013F | H95: 30 | I95: SOLD | J95: Tunis Entrepot DCGP
B96: RIGRAIET | C96: 044004000010 | D96: Recharge Express | E96: 2017-08-14 | F96: Franchise MSAKEN | G96: MSK0013F | H96: 15 | I96: SOLD | J96: Tunis Entrepot DCGP
A97: 892160100122555737 | B97: RIGRAIET | C97: 043006000003 | D97: CARTE SIM 4G PRE MULTI SIM | E97: 2017-08-14 | F97: Franchise MSAKEN | G97: MSK0013F | H97: 1 | I97: SOLD | J97: Tunis Entrepot DCGP
A98: 892160100122555723 | B98: ABLOUNA | C98: 043006000003 | D98: CARTE SIM 4G PRE MULTI SIM | E98: 2017-08-12 | F98: Franchise MSAKEN | G98: MSK0013F | H98: 1 | I98: SOLD | J98: Tunis Entrepot DCGP
B99: ABLOUNA | C99: 044004000010 | D99: Recharge Express | E99: 2017-08-12 | F99: Franchise MSAKEN | G99: MSK0013F | H99: 10 | I99: SOLD | J99: Tunis Entrepot DCGP
B100: ASLOGHM | C100: 044004000010 | D100: Recharge Express | E100: 2017-08-15 | F100: Franchise MSAKEN | G100: MSK0013F | H100: 12 | I100: SOLD | J100: Tunis Entrepot DCGP
B101: RIGRAIET | C101: 044004000010 | D101: Recharge Express | E101: 2017-08-14 | F101: Franchise MSAKEN | G101: MSK0013F | H101: 5 | I101: SOLD | J101: Tunis Entrepot DCGP
A102: 892160100122555651 | B102: SIGHW | C102: 043006000003 | D102: CARTE SIM 4G PRE MULTI SIM | E102: 2017-08-10 | F102: Franchise MSAKEN | G102: MSK0013F | H102: 1 | I102: SOLD | J102: Tunis Entrepot DCGP
A103: 892160100122554913 | B103: SIGHW | C103: 043006000003 | D103: CARTE SIM 4G PRE MULTI SIM | E103: 2017-08-14 | F103: Franchise MSAKEN | G103: MSK0013F | H103: 1 | I103: SOLD | J103: Tunis Entrepot DCGP
A104: 892160100124728448 | B104: ABLOUNA | C104: 043007000004 | D104: CARTE SIM 4G DATA MULTI SIM | E104: 2017-08-11 | F104: Franchise MSAKEN | G104: MSK0013F | H104: 1 | I104: SOLD | J104: Tunis Entrepot DCGP
A105: 892160100122554870 | B105: SIGHW | C105: 043006000003 | D105: CARTE SIM 4G PRE MULTI SIM | E105: 2017-08-11 | F105: Franchise MSAKEN | G105: MSK0013F | H105: 1 | I105: SOLD | J105: Tunis Entrepot DCGP
B106: SIGHW | C106: 044004000010 | D106: Recharge Express | E106: 2017-08-11 | F106: Franchise MSAKEN | G106: MSK0013F | H106: 5 | I106: SOLD | J106: Tunis Entrepot DCGP
A107: 892160100124729154 | B107: ASLOGHM | C107: 043007000004 | D107: CARTE SIM 4G DATA MULTI SIM | E107: 2017-08-15 | F107: Franchise MSAKEN | G107: MSK0013F | H107: 1 | I107: SOLD | J107: Tunis Entrepot DCGP
B108: ASLOGHM | C108: 044004000010 | D108: Recharge Express | E108: 2017-08-11 | F108: Franchise MSAKEN | G108: MSK0013F | H108: 5 | I108: SOLD | J108: Tunis Entrepot DCGP
B109: ASLOGHM | C109: 044004000010 | D109: Recharge Express | E109: 2017-08-11 | F109: Franchise MSAKEN | G109: MSK0013F | H109: 5 | I109: SOLD | J109: Tunis Entrepot DCGP
A110: 892160100122554902 | B110: ASLOGHM | C110: 043006000003 | D110: CARTE SIM 4G PRE MULTI SIM | E110: 2017-08-11 | F110: Franchise MSAKEN | G110: MSK0013F | H110: 1 | I110: SOLD | J110: Tunis Entrepot DCGP
A111: 892160100122554901 | B111: ASLOGHM | C111: 043006000003 | D111: CARTE SIM 4G PRE MULTI SIM | E111: 2017-08-11 | F111: Franchise MSAKEN | G111: MSK0013F | H111: 1 | I111: SOLD | J111: Tunis Entrepot DCGP
A112: 892160100122554866 | B112: SIGHW | C112: 043006000003 | D112: CARTE SIM 4G PRE MULTI SIM | E112: 2017-08-10 | F112: Franchise MSAKEN | G112: MSK0013F | H112: 1 | I112: SOLD | J112: Tunis Entrepot DCGP
A113: TG6K17020002818 | B113: ABLOUNA | C113: 188003000016 | D113: Modem Huawei HG532 | E113: 2017-08-11 | F113: Franchise MSAKEN | G113: MSK0013F | H113: 1 | I113: SOLD | J113: Tunis Entrepot DCGP
A114: 892160100122554909 | B114: SIGHW | C114: 043006000003 | D114: CARTE SIM 4G PRE MULTI SIM | E114: 2017-08-14 | F114: Franchise MSAKEN | G114: MSK0013F | H114: 1 | I114: SOLD | J114: Tunis Entrepot DCGP
A115: 357360080180653 | B115: RIGRAIET | C115: 083025001002 | D115: SERVICOM EASY 3 WHTE BLCK | E115: 2017-08-14 | F115: Franchise MSAKEN | G115: MSK0013F | H115: 1 | I115: SOLD | J115: Tunis Entrepot DCGP
B116: RIGRAIET | C116: 044004000010 | D116: Recharge Express | E116: 2017-08-14 | F116: Franchise MSAKEN | G116: MSK0013F | H116: 25 | I116: SOLD | J116: Tunis Entrepot DCGP
A117: 892160100124728441 | B117: ABLOUNA | C117: 043007000004 | D117: CARTE SIM 4G DATA MULTI SIM | E117: 2017-08-11 | F117: Franchise MSAKEN | G117: MSK0013F | H117: 1 | I117: SOLD | J117: Tunis Entrepot DCGP
A118: 892160100122555657 | B118: RIGRAIET | C118: 043006000003 | D118: CARTE SIM 4G PRE MULTI SIM | E118: 2017-08-10 | F118: Franchise MSAKEN | G118: MSK0013F | H118: 1 | I118: SOLD | J118: Tunis Entrepot DCGP
A119: 892160100122555574 | B119: ABLOUNA | C119: 043006000003 | D119: CARTE SIM 4G PRE MULTI SIM | E119: 2017-08-09 | F119: Franchise MSAKEN | G119: MSK0013F | H119: 1 | I119: SOLD | J119: Tunis Entrepot DCGP
B120: ABLOUNA | C120: 044004000010 | D120: Recharge Express | E120: 2017-08-09 | F120: Franchise MSAKEN | G120: MSK0013F | H120: 10 | I120: SOLD | J120: Tunis Entrepot DCGP
B121: ASLOGHM | C121: 044004000010 | D121: Recharge Express | E121: 2017-08-14 | F121: Franchise MSAKEN | G121: MSK0013F | H121: 9 | I121: SOLD | J121: Tunis Entrepot DCGP
A122: 869470014292697 | B122: ASLOGHM | C122: 046002000060 | D122: DOMINO E5220 WHITE | E122: 2017-08-08 | F122: Franchise MSAKEN | G122: MSK0013F | H122: 1 | I122: SOLD | J122: Tunis Entrepot DCGP
A123: 892160100124728417 | B123: ASLOGHM | C123: 043007000004 | D123: CARTE SIM 4G DATA MULTI SIM | E123: 2017-08-08 | F123: Franchise MSAKEN | G123: MSK0013F | H123: 1 | I123: SOLD | J123: Tunis Entrepot DCGP
A124: 892160100122555557 | B124: ASLOGHM | C124: 043006000003 | D124: CARTE SIM 4G PRE MULTI SIM | E124: 2017-08-08 | F124: Franchise MSAKEN | G124: MSK0013F | H124: 1 | I124: SOLD | J124: Tunis Entrepot DCGP
B125: ABLOUNA | C125: 044004000010 | D125: Recharge Express | E125: 2017-08-08 | F125: Franchise MSAKEN | G125: MSK0013F | H125: 5 | I125: SOLD | J125: Tunis Entrepot DCGP
A126: 892160100122554938 | B126: ASLOGHM | C126: 043006000003 | D126: CARTE SIM 4G PRE MULTI SIM | E126: 2017-08-14 | F126: Franchise MSAKEN | G126: MSK0013F | H126: 1 | I126: SOLD | J126: Tunis Entrepot DCGP
B127: RIGRAIET | C127: 999100001003 | D127: SERVICE TRANSFERT CONTACT | E127: 2017-08-10 | F127: Franchise MSAKEN | G127: MSK0013F | H127: 1 | I127: SOLD | J127: Tunis Entrepot DCGP
A128: 892160100122555567 | B128: ABLOUNA | C128: 043006000003 | D128: CARTE SIM 4G PRE MULTI SIM | E128: 2017-08-08 | F128: Franchise MSAKEN | G128: MSK0013F | H128: 1 | I128: SOLD | J128: Tunis Entrepot DCGP
A129: 892160100122555560 | B129: ASLOGHM | C129: 043006000003 | D129: CARTE SIM 4G PRE MULTI SIM | E129: 2017-08-08 | F129: Franchise MSAKEN | G129: MSK0013F | H129: 1 | I129: SOLD | J129: Tunis Entrepot DCGP
B130: ASLOGHM | C130: 044004000010 | D130: Recharge Express | E130: 2017-08-08 | F130: Franchise MSAKEN | G130: MSK0013F | H130: 20 | I130: SOLD | J130: Tunis Entrepot DCGP
A131: 892160100124729156 | B131: ASLOGHM | C131: 043007000004 | D131: CARTE SIM 4G DATA MULTI SIM | E131: 2017-08-14 | F131: Franchise MSAKEN | G131: MSK0013F | H131: 1 | I131: SOLD | J131: Tunis Entrepot DCGP
A132: 892160100124729152 | B132: ASLOGHM | C132: 043007000004 | D132: CARTE SIM 4G DATA MULTI SIM | E132: 2017-08-15 | F132: Franchise MSAKEN | G132: MSK0013F | H132: 1 | I132: SOLD | J132: Tunis Entrepot DCGP
A133: 892160100123469073 | B133: ABLOUNA | C133: 043001000114 | D133: CARTE PREACTIVEE VD | E133: 2017-08-15 | F133: Franchise MSAKEN | G133: MSK0013F | H133: 1 | I133: SOLD | J133: Tunis Entrepot DCGP
A134: 892160100123469072 | B134: ABLOUNA | C134: 043001000114 | D134: CARTE PREACTIVEE VD | E134: 2017-08-15 | F134: Franchise MSAKEN | G134: MSK0013F | H134: 1 | I134: SOLD | J134: Tunis Entrepot DCGP
B135: SIGHW | C135: 044004000010 | D135: Recharge Express | E135: 2017-08-14 | F135: Franchise MSAKEN | G135: MSK0013F | H135: 30 | I135: SOLD | J135: Tunis Entrepot DCGP
B136: RIGRAIET | C136: 044004000010 | D136: Recharge Express | E136: 2017-08-14 | F136: Franchise MSAKEN | G136: MSK0013F | H136: 5 | I136: SOLD | J136: Tunis Entrepot DCGP
B137: ABLOUNA | C137: 044004000010 | D137: Recharge Express | E137: 2017-08-15 | F137: Franchise MSAKEN | G137: MSK0013F | H137: 13 | I137: SOLD | J137: Tunis Entrepot DCGP
B138: ASLOGHM | C138: 044004000010 | D138: Recharge Express | E138: 2017-08-15 | F138: Franchise MSAKEN | G138: MSK0013F | H138: 5 | I138: SOLD | J138: Tunis Entrepot DCGP
B139: ASLOGHM | C139: 044004000010 | D139: Recharge Express | E139: 2017-08-15 | F139: Franchise MSAKEN | G139: MSK0013F | H139: 20 | I139: SOLD | J139: Tunis Entrepot DCGP
A140: 892160100122554940 | B140: ASLOGHM | C140: 043006000003 | D140: CARTE SIM 4G PRE MULTI SIM | E140: 2017-08-14 | F140: Franchise MSAKEN | G140: MSK0013F | H140: 1 | I140: SOLD | J140: Tunis Entrepot DCGP
A141: 892160100122555734 | B141: RIGRAIET | C141: 043006000003 | D141: CARTE SIM 4G PRE MULTI SIM | E141: 2017-08-14 | F141: Franchise MSAKEN | G141: MSK0013F | H141: 1 | I141: SOLD | J141: Tunis Entrepot DCGP
B142: ASLOGHM | C142: 044004000010 | D142: Recharge Express | E142: 2017-08-14 | F142: Franchise MSAKEN | G142: MSK0013F | H142: 5 | I142: SOLD | J142: Tunis Entrepot DCGP
A143: 892160100124729153 | B143: SIGHW | C143: 043007000004 | D143: CARTE SIM 4G DATA MULTI SIM | E143: 2017-08-15 | F143: Franchise MSAKEN | G143: MSK0013F | H143: 1 | I143: SOLD | J143: Tunis Entrepot DCGP
B144: RIGRAIET | C144: 999100001003 | D144: SERVICE TRANSFERT CONTACT | E144: 2017-08-11 | F144: Franchise MSAKEN | G144: MSK0013F | H144: 1 | I144: SOLD | J144: Tunis Entrepot DCGP
A145: 892160100122554907 | B145: RIGRAIET | C145: 043006000003 | D145: CARTE SIM 4G PRE MULTI SIM | E145: 2017-08-11 | F145: Franchise MSAKEN | G145: MSK0013F | H145: 1 | I145: SOLD | J145: Tunis Entrepot DCGP
B146: ABLOUNA | C146: 044004000010 | D146: Recharge Express | E146: 2017-08-11 | F146: Franchise MSAKEN | G146: MSK0013F | H146: 10 | I146: SOLD | J146: Tunis Entrepot DCGP
B147: RIGRAIET | C147: 044004000010 | D147: Recharge Express | E147: 2017-08-11 | F147: Franchise MSAKEN | G147: MSK0013F | H147: 12 | I147: SOLD | J147: Tunis Entrepot DCGP
A148: 892160100122555259 | B148: ABLOUNA | C148: 043006000003 | D148: CARTE SIM 4G PRE MULTI SIM | E148: 2017-08-10 | F148: Franchise MSAKEN | G148: MSK0013F | H148: 1 | I148: SOLD | J148: Tunis Entrepot DCGP
A149: 892160100122554905 | B149: RIGRAIET | C149: 043006000003 | D149: CARTE SIM 4G PRE MULTI SIM | E149: 2017-08-11 | F149: Franchise MSAKEN | G149: MSK0013F | H149: 1 | I149: SOLD | J149: Tunis Entrepot DCGP
B150: ABLOUNA | C150: 044004000010 | D150: Recharge Express | E150: 2017-08-10 | F150: Franchise MSAKEN | G150: MSK0013F | H150: 5 | I150: SOLD | J150: Tunis Entrepot DCGP
B151: ABLOUNA | C151: 044004000010 | D151: Recharge Express | E151: 2017-08-10 | F151: Franchise MSAKEN | G151: MSK0013F | H151: 30 | I151: SOLD | J151: Tunis Entrepot DCGP
B152: ABLOUNA | C152: 044004000010 | D152: Recharge Express | E152: 2017-08-10 | F152: Franchise MSAKEN | G152: MSK0013F | H152: 25 | I152: SOLD | J152: Tunis Entrepot DCGP
A153: 892160100122555697 | B153: ABLOUNA | C153: 043006000003 | D153: CARTE SIM 4G PRE MULTI SIM | E153: 2017-08-09 | F153: Franchise MSAKEN | G153: MSK0013F | H153: 1 | I153: SOLD | J153: Tunis Entrepot DCGP
A154: 892160100122555607 | B154: RIGRAIET | C154: 043006000003 | D154: CARTE SIM 4G PRE MULTI SIM | E154: 2017-08-09 | F154: Franchise MSAKEN | G154: MSK0013F | H154: 1 | I154: SOLD | J154: Tunis Entrepot DCGP
B155: RIGRAIET | C155: 044004000010 | D155: Recharge Express | E155: 2017-08-09 | F155: Franchise MSAKEN | G155: MSK0013F | H155: 25 | I155: SOLD | J155: Tunis Entrepot DCGP
A156: 892160100122555675 | B156: RIGRAIET | C156: 043006000003 | D156: CARTE SIM 4G PRE MULTI SIM | E156: 2017-08-12 | F156: Franchise MSAKEN | G156: MSK0013F | H156: 1 | I156: SOLD | J156: Tunis Entrepot DCGP
A157: 2168006000748 | B157: ABLOUNA | C157: 047006000161 | D157: Orange Wifi dock | E157: 2017-08-10 | F157: Franchise MSAKEN | G157: MSK0013F | H157: 1 | I157: SOLD | J157: Tunis Entrepot DCGP
A158: 867424023063575 | B158: ABLOUNA | C158: 046002000034 | D158: CLE 3G E3531 | E158: 2017-08-10 | F158: Franchise MSAKEN | G158: MSK0013F | H158: 1 | I158: SOLD | J158: Tunis Entrepot DCGP
A159: 892160100124729178 | B159: ABLOUNA | C159: 043007000004 | D159: CARTE SIM 4G DATA MULTI SIM | E159: 2017-08-10 | F159: Franchise MSAKEN | G159: MSK0013F | H159: 1 | I159: SOLD | J159: Tunis Entrepot DCGP
B160: RIGRAIET | C160: 044004000010 | D160: Recharge Express | E160: 2017-08-09 | F160: Franchise MSAKEN | G160: MSK0013F | H160: 12 | I160: SOLD | J160: Tunis Entrepot DCGP
B161: SIGHW | C161: 044004000010 | D161: Recharge Express | E161: 2017-08-09 | F161: Franchise MSAKEN | G161: MSK0013F | H161: 5 | I161: SOLD | J161: Tunis Entrepot DCGP
A162: 892160100122555699 | B162: RIGRAIET | C162: 043006000003 | D162: CARTE SIM 4G PRE MULTI SIM | E162: 2017-08-11 | F162: Franchise MSAKEN | G162: MSK0013F | H162: 1 | I162: SOLD | J162: Tunis Entrepot DCGP
A163: 892160100122554903 | B163: ASLOGHM | C163: 043006000003 | D163: CARTE SIM 4G PRE MULTI SIM | E163: 2017-08-11 | F163: Franchise MSAKEN | G163: MSK0013F | H163: 1 | I163: SOLD | J163: Tunis Entrepot DCGP
B164: ABLOUNA | C164: 044004000010 | D164: Recharge Express | E164: 2017-08-10 | F164: Franchise MSAKEN | G164: MSK0013F | H164: 25 | I164: SOLD | J164: Tunis Entrepot DCGP
A165: 357360080132340 | B165: RIGRAIET | C165: 083025001003 | D165: SERVICOM EASY 3 BLEU | E165: 2017-08-10 | F165: Franchise MSAKEN | G165: MSK0013F | H165: 1 | I165: SOLD | J165: Tunis Entrepot DCGP
B166: ABLOUNA | C166: 044004000010 | D166: Recharge Express | E166: 2017-08-10 | F166: Franchise MSAKEN | G166: MSK0013F | H166: 5 | I166: SOLD | J166: Tunis Entrepot DCGP
A167: 892160100122555716 | B167: RIGRAIET | C167: 043006000003 | D167: CARTE SIM 4G PRE MULTI SIM | E167: 2017-08-14 | F167: Franchise MSAKEN | G167: MSK0013F | H167: 1 | I167: SOLD | J167: Tunis Entrepot DCGP
B168: ABLOUNA | C168: 044004000010 | D168: Recharge Express | E168: 2017-08-15 | F168: Franchise MSAKEN | G168: MSK0013F | H168: 5 | I168: SOLD | J168: Tunis Entrepot DCGP
A169: 892160100123469137 | B169: ABLOUNA | C169: 043001000114 | D169: CARTE PREACTIVEE VD | E169: 2017-08-15 | F169: Franchise MSAKEN | G169: MSK0013F | H169: 1 | I169: SOLD | J169: Tunis Entrepot DCGP
A170: 892160100123469138 | B170: ABLOUNA | C170: 043001000114 | D170: CARTE PREACTIVEE VD | E170: 2017-08-15 | F170: Franchise MSAKEN | G170: MSK0013F | H170: 1 | I170: SOLD | J170: Tunis Entrepot DCGP
B171: ASLOGHM | C171: 044004000010 | D171: Recharge Express | E171: 2017-08-15 | F171: Franchise MSAKEN | G171: MSK0013F | H171: 5 | I171: SOLD | J171: Tunis Entrepot DCGP
B172: ABLOUNA | C172: 044004000010 | D172: Recharge Express | E172: 2017-08-15 | F172: Franchise MSAKEN | G172: MSK0013F | H172: 5 | I172: SOLD | J172: Tunis Entrepot DCGP
B173: RIGRAIET | C173: 044004000010 | D173: Recharge Express | E173: 2017-08-12 | F173: Franchise MSAKEN | G173: MSK0013F | H173: 10 | I173: SOLD | J173: Tunis Entrepot DCGP
A174: 892160100122554880 | B174: RIGRAIET | C174: 043006000003 | D174: CARTE SIM 4G PRE MULTI SIM | E174: 2017-08-10 | F174: Franchise MSAKEN | G174: MSK0013F | H174: 1 | I174: SOLD | J174: Tunis Entrepot DCGP
B175: ASLOGHM | C175: 044004000010 | D175: Recharge Express | E175: 2017-08-15 | F175: Franchise MSAKEN | G175: MSK0013F | H175: 5 | I175: SOLD | J175: Tunis Entrepot DCGP
B176: ASLOGHM | C176: 044004000010 | D176: Recharge Express | E176: 2017-08-15 | F176: Franchise MSAKEN | G176: MSK0013F | H176: 5 | I176: SOLD | J176: Tunis Entrepot DCGP
A177: 892160100123469074 | B177: ASLOGHM | C177: 043001000114 | D177: CARTE PREACTIVEE VD | E177: 2017-08-15 | F177: Franchise MSAKEN | G177: MSK0013F | H177: 1 | I177: SOLD | J177: Tunis Entrepot DCGP
A178: 892160100123469100 | B178: ASLOGHM | C178: 043001000114 | D178: CARTE PREACTIVEE VD | E178: 2017-08-15 | F178: Franchise MSAKEN | G178: MSK0013F | H178: 1 | I178: SOLD | J178: Tunis Entrepot DCGP
A179: 892160100122554946 | B179: ASLOGHM | C179: 043006000003 | D179: CARTE SIM 4G PRE MULTI SIM | E179: 2017-08-15 | F179: Franchise MSAKEN | G179: MSK0013F | H179: 1 | I179: SOLD | J179: Tunis Entrepot DCGP
A180: 892160100122555652 | B180: SIGHW | C180: 043006000003 | D180: CARTE SIM 4G PRE MULTI SIM | E180: 2017-08-10 | F180: Franchise MSAKEN | G180: MSK0013F | H180: 1 | I180: SOLD | J180: Tunis Entrepot DCGP
B181: ASLOGHM | C181: 044004000010 | D181: Recharge Express | E181: 2017-08-10 | F181: Franchise MSAKEN | G181: MSK0013F | H181: 12 | I181: SOLD | J181: Tunis Entrepot DCGP
A182: 892160100122554854 | B182: SIGHW | C182: 043006000003 | D182: CARTE SIM 4G PRE MULTI SIM | E182: 2017-08-10 | F182: Franchise MSAKEN | G182: MSK0013F | H182: 1 | I182: SOLD | J182: Tunis Entrepot DCGP
B183: SIGHW | C183: 044004000010 | D183: Recharge Express | E183: 2017-08-14 | F183: Franchise MSAKEN | G183: MSK0013F | H183: 12 | I183: SOLD | J183: Tunis Entrepot DCGP
B184: RIGRAIET | C184: 044004000010 | D184: Recharge Express | E184: 2017-08-12 | F184: Franchise MSAKEN | G184: MSK0013F | H184: 12 | I184: SOLD | J184: Tunis Entrepot DCGP
A185: 892160100206713346 | B185: ABLOUNA | C185: 043008000001 | D185: CARTE SIM 4G FLYBOX | E185: 2017-08-14 | F185: Franchise MSAKEN | G185: MSK0013F | H185: 1 | I185: SOLD | J185: Tunis Entrepot DCGP
A186: 863605032642987 | B186: ABLOUNA | C186: 085001000011 | D186: FLYBOX B310 | E186: 2017-08-14 | F186: Franchise MSAKEN | G186: MSK0013F | H186: 1 | I186: SOLD | J186: Tunis Entrepot DCGP
A187: 892160100124728460 | B187: RIGRAIET | C187: 043007000004 | D187: CARTE SIM 4G DATA MULTI SIM | E187: 2017-08-14 | F187: Franchise MSAKEN | G187: MSK0013F | H187: 1 | I187: SOLD | J187: Tunis Entrepot DCGP
A188: 892160100122554942 | B188: ASLOGHM | C188: 043006000003 | D188: CARTE SIM 4G PRE MULTI SIM | E188: 2017-08-14 | F188: Franchise MSAKEN | G188: MSK0013F | H188: 1 | I188: SOLD | J188: Tunis Entrepot DCGP
A189: 892160100124729174 | B189: RIGRAIET | C189: 043007000004 | D189: CARTE SIM 4G DATA MULTI SIM | E189: 2017-08-10 | F189: Franchise MSAKEN | G189: MSK0013F | H189: 1 | I189: SOLD | J189: Tunis Entrepot DCGP
A190: 892160100122554941 | B190: ASLOGHM | C190: 043006000003 | D190: CARTE SIM 4G PRE MULTI SIM | E190: 2017-08-14 | F190: Franchise MSAKEN | G190: MSK0013F | H190: 1 | I190: SOLD | J190: Tunis Entrepot DCGP
A191: 892160100124729147 | B191: SIGHW | C191: 043007000004 | D191: CARTE SIM 4G DATA MULTI SIM | E191: 2017-08-14 | F191: Franchise MSAKEN | G191: MSK0013F | H191: 1 | I191: SOLD | J191: Tunis Entrepot DCGP
B192: ASLOGHM | C192: 044004000010 | D192: Recharge Express | E192: 2017-08-09 | F192: Franchise MSAKEN | G192: MSK0013F | H192: 20 | I192: SOLD | J192: Tunis Entrepot DCGP
A193: 892160100122555738 | B193: RIGRAIET | C193: 043006000003 | D193: CARTE SIM 4G PRE MULTI SIM | E193: 2017-08-12 | F193: Franchise MSAKEN | G193: MSK0013F | H193: 1 | I193: SOLD | J193: Tunis Entrepot DCGP
B194: ABLOUNA | C194: 044004000010 | D194: Recharge Express | E194: 2017-08-10 | F194: Franchise MSAKEN | G194: MSK0013F | H194: 5 | I194: SOLD | J194: Tunis Entrepot DCGP
B195: RIGRAIET | C195: 044004000010 | D195: Recharge Express | E195: 2017-08-09 | F195: Franchise MSAKEN | G195: MSK0013F | H195: 10 | I195: SOLD | J195: Tunis Entrepot DCGP
B196: ABLOUNA | C196: 044004000010 | D196: Recharge Express | E196: 2017-08-14 | F196: Franchise MSAKEN | G196: MSK0013F | H196: 5 | I196: SOLD | J196: Tunis Entrepot DCGP
B197: ASLOGHM | C197: 044004000010 | D197: Recharge Express | E197: 2017-08-10 | F197: Franchise MSAKEN | G197: MSK0013F | H197: 5 | I197: SOLD | J197: Tunis Entrepot DCGP
A198: 892160100122555577 | B198: ASLOGHM | C198: 043006000003 | D198: CARTE SIM 4G PRE MULTI SIM | E198: 2017-08-09 | F198: Franchise MSAKEN | G198: MSK0013F | H198: 1 | I198: SOLD | J198: Tunis Entrepot DCGP
B199: RIGRAIET | C199: 044004000010 | D199: Recharge Express | E199: 2017-08-12 | F199: Franchise MSAKEN | G199: MSK0013F | H199: 25 | I199: SOLD | J199: Tunis Entrepot DCGP
B200: ABLOUNA | C200: 044004000010 | D200: Recharge Express | E200: 2017-08-12 | F200: Franchise MSAKEN | G200: MSK0013F | H200: 1 | I200: SOLD | J200: Tunis Entrepot DCGP
... 1130 more rows

Sheet Doucher contrats
B1: OK | C1: =VLOOKUP(A1,Contrats!A:C,3,0) ->  | D1: =VLOOKUP(A1,Contrats!A:C,2,0) ->  | E1: =VLOOKUP(A1,Contrats!A:H,5,0) -> 
B2: OK | C2: =VLOOKUP(A2,Contrats!A:C,3,0) ->  | D2: =VLOOKUP(A2,Contrats!A:C,2,0) ->  | E2: =VLOOKUP(A2,Contrats!A:H,5,0) -> 
B3: OK | C3: =VLOOKUP(A3,Contrats!A:C,3,0) ->  | D3: =VLOOKUP(A3,Contrats!A:C,2,0) ->  | E3: =VLOOKUP(A3,Contrats!A:H,5,0) -> 
B4: OK | C4: =VLOOKUP(A4,Contrats!A:C,3,0) ->  | D4: =VLOOKUP(A4,Contrats!A:C,2,0) ->  | E4: =VLOOKUP(A4,Contrats!A:H,5,0) -> 
B5: OK | C5: =VLOOKUP(A5,Contrats!A:C,3,0) ->  | D5: =VLOOKUP(A5,Contrats!A:C,2,0) ->  | E5: =VLOOKUP(A5,Contrats!A:H,5,0) -> 
B6: OK | C6: =VLOOKUP(A6,Contrats!A:C,3,0) ->  | D6: =VLOOKUP(A6,Contrats!A:C,2,0) ->  | E6: =VLOOKUP(A6,Contrats!A:H,5,0) -> 
B7: OK | C7: =VLOOKUP(A7,Contrats!A:C,3,0) ->  | D7: =VLOOKUP(A7,Contrats!A:C,2,0) ->  | E7: =VLOOKUP(A7,Contrats!A:H,5,0) -> 
B8: OK | C8: =VLOOKUP(A8,Contrats!A:C,3,0) ->  | D8: =VLOOKUP(A8,Contrats!A:C,2,0) ->  | E8: =VLOOKUP(A8,Contrats!A:H,5,0) -> 
B9: OK | C9: =VLOOKUP(A9,Contrats!A:C,3,0) ->  | D9: =VLOOKUP(A9,Contrats!A:C,2,0) ->  | E9: =VLOOKUP(A9,Contrats!A:H,5,0) -> 
B10: OK | C10: =VLOOKUP(A10,Contrats!A:C,3,0) ->  | D10: =VLOOKUP(A10,Contrats!A:C,2,0) ->  | E10: =VLOOKUP(A10,Contrats!A:H,5,0) -> 
B11: OK | C11: =VLOOKUP(A11,Contrats!A:C,3,0) ->  | D11: =VLOOKUP(A11,Contrats!A:C,2,0) ->  | E11: =VLOOKUP(A11,Contrats!A:H,5,0) -> 
B12: OK | C12: =VLOOKUP(A12,Contrats!A:C,3,0) ->  | D12: =VLOOKUP(A12,Contrats!A:C,2,0) ->  | E12: =VLOOKUP(A12,Contrats!A:H,5,0) -> 
B13: OK | C13: =VLOOKUP(A13,Contrats!A:C,3,0) ->  | D13: =VLOOKUP(A13,Contrats!A:C,2,0) ->  | E13: =VLOOKUP(A13,Contrats!A:H,5,0) -> 
B14: OK | C14: =VLOOKUP(A14,Contrats!A:C,3,0) ->  | D14: =VLOOKUP(A14,Contrats!A:C,2,0) ->  | E14: =VLOOKUP(A14,Contrats!A:H,5,0) -> 
B15: OK | C15: =VLOOKUP(A15,Contrats!A:C,3,0) ->  | D15: =VLOOKUP(A15,Contrats!A:C,2,0) ->  | E15: =VLOOKUP(A15,Contrats!A:H,5,0) -> 
B16: OK | C16: =VLOOKUP(A16,Contrats!A:C,3,0) ->  | D16: =VLOOKUP(A16,Contrats!A:C,2,0) ->  | E16: =VLOOKUP(A16,Contrats!A:H,5,0) -> 
B17: OK | C17: =VLOOKUP(A17,Contrats!A:C,3,0) ->  | D17: =VLOOKUP(A17,Contrats!A:C,2,0) ->  | E17: =VLOOKUP(A17,Contrats!A:H,5,0) -> 
B18: OK | C18: =VLOOKUP(A18,Contrats!A:C,3,0) ->  | D18: =VLOOKUP(A18,Contrats!A:C,2,0) ->  | E18: =VLOOKUP(A18,Contrats!A:H,5,0) -> 
B19: OK | C19: =VLOOKUP(A19,Contrats!A:C,3,0) ->  | D19: =VLOOKUP(A19,Contrats!A:C,2,0) ->  | E19: =VLOOKUP(A19,Contrats!A:H,5,0) -> 
B20: OK | C20: =VLOOKUP(A20,Contrats!A:C,3,0) ->  | D20: =VLOOKUP(A20,Contrats!A:C,2,0) ->  | E20: =VLOOKUP(A20,Contrats!A:H,5,0) -> 
B21: OK | C21: =VLOOKUP(A21,Contrats!A:C,3,0) ->  | D21: =VLOOKUP(A21,Contrats!A:C,2,0) ->  | E21: =VLOOKUP(A21,Contrats!A:H,5,0) -> 
B22: OK | C22: =VLOOKUP(A22,Contrats!A:C,3,0) ->  | D22: =VLOOKUP(A22,Contrats!A:C,2,0) ->  | E22: =VLOOKUP(A22,Contrats!A:H,5,0) -> 
B23: OK | C23: =VLOOKUP(A23,Contrats!A:C,3,0) ->  | D23: =VLOOKUP(A23,Contrats!A:C,2,0) ->  | E23: =VLOOKUP(A23,Contrats!A:H,5,0) -> 
B24: OK | C24: =VLOOKUP(A24,Contrats!A:C,3,0) ->  | D24: =VLOOKUP(A24,Contrats!A:C,2,0) ->  | E24: =VLOOKUP(A24,Contrats!A:H,5,0) -> 
B25: OK | C25: =VLOOKUP(A25,Contrats!A:C,3,0) ->  | D25: =VLOOKUP(A25,Contrats!A:C,2,0) ->  | E25: =VLOOKUP(A25,Contrats!A:H,5,0) -> 
B26: OK | C26: =VLOOKUP(A26,Contrats!A:C,3,0) ->  | D26: =VLOOKUP(A26,Contrats!A:C,2,0) ->  | E26: =VLOOKUP(A26,Contrats!A:H,5,0) -> 
B27: OK | C27: =VLOOKUP(A27,Contrats!A:C,3,0) ->  | D27: =VLOOKUP(A27,Contrats!A:C,2,0) ->  | E27: =VLOOKUP(A27,Contrats!A:H,5,0) -> 
B28: OK | C28: =VLOOKUP(A28,Contrats!A:C,3,0) ->  | D28: =VLOOKUP(A28,Contrats!A:C,2,0) ->  | E28: =VLOOKUP(A28,Contrats!A:H,5,0) -> 
B29: OK | C29: =VLOOKUP(A29,Contrats!A:C,3,0) ->  | D29: =VLOOKUP(A29,Contrats!A:C,2,0) ->  | E29: =VLOOKUP(A29,Contrats!A:H,5,0) -> 
B30: OK | C30: =VLOOKUP(A30,Contrats!A:C,3,0) ->  | D30: =VLOOKUP(A30,Contrats!A:C,2,0) ->  | E30: =VLOOKUP(A30,Contrats!A:H,5,0) -> 
B31: OK | C31: =VLOOKUP(A31,Contrats!A:C,3,0) ->  | D31: =VLOOKUP(A31,Contrats!A:C,2,0) ->  | E31: =VLOOKUP(A31,Contrats!A:H,5,0) -> 
B32: OK | C32: =VLOOKUP(A32,Contrats!A:C,3,0) ->  | D32: =VLOOKUP(A32,Contrats!A:C,2,0) ->  | E32: =VLOOKUP(A32,Contrats!A:H,5,0) -> 
B33: OK | C33: =VLOOKUP(A33,Contrats!A:C,3,0) ->  | D33: =VLOOKUP(A33,Contrats!A:C,2,0) ->  | E33: =VLOOKUP(A33,Contrats!A:H,5,0) -> 
B34: OK | C34: =VLOOKUP(A34,Contrats!A:C,3,0) ->  | D34: =VLOOKUP(A34,Contrats!A:C,2,0) ->  | E34: =VLOOKUP(A34,Contrats!A:H,5,0) -> 
B35: OK | C35: =VLOOKUP(A35,Contrats!A:C,3,0) ->  | D35: =VLOOKUP(A35,Contrats!A:C,2,0) ->  | E35: =VLOOKUP(A35,Contrats!A:H,5,0) -> 
B36: OK | C36: =VLOOKUP(A36,Contrats!A:C,3,0) ->  | D36: =VLOOKUP(A36,Contrats!A:C,2,0) ->  | E36: =VLOOKUP(A36,Contrats!A:H,5,0) -> 
B37: OK | C37: =VLOOKUP(A37,Contrats!A:C,3,0) ->  | D37: =VLOOKUP(A37,Contrats!A:C,2,0) ->  | E37: =VLOOKUP(A37,Contrats!A:H,5,0) -> 
B38: OK | C38: =VLOOKUP(A38,Contrats!A:C,3,0) ->  | D38: =VLOOKUP(A38,Contrats!A:C,2,0) ->  | E38: =VLOOKUP(A38,Contrats!A:H,5,0) -> 
B39: OK | C39: =VLOOKUP(A39,Contrats!A:C,3,0) ->  | D39: =VLOOKUP(A39,Contrats!A:C,2,0) ->  | E39: =VLOOKUP(A39,Contrats!A:H,5,0) -> 
B40: OK | C40: =VLOOKUP(A40,Contrats!A:C,3,0) ->  | D40: =VLOOKUP(A40,Contrats!A:C,2,0) ->  | E40: =VLOOKUP(A40,Contrats!A:H,5,0) -> 
B41: OK | C41: =VLOOKUP(A41,Contrats!A:C,3,0) ->  | D41: =VLOOKUP(A41,Contrats!A:C,2,0) ->  | E41: =VLOOKUP(A41,Contrats!A:H,5,0) -> 
B42: OK | C42: =VLOOKUP(A42,Contrats!A:C,3,0) ->  | D42: =VLOOKUP(A42,Contrats!A:C,2,0) ->  | E42: =VLOOKUP(A42,Contrats!A:H,5,0) -> 
B43: OK | C43: =VLOOKUP(A43,Contrats!A:C,3,0) ->  | D43: =VLOOKUP(A43,Contrats!A:C,2,0) ->  | E43: =VLOOKUP(A43,Contrats!A:H,5,0) -> 
B44: OK | C44: =VLOOKUP(A44,Contrats!A:C,3,0) ->  | D44: =VLOOKUP(A44,Contrats!A:C,2,0) ->  | E44: =VLOOKUP(A44,Contrats!A:H,5,0) -> 
B45: OK | C45: =VLOOKUP(A45,Contrats!A:C,3,0) ->  | D45: =VLOOKUP(A45,Contrats!A:C,2,0) ->  | E45: =VLOOKUP(A45,Contrats!A:H,5,0) -> 
B46: OK | C46: =VLOOKUP(A46,Contrats!A:C,3,0) ->  | D46: =VLOOKUP(A46,Contrats!A:C,2,0) ->  | E46: =VLOOKUP(A46,Contrats!A:H,5,0) -> 
B47: OK | C47: =VLOOKUP(A47,Contrats!A:C,3,0) ->  | D47: =VLOOKUP(A47,Contrats!A:C,2,0) ->  | E47: =VLOOKUP(A47,Contrats!A:H,5,0) -> 
B48: OK | C48: =VLOOKUP(A48,Contrats!A:C,3,0) ->  | D48: =VLOOKUP(A48,Contrats!A:C,2,0) ->  | E48: =VLOOKUP(A48,Contrats!A:H,5,0) -> 
B49: OK | C49: =VLOOKUP(A49,Contrats!A:C,3,0) ->  | D49: =VLOOKUP(A49,Contrats!A:C,2,0) ->  | E49: =VLOOKUP(A49,Contrats!A:H,5,0) -> 
B50: OK | C50: =VLOOKUP(A50,Contrats!A:C,3,0) ->  | D50: =VLOOKUP(A50,Contrats!A:C,2,0) ->  | E50: =VLOOKUP(A50,Contrats!A:H,5,0) -> 
B51: OK | C51: =VLOOKUP(A51,Contrats!A:C,3,0) ->  | D51: =VLOOKUP(A51,Contrats!A:C,2,0) ->  | E51: =VLOOKUP(A51,Contrats!A:H,5,0) -> 
B52: OK | C52: =VLOOKUP(A52,Contrats!A:C,3,0) ->  | D52: =VLOOKUP(A52,Contrats!A:C,2,0) ->  | E52: =VLOOKUP(A52,Contrats!A:H,5,0) -> 
B53: OK | C53: =VLOOKUP(A53,Contrats!A:C,3,0) ->  | D53: =VLOOKUP(A53,Contrats!A:C,2,0) ->  | E53: =VLOOKUP(A53,Contrats!A:H,5,0) -> 
B54: OK | C54: =VLOOKUP(A54,Contrats!A:C,3,0) ->  | D54: =VLOOKUP(A54,Contrats!A:C,2,0) ->  | E54: =VLOOKUP(A54,Contrats!A:H,5,0) -> 
B55: OK | C55: =VLOOKUP(A55,Contrats!A:C,3,0) ->  | D55: =VLOOKUP(A55,Contrats!A:C,2,0) ->  | E55: =VLOOKUP(A55,Contrats!A:H,5,0) -> 
B56: OK | C56: =VLOOKUP(A56,Contrats!A:C,3,0) ->  | D56: =VLOOKUP(A56,Contrats!A:C,2,0) ->  | E56: =VLOOKUP(A56,Contrats!A:H,5,0) -> 
B57: OK | C57: =VLOOKUP(A57,Contrats!A:C,3,0) ->  | D57: =VLOOKUP(A57,Contrats!A:C,2,0) ->  | E57: =VLOOKUP(A57,Contrats!A:H,5,0) -> 
B58: OK | C58: =VLOOKUP(A58,Contrats!A:C,3,0) ->  | D58: =VLOOKUP(A58,Contrats!A:C,2,0) ->  | E58: =VLOOKUP(A58,Contrats!A:H,5,0) -> 
B59: OK | C59: =VLOOKUP(A59,Contrats!A:C,3,0) ->  | D59: =VLOOKUP(A59,Contrats!A:C,2,0) ->  | E59: =VLOOKUP(A59,Contrats!A:H,5,0) -> 
B60: OK | C60: =VLOOKUP(A60,Contrats!A:C,3,0) ->  | D60: =VLOOKUP(A60,Contrats!A:C,2,0) ->  | E60: =VLOOKUP(A60,Contrats!A:H,5,0) -> 
B61: OK | C61: =VLOOKUP(A61,Contrats!A:C,3,0) ->  | D61: =VLOOKUP(A61,Contrats!A:C,2,0) ->  | E61: =VLOOKUP(A61,Contrats!A:H,5,0) -> 
B62: OK | C62: =VLOOKUP(A62,Contrats!A:C,3,0) ->  | D62: =VLOOKUP(A62,Contrats!A:C,2,0) ->  | E62: =VLOOKUP(A62,Contrats!A:H,5,0) -> 
B63: OK | C63: =VLOOKUP(A63,Contrats!A:C,3,0) ->  | D63: =VLOOKUP(A63,Contrats!A:C,2,0) ->  | E63: =VLOOKUP(A63,Contrats!A:H,5,0) -> 
B64: OK | C64: =VLOOKUP(A64,Contrats!A:C,3,0) ->  | D64: =VLOOKUP(A64,Contrats!A:C,2,0) ->  | E64: =VLOOKUP(A64,Contrats!A:H,5,0) -> 
B65: OK | C65: =VLOOKUP(A65,Contrats!A:C,3,0) ->  | D65: =VLOOKUP(A65,Contrats!A:C,2,0) ->  | E65: =VLOOKUP(A65,Contrats!A:H,5,0) -> 
B66: OK | C66: =VLOOKUP(A66,Contrats!A:C,3,0) ->  | D66: =VLOOKUP(A66,Contrats!A:C,2,0) ->  | E66: =VLOOKUP(A66,Contrats!A:H,5,0) -> 
B67: OK | C67: =VLOOKUP(A67,Contrats!A:C,3,0) ->  | D67: =VLOOKUP(A67,Contrats!A:C,2,0) ->  | E67: =VLOOKUP(A67,Contrats!A:H,5,0) -> 
B68: OK | C68: =VLOOKUP(A68,Contrats!A:C,3,0) ->  | D68: =VLOOKUP(A68,Contrats!A:C,2,0) ->  | E68: =VLOOKUP(A68,Contrats!A:H,5,0) -> 
B69: OK | C69: =VLOOKUP(A69,Contrats!A:C,3,0) ->  | D69: =VLOOKUP(A69,Contrats!A:C,2,0) ->  | E69: =VLOOKUP(A69,Contrats!A:H,5,0) -> 
B70: OK | C70: =VLOOKUP(A70,Contrats!A:C,3,0) ->  | D70: =VLOOKUP(A70,Contrats!A:C,2,0) ->  | E70: =VLOOKUP(A70,Contrats!A:H,5,0) -> 
B71: OK | C71: =VLOOKUP(A71,Contrats!A:C,3,0) ->  | D71: =VLOOKUP(A71,Contrats!A:C,2,0) ->  | E71: =VLOOKUP(A71,Contrats!A:H,5,0) -> 
B72: OK | C72: =VLOOKUP(A72,Contrats!A:C,3,0) ->  | D72: =VLOOKUP(A72,Contrats!A:C,2,0) ->  | E72: =VLOOKUP(A72,Contrats!A:H,5,0) -> 
B73: OK | C73: =VLOOKUP(A73,Contrats!A:C,3,0) ->  | D73: =VLOOKUP(A73,Contrats!A:C,2,0) ->  | E73: =VLOOKUP(A73,Contrats!A:H,5,0) -> 
B74: OK | C74: =VLOOKUP(A74,Contrats!A:C,3,0) ->  | D74: =VLOOKUP(A74,Contrats!A:C,2,0) ->  | E74: =VLOOKUP(A74,Contrats!A:H,5,0) -> 
B75: OK | C75: =VLOOKUP(A75,Contrats!A:C,3,0) ->  | D75: =VLOOKUP(A75,Contrats!A:C,2,0) ->  | E75: =VLOOKUP(A75,Contrats!A:H,5,0) -> 
B76: OK | C76: =VLOOKUP(A76,Contrats!A:C,3,0) ->  | D76: =VLOOKUP(A76,Contrats!A:C,2,0) ->  | E76: =VLOOKUP(A76,Contrats!A:H,5,0) -> 
B77: OK | C77: =VLOOKUP(A77,Contrats!A:C,3,0) ->  | D77: =VLOOKUP(A77,Contrats!A:C,2,0) ->  | E77: =VLOOKUP(A77,Contrats!A:H,5,0) -> 
B78: OK | C78: =VLOOKUP(A78,Contrats!A:C,3,0) ->  | D78: =VLOOKUP(A78,Contrats!A:C,2,0) ->  | E78: =VLOOKUP(A78,Contrats!A:H,5,0) -> 
B79: OK | C79: =VLOOKUP(A79,Contrats!A:C,3,0) ->  | D79: =VLOOKUP(A79,Contrats!A:C,2,0) ->  | E79: =VLOOKUP(A79,Contrats!A:H,5,0) -> 
B80: OK | C80: =VLOOKUP(A80,Contrats!A:C,3,0) ->  | D80: =VLOOKUP(A80,Contrats!A:C,2,0) ->  | E80: =VLOOKUP(A80,Contrats!A:H,5,0) -> 
B81: OK | C81: =VLOOKUP(A81,Contrats!A:C,3,0) ->  | D81: =VLOOKUP(A81,Contrats!A:C,2,0) ->  | E81: =VLOOKUP(A81,Contrats!A:H,5,0) -> 
B82: OK | C82: =VLOOKUP(A82,Contrats!A:C,3,0) ->  | D82: =VLOOKUP(A82,Contrats!A:C,2,0) ->  | E82: =VLOOKUP(A82,Contrats!A:H,5,0) -> 
B83: OK | C83: =VLOOKUP(A83,Contrats!A:C,3,0) ->  | D83: =VLOOKUP(A83,Contrats!A:C,2,0) ->  | E83: =VLOOKUP(A83,Contrats!A:H,5,0) -> 
B84: OK | C84: =VLOOKUP(A84,Contrats!A:C,3,0) ->  | D84: =VLOOKUP(A84,Contrats!A:C,2,0) ->  | E84: =VLOOKUP(A84,Contrats!A:H,5,0) -> 
B85: OK | C85: =VLOOKUP(A85,Contrats!A:C,3,0) ->  | D85: =VLOOKUP(A85,Contrats!A:C,2,0) ->  | E85: =VLOOKUP(A85,Contrats!A:H,5,0) -> 
B86: OK | C86: =VLOOKUP(A86,Contrats!A:C,3,0) ->  | D86: =VLOOKUP(A86,Contrats!A:C,2,0) ->  | E86: =VLOOKUP(A86,Contrats!A:H,5,0) -> 
B87: OK | C87: =VLOOKUP(A87,Contrats!A:C,3,0) ->  | D87: =VLOOKUP(A87,Contrats!A:C,2,0) ->  | E87: =VLOOKUP(A87,Contrats!A:H,5,0) -> 
B88: OK | C88: =VLOOKUP(A88,Contrats!A:C,3,0) ->  | D88: =VLOOKUP(A88,Contrats!A:C,2,0) ->  | E88: =VLOOKUP(A88,Contrats!A:H,5,0) -> 
B89: OK | C89: =VLOOKUP(A89,Contrats!A:C,3,0) ->  | D89: =VLOOKUP(A89,Contrats!A:C,2,0) ->  | E89: =VLOOKUP(A89,Contrats!A:H,5,0) -> 
B90: OK | C90: =VLOOKUP(A90,Contrats!A:C,3,0) ->  | D90: =VLOOKUP(A90,Contrats!A:C,2,0) ->  | E90: =VLOOKUP(A90,Contrats!A:H,5,0) -> 
B91: OK | C91: =VLOOKUP(A91,Contrats!A:C,3,0) ->  | D91: =VLOOKUP(A91,Contrats!A:C,2,0) ->  | E91: =VLOOKUP(A91,Contrats!A:H,5,0) -> 
B92: OK | C92: =VLOOKUP(A92,Contrats!A:C,3,0) ->  | D92: =VLOOKUP(A92,Contrats!A:C,2,0) ->  | E92: =VLOOKUP(A92,Contrats!A:H,5,0) -> 
B93: OK | C93: =VLOOKUP(A93,Contrats!A:C,3,0) ->  | D93: =VLOOKUP(A93,Contrats!A:C,2,0) ->  | E93: =VLOOKUP(A93,Contrats!A:H,5,0) -> 
B94: OK | C94: =VLOOKUP(A94,Contrats!A:C,3,0) ->  | D94: =VLOOKUP(A94,Contrats!A:C,2,0) ->  | E94: =VLOOKUP(A94,Contrats!A:H,5,0) -> 
B95: OK | C95: =VLOOKUP(A95,Contrats!A:C,3,0) ->  | D95: =VLOOKUP(A95,Contrats!A:C,2,0) ->  | E95: =VLOOKUP(A95,Contrats!A:H,5,0) -> 
B96: OK | C96: =VLOOKUP(A96,Contrats!A:C,3,0) ->  | D96: =VLOOKUP(A96,Contrats!A:C,2,0) ->  | E96: =VLOOKUP(A96,Contrats!A:H,5,0) -> 
B97: OK | C97: =VLOOKUP(A97,Contrats!A:C,3,0) ->  | D97: =VLOOKUP(A97,Contrats!A:C,2,0) ->  | E97: =VLOOKUP(A97,Contrats!A:H,5,0) -> 
B98: OK | C98: =VLOOKUP(A98,Contrats!A:C,3,0) ->  | D98: =VLOOKUP(A98,Contrats!A:C,2,0) ->  | E98: =VLOOKUP(A98,Contrats!A:H,5,0) -> 
B99: OK | C99: =VLOOKUP(A99,Contrats!A:C,3,0) ->  | D99: =VLOOKUP(A99,Contrats!A:C,2,0) ->  | E99: =VLOOKUP(A99,Contrats!A:H,5,0) -> 
B100: OK | C100: =VLOOKUP(A100,Contrats!A:C,3,0) ->  | D100: =VLOOKUP(A100,Contrats!A:C,2,0) ->  | E100: =VLOOKUP(A100,Contrats!A:H,5,0) -> 
B101: OK | C101: =VLOOKUP(A101,Contrats!A:C,3,0) ->  | D101: =VLOOKUP(A101,Contrats!A:C,2,0) ->  | E101: =VLOOKUP(A101,Contrats!A:H,5,0) -> 
B102: OK | C102: =VLOOKUP(A102,Contrats!A:C,3,0) ->  | D102: =VLOOKUP(A102,Contrats!A:C,2,0) ->  | E102: =VLOOKUP(A102,Contrats!A:H,5,0) -> 
B103: OK | C103: =VLOOKUP(A103,Contrats!A:C,3,0) ->  | D103: =VLOOKUP(A103,Contrats!A:C,2,0) ->  | E103: =VLOOKUP(A103,Contrats!A:H,5,0) -> 
B104: OK | C104: =VLOOKUP(A104,Contrats!A:C,3,0) ->  | D104: =VLOOKUP(A104,Contrats!A:C,2,0) ->  | E104: =VLOOKUP(A104,Contrats!A:H,5,0) -> 
B105: OK | C105: =VLOOKUP(A105,Contrats!A:C,3,0) ->  | D105: =VLOOKUP(A105,Contrats!A:C,2,0) ->  | E105: =VLOOKUP(A105,Contrats!A:H,5,0) -> 
B106: OK | C106: =VLOOKUP(A106,Contrats!A:C,3,0) ->  | D106: =VLOOKUP(A106,Contrats!A:C,2,0) ->  | E106: =VLOOKUP(A106,Contrats!A:H,5,0) -> 
B107: OK | C107: =VLOOKUP(A107,Contrats!A:C,3,0) ->  | D107: =VLOOKUP(A107,Contrats!A:C,2,0) ->  | E107: =VLOOKUP(A107,Contrats!A:H,5,0) -> 
B108: OK | C108: =VLOOKUP(A108,Contrats!A:C,3,0) ->  | D108: =VLOOKUP(A108,Contrats!A:C,2,0) ->  | E108: =VLOOKUP(A108,Contrats!A:H,5,0) -> 
B109: OK | C109: =VLOOKUP(A109,Contrats!A:C,3,0) ->  | D109: =VLOOKUP(A109,Contrats!A:C,2,0) ->  | E109: =VLOOKUP(A109,Contrats!A:H,5,0) -> 
B110: OK | C110: =VLOOKUP(A110,Contrats!A:C,3,0) ->  | D110: =VLOOKUP(A110,Contrats!A:C,2,0) ->  | E110: =VLOOKUP(A110,Contrats!A:H,5,0) -> 
B111: OK | C111: =VLOOKUP(A111,Contrats!A:C,3,0) ->  | D111: =VLOOKUP(A111,Contrats!A:C,2,0) ->  | E111: =VLOOKUP(A111,Contrats!A:H,5,0) -> 
B112: OK | C112: =VLOOKUP(A112,Contrats!A:C,3,0) ->  | D112: =VLOOKUP(A112,Contrats!A:C,2,0) ->  | E112: =VLOOKUP(A112,Contrats!A:H,5,0) -> 
B113: OK | C113: =VLOOKUP(A113,Contrats!A:C,3,0) ->  | D113: =VLOOKUP(A113,Contrats!A:C,2,0) ->  | E113: =VLOOKUP(A113,Contrats!A:H,5,0) -> 
B114: OK | C114: =VLOOKUP(A114,Contrats!A:C,3,0) ->  | D114: =VLOOKUP(A114,Contrats!A:C,2,0) ->  | E114: =VLOOKUP(A114,Contrats!A:H,5,0) -> 
B115: OK | C115: =VLOOKUP(A115,Contrats!A:C,3,0) ->  | D115: =VLOOKUP(A115,Contrats!A:C,2,0) ->  | E115: =VLOOKUP(A115,Contrats!A:H,5,0) -> 
B116: OK | C116: =VLOOKUP(A116,Contrats!A:C,3,0) ->  | D116: =VLOOKUP(A116,Contrats!A:C,2,0) ->  | E116: =VLOOKUP(A116,Contrats!A:H,5,0) -> 
B117: OK | C117: =VLOOKUP(A117,Contrats!A:C,3,0) ->  | D117: =VLOOKUP(A117,Contrats!A:C,2,0) ->  | E117: =VLOOKUP(A117,Contrats!A:H,5,0) -> 
B118: OK | C118: =VLOOKUP(A118,Contrats!A:C,3,0) ->  | D118: =VLOOKUP(A118,Contrats!A:C,2,0) ->  | E118: =VLOOKUP(A118,Contrats!A:H,5,0) -> 
B119: OK | C119: =VLOOKUP(A119,Contrats!A:C,3,0) ->  | D119: =VLOOKUP(A119,Contrats!A:C,2,0) ->  | E119: =VLOOKUP(A119,Contrats!A:H,5,0) -> 
B120: OK | C120: =VLOOKUP(A120,Contrats!A:C,3,0) ->  | D120: =VLOOKUP(A120,Contrats!A:C,2,0) ->  | E120: =VLOOKUP(A120,Contrats!A:H,5,0) -> 
B121: OK | C121: =VLOOKUP(A121,Contrats!A:C,3,0) ->  | D121: =VLOOKUP(A121,Contrats!A:C,2,0) ->  | E121: =VLOOKUP(A121,Contrats!A:H,5,0) -> 
B122: OK | C122: =VLOOKUP(A122,Contrats!A:C,3,0) ->  | D122: =VLOOKUP(A122,Contrats!A:C,2,0) ->  | E122: =VLOOKUP(A122,Contrats!A:H,5,0) -> 
B123: OK | C123: =VLOOKUP(A123,Contrats!A:C,3,0) ->  | D123: =VLOOKUP(A123,Contrats!A:C,2,0) ->  | E123: =VLOOKUP(A123,Contrats!A:H,5,0) -> 
B124: OK | C124: =VLOOKUP(A124,Contrats!A:C,3,0) ->  | D124: =VLOOKUP(A124,Contrats!A:C,2,0) ->  | E124: =VLOOKUP(A124,Contrats!A:H,5,0) -> 
B125: OK | C125: =VLOOKUP(A125,Contrats!A:C,3,0) ->  | D125: =VLOOKUP(A125,Contrats!A:C,2,0) ->  | E125: =VLOOKUP(A125,Contrats!A:H,5,0) -> 
B126: OK | C126: =VLOOKUP(A126,Contrats!A:C,3,0) ->  | D126: =VLOOKUP(A126,Contrats!A:C,2,0) ->  | E126: =VLOOKUP(A126,Contrats!A:H,5,0) -> 
B127: OK | C127: =VLOOKUP(A127,Contrats!A:C,3,0) ->  | D127: =VLOOKUP(A127,Contrats!A:C,2,0) ->  | E127: =VLOOKUP(A127,Contrats!A:H,5,0) -> 
B128: OK | C128: =VLOOKUP(A128,Contrats!A:C,3,0) ->  | D128: =VLOOKUP(A128,Contrats!A:C,2,0) ->  | E128: =VLOOKUP(A128,Contrats!A:H,5,0) -> 
B129: OK | C129: =VLOOKUP(A129,Contrats!A:C,3,0) ->  | D129: =VLOOKUP(A129,Contrats!A:C,2,0) ->  | E129: =VLOOKUP(A129,Contrats!A:H,5,0) -> 
B130: OK | C130: =VLOOKUP(A130,Contrats!A:C,3,0) ->  | D130: =VLOOKUP(A130,Contrats!A:C,2,0) ->  | E130: =VLOOKUP(A130,Contrats!A:H,5,0) -> 
B131: OK | C131: =VLOOKUP(A131,Contrats!A:C,3,0) ->  | D131: =VLOOKUP(A131,Contrats!A:C,2,0) ->  | E131: =VLOOKUP(A131,Contrats!A:H,5,0) -> 
B132: OK | C132: =VLOOKUP(A132,Contrats!A:C,3,0) ->  | D132: =VLOOKUP(A132,Contrats!A:C,2,0) ->  | E132: =VLOOKUP(A132,Contrats!A:H,5,0) -> 
B133: OK | C133: =VLOOKUP(A133,Contrats!A:C,3,0) ->  | D133: =VLOOKUP(A133,Contrats!A:C,2,0) ->  | E133: =VLOOKUP(A133,Contrats!A:H,5,0) -> 
B134: OK | C134: =VLOOKUP(A134,Contrats!A:C,3,0) ->  | D134: =VLOOKUP(A134,Contrats!A:C,2,0) ->  | E134: =VLOOKUP(A134,Contrats!A:H,5,0) -> 
B135: OK | C135: =VLOOKUP(A135,Contrats!A:C,3,0) ->  | D135: =VLOOKUP(A135,Contrats!A:C,2,0) ->  | E135: =VLOOKUP(A135,Contrats!A:H,5,0) -> 
B136: OK | C136: =VLOOKUP(A136,Contrats!A:C,3,0) ->  | D136: =VLOOKUP(A136,Contrats!A:C,2,0) ->  | E136: =VLOOKUP(A136,Contrats!A:H,5,0) -> 
B137: OK | C137: =VLOOKUP(A137,Contrats!A:C,3,0) ->  | D137: =VLOOKUP(A137,Contrats!A:C,2,0) ->  | E137: =VLOOKUP(A137,Contrats!A:H,5,0) -> 
B138: OK | C138: =VLOOKUP(A138,Contrats!A:C,3,0) ->  | D138: =VLOOKUP(A138,Contrats!A:C,2,0) ->  | E138: =VLOOKUP(A138,Contrats!A:H,5,0) -> 
B139: OK | C139: =VLOOKUP(A139,Contrats!A:C,3,0) ->  | D139: =VLOOKUP(A139,Contrats!A:C,2,0) ->  | E139: =VLOOKUP(A139,Contrats!A:H,5,0) -> 
B140: OK | C140: =VLOOKUP(A140,Contrats!A:C,3,0) ->  | D140: =VLOOKUP(A140,Contrats!A:C,2,0) ->  | E140: =VLOOKUP(A140,Contrats!A:H,5,0) -> 
B141: OK | C141: =VLOOKUP(A141,Contrats!A:C,3,0) ->  | D141: =VLOOKUP(A141,Contrats!A:C,2,0) ->  | E141: =VLOOKUP(A141,Contrats!A:H,5,0) -> 
B142: OK | C142: =VLOOKUP(A142,Contrats!A:C,3,0) ->  | D142: =VLOOKUP(A142,Contrats!A:C,2,0) ->  | E142: =VLOOKUP(A142,Contrats!A:H,5,0) -> 
B143: OK | C143: =VLOOKUP(A143,Contrats!A:C,3,0) ->  | D143: =VLOOKUP(A143,Contrats!A:C,2,0) ->  | E143: =VLOOKUP(A143,Contrats!A:H,5,0) -> 
B144: OK | C144: =VLOOKUP(A144,Contrats!A:C,3,0) ->  | D144: =VLOOKUP(A144,Contrats!A:C,2,0) ->  | E144: =VLOOKUP(A144,Contrats!A:H,5,0) -> 
B145: OK | C145: =VLOOKUP(A145,Contrats!A:C,3,0) ->  | D145: =VLOOKUP(A145,Contrats!A:C,2,0) ->  | E145: =VLOOKUP(A145,Contrats!A:H,5,0) -> 
B146: OK | C146: =VLOOKUP(A146,Contrats!A:C,3,0) ->  | D146: =VLOOKUP(A146,Contrats!A:C,2,0) ->  | E146: =VLOOKUP(A146,Contrats!A:H,5,0) -> 
B147: OK | C147: =VLOOKUP(A147,Contrats!A:C,3,0) ->  | D147: =VLOOKUP(A147,Contrats!A:C,2,0) ->  | E147: =VLOOKUP(A147,Contrats!A:H,5,0) -> 
B148: OK | C148: =VLOOKUP(A148,Contrats!A:C,3,0) ->  | D148: =VLOOKUP(A148,Contrats!A:C,2,0) ->  | E148: =VLOOKUP(A148,Contrats!A:H,5,0) -> 
B149: OK | C149: =VLOOKUP(A149,Contrats!A:C,3,0) ->  | D149: =VLOOKUP(A149,Contrats!A:C,2,0) ->  | E149: =VLOOKUP(A149,Contrats!A:H,5,0) -> 
B150: OK | C150: =VLOOKUP(A150,Contrats!A:C,3,0) ->  | D150: =VLOOKUP(A150,Contrats!A:C,2,0) ->  | E150: =VLOOKUP(A150,Contrats!A:H,5,0) -> 
B151: OK | C151: =VLOOKUP(A151,Contrats!A:C,3,0) ->  | D151: =VLOOKUP(A151,Contrats!A:C,2,0) ->  | E151: =VLOOKUP(A151,Contrats!A:H,5,0) -> 
B152: OK | C152: =VLOOKUP(A152,Contrats!A:C,3,0) ->  | D152: =VLOOKUP(A152,Contrats!A:C,2,0) ->  | E152: =VLOOKUP(A152,Contrats!A:H,5,0) -> 
B153: OK | C153: =VLOOKUP(A153,Contrats!A:C,3,0) ->  | D153: =VLOOKUP(A153,Contrats!A:C,2,0) ->  | E153: =VLOOKUP(A153,Contrats!A:H,5,0) -> 
B154: OK | C154: =VLOOKUP(A154,Contrats!A:C,3,0) ->  | D154: =VLOOKUP(A154,Contrats!A:C,2,0) ->  | E154: =VLOOKUP(A154,Contrats!A:H,5,0) -> 
B155: OK | C155: =VLOOKUP(A155,Contrats!A:C,3,0) ->  | D155: =VLOOKUP(A155,Contrats!A:C,2,0) ->  | E155: =VLOOKUP(A155,Contrats!A:H,5,0) -> 
B156: OK | C156: =VLOOKUP(A156,Contrats!A:C,3,0) ->  | D156: =VLOOKUP(A156,Contrats!A:C,2,0) ->  | E156: =VLOOKUP(A156,Contrats!A:H,5,0) -> 
B157: OK | C157: =VLOOKUP(A157,Contrats!A:C,3,0) ->  | D157: =VLOOKUP(A157,Contrats!A:C,2,0) ->  | E157: =VLOOKUP(A157,Contrats!A:H,5,0) -> 
B158: OK | C158: =VLOOKUP(A158,Contrats!A:C,3,0) ->  | D158: =VLOOKUP(A158,Contrats!A:C,2,0) ->  | E158: =VLOOKUP(A158,Contrats!A:H,5,0) -> 
B159: OK | C159: =VLOOKUP(A159,Contrats!A:C,3,0) ->  | D159: =VLOOKUP(A159,Contrats!A:C,2,0) ->  | E159: =VLOOKUP(A159,Contrats!A:H,5,0) -> 
B160: OK | C160: =VLOOKUP(A160,Contrats!A:C,3,0) ->  | D160: =VLOOKUP(A160,Contrats!A:C,2,0) ->  | E160: =VLOOKUP(A160,Contrats!A:H,5,0) -> 
B161: OK | C161: =VLOOKUP(A161,Contrats!A:C,3,0) ->  | D161: =VLOOKUP(A161,Contrats!A:C,2,0) ->  | E161: =VLOOKUP(A161,Contrats!A:H,5,0) -> 
B162: OK | C162: =VLOOKUP(A162,Contrats!A:C,3,0) ->  | D162: =VLOOKUP(A162,Contrats!A:C,2,0) ->  | E162: =VLOOKUP(A162,Contrats!A:H,5,0) -> 
B163: OK | C163: =VLOOKUP(A163,Contrats!A:C,3,0) ->  | D163: =VLOOKUP(A163,Contrats!A:C,2,0) ->  | E163: =VLOOKUP(A163,Contrats!A:H,5,0) -> 
B164: OK | C164: =VLOOKUP(A164,Contrats!A:C,3,0) ->  | D164: =VLOOKUP(A164,Contrats!A:C,2,0) ->  | E164: =VLOOKUP(A164,Contrats!A:H,5,0) -> 
B165: OK | C165: =VLOOKUP(A165,Contrats!A:C,3,0) ->  | D165: =VLOOKUP(A165,Contrats!A:C,2,0) ->  | E165: =VLOOKUP(A165,Contrats!A:H,5,0) -> 
B166: OK | C166: =VLOOKUP(A166,Contrats!A:C,3,0) ->  | D166: =VLOOKUP(A166,Contrats!A:C,2,0) ->  | E166: =VLOOKUP(A166,Contrats!A:H,5,0) -> 
B167: OK | C167: =VLOOKUP(A167,Contrats!A:C,3,0) ->  | D167: =VLOOKUP(A167,Contrats!A:C,2,0) ->  | E167: =VLOOKUP(A167,Contrats!A:H,5,0) -> 
B168: OK | C168: =VLOOKUP(A168,Contrats!A:C,3,0) ->  | D168: =VLOOKUP(A168,Contrats!A:C,2,0) ->  | E168: =VLOOKUP(A168,Contrats!A:H,5,0) -> 
B169: OK | C169: =VLOOKUP(A169,Contrats!A:C,3,0) ->  | D169: =VLOOKUP(A169,Contrats!A:C,2,0) ->  | E169: =VLOOKUP(A169,Contrats!A:H,5,0) -> 
B170: OK | C170: =VLOOKUP(A170,Contrats!A:C,3,0) ->  | D170: =VLOOKUP(A170,Contrats!A:C,2,0) ->  | E170: =VLOOKUP(A170,Contrats!A:H,5,0) -> 
B171: OK | C171: =VLOOKUP(A171,Contrats!A:C,3,0) ->  | D171: =VLOOKUP(A171,Contrats!A:C,2,0) ->  | E171: =VLOOKUP(A171,Contrats!A:H,5,0) -> 
B172: OK | C172: =VLOOKUP(A172,Contrats!A:C,3,0) ->  | D172: =VLOOKUP(A172,Contrats!A:C,2,0) ->  | E172: =VLOOKUP(A172,Contrats!A:H,5,0) -> 
B173: OK | C173: =VLOOKUP(A173,Contrats!A:C,3,0) ->  | D173: =VLOOKUP(A173,Contrats!A:C,2,0) ->  | E173: =VLOOKUP(A173,Contrats!A:H,5,0) -> 
B174: OK | C174: =VLOOKUP(A174,Contrats!A:C,3,0) ->  | D174: =VLOOKUP(A174,Contrats!A:C,2,0) ->  | E174: =VLOOKUP(A174,Contrats!A:H,5,0) -> 
B175: OK | C175: =VLOOKUP(A175,Contrats!A:C,3,0) ->  | D175: =VLOOKUP(A175,Contrats!A:C,2,0) ->  | E175: =VLOOKUP(A175,Contrats!A:H,5,0) -> 
B176: OK | C176: =VLOOKUP(A176,Contrats!A:C,3,0) ->  | D176: =VLOOKUP(A176,Contrats!A:C,2,0) ->  | E176: =VLOOKUP(A176,Contrats!A:H,5,0) -> 
B177: OK | C177: =VLOOKUP(A177,Contrats!A:C,3,0) ->  | D177: =VLOOKUP(A177,Contrats!A:C,2,0) ->  | E177: =VLOOKUP(A177,Contrats!A:H,5,0) -> 
B178: OK | C178: =VLOOKUP(A178,Contrats!A:C,3,0) ->  | D178: =VLOOKUP(A178,Contrats!A:C,2,0) ->  | E178: =VLOOKUP(A178,Contrats!A:H,5,0) -> 
B179: OK | C179: =VLOOKUP(A179,Contrats!A:C,3,0) ->  | D179: =VLOOKUP(A179,Contrats!A:C,2,0) ->  | E179: =VLOOKUP(A179,Contrats!A:H,5,0) -> 
B180: OK | C180: =VLOOKUP(A180,Contrats!A:C,3,0) ->  | D180: =VLOOKUP(A180,Contrats!A:C,2,0) ->  | E180: =VLOOKUP(A180,Contrats!A:H,5,0) -> 
B181: OK | C181: =VLOOKUP(A181,Contrats!A:C,3,0) ->  | D181: =VLOOKUP(A181,Contrats!A:C,2,0) ->  | E181: =VLOOKUP(A181,Contrats!A:H,5,0) -> 
B182: OK | C182: =VLOOKUP(A182,Contrats!A:C,3,0) ->  | D182: =VLOOKUP(A182,Contrats!A:C,2,0) ->  | E182: =VLOOKUP(A182,Contrats!A:H,5,0) -> 
B183: OK | C183: =VLOOKUP(A183,Contrats!A:C,3,0) ->  | D183: =VLOOKUP(A183,Contrats!A:C,2,0) ->  | E183: =VLOOKUP(A183,Contrats!A:H,5,0) -> 
B184: OK | C184: =VLOOKUP(A184,Contrats!A:C,3,0) ->  | D184: =VLOOKUP(A184,Contrats!A:C,2,0) ->  | E184: =VLOOKUP(A184,Contrats!A:H,5,0) -> 
B185: OK | C185: =VLOOKUP(A185,Contrats!A:C,3,0) ->  | D185: =VLOOKUP(A185,Contrats!A:C,2,0) ->  | E185: =VLOOKUP(A185,Contrats!A:H,5,0) -> 
B186: OK | C186: =VLOOKUP(A186,Contrats!A:C,3,0) ->  | D186: =VLOOKUP(A186,Contrats!A:C,2,0) ->  | E186: =VLOOKUP(A186,Contrats!A:H,5,0) -> 
B187: OK | C187: =VLOOKUP(A187,Contrats!A:C,3,0) ->  | D187: =VLOOKUP(A187,Contrats!A:C,2,0) ->  | E187: =VLOOKUP(A187,Contrats!A:H,5,0) -> 
B188: OK | C188: =VLOOKUP(A188,Contrats!A:C,3,0) ->  | D188: =VLOOKUP(A188,Contrats!A:C,2,0) ->  | E188: =VLOOKUP(A188,Contrats!A:H,5,0) -> 
B189: OK | C189: =VLOOKUP(A189,Contrats!A:C,3,0) ->  | D189: =VLOOKUP(A189,Contrats!A:C,2,0) ->  | E189: =VLOOKUP(A189,Contrats!A:H,5,0) -> 
B190: OK | C190: =VLOOKUP(A190,Contrats!A:C,3,0) ->  | D190: =VLOOKUP(A190,Contrats!A:C,2,0) ->  | E190: =VLOOKUP(A190,Contrats!A:H,5,0) -> 
B191: OK | C191: =VLOOKUP(A191,Contrats!A:C,3,0) ->  | D191: =VLOOKUP(A191,Contrats!A:C,2,0) ->  | E191: =VLOOKUP(A191,Contrats!A:H,5,0) -> 
B192: OK | C192: =VLOOKUP(A192,Contrats!A:C,3,0) ->  | D192: =VLOOKUP(A192,Contrats!A:C,2,0) ->  | E192: =VLOOKUP(A192,Contrats!A:H,5,0) -> 
B193: OK | C193: =VLOOKUP(A193,Contrats!A:C,3,0) ->  | D193: =VLOOKUP(A193,Contrats!A:C,2,0) ->  | E193: =VLOOKUP(A193,Contrats!A:H,5,0) -> 
B194: OK | C194: =VLOOKUP(A194,Contrats!A:C,3,0) ->  | D194: =VLOOKUP(A194,Contrats!A:C,2,0) ->  | E194: =VLOOKUP(A194,Contrats!A:H,5,0) -> 
B195: OK | C195: =VLOOKUP(A195,Contrats!A:C,3,0) ->  | D195: =VLOOKUP(A195,Contrats!A:C,2,0) ->  | E195: =VLOOKUP(A195,Contrats!A:H,5,0) -> 
B196: OK | C196: =VLOOKUP(A196,Contrats!A:C,3,0) ->  | D196: =VLOOKUP(A196,Contrats!A:C,2,0) ->  | E196: =VLOOKUP(A196,Contrats!A:H,5,0) -> 
B197: OK | C197: =VLOOKUP(A197,Contrats!A:C,3,0) ->  | D197: =VLOOKUP(A197,Contrats!A:C,2,0) ->  | E197: =VLOOKUP(A197,Contrats!A:H,5,0) -> 
B198: OK | C198: =VLOOKUP(A198,Contrats!A:C,3,0) ->  | D198: =VLOOKUP(A198,Contrats!A:C,2,0) ->  | E198: =VLOOKUP(A198,Contrats!A:H,5,0) -> 
B199: OK | C199: =VLOOKUP(A199,Contrats!A:C,3,0) ->  | D199: =VLOOKUP(A199,Contrats!A:C,2,0) ->  | E199: =VLOOKUP(A199,Contrats!A:H,5,0) -> 
B200: OK | C200: =VLOOKUP(A200,Contrats!A:C,3,0) ->  | D200: =VLOOKUP(A200,Contrats!A:C,2,0) ->  | E200: =VLOOKUP(A200,Contrats!A:H,5,0) -> 
... 956 more rows

Sheet equipe (hidden)
A1: Abderahmen Bellalouna | B1: ABLOUNA
A2: Asma Loghmari | B2: ASLOGHM
A3: Rim graiet | B3: RIGRAIET
A4: Siwar ghodbane | B4: SIGHW
A5: Amina X | B5: AmiraX
A6: Hanen X | B6: HanenX

Sheet Liste CC (hidden)
A1: Nom et Prénom | B1: LOG
A2: Abderahmen Bellalouna | B2: ABLOUNA
A3: Asma Loghmari | B3: ASLOGHM
A4: Rim graiet | B4: RIGRAIET
A5: Siwar ghodbane | B5: SIGHW
A6: Amina X | B6: AmiraX
A7: Hanen X | B7: HanenX

Sheet CAES REJETES
A1: LOG | B1: NOM CC | C1: NBRE DES CASES | D1: NBRE REJETS | E1: Taux | F1: TAUX D'Atteinte | H1: NOM CC | I1: NBRE DES CASES
C2: 0 | D2: 0 | E2: =100%-(D2/C2) ->  | F2: =IF(E2>95%,100%,IF(E2<95%,IF(E2>90%,50%,0%))) ->  | I2: 0
C3: =VLOOKUP(B3,H:I,2,0) ->  | D3: 0 | F3: =IF(E3>95%,100%,IF(E3<95%,IF(E3>90%,50%,0%))) ->  | I3: 0
D4: 0 | I4: 0
D5: 0 | I5: 0
D6: 0 | I6: 0
D7: 0 | I7: 0
D8: 0 | I8: 0
D9: 0 | I9: 0
D10: 0 | I10: 0
D11: 0 | I11: 0

Sheet CATALOGUE SMARTPHONES (hidden)
A1: Nom du produit | B1: Code Produit | C1: ETAT
A2: GALAXY STAR+ DS S7262 BLACK | B2: 083001003001 | C2: OK
A3: SAMSUNG J1 MINI Prime 4G BLACK | B3: 045001070001 | C3: OK
A4: HUAWEI GR5 2017 GOLD | B4: 083013025002 | C4: OK
A5: PORTABLE ALCATEL 908 F B.BLACK | B5: 045002000013 | C5: OK
A6: IPHONE 7 32 GO SILVER | B6: 045011022002 | C6: OK
A7: SAMSUNG S6 EDGE + BLACK | B7: 083001033001 | C7: OK
A8: IPHONE 7 + 128 GO GOLD | B8: 045011023007 | C8: OK
A9: SAMSUNG S8 + VILOET | B9: 045001077003 | C9: OK
A10: SERVICOM EASY CLASS BLACK | B10: 083025003001 | C10: OK
A11: DORO 8031 4G GOLD | B11: 045020001003 | C11: OK
A12: ASUS ZENFONE 3 BLACK | B12: 083023004001 | C12: OK
A13: SAMSUNG A3 2016 4G BLACK | B13: 045001066001 | C13: OK
A14: HUAWEI G9 NOVA PLUS GREY | B14: 083013022002 | C14: OK
A15: LENOVO B GOLD | B15: 045017004003 | C15: OK
A16: HUAWEI GR3 2017 GOLD | B16: 083013024003 | C16: OK
A17: SAMSUNG J5 WHITE | B17: 083001032002 | C17: OK
A18: OPPO F1S GOLD | B18: 083021005001 | C18: OK
A19: HUAWEI Y625 WHITE | B19: 083013005002 | C19: OK
A20: LENOVO A BLACK | B20: 083017001001 | C20: OK
A21: HUAWEI GR5 SILVER | B21: 045013017001 | C21: OK
A22: SAMSUNG J5 BLACK | B22: 083001032001 | C22: OK
A23: SAMSUNG S8 VIOLET | B23: 045001076003 | C23: OK
A24: SAMSUNG GRAND PRIME + BLACK | B24: 045001074001 | C24: OK
A25: NOKIA 3 DS Tempered Blue | B25: 083003015003 | C25: OK
A26: IPHONE 7 32 GO GOLD | B26: 045011022003 | C26: OK
A27: OPPO A37 GOLD | B27: 083021004001 | C27: OK
A28: ORANGE RISE 30 WHITE | B28: 045002019002 | C28: OK
A29: HUAWEI GR3 2017 WHITE | B29: 083013024002 | C29: OK
A30: LENOVO MOTO Z BLACK | B30: 083017004001 | C30: OK
A31: DORO 8031 4G BLACK | B31: 083020001001 | C31: OK
A32: IPHONE 7 + 32 GO BLACK | B32: 045011023001 | C32: OK
A33: Samsung ACE 4 lite DS BLACK | B33: 083001012001 | C33: OK
A34: LENOVO A WHITE | B34: 083017001002 | C34: OK
A35: HUAWEI GR5 GRAY | B35: 045013017002 | C35: OK
A36: IPHONE 7 + 32 GO SILVER | B36: 045011023002 | C36: OK
A37: SAMSUNG J7 4G GOLD | B37: 083001039003 | C37: OK
A38: SERVICOM EASY PREMIUM WHiTE | B38: 083025004002 | C38: OK
A39: SAMSUNG A7 2016 4G PINK GOLD | B39: 045001064003 | C39: OK
A40: SAMSUNG A3 2016 4G WHITE | B40: 045001066002 | C40: OK
A41: SAMSUNG J1 MINI Prime 4G WHITE | B41: 045001070002 | C41: OK
A42: SAMSUNG A3 2016 4G GOLD | B42: 045001066004 | C42: OK
A43: HUAWEI GR3 2017 BLACK | B43: 083013024001 | C43: OK
A44: EVERTEK EVERSOLO GREY | B44: 083012002001 | C44: OK
A45: SAMSUNG E1202 EIDER DS I.BLEU | B45: 045001018001 | C45: OK
A46: IPHONE 7 + 32 GO ROSE GOLD | B46: 045011023004 | C46: OK
A47: SAMSUNG GALAXY TAB A 10' BLCK | B47: 086003000013 | C47: OK
A48: OPPO NEO 7 WHITE | B48: 083021002002 | C48: OK
A49: SERVICOM EASY PREMIUM BLACK | B49: 083025004001 | C49: OK
A50: SAMSUNG J3 4G GOLD | B50: 045001067003 | C50: OK
A51: SAMSUNG J1 MINI Prime 4G GOLD | B51: 045001070003 | C51: OK
A52: HUAWEI GR5 MINI SILVER | B52: 045013025002 | C52: OK
A53: HUAWEI GR5 MINI GOLD | B53: 045013025003 | C53: OK
A54: NOKIA X2 BLACK | B54: 045003043001 | C54: OK
A55: IPHONE 7 + 32 GO GOLD | B55: 045011023003 | C55: OK
A56: SAMSUNG GALAXY TAB A 10' WHTE | B56: 086003000014 | C56: OK
A57: SAMSUNG S8 + BLACK | B57: 045001077001 | C57: OK
A58: SAMSUNG A5 2016 4G BLACK | B58: 045001065001 | C58: OK
A59: DORO 8031 4G BLACK | B59: 045020001001 | C59: OK
A60: DORO 8031 4G WHITE | B60: 045020001002 | C60: OK
A61: HUAWEI GR5 MINI GREY | B61: 045013025001 | C61: OK
A62: SAMSUNG J1 MINI PRIME 3G BLACK | B62: 083001047001 | C62: OK
A63: SAMSUNG A5 2017 PEACH CLOUD | B63: 083001050004 | C63: OK
A64: SAMSUNG A3 2017 PEACH CLOUD | B64: 083001051003 | C64: OK
A65: SAMSUNG J7 4G WHITE | B65: 083001039002 | C65: OK
A66: SAMSUNG J5 Prime 4G BLACK | B66: 083001052001 | C66: OK
A67: EVERTEK MIRACLE POWER BLEU | B67: 083012004001 | C67: OK
A68: HUAWEI GR3 SILVER | B68: 045013023002 | C68: OK
A69: SAMSUNG A3 2016 4G PINK GOLD | B69: 083001040003 | C69: OK
A70: IPHONE 7 + 128 GO RED | B70: 045011023015 | C70: OK
A71: HUAWEI Y3-II BLACK | B71: 045013018001 | C71: OK
A72: IPHONE 7 32 GO ROSE GOLD | B72: 045011022004 | C72: OK
A73: ASUS ZENFONE GO BLACK | B73: 083023001002 | C73: OK
A74: HUAWEI G9 NOVA PLUS SILVER | B74: 083013022001 | C74: OK
A75: LENOVO MOTO Z WHITE | B75: 083017004002 | C75: OK
A76: LENOVO B BLACK | B76: 045017004001 | C76: OK
A77: LENOVO B WHITE | B77: 045017004002 | C77: OK
A78: ASUS ZENFONE GO RED | B78: 083023001004 | C78: OK
A79: SAMSUNG A3 2017 GOLD | B79: 083001051002 | C79: OK
A80: HUAWEI P9 LITE WHITE | B80: 045013021001 | C80: OK
A81: IPHONE 7 128 GO RED | B81: 045011022015 | C81: OK
A82: NOKIA 3 DS Matte Black | B82: 083003015001 | C82: OK
A83: ASUS ZENFONE3 max SILVER | B83: 083023002003 | C83: OK
A84: ASUS ZENFONE 3 LASER SILVER | B84: 083023003002 | C84: OK
A85: HUAWEI G9 NOVA PLUS GOLD | B85: 083013022003 | C85: OK
A86: LENOVO B RED | B86: 045017004004 | C86: OK
A87: SAMSUNG A3 2017 BLUE | B87: 083001051004 | C87: OK
A88: SAMSUNG J7 Prime 4G GOLD | B88: 083001053002 | C88: OK
A89: SAMSUNG J1 MINI PRIME 3G GOLD | B89: 083001047002 | C89: OK
A90: TECNO N9 WHITE | B90: 045019001002 | C90: OK
A91: TECNO N9 BLACK | B91: 045019001001 | C91: OK
A92: SAMSUNG J5 GOLD | B92: 083001032003 | C92: OK
A93: POWERBANK POUR LUMIA 535 | B93: 047006000170 | C93: OK
A94: HUAWEI MATE 9 GREY | B94: 083013023002 | C94: OK
A95: SAMSUNG J3 4G BLACK | B95: 045001067001 | C95: OK
A96: SAMSUNG GRAND PRIME + SILVER | B96: 045001074002 | C96: OK
A97: HUAWEI Y5-II BLACK | B97: 045013019001 | C97: OK
A98: HUAWEI Y5-II BLACK | B98: 045013019001 | C98: OK
A99: SAMSUNG GRAND PRIME + SILVER | B99: 045001074002 | C99: OK
A100: SAMSUNG GRAND PRIME + SILVER | B100: 045001074002 | C100: OK
A101: SAMSUNG S8 GOLD | B101: 045001076002 | C101: OK
A102: HUAWEI Y3-II WHITE | B102: 045013018002 | C102: OK
A103: HUAWEI HUAWEI Y6-II BLACK | B103: 045013024001 | C103: OK
A104: HUAWEI Y3-II WHITE | B104: 045013018002 | C104: OK
A105: HUAWEI Y5-II GOLD | B105: 045013019003 | C105: OK
A106: HUAWEI HUAWEI Y6-II WHITE | B106: 045013024002 | C106: OK
A107: ASUS ZENFONE 3 max GOLD | B107: 083023002002 | C107: OK
A108: HUAWEI Y5-II GOLD | B108: 045013019003 | C108: OK
A109: HUAWEI Y5-II GOLD | B109: 045013019003 | C109: OK
A110: SAMSUNG J5 Prime 4G GOLD | B110: 083001052002 | C110: OK
A111: HUAWEI Y5-II GOLD | B111: 045013019003 | C111: OK
A112: ASUS ZENFONE GO SILVER | B112: 083023001001 | C112: OK
A113: SAMSUNG S7 EDGE BLACK | B113: 045001059002 | C113: OK
A114: HUAWEI Y5-II GOLD | B114: 045013019003 | C114: OK
A115: SAMSUNG A5 2016 4G WHITE | B115: 045001065002 | C115: OK
A116: HUAWEI Y3-II WHITE | B116: 045013018002 | C116: OK
A117: HUAWEI HUAWEI Y6-II WHITE | B117: 045013024002 | C117: OK
A118: SAMSUNG S8 GOLD | B118: 045001076002 | C118: OK
A119: HUAWEI Y5-II GOLD | B119: 045013019003 | C119: OK
A120: HUAWEI Y3-II WHITE | B120: 045013018002 | C120: OK
A121: SAMSUNG GRAND PRIME + SILVER | B121: 045001074002 | C121: OK
A122: HUAWEI Y3-II WHITE | B122: 045013018002 | C122: OK
A123: SAMSUNG GRAND PRIME + SILVER | B123: 045001074002 | C123: OK
A124: HUAWEI Y3-II WHITE | B124: 045013018002 | C124: OK
A125: SAMSUNG GRAND PRIME + SILVER | B125: 045001074002 | C125: OK
A126: HUAWEI Y5-II GOLD | B126: 045013019003 | C126: OK
A127: SAMSUNG GRAND PRIME + GOLD | B127: 045001074003 | C127: OK
A128: SAMSUNG GRAND PRIME + GOLD | B128: 045001074003 | C128: OK
A129: SAMSUNG J1 ACE 4G WHITE | B129: 045001062001 | C129: OK
A130: SAMSUNG GRAND PRIME + GOLD | B130: 045001074003 | C130: OK

Sheet Baréme Relax (hidden)
A1: MODELE | B1: PRODUCT_CODE | C1: DESCRIPTION | D1: POIDS
A2: ASSURANCE | B2: 999100002001 | C2: ASSURANCE CASSE | D2: 3
B3: 999100002002 | C3: ASSURANCE CASSE ET VOL | D3: 3
A4: moyenne des poids | D4: 3
A5: ORANGE EXPERT | B5: 999100001006 | C5: SVC PACK DEMARRAGE SMART TAB | D5: 2
B6: 999100003001 | C6: SVC ASSISTANCE PRO | D6: 0
A7: moyenne des poids | D7: 2
A8: TRANSFERT | B8: 999100001001 | C8: SVC SAUVEGARDE DONNEES | D8: 2
B9: 999100001002 | C9: SVC RESTAURATION DONNEES | D9: 2
B10: 999100001003 | C10: SERVICE TRANSFERT CONTACT | D10: 2
B11: 999100001004 | C11: SERVICE TRANSFERT DONNEES | D11: 2
B12: 999100001005 | C12: SVC TRANSFERT DONN + COPIE USB | D12: 3

Sheet journal des ventes (hidden)
A1: Utilisateur | B1: Date | C1: Ref produit | D1: Nom produit | E1: Quantité payée | F1: Utilisateur | G1: Quantité non payée | H1: Prix de vente non payé | I1: Quantité totale | J1: Montant total | K1: Marché | L1: ETAT SMARTPHONE | M1: Relax
A2: SIGHW | B2: 15 août 2017 | C2: P53327 | D2: Pack - offre Pass | E2: 1 | F2: 0,000 | G2: 0 | H2: 0,000 | I2: 1 | J2: 0,000 | K2: Mobile | L2: =VLOOKUP(D2,'CATALOGUE SMARTPHONES'!A:C,3,0) ->  | M2: =IFERROR((VLOOKUP(C2,'Baréme Relax'!B:D,3,0)),0) -> 0
A3: ASLOGHM | B3: 15 août 2017 | C3: 044004000010 | D3: Recharge Express | E3: 30 | F3: 33,000 | G3: 0 | H3: 0,000 | I3: 30 | J3: 33,000 | K3: Mobile | L3: =VLOOKUP(D3,'CATALOGUE SMARTPHONES'!A:C,3,0) ->  | M3: =IFERROR((VLOOKUP(C3,'Baréme Relax'!B:D,3,0)),0) -> 0
A4: ASLOGHM | B4: 15 août 2017 | C4: 044004000010 | D4: Recharge Express | E4: 20 | F4: 22,000 | G4: 0 | H4: 0,000 | I4: 20 | J4: 22,000 | K4: Mobile | L4: =VLOOKUP(D4,'CATALOGUE SMARTPHONES'!A:C,3,0) ->  | M4: =IFERROR((VLOOKUP(C4,'Baréme Relax'!B:D,3,0)),0) -> 0
A5: RIGRAIET | B5: 15 août 2017 | C5: PRE21 | D5: Melle5er | E5: 1 | F5: 0,000 | G5: 0 | H5: 0,000 | I5: 1 | J5: 0,000 | K5: Mobile | L5: =VLOOKUP(D5,'CATALOGUE SMARTPHONES'!A:C,3,0) ->  | M5: =IFERROR((VLOOKUP(C5,'Baréme Relax'!B:D,3,0)),0) -> 0
A6: ASLOGHM | B6: 15 août 2017 | C6: PRE21 | D6: Melle5er | E6: 4 | F6: 0,000 | G6: 0 | H6: 0,000 | I6: 4 | J6: 0,000 | K6: Mobile | L6: =VLOOKUP(D6,'CATALOGUE SMARTPHONES'!A:C,3,0) ->  | M6: =IFERROR((VLOOKUP(C6,'Baréme Relax'!B:D,3,0)),0) -> 0
A7: ASLOGHM | B7: 15 août 2017 | C7: P56567 | D7: Pack Sim data - offre Simply 7,5 Go + illimité | E7: 1 | F7: 0,000 | G7: 0 | H7: 0,000 | I7: 1 | J7: 0,000 | K7: Mobile | L7: =VLOOKUP(D7,'CATALOGUE SMARTPHONES'!A:C,3,0) ->  | M7: =IFERROR((VLOOKUP(C7,'Baréme Relax'!B:D,3,0)),0) -> 0
A8: ASLOGHM | B8: 15 août 2017 | C8: PRE23 | D8: El Jam3ia Mobile | E8: 4 | F8: 0,000 | G8: 0 | H8: 0,000 | I8: 4 | J8: 0,000 | K8: Mobile | L8: =VLOOKUP(D8,'CATALOGUE SMARTPHONES'!A:C,3,0) ->  | M8: =IFERROR((VLOOKUP(C8,'Baréme Relax'!B:D,3,0)),0) -> 0
A9: ABLOUNA | B9: 15 août 2017 | C9: 044004000010 | D9: Recharge Express | E9: 13 | F9: 14,300 | G9: 0 | H9: 0,000 | I9: 13 | J9: 14,300 | K9: Mobile | L9: =VLOOKUP(D9,'CATALOGUE SMARTPHONES'!A:C,3,0) ->  | M9: =IFERROR((VLOOKUP(C9,'Baréme Relax'!B:D,3,0)),0) -> 0
A10: ASLOGHM | B10: 15 août 2017 | C10: 999100001003 | D10: SERVICE TRANSFERT CONTACT | E10: 1 | F10: 3,000 | G10: 0 | H10: 0,000 | I10: 1 | J10: 3,000 | K10: Mobile | L10: =VLOOKUP(D10,'CATALOGUE SMARTPHONES'!A:C,3,0) ->  | M10: =IFERROR((VLOOKUP(C10,'Baréme Relax'!B:D,3,0)),0) -> 2
A11: ASLOGHM | B11: 15 août 2017 | C11: PRE10 | D11: offre Pass | E11: 1 | F11: 0,000 | G11: 0 | H11: 0,000 | I11: 1 | J11: 0,000 | K11: Mobile | L11: =VLOOKUP(D11,'CATALOGUE SMARTPHONES'!A:C,3,0) ->  | M11: =IFERROR((VLOOKUP(C11,'Baréme Relax'!B:D,3,0)),0) -> 0
A12: ASLOGHM | B12: 15 août 2017 | C12: 044004000010 | D12: Recharge Express | E12: 24 | F12: 26,400 | G12: 0 | H12: 0,000 | I12: 24 | J12: 26,400 | K12: Mobile | L12: =VLOOKUP(D12,'CATALOGUE SMARTPHONES'!A:C,3,0) ->  | M12: =IFERROR((VLOOKUP(C12,'Baréme Relax'!B:D,3,0)),0) -> 0
A13: ABLOUNA | B13: 15 août 2017 | C13: 044004000010 | D13: Recharge Express | E13: 15 | F13: 16,500 | G13: 0 | H13: 0,000 | I13: 15 | J13: 16,500 | K13: Mobile | L13: =VLOOKUP(D13,'CATALOGUE SMARTPHONES'!A:C,3,0) ->  | M13: =IFERROR((VLOOKUP(C13,'Baréme Relax'!B:D,3,0)),0) -> 0
A14: SIGHW | B14: 15 août 2017 | C14: PRE10 | D14: offre Pass | E14: 1 | F14: 0,000 | G14: 0 | H14: 0,000 | I14: 1 | J14: 0,000 | K14: Mobile | L14: =VLOOKUP(D14,'CATALOGUE SMARTPHONES'!A:C,3,0) ->  | M14: =IFERROR((VLOOKUP(C14,'Baréme Relax'!B:D,3,0)),0) -> 0
A15: SIGHW | B15: 15 août 2017 | C15: PRE17 | D15: 3alami | E15: 1 | F15: 0,000 | G15: 0 | H15: 0,000 | I15: 1 | J15: 0,000 | K15: Mobile | L15: =VLOOKUP(D15,'CATALOGUE SMARTPHONES'!A:C,3,0) ->  | M15: =IFERROR((VLOOKUP(C15,'Baréme Relax'!B:D,3,0)),0) -> 0
A16: ABLOUNA | B16: 15 août 2017 | C16: 044004000010 | D16: Recharge Express | E16: 30 | F16: 33,000 | G16: 0 | H16: 0,000 | I16: 30 | J16: 33,000 | K16: Mobile | L16: =VLOOKUP(D16,'CATALOGUE SMARTPHONES'!A:C,3,0) ->  | M16: =IFERROR((VLOOKUP(C16,'Baréme Relax'!B:D,3,0)),0) -> 0
A17: ABLOUNA | B17: 15 août 2017 | C17: 044004000010 | D17: Recharge Express | E17: 12 | F17: 13,200 | G17: 0 | H17: 0,000 | I17: 12 | J17: 13,200 | K17: Mobile | L17: =VLOOKUP(D17,'CATALOGUE SMARTPHONES'!A:C,3,0) ->  | M17: =IFERROR((VLOOKUP(C17,'Baréme Relax'!B:D,3,0)),0) -> 0
A18: ABLOUNA | B18: 15 août 2017 | C18: PRE03 | D18: offre Simply | E18: 1 | F18: 0,000 | G18: 0 | H18: 0,000 | I18: 1 | J18: 0,000 | K18: Mobile | L18: =VLOOKUP(D18,'CATALOGUE SMARTPHONES'!A:C,3,0) ->  | M18: =IFERROR((VLOOKUP(C18,'Baréme Relax'!B:D,3,0)),0) -> 0
A19: ASLOGHM | B19: 15 août 2017 | C19: P53327 | D19: Pack - offre Pass | E19: 1 | F19: 0,000 | G19: 0 | H19: 0,000 | I19: 1 | J19: 0,000 | K19: Mobile | L19: =VLOOKUP(D19,'CATALOGUE SMARTPHONES'!A:C,3,0) ->  | M19: =IFERROR((VLOOKUP(C19,'Baréme Relax'!B:D,3,0)),0) -> 0
A20: SIGHW | B20: 15 août 2017 | C20: 044004000010 | D20: Recharge Express | E20: 25 | F20: 27,500 | G20: 0 | H20: 0,000 | I20: 25 | J20: 27,500 | K20: Mobile | L20: =VLOOKUP(D20,'CATALOGUE SMARTPHONES'!A:C,3,0) ->  | M20: =IFERROR((VLOOKUP(C20,'Baréme Relax'!B:D,3,0)),0) -> 0
A21: ABLOUNA | B21: 15 août 2017 | C21: PRE23 | D21: El Jam3ia Mobile | E21: 8 | F21: 0,000 | G21: 0 | H21: 0,000 | I21: 8 | J21: 0,000 | K21: Mobile | L21: =VLOOKUP(D21,'CATALOGUE SMARTPHONES'!A:C,3,0) ->  | M21: =IFERROR((VLOOKUP(C21,'Baréme Relax'!B:D,3,0)),0) -> 0
A22: ASLOGHM | B22: 15 août 2017 | C22: 044004000010 | D22: Recharge Express | E22: 30 | F22: 33,000 | G22: 0 | H22: 0,000 | I22: 30 | J22: 33,000 | K22: Mobile | L22: =VLOOKUP(D22,'CATALOGUE SMARTPHONES'!A:C,3,0) ->  | M22: =IFERROR((VLOOKUP(C22,'Baréme Relax'!B:D,3,0)),0) -> 0
A23: ABLOUNA | B23: 15 août 2017 | C23: 044004000010 | D23: Recharge Express | E23: 60 | F23: 66,000 | G23: 0 | H23: 0,000 | I23: 60 | J23: 66,000 | K23: Mobile | L23: =VLOOKUP(D23,'CATALOGUE SMARTPHONES'!A:C,3,0) ->  | M23: =IFERROR((VLOOKUP(C23,'Baréme Relax'!B:D,3,0)),0) -> 0
A24: ABLOUNA | B24: 15 août 2017 | C24: PRE17 | D24: 3alami | E24: 1 | F24: 0,000 | G24: 0 | H24: 0,000 | I24: 1 | J24: 0,000 | K24: Mobile | L24: =VLOOKUP(D24,'CATALOGUE SMARTPHONES'!A:C,3,0) ->  | M24: =IFERROR((VLOOKUP(C24,'Baréme Relax'!B:D,3,0)),0) -> 0
A25: ASLOGHM | B25: 15 août 2017 | C25: 044004000010 | D25: Recharge Express | E25: 10 | F25: 11,000 | G25: 0 | H25: 0,000 | I25: 10 | J25: 11,000 | K25: Mobile | L25: =VLOOKUP(D25,'CATALOGUE SMARTPHONES'!A:C,3,0) ->  | M25: =IFERROR((VLOOKUP(C25,'Baréme Relax'!B:D,3,0)),0) -> 0
A26: ABLOUNA | B26: 15 août 2017 | C26: PRE21 | D26: Melle5er | E26: 3 | F26: 0,000 | G26: 0 | H26: 0,000 | I26: 3 | J26: 0,000 | K26: Mobile | L26: =VLOOKUP(D26,'CATALOGUE SMARTPHONES'!A:C,3,0) ->  | M26: =IFERROR((VLOOKUP(C26,'Baréme Relax'!B:D,3,0)),0) -> 0
A27: ABLOUNA | B27: 15 août 2017 | C27: P56567 | D27: Pack Sim data - offre Simply 7,5 Go + illimité | E27: 1 | F27: 0,000 | G27: 0 | H27: 0,000 | I27: 1 | J27: 0,000 | K27: Mobile | L27: =VLOOKUP(D27,'CATALOGUE SMARTPHONES'!A:C,3,0) ->  | M27: =IFERROR((VLOOKUP(C27,'Baréme Relax'!B:D,3,0)),0) -> 0
A28: ASLOGHM | B28: 15 août 2017 | C28: PRE03 | D28: offre Simply | E28: 1 | F28: 0,000 | G28: 0 | H28: 0,000 | I28: 1 | J28: 0,000 | K28: Mobile | L28: =VLOOKUP(D28,'CATALOGUE SMARTPHONES'!A:C,3,0) ->  | M28: =IFERROR((VLOOKUP(C28,'Baréme Relax'!B:D,3,0)),0) -> 0
A29: ASLOGHM | B29: 15 août 2017 | C29: 044004000010 | D29: Recharge Express | E29: 15 | F29: 16,500 | G29: 0 | H29: 0,000 | I29: 15 | J29: 16,500 | K29: Mobile | L29: =VLOOKUP(D29,'CATALOGUE SMARTPHONES'!A:C,3,0) ->  | M29: =IFERROR((VLOOKUP(C29,'Baréme Relax'!B:D,3,0)),0) -> 0
A30: SIGHW | B30: 15 août 2017 | C30: 043007000004 | D30: CARTE SIM 4G DATA MULTI SIM | E30: 1 | F30: 5,000 | G30: 0 | H30: 0,000 | I30: 1 | J30: 5,000 | K30: Mobile | L30: =VLOOKUP(D30,'CATALOGUE SMARTPHONES'!A:C,3,0) ->  | M30: =IFERROR((VLOOKUP(C30,'Baréme Relax'!B:D,3,0)),0) -> 0
A31: ASLOGHM | B31: 15 août 2017 | C31: 043007000004 | D31: CARTE SIM 4G DATA MULTI SIM | E31: 1 | F31: 5,000 | G31: 0 | H31: 0,000 | I31: 1 | J31: 5,000 | K31: Mobile | L31: =VLOOKUP(D31,'CATALOGUE SMARTPHONES'!A:C,3,0) ->  | M31: =IFERROR((VLOOKUP(C31,'Baréme Relax'!B:D,3,0)),0) -> 0
A32: SIGHW | B32: 15 août 2017 | C32: 043006000003 | D32: CARTE SIM 4G PRE MULTI SIM | E32: 1 | F32: 0,000 | G32: 0 | H32: 0,000 | I32: 1 | J32: 0,000 | K32: Mobile | L32: =VLOOKUP(D32,'CATALOGUE SMARTPHONES'!A:C,3,0) ->  | M32: =IFERROR((VLOOKUP(C32,'Baréme Relax'!B:D,3,0)),0) -> 0
A33: ABLOUNA | B33: 15 août 2017 | C33: 043007000004 | D33: CARTE SIM 4G DATA MULTI SIM | E33: 1 | F33: 30,000 | G33: 0 | H33: 0,000 | I33: 1 | J33: 30,000 | K33: Mobile | L33: =VLOOKUP(D33,'CATALOGUE SMARTPHONES'!A:C,3,0) ->  | M33: =IFERROR((VLOOKUP(C33,'Baréme Relax'!B:D,3,0)),0) -> 0
A34: ABLOUNA | B34: 15 août 2017 | C34: 043006000003 | D34: CARTE SIM 4G PRE MULTI SIM | E34: 5 | F34: 0,000 | G34: 0 | H34: 0,000 | I34: 5 | J34: 0,000 | K34: Mobile | L34: =VLOOKUP(D34,'CATALOGUE SMARTPHONES'!A:C,3,0) ->  | M34: =IFERROR((VLOOKUP(C34,'Baréme Relax'!B:D,3,0)),0) -> 0
A35: ABLOUNA | B35: 15 août 2017 | C35: 188003000016 | D35: Modem Huawei HG532 | E35: 1 | F35: 0,000 | G35: 0 | H35: 0,000 | I35: 1 | J35: 0,000 | K35: ADSL | L35: =VLOOKUP(D35,'CATALOGUE SMARTPHONES'!A:C,3,0) ->  | M35: =IFERROR((VLOOKUP(C35,'Baréme Relax'!B:D,3,0)),0) -> 0
A36: RIGRAIET | B36: 15 août 2017 | C36: 043006000003 | D36: CARTE SIM 4G PRE MULTI SIM | E36: 1 | F36: 0,000 | G36: 0 | H36: 0,000 | I36: 1 | J36: 0,000 | K36: Mobile | L36: =VLOOKUP(D36,'CATALOGUE SMARTPHONES'!A:C,3,0) ->  | M36: =IFERROR((VLOOKUP(C36,'Baréme Relax'!B:D,3,0)),0) -> 0
A37: ASLOGHM | B37: 15 août 2017 | C37: 043001000114 | D37: CARTE PREACTIVEE VD | E37: 4 | F37: 12,000 | G37: 0 | H37: 0,000 | I37: 4 | J37: 12,000 | K37: Mobile | L37: =VLOOKUP(D37,'CATALOGUE SMARTPHONES'!A:C,3,0) ->  | M37: =IFERROR((VLOOKUP(C37,'Baréme Relax'!B:D,3,0)),0) -> 0
A38: ASLOGHM | B38: 15 août 2017 | C38: 043006000003 | D38: CARTE SIM 4G PRE MULTI SIM | E38: 2 | F38: 0,000 | G38: 0 | H38: 0,000 | I38: 2 | J38: 0,000 | K38: Mobile | L38: =VLOOKUP(D38,'CATALOGUE SMARTPHONES'!A:C,3,0) ->  | M38: =IFERROR((VLOOKUP(C38,'Baréme Relax'!B:D,3,0)),0) -> 0
A39: ASLOGHM | B39: 15 août 2017 | C39: 043006000003 | D39: CARTE SIM 4G PRE MULTI SIM | E39: 1 | F39: 3,000 | G39: 0 | H39: 0,000 | I39: 1 | J39: 3,000 | K39: Mobile | L39: =VLOOKUP(D39,'CATALOGUE SMARTPHONES'!A:C,3,0) ->  | M39: =IFERROR((VLOOKUP(C39,'Baréme Relax'!B:D,3,0)),0) -> 0
A40: ASLOGHM | B40: 15 août 2017 | C40: 043007000004 | D40: CARTE SIM 4G DATA MULTI SIM | E40: 1 | F40: 30,000 | G40: 0 | H40: 0,000 | I40: 1 | J40: 30,000 | K40: Mobile | L40: =VLOOKUP(D40,'CATALOGUE SMARTPHONES'!A:C,3,0) ->  | M40: =IFERROR((VLOOKUP(C40,'Baréme Relax'!B:D,3,0)),0) -> 0
A41: ABLOUNA | B41: 15 août 2017 | C41: 043006000003 | D41: CARTE SIM 4G PRE MULTI SIM | E41: 1 | F41: 3,000 | G41: 0 | H41: 0,000 | I41: 1 | J41: 3,000 | K41: Mobile | L41: =VLOOKUP(D41,'CATALOGUE SMARTPHONES'!A:C,3,0) ->  | M41: =IFERROR((VLOOKUP(C41,'Baréme Relax'!B:D,3,0)),0) -> 0
A42: ASLOGHM | B42: 15 août 2017 | C42: 043006000003 | D42: CARTE SIM 4G PRE MULTI SIM | E42: 3 | F42: 15,000 | G42: 0 | H42: 0,000 | I42: 3 | J42: 15,000 | K42: Mobile | L42: =VLOOKUP(D42,'CATALOGUE SMARTPHONES'!A:C,3,0) ->  | M42: =IFERROR((VLOOKUP(C42,'Baréme Relax'!B:D,3,0)),0) -> 0
A43: ABLOUNA | B43: 15 août 2017 | C43: 043001000114 | D43: CARTE PREACTIVEE VD | E43: 8 | F43: 24,000 | G43: 0 | H43: 0,000 | I43: 8 | J43: 24,000 | K43: Mobile | L43: =VLOOKUP(D43,'CATALOGUE SMARTPHONES'!A:C,3,0) ->  | M43: =IFERROR((VLOOKUP(C43,'Baréme Relax'!B:D,3,0)),0) -> 0
A44: RIGRAIET | B44: 14 août 2017 | C44: 044004000010 | D44: Recharge Express | E44: 30 | F44: 33,000 | G44: 0 | H44: 0,000 | I44: 30 | J44: 33,000 | K44: Mobile | L44: =VLOOKUP(D44,'CATALOGUE SMARTPHONES'!A:C,3,0) ->  | M44: =IFERROR((VLOOKUP(C44,'Baréme Relax'!B:D,3,0)),0) -> 0
A45: RIGRAIET | B45: 14 août 2017 | C45: PRE10 | D45: offre Pass | E45: 5 | F45: 0,000 | G45: 0 | H45: 0,000 | I45: 5 | J45: 0,000 | K45: Mobile | L45: =VLOOKUP(D45,'CATALOGUE SMARTPHONES'!A:C,3,0) ->  | M45: =IFERROR((VLOOKUP(C45,'Baréme Relax'!B:D,3,0)),0) -> 0
A46: RIGRAIET | B46: 14 août 2017 | C46: PRE21 | D46: Melle5er | E46: 6 | F46: 0,000 | G46: 0 | H46: 0,000 | I46: 6 | J46: 0,000 | K46: Mobile | L46: =VLOOKUP(D46,'CATALOGUE SMARTPHONES'!A:C,3,0) ->  | M46: =IFERROR((VLOOKUP(C46,'Baréme Relax'!B:D,3,0)),0) -> 0
A47: SIGHW | B47: 14 août 2017 | C47: PRE10 | D47: offre Pass | E47: 2 | F47: 0,000 | G47: 0 | H47: 0,000 | I47: 2 | J47: 0,000 | K47: Mobile | L47: =VLOOKUP(D47,'CATALOGUE SMARTPHONES'!A:C,3,0) ->  | M47: =IFERROR((VLOOKUP(C47,'Baréme Relax'!B:D,3,0)),0) -> 0
A48: RIGRAIET | B48: 14 août 2017 | C48: P53287 | D48: Clé 3G E3531 é?Offre Pass é? Bonus Internet 3Go - 1 mois | E48: 1 | F48: 0,000 | G48: 0 | H48: 0,000 | I48: 1 | J48: 0,000 | K48: Mobile | L48: =VLOOKUP(D48,'CATALOGUE SMARTPHONES'!A:C,3,0) ->  | M48: =IFERROR((VLOOKUP(C48,'Baréme Relax'!B:D,3,0)),0) -> 0
A49: ABLOUNA | B49: 14 août 2017 | C49: PRE23 | D49: El Jam3ia Mobile | E49: 2 | F49: 0,000 | G49: 0 | H49: 0,000 | I49: 2 | J49: 0,000 | K49: Mobile | L49: =VLOOKUP(D49,'CATALOGUE SMARTPHONES'!A:C,3,0) ->  | M49: =IFERROR((VLOOKUP(C49,'Baréme Relax'!B:D,3,0)),0) -> 0
A50: ABLOUNA | B50: 14 août 2017 | C50: HYB13 | D50: Flybox home | E50: 1 | F50: 0,000 | G50: 0 | H50: 0,000 | I50: 1 | J50: 0,000 | K50: Mobile | L50: =VLOOKUP(D50,'CATALOGUE SMARTPHONES'!A:C,3,0) ->  | M50: =IFERROR((VLOOKUP(C50,'Baréme Relax'!B:D,3,0)),0) -> 0
A51: ABLOUNA | B51: 14 août 2017 | C51: 044004000010 | D51: Recharge Express | E51: 5 | F51: 5,500 | G51: 0 | H51: 0,000 | I51: 5 | J51: 5,500 | K51: Mobile | L51: =VLOOKUP(D51,'CATALOGUE SMARTPHONES'!A:C,3,0) ->  | M51: =IFERROR((VLOOKUP(C51,'Baréme Relax'!B:D,3,0)),0) -> 0
A52: SIGHW | B52: 14 août 2017 | C52: 044004000010 | D52: Recharge Express | E52: 10 | F52: 11,000 | G52: 0 | H52: 0,000 | I52: 10 | J52: 11,000 | K52: Mobile | L52: =VLOOKUP(D52,'CATALOGUE SMARTPHONES'!A:C,3,0) ->  | M52: =IFERROR((VLOOKUP(C52,'Baréme Relax'!B:D,3,0)),0) -> 0
A53: RIGRAIET | B53: 14 août 2017 | C53: 999100001003 | D53: SERVICE TRANSFERT CONTACT | E53: 2 | F53: 6,000 | G53: 0 | H53: 0,000 | I53: 2 | J53: 6,000 | K53: Mobile | L53: =VLOOKUP(D53,'CATALOGUE SMARTPHONES'!A:C,3,0) ->  | M53: =IFERROR((VLOOKUP(C53,'Baréme Relax'!B:D,3,0)),0) -> 2
A54: RIGRAIET | B54: 14 août 2017 | C54: 044004000010 | D54: Recharge Express | E54: 15 | F54: 16,500 | G54: 0 | H54: 0,000 | I54: 15 | J54: 16,500 | K54: Mobile | L54: =VLOOKUP(D54,'CATALOGUE SMARTPHONES'!A:C,3,0) ->  | M54: =IFERROR((VLOOKUP(C54,'Baréme Relax'!B:D,3,0)),0) -> 0
A55: ABLOUNA | B55: 14 août 2017 | C55: PRE21 | D55: Melle5er | E55: 2 | F55: 0,000 | G55: 0 | H55: 0,000 | I55: 2 | J55: 0,000 | K55: Mobile | L55: =VLOOKUP(D55,'CATALOGUE SMARTPHONES'!A:C,3,0) ->  | M55: =IFERROR((VLOOKUP(C55,'Baréme Relax'!B:D,3,0)),0) -> 0
A56: ASLOGHM | B56: 14 août 2017 | C56: PRE17 | D56: 3alami | E56: 1 | F56: 0,000 | G56: 0 | H56: 0,000 | I56: 1 | J56: 0,000 | K56: Mobile | L56: =VLOOKUP(D56,'CATALOGUE SMARTPHONES'!A:C,3,0) ->  | M56: =IFERROR((VLOOKUP(C56,'Baréme Relax'!B:D,3,0)),0) -> 0
A57: RIGRAIET | B57: 14 août 2017 | C57: PRE03 | D57: offre Simply | E57: 1 | F57: 0,000 | G57: 0 | H57: 0,000 | I57: 1 | J57: 0,000 | K57: Mobile | L57: =VLOOKUP(D57,'CATALOGUE SMARTPHONES'!A:C,3,0) ->  | M57: =IFERROR((VLOOKUP(C57,'Baréme Relax'!B:D,3,0)),0) -> 0
A58: SIGHW | B58: 14 août 2017 | C58: 999100001003 | D58: SERVICE TRANSFERT CONTACT | E58: 2 | F58: 6,000 | G58: 0 | H58: 0,000 | I58: 2 | J58: 6,000 | K58: Mobile | L58: =VLOOKUP(D58,'CATALOGUE SMARTPHONES'!A:C,3,0) ->  | M58: =IFERROR((VLOOKUP(C58,'Baréme Relax'!B:D,3,0)),0) -> 2
A59: SIGHW | B59: 14 août 2017 | C59: ADV2 | D59: Avance 2 mois | E59: 1 | F59: 58,000 | G59: 0 | H59: 0,000 | I59: 1 | J59: 58,000 | K59: Mobile | L59: =VLOOKUP(D59,'CATALOGUE SMARTPHONES'!A:C,3,0) ->  | M59: =IFERROR((VLOOKUP(C59,'Baréme Relax'!B:D,3,0)),0) -> 0
A60: RIGRAIET | B60: 14 août 2017 | C60: HYB13 | D60: Flybox home | E60: 1 | F60: 0,000 | G60: 0 | H60: 0,000 | I60: 1 | J60: 0,000 | K60: Mobile | L60: =VLOOKUP(D60,'CATALOGUE SMARTPHONES'!A:C,3,0) ->  | M60: =IFERROR((VLOOKUP(C60,'Baréme Relax'!B:D,3,0)),0) -> 0
A61: RIGRAIET | B61: 14 août 2017 | C61: 044004000010 | D61: Recharge Express | E61: 25 | F61: 27,500 | G61: 0 | H61: 0,000 | I61: 25 | J61: 27,500 | K61: Mobile | L61: =VLOOKUP(D61,'CATALOGUE SMARTPHONES'!A:C,3,0) ->  | M61: =IFERROR((VLOOKUP(C61,'Baréme Relax'!B:D,3,0)),0) -> 0
A62: RIGRAIET | B62: 14 août 2017 | C62: 044004000010 | D62: Recharge Express | E62: 30 | F62: 33,000 | G62: 0 | H62: 0,000 | I62: 30 | J62: 33,000 | K62: Mobile | L62: =VLOOKUP(D62,'CATALOGUE SMARTPHONES'!A:C,3,0) ->  | M62: =IFERROR((VLOOKUP(C62,'Baréme Relax'!B:D,3,0)),0) -> 0
A63: SIGHW | B63: 14 août 2017 | C63: PRE17 | D63: 3alami | E63: 1 | F63: 0,000 | G63: 0 | H63: 0,000 | I63: 1 | J63: 0,000 | K63: Mobile | L63: =VLOOKUP(D63,'CATALOGUE SMARTPHONES'!A:C,3,0) ->  | M63: =IFERROR((VLOOKUP(C63,'Baréme Relax'!B:D,3,0)),0) -> 0
A64: SIGHW | B64: 14 août 2017 | C64: 044004000010 | D64: Recharge Express | E64: 90 | F64: 99,000 | G64: 0 | H64: 0,000 | I64: 90 | J64: 99,000 | K64: Mobile | L64: =VLOOKUP(D64,'CATALOGUE SMARTPHONES'!A:C,3,0) ->  | M64: =IFERROR((VLOOKUP(C64,'Baréme Relax'!B:D,3,0)),0) -> 0
A65: ASLOGHM | B65: 14 août 2017 | C65: P56567 | D65: Pack Sim data - offre Simply 7,5 Go + illimité | E65: 2 | F65: 0,000 | G65: 0 | H65: 0,000 | I65: 2 | J65: 0,000 | K65: Mobile | L65: =VLOOKUP(D65,'CATALOGUE SMARTPHONES'!A:C,3,0) ->  | M65: =IFERROR((VLOOKUP(C65,'Baréme Relax'!B:D,3,0)),0) -> 0
A66: ASLOGHM | B66: 14 août 2017 | C66: 044004000010 | D66: Recharge Express | E66: 9 | F66: 9,900 | G66: 0 | H66: 0,000 | I66: 9 | J66: 9,900 | K66: Mobile | L66: =VLOOKUP(D66,'CATALOGUE SMARTPHONES'!A:C,3,0) ->  | M66: =IFERROR((VLOOKUP(C66,'Baréme Relax'!B:D,3,0)),0) -> 0
A67: ASLOGHM | B67: 14 août 2017 | C67: 084006000285 | D67: CLE USB SANDISK 8GB | E67: 1 | F67: 6,900 | G67: 0 | H67: 0,000 | I67: 1 | J67: 6,900 | K67: Mobile | L67: =VLOOKUP(D67,'CATALOGUE SMARTPHONES'!A:C,3,0) ->  | M67: =IFERROR((VLOOKUP(C67,'Baréme Relax'!B:D,3,0)),0) -> 0
A68: ASLOGHM | B68: 14 août 2017 | C68: 047006000255 | D68: SANGLE PVC PORTABLE | E68: 1 | F68: 2,200 | G68: 0 | H68: 0,000 | I68: 1 | J68: 2,200 | K68: Mobile | L68: =VLOOKUP(D68,'CATALOGUE SMARTPHONES'!A:C,3,0) ->  | M68: =IFERROR((VLOOKUP(C68,'Baréme Relax'!B:D,3,0)),0) -> 0
A69: ABLOUNA | B69: 14 août 2017 | C69: 044004000010 | D69: Recharge Express | E69: 2 | F69: 2,200 | G69: 0 | H69: 0,000 | I69: 2 | J69: 2,200 | K69: Mobile | L69: =VLOOKUP(D69,'CATALOGUE SMARTPHONES'!A:C,3,0) ->  | M69: =IFERROR((VLOOKUP(C69,'Baréme Relax'!B:D,3,0)),0) -> 0
A70: SIGHW | B70: 14 août 2017 | C70: 044004000010 | D70: Recharge Express | E70: 15 | F70: 16,500 | G70: 0 | H70: 0,000 | I70: 15 | J70: 16,500 | K70: Mobile | L70: =VLOOKUP(D70,'CATALOGUE SMARTPHONES'!A:C,3,0) ->  | M70: =IFERROR((VLOOKUP(C70,'Baréme Relax'!B:D,3,0)),0) -> 0
A71: ABLOUNA | B71: 14 août 2017 | C71: 044004000010 | D71: Recharge Express | E71: 15 | F71: 16,500 | G71: 0 | H71: 0,000 | I71: 15 | J71: 16,500 | K71: Mobile | L71: =VLOOKUP(D71,'CATALOGUE SMARTPHONES'!A:C,3,0) ->  | M71: =IFERROR((VLOOKUP(C71,'Baréme Relax'!B:D,3,0)),0) -> 0
A72: RIGRAIET | B72: 14 août 2017 | C72: P60645 | D72: Pack R??engagement Orange TAB 7 _ 4G NOIR - Flybox home - 12 mois | E72: 1 | F72: 0,000 | G72: 0 | H72: 0,000 | I72: 1 | J72: 0,000 | K72: Mobile | L72: =VLOOKUP(D72,'CATALOGUE SMARTPHONES'!A:C,3,0) ->  | M72: =IFERROR((VLOOKUP(C72,'Baréme Relax'!B:D,3,0)),0) -> 0
A73: RIGRAIET | B73: 14 août 2017 | C73: 044004000010 | D73: Recharge Express | E73: 30 | F73: 33,000 | G73: 0 | H73: 0,000 | I73: 30 | J73: 33,000 | K73: Mobile | L73: =VLOOKUP(D73,'CATALOGUE SMARTPHONES'!A:C,3,0) ->  | M73: =IFERROR((VLOOKUP(C73,'Baréme Relax'!B:D,3,0)),0) -> 0
A74: SIGHW | B74: 14 août 2017 | C74: 044004000010 | D74: Recharge Express | E74: 44 | F74: 48,400 | G74: 0 | H74: 0,000 | I74: 44 | J74: 48,400 | K74: Mobile | L74: =VLOOKUP(D74,'CATALOGUE SMARTPHONES'!A:C,3,0) ->  | M74: =IFERROR((VLOOKUP(C74,'Baréme Relax'!B:D,3,0)),0) -> 0
A75: ASLOGHM | B75: 14 août 2017 | C75: PRE13 | D75: Edawa5 | E75: 2 | F75: 0,000 | G75: 0 | H75: 0,000 | I75: 2 | J75: 0,000 | K75: Mobile | L75: =VLOOKUP(D75,'CATALOGUE SMARTPHONES'!A:C,3,0) ->  | M75: =IFERROR((VLOOKUP(C75,'Baréme Relax'!B:D,3,0)),0) -> 0
A76: ASLOGHM | B76: 14 août 2017 | C76: PRE10 | D76: offre Pass | E76: 4 | F76: 0,000 | G76: 0 | H76: 0,000 | I76: 4 | J76: 0,000 | K76: Mobile | L76: =VLOOKUP(D76,'CATALOGUE SMARTPHONES'!A:C,3,0) ->  | M76: =IFERROR((VLOOKUP(C76,'Baréme Relax'!B:D,3,0)),0) -> 0
A77: ASLOGHM | B77: 14 août 2017 | C77: P53327 | D77: Pack - offre Pass | E77: 4 | F77: 0,000 | G77: 0 | H77: 0,000 | I77: 4 | J77: 0,000 | K77: Mobile | L77: =VLOOKUP(D77,'CATALOGUE SMARTPHONES'!A:C,3,0) ->  | M77: =IFERROR((VLOOKUP(C77,'Baréme Relax'!B:D,3,0)),0) -> 0
A78: ASLOGHM | B78: 14 août 2017 | C78: PRE21 | D78: Melle5er | E78: 5 | F78: 0,000 | G78: 0 | H78: 0,000 | I78: 5 | J78: 0,000 | K78: Mobile | L78: =VLOOKUP(D78,'CATALOGUE SMARTPHONES'!A:C,3,0) ->  | M78: =IFERROR((VLOOKUP(C78,'Baréme Relax'!B:D,3,0)),0) -> 0
A79: SIGHW | B79: 14 août 2017 | C79: 044004000010 | D79: Recharge Express | E79: 30 | F79: 33,000 | G79: 0 | H79: 0,000 | I79: 30 | J79: 33,000 | K79: Mobile | L79: =VLOOKUP(D79,'CATALOGUE SMARTPHONES'!A:C,3,0) ->  | M79: =IFERROR((VLOOKUP(C79,'Baréme Relax'!B:D,3,0)),0) -> 0
A80: SIGHW | B80: 14 août 2017 | C80: 044004000010 | D80: Recharge Express | E80: 25 | F80: 27,500 | G80: 0 | H80: 0,000 | I80: 25 | J80: 27,500 | K80: Mobile | L80: =VLOOKUP(D80,'CATALOGUE SMARTPHONES'!A:C,3,0) ->  | M80: =IFERROR((VLOOKUP(C80,'Baréme Relax'!B:D,3,0)),0) -> 0
A81: RIGRAIET | B81: 14 août 2017 | C81: 999100001003 | D81: SERVICE TRANSFERT CONTACT | E81: 2 | F81: 6,000 | G81: 0 | H81: 0,000 | I81: 2 | J81: 6,000 | K81: Mobile | L81: =VLOOKUP(D81,'CATALOGUE SMARTPHONES'!A:C,3,0) ->  | M81: =IFERROR((VLOOKUP(C81,'Baréme Relax'!B:D,3,0)),0) -> 2
A82: SIGHW | B82: 14 août 2017 | C82: P59928 | D82: Pack 2 mois - Flybox MAX - internet + voix | E82: 1 | F82: 0,000 | G82: 0 | H82: 0,000 | I82: 1 | J82: 0,000 | K82: Mobile | L82: =VLOOKUP(D82,'CATALOGUE SMARTPHONES'!A:C,3,0) ->  | M82: =IFERROR((VLOOKUP(C82,'Baréme Relax'!B:D,3,0)),0) -> 0
A83: SIGHW | B83: 14 août 2017 | C83: 044004000010 | D83: Recharge Express | E83: 40 | F83: 44,000 | G83: 0 | H83: 0,000 | I83: 40 | J83: 44,000 | K83: Mobile | L83: =VLOOKUP(D83,'CATALOGUE SMARTPHONES'!A:C,3,0) ->  | M83: =IFERROR((VLOOKUP(C83,'Baréme Relax'!B:D,3,0)),0) -> 0
A84: SIGHW | B84: 14 août 2017 | C84: P53327 | D84: Pack - offre Pass | E84: 2 | F84: 0,000 | G84: 0 | H84: 0,000 | I84: 2 | J84: 0,000 | K84: Mobile | L84: =VLOOKUP(D84,'CATALOGUE SMARTPHONES'!A:C,3,0) ->  | M84: =IFERROR((VLOOKUP(C84,'Baréme Relax'!B:D,3,0)),0) -> 0
A85: ABLOUNA | B85: 14 août 2017 | C85: 044004000010 | D85: Recharge Express | E85: 30 | F85: 33,000 | G85: 0 | H85: 0,000 | I85: 30 | J85: 33,000 | K85: Mobile | L85: =VLOOKUP(D85,'CATALOGUE SMARTPHONES'!A:C,3,0) ->  | M85: =IFERROR((VLOOKUP(C85,'Baréme Relax'!B:D,3,0)),0) -> 0
A86: ASLOGHM | B86: 14 août 2017 | C86: 044004000010 | D86: Recharge Express | E86: 30 | F86: 33,000 | G86: 0 | H86: 0,000 | I86: 30 | J86: 33,000 | K86: Mobile | L86: =VLOOKUP(D86,'CATALOGUE SMARTPHONES'!A:C,3,0) ->  | M86: =IFERROR((VLOOKUP(C86,'Baréme Relax'!B:D,3,0)),0) -> 0
A87: SIGHW | B87: 14 août 2017 | C87: PRE03 | D87: offre Simply | E87: 1 | F87: 0,000 | G87: 0 | H87: 0,000 | I87: 1 | J87: 0,000 | K87: Mobile | L87: =VLOOKUP(D87,'CATALOGUE SMARTPHONES'!A:C,3,0) ->  | M87: =IFERROR((VLOOKUP(C87,'Baréme Relax'!B:D,3,0)),0) -> 0
A88: SIGHW | B88: 14 août 2017 | C88: P56567 | D88: Pack Sim data - offre Simply 7,5 Go + illimité | E88: 1 | F88: 0,000 | G88: 0 | H88: 0,000 | I88: 1 | J88: 0,000 | K88: Mobile | L88: =VLOOKUP(D88,'CATALOGUE SMARTPHONES'!A:C,3,0) ->  | M88: =IFERROR((VLOOKUP(C88,'Baréme Relax'!B:D,3,0)),0) -> 0
A89: ASLOGHM | B89: 14 août 2017 | C89: PRE03 | D89: offre Simply | E89: 2 | F89: 0,000 | G89: 0 | H89: 0,000 | I89: 2 | J89: 0,000 | K89: Mobile | L89: =VLOOKUP(D89,'CATALOGUE SMARTPHONES'!A:C,3,0) ->  | M89: =IFERROR((VLOOKUP(C89,'Baréme Relax'!B:D,3,0)),0) -> 0
A90: RIGRAIET | B90: 14 août 2017 | C90: PRE13 | D90: Edawa5 | E90: 1 | F90: 0,000 | G90: 0 | H90: 0,000 | I90: 1 | J90: 0,000 | K90: Mobile | L90: =VLOOKUP(D90,'CATALOGUE SMARTPHONES'!A:C,3,0) ->  | M90: =IFERROR((VLOOKUP(C90,'Baréme Relax'!B:D,3,0)),0) -> 0
A91: RIGRAIET | B91: 14 août 2017 | C91: P53327 | D91: Pack - offre Pass | E91: 3 | F91: 0,000 | G91: 0 | H91: 0,000 | I91: 3 | J91: 0,000 | K91: Mobile | L91: =VLOOKUP(D91,'CATALOGUE SMARTPHONES'!A:C,3,0) ->  | M91: =IFERROR((VLOOKUP(C91,'Baréme Relax'!B:D,3,0)),0) -> 0
A92: SIGHW | B92: 14 août 2017 | C92: PRE21 | D92: Melle5er | E92: 5 | F92: 0,000 | G92: 0 | H92: 0,000 | I92: 5 | J92: 0,000 | K92: Mobile | L92: =VLOOKUP(D92,'CATALOGUE SMARTPHONES'!A:C,3,0) ->  | M92: =IFERROR((VLOOKUP(C92,'Baréme Relax'!B:D,3,0)),0) -> 0
A93: RIGRAIET | B93: 14 août 2017 | C93: P50759 | D93: Pack Clé 4G - Offre Pass - Bonus internet 5 Go- 2 mois | E93: 1 | F93: 0,000 | G93: 0 | H93: 0,000 | I93: 1 | J93: 0,000 | K93: Mobile | L93: =VLOOKUP(D93,'CATALOGUE SMARTPHONES'!A:C,3,0) ->  | M93: =IFERROR((VLOOKUP(C93,'Baréme Relax'!B:D,3,0)),0) -> 0
A94: RIGRAIET | B94: 14 août 2017 | C94: 044004000010 | D94: Recharge Express | E94: 24 | F94: 26,400 | G94: 0 | H94: 0,000 | I94: 24 | J94: 26,400 | K94: Mobile | L94: =VLOOKUP(D94,'CATALOGUE SMARTPHONES'!A:C,3,0) ->  | M94: =IFERROR((VLOOKUP(C94,'Baréme Relax'!B:D,3,0)),0) -> 0
A95: SIGHW | B95: 14 août 2017 | C95: 044004000010 | D95: Recharge Express | E95: 18 | F95: 19,800 | G95: 0 | H95: 0,000 | I95: 18 | J95: 19,800 | K95: Mobile | L95: =VLOOKUP(D95,'CATALOGUE SMARTPHONES'!A:C,3,0) ->  | M95: =IFERROR((VLOOKUP(C95,'Baréme Relax'!B:D,3,0)),0) -> 0
A96: ABLOUNA | B96: 14 août 2017 | C96: 044004000010 | D96: Recharge Express | E96: 24 | F96: 26,400 | G96: 0 | H96: 0,000 | I96: 24 | J96: 26,400 | K96: Mobile | L96: =VLOOKUP(D96,'CATALOGUE SMARTPHONES'!A:C,3,0) ->  | M96: =IFERROR((VLOOKUP(C96,'Baréme Relax'!B:D,3,0)),0) -> 0
A97: ABLOUNA | B97: 14 août 2017 | C97: 044004000010 | D97: Recharge Express | E97: 30 | F97: 33,000 | G97: 0 | H97: 0,000 | I97: 30 | J97: 33,000 | K97: Mobile | L97: =VLOOKUP(D97,'CATALOGUE SMARTPHONES'!A:C,3,0) ->  | M97: =IFERROR((VLOOKUP(C97,'Baréme Relax'!B:D,3,0)),0) -> 0
A98: ABLOUNA | B98: 14 août 2017 | C98: P50371 | D98: Pack FLYBOX B310 - FLYBOX B310-CARTE SIM 4G FLYBOX-Flybox home - 24 mois | E98: 1 | F98: 0,000 | G98: 0 | H98: 0,000 | I98: 1 | J98: 0,000 | K98: Mobile | L98: =VLOOKUP(D98,'CATALOGUE SMARTPHONES'!A:C,3,0) ->  | M98: =IFERROR((VLOOKUP(C98,'Baréme Relax'!B:D,3,0)),0) -> 0
A99: SIGHW | B99: 14 août 2017 | C99: 044004000010 | D99: Recharge Express | E99: 2 | F99: 2,200 | G99: 0 | H99: 0,000 | I99: 2 | J99: 2,200 | K99: Mobile | L99: =VLOOKUP(D99,'CATALOGUE SMARTPHONES'!A:C,3,0) ->  | M99: =IFERROR((VLOOKUP(C99,'Baréme Relax'!B:D,3,0)),0) -> 0
A100: SIGHW | B100: 14 août 2017 | C100: HYB35 | D100: Flybox MAX | E100: 1 | F100: 0,000 | G100: 0 | H100: 0,000 | I100: 1 | J100: 0,000 | K100: Mobile | L100: =VLOOKUP(D100,'CATALOGUE SMARTPHONES'!A:C,3,0) ->  | M100: =IFERROR((VLOOKUP(C100,'Baréme Relax'!B:D,3,0)),0) -> 0
A101: RIGRAIET | B101: 14 août 2017 | C101: 044004000010 | D101: Recharge Express | E101: 12 | F101: 13,200 | G101: 0 | H101: 0,000 | I101: 12 | J101: 13,200 | K101: Mobile | L101: =VLOOKUP(D101,'CATALOGUE SMARTPHONES'!A:C,3,0) ->  | M101: =IFERROR((VLOOKUP(C101,'Baréme Relax'!B:D,3,0)),0) -> 0
A102: SIGHW | B102: 14 août 2017 | C102: 044004000010 | D102: Recharge Express | E102: 24 | F102: 26,400 | G102: 0 | H102: 0,000 | I102: 24 | J102: 26,400 | K102: Mobile | L102: =VLOOKUP(D102,'CATALOGUE SMARTPHONES'!A:C,3,0) ->  | M102: =IFERROR((VLOOKUP(C102,'Baréme Relax'!B:D,3,0)),0) -> 0
A103: RIGRAIET | B103: 14 août 2017 | C103: P56567 | D103: Pack Sim data - offre Simply 7,5 Go + illimité | E103: 1 | F103: 0,000 | G103: 0 | H103: 0,000 | I103: 1 | J103: 0,000 | K103: Mobile | L103: =VLOOKUP(D103,'CATALOGUE SMARTPHONES'!A:C,3,0) ->  | M103: =IFERROR((VLOOKUP(C103,'Baréme Relax'!B:D,3,0)),0) -> 0
A104: SIGHW | B104: 14 août 2017 | C104: 043007000004 | D104: CARTE SIM 4G DATA MULTI SIM | E104: 2 | F104: 10,000 | G104: 0 | H104: 0,000 | I104: 2 | J104: 10,000 | K104: Mobile | L104: =VLOOKUP(D104,'CATALOGUE SMARTPHONES'!A:C,3,0) ->  | M104: =IFERROR((VLOOKUP(C104,'Baréme Relax'!B:D,3,0)),0) -> 0
A105: SIGHW | B105: 14 août 2017 | C105: 043006000003 | D105: CARTE SIM 4G PRE MULTI SIM | E105: 5 | F105: 0,000 | G105: 0 | H105: 0,000 | I105: 5 | J105: 0,000 | K105: Mobile | L105: =VLOOKUP(D105,'CATALOGUE SMARTPHONES'!A:C,3,0) ->  | M105: =IFERROR((VLOOKUP(C105,'Baréme Relax'!B:D,3,0)),0) -> 0
A106: ABLOUNA | B106: 14 août 2017 | C106: 085001000011 | D106: FLYBOX B310 | E106: 1 | F106: 0,000 | G106: 0 | H106: 0,000 | I106: 1 | J106: 0,000 | K106: Mobile | L106: =VLOOKUP(D106,'CATALOGUE SMARTPHONES'!A:C,3,0) ->  | M106: =IFERROR((VLOOKUP(C106,'Baréme Relax'!B:D,3,0)),0) -> 0
A107: RIGRAIET | B107: 14 août 2017 | C107: 079001000057 | D107: Orange TAB 7 - 4G NOIR | E107: 1 | F107: 69,000 | G107: 0 | H107: 0,000 | I107: 1 | J107: 69,000 | K107: Mobile | L107: =VLOOKUP(D107,'CATALOGUE SMARTPHONES'!A:C,3,0) ->  | M107: =IFERROR((VLOOKUP(C107,'Baréme Relax'!B:D,3,0)),0) -> 0
A108: ASLOGHM | B108: 14 août 2017 | C108: 043007000004 | D108: CARTE SIM 4G DATA MULTI SIM | E108: 2 | F108: 60,000 | G108: 0 | H108: 0,000 | I108: 2 | J108: 60,000 | K108: Mobile | L108: =VLOOKUP(D108,'CATALOGUE SMARTPHONES'!A:C,3,0) ->  | M108: =IFERROR((VLOOKUP(C108,'Baréme Relax'!B:D,3,0)),0) -> 0
A109: ASLOGHM | B109: 14 août 2017 | C109: 043006000003 | D109: CARTE SIM 4G PRE MULTI SIM | E109: 7 | F109: 0,000 | G109: 0 | H109: 0,000 | I109: 7 | J109: 0,000 | K109: Mobile | L109: =VLOOKUP(D109,'CATALOGUE SMARTPHONES'!A:C,3,0) ->  | M109: =IFERROR((VLOOKUP(C109,'Baréme Relax'!B:D,3,0)),0) -> 0
A110: ASLOGHM | B110: 14 août 2017 | C110: 043007000004 | D110: CARTE SIM 4G DATA MULTI SIM | E110: 4 | F110: 20,000 | G110: 0 | H110: 0,000 | I110: 4 | J110: 20,000 | K110: Mobile | L110: =VLOOKUP(D110,'CATALOGUE SMARTPHONES'!A:C,3,0) ->  | M110: =IFERROR((VLOOKUP(C110,'Baréme Relax'!B:D,3,0)),0) -> 0
A111: RIGRAIET | B111: 14 août 2017 | C111: 043006000003 | D111: CARTE SIM 4G PRE MULTI SIM | E111: 8 | F111: 0,000 | G111: 0 | H111: 0,000 | I111: 8 | J111: 0,000 | K111: Mobile | L111: =VLOOKUP(D111,'CATALOGUE SMARTPHONES'!A:C,3,0) ->  | M111: =IFERROR((VLOOKUP(C111,'Baréme Relax'!B:D,3,0)),0) -> 0
A112: RIGRAIET | B112: 14 août 2017 | C112: 043006000003 | D112: CARTE SIM 4G PRE MULTI SIM | E112: 1 | F112: 3,000 | G112: 0 | H112: 0,000 | I112: 1 | J112: 3,000 | K112: Mobile | L112: =VLOOKUP(D112,'CATALOGUE SMARTPHONES'!A:C,3,0) ->  | M112: =IFERROR((VLOOKUP(C112,'Baréme Relax'!B:D,3,0)),0) -> 0
A113: RIGRAIET | B113: 14 août 2017 | C113: 083025001002 | D113: SERVICOM EASY 3 WHTE BLCK | E113: 1 | F113: 39,900 | G113: 0 | H113: 0,000 | I113: 1 | J113: 39,900 | K113: Mobile | L113: =VLOOKUP(D113,'CATALOGUE SMARTPHONES'!A:C,3,0) ->  | M113: =IFERROR((VLOOKUP(C113,'Baréme Relax'!B:D,3,0)),0) -> 0
A114: RIGRAIET | B114: 14 août 2017 | C114: 043007000004 | D114: CARTE SIM 4G DATA MULTI SIM | E114: 1 | F114: 30,000 | G114: 0 | H114: 0,000 | I114: 1 | J114: 30,000 | K114: Mobile | L114: =VLOOKUP(D114,'CATALOGUE SMARTPHONES'!A:C,3,0) ->  | M114: =IFERROR((VLOOKUP(C114,'Baréme Relax'!B:D,3,0)),0) -> 0
A115: ASLOGHM | B115: 14 août 2017 | C115: 043006000003 | D115: CARTE SIM 4G PRE MULTI SIM | E115: 1 | F115: 3,000 | G115: 0 | H115: 0,000 | I115: 1 | J115: 3,000 | K115: Mobile | L115: =VLOOKUP(D115,'CATALOGUE SMARTPHONES'!A:C,3,0) ->  | M115: =IFERROR((VLOOKUP(C115,'Baréme Relax'!B:D,3,0)),0) -> 0
A116: ABLOUNA | B116: 14 août 2017 | C116: 043006000003 | D116: CARTE SIM 4G PRE MULTI SIM | E116: 1 | F116: 5,000 | G116: 0 | H116: 0,000 | I116: 1 | J116: 5,000 | K116: Mobile | L116: =VLOOKUP(D116,'CATALOGUE SMARTPHONES'!A:C,3,0) ->  | M116: =IFERROR((VLOOKUP(C116,'Baréme Relax'!B:D,3,0)),0) -> 0
A117: RIGRAIET | B117: 14 août 2017 | C117: 043006000003 | D117: CARTE SIM 4G PRE MULTI SIM | E117: 4 | F117: 20,000 | G117: 0 | H117: 0,000 | I117: 4 | J117: 20,000 | K117: Mobile | L117: =VLOOKUP(D117,'CATALOGUE SMARTPHONES'!A:C,3,0) ->  | M117: =IFERROR((VLOOKUP(C117,'Baréme Relax'!B:D,3,0)),0) -> 0
A118: SIGHW | B118: 14 août 2017 | C118: 043007000004 | D118: CARTE SIM 4G DATA MULTI SIM | E118: 1 | F118: 30,000 | G118: 0 | H118: 0,000 | I118: 1 | J118: 30,000 | K118: Mobile | L118: =VLOOKUP(D118,'CATALOGUE SMARTPHONES'!A:C,3,0) ->  | M118: =IFERROR((VLOOKUP(C118,'Baréme Relax'!B:D,3,0)),0) -> 0
A119: ABLOUNA | B119: 14 août 2017 | C119: 043008000001 | D119: CARTE SIM 4G FLYBOX | E119: 1 | F119: 0,000 | G119: 0 | H119: 0,000 | I119: 1 | J119: 0,000 | K119: Mobile | L119: =VLOOKUP(D119,'CATALOGUE SMARTPHONES'!A:C,3,0) ->  | M119: =IFERROR((VLOOKUP(C119,'Baréme Relax'!B:D,3,0)),0) -> 0
A120: SIGHW | B120: 14 août 2017 | C120: 043006000003 | D120: CARTE SIM 4G PRE MULTI SIM | E120: 3 | F120: 9,000 | G120: 0 | H120: 0,000 | I120: 3 | J120: 9,000 | K120: Mobile | L120: =VLOOKUP(D120,'CATALOGUE SMARTPHONES'!A:C,3,0) ->  | M120: =IFERROR((VLOOKUP(C120,'Baréme Relax'!B:D,3,0)),0) -> 0
A121: ABLOUNA | B121: 14 août 2017 | C121: 043006000003 | D121: CARTE SIM 4G PRE MULTI SIM | E121: 1 | F121: 0,000 | G121: 0 | H121: 0,000 | I121: 1 | J121: 0,000 | K121: Mobile | L121: =VLOOKUP(D121,'CATALOGUE SMARTPHONES'!A:C,3,0) ->  | M121: =IFERROR((VLOOKUP(C121,'Baréme Relax'!B:D,3,0)),0) -> 0
A122: RIGRAIET | B122: 14 août 2017 | C122: 046002000041 | D122: CLE 4G E3372H | E122: 1 | F122: 0,000 | G122: 0 | H122: 0,000 | I122: 1 | J122: 0,000 | K122: Mobile | L122: =VLOOKUP(D122,'CATALOGUE SMARTPHONES'!A:C,3,0) ->  | M122: =IFERROR((VLOOKUP(C122,'Baréme Relax'!B:D,3,0)),0) -> 0
A123: SIGHW | B123: 14 août 2017 | C123: 043006000003 | D123: CARTE SIM 4G PRE MULTI SIM | E123: 3 | F123: 15,000 | G123: 0 | H123: 0,000 | I123: 3 | J123: 15,000 | K123: Mobile | L123: =VLOOKUP(D123,'CATALOGUE SMARTPHONES'!A:C,3,0) ->  | M123: =IFERROR((VLOOKUP(C123,'Baréme Relax'!B:D,3,0)),0) -> 0
A124: RIGRAIET | B124: 14 août 2017 | C124: 085001000011 | D124: FLYBOX B310 | E124: 1 | F124: 0,000 | G124: 0 | H124: 0,000 | I124: 1 | J124: 0,000 | K124: Mobile | L124: =VLOOKUP(D124,'CATALOGUE SMARTPHONES'!A:C,3,0) ->  | M124: =IFERROR((VLOOKUP(C124,'Baréme Relax'!B:D,3,0)),0) -> 0
A125: RIGRAIET | B125: 14 août 2017 | C125: 046002000034 | D125: CLE 3G E3531 | E125: 1 | F125: 0,000 | G125: 0 | H125: 0,000 | I125: 1 | J125: 0,000 | K125: Mobile | L125: =VLOOKUP(D125,'CATALOGUE SMARTPHONES'!A:C,3,0) ->  | M125: =IFERROR((VLOOKUP(C125,'Baréme Relax'!B:D,3,0)),0) -> 0
A126: SIGHW | B126: 14 août 2017 | C126: 085001000011 | D126: FLYBOX B310 | E126: 1 | F126: 0,000 | G126: 0 | H126: 0,000 | I126: 1 | J126: 0,000 | K126: Mobile | L126: =VLOOKUP(D126,'CATALOGUE SMARTPHONES'!A:C,3,0) ->  | M126: =IFERROR((VLOOKUP(C126,'Baréme Relax'!B:D,3,0)),0) -> 0
A127: RIGRAIET | B127: 14 août 2017 | C127: 188003000016 | D127: Modem Huawei HG532 | E127: 1 | F127: 0,000 | G127: 0 | H127: 0,000 | I127: 1 | J127: 0,000 | K127: ADSL | L127: =VLOOKUP(D127,'CATALOGUE SMARTPHONES'!A:C,3,0) ->  | M127: =IFERROR((VLOOKUP(C127,'Baréme Relax'!B:D,3,0)),0) -> 0
A128: ABLOUNA | B128: 14 août 2017 | C128: 043001000114 | D128: CARTE PREACTIVEE VD | E128: 2 | F128: 6,000 | G128: 0 | H128: 0,000 | I128: 2 | J128: 6,000 | K128: Mobile | L128: =VLOOKUP(D128,'CATALOGUE SMARTPHONES'!A:C,3,0) ->  | M128: =IFERROR((VLOOKUP(C128,'Baréme Relax'!B:D,3,0)),0) -> 0
A129: ABLOUNA | B129: 14 août 2017 | C129: 045022002001 | D129: ORANGE IT 2110 | E129: 1 | F129: 32,000 | G129: 0 | H129: 0,000 | I129: 1 | J129: 32,000 | K129: Mobile | L129: =VLOOKUP(D129,'CATALOGUE SMARTPHONES'!A:C,3,0) ->  | M129: =IFERROR((VLOOKUP(C129,'Baréme Relax'!B:D,3,0)),0) -> 0
A130: ASLOGHM | B130: 14 août 2017 | C130: 043006000003 | D130: CARTE SIM 4G PRE MULTI SIM | E130: 1 | F130: 5,000 | G130: 0 | H130: 0,000 | I130: 1 | J130: 5,000 | K130: Mobile | L130: =VLOOKUP(D130,'CATALOGUE SMARTPHONES'!A:C,3,0) ->  | M130: =IFERROR((VLOOKUP(C130,'Baréme Relax'!B:D,3,0)),0) -> 0
A131: RIGRAIET | B131: 14 août 2017 | C131: 043007000004 | D131: CARTE SIM 4G DATA MULTI SIM | E131: 1 | F131: 40,000 | G131: 0 | H131: 0,000 | I131: 1 | J131: 40,000 | K131: Mobile | L131: =VLOOKUP(D131,'CATALOGUE SMARTPHONES'!A:C,3,0) ->  | M131: =IFERROR((VLOOKUP(C131,'Baréme Relax'!B:D,3,0)),0) -> 0
A132: RIGRAIET | B132: 14 août 2017 | C132: 043007000004 | D132: CARTE SIM 4G DATA MULTI SIM | E132: 3 | F132: 15,000 | G132: 0 | H132: 0,000 | I132: 3 | J132: 15,000 | K132: Mobile | L132: =VLOOKUP(D132,'CATALOGUE SMARTPHONES'!A:C,3,0) ->  | M132: =IFERROR((VLOOKUP(C132,'Baréme Relax'!B:D,3,0)),0) -> 0
A133: RIGRAIET | B133: 14 août 2017 | C133: 043007000004 | D133: CARTE SIM 4G DATA MULTI SIM | E133: 1 | F133: 14,000 | G133: 0 | H133: 0,000 | I133: 1 | J133: 14,000 | K133: Mobile | L133: =VLOOKUP(D133,'CATALOGUE SMARTPHONES'!A:C,3,0) ->  | M133: =IFERROR((VLOOKUP(C133,'Baréme Relax'!B:D,3,0)),0) -> 0
A134: RIGRAIET | B134: 14 août 2017 | C134: 043008000001 | D134: CARTE SIM 4G FLYBOX | E134: 1 | F134: 0,000 | G134: 0 | H134: 0,000 | I134: 1 | J134: 0,000 | K134: Mobile | L134: =VLOOKUP(D134,'CATALOGUE SMARTPHONES'!A:C,3,0) ->  | M134: =IFERROR((VLOOKUP(C134,'Baréme Relax'!B:D,3,0)),0) -> 0
A135: SIGHW | B135: 14 août 2017 | C135: 043008000001 | D135: CARTE SIM 4G FLYBOX | E135: 3 | F135: 0,000 | G135: 0 | H135: 0,000 | I135: 3 | J135: 0,000 | K135: Mobile | L135: =VLOOKUP(D135,'CATALOGUE SMARTPHONES'!A:C,3,0) ->  | M135: =IFERROR((VLOOKUP(C135,'Baréme Relax'!B:D,3,0)),0) -> 0
A136: ABLOUNA | B136: 12 août 2017 | C136: PRE10 | D136: offre Pass | E136: 1 | F136: 0,000 | G136: 0 | H136: 0,000 | I136: 1 | J136: 0,000 | K136: Mobile | L136: =VLOOKUP(D136,'CATALOGUE SMARTPHONES'!A:C,3,0) ->  | M136: =IFERROR((VLOOKUP(C136,'Baréme Relax'!B:D,3,0)),0) -> 0
A137: ABLOUNA | B137: 12 août 2017 | C137: P56567 | D137: Pack Sim data - offre Simply 7,5 Go + illimité | E137: 1 | F137: 0,000 | G137: 0 | H137: 0,000 | I137: 1 | J137: 0,000 | K137: Mobile | L137: =VLOOKUP(D137,'CATALOGUE SMARTPHONES'!A:C,3,0) ->  | M137: =IFERROR((VLOOKUP(C137,'Baréme Relax'!B:D,3,0)),0) -> 0
A138: SIGHW | B138: 12 août 2017 | C138: 044004000010 | D138: Recharge Express | E138: 24 | F138: 26,400 | G138: 0 | H138: 0,000 | I138: 24 | J138: 26,400 | K138: Mobile | L138: =VLOOKUP(D138,'CATALOGUE SMARTPHONES'!A:C,3,0) ->  | M138: =IFERROR((VLOOKUP(C138,'Baréme Relax'!B:D,3,0)),0) -> 0
A139: ABLOUNA | B139: 12 août 2017 | C139: P60702 | D139: Pack HUAWEI GR5 2017 GOLD - forfait optima 50 - 12 mois - Avance 2 mois | E139: 1 | F139: 0,000 | G139: 0 | H139: 0,000 | I139: 1 | J139: 0,000 | K139: Mobile | L139: =VLOOKUP(D139,'CATALOGUE SMARTPHONES'!A:C,3,0) ->  | M139: =IFERROR((VLOOKUP(C139,'Baréme Relax'!B:D,3,0)),0) -> 0
A140: RIGRAIET | B140: 12 août 2017 | C140: P53327 | D140: Pack - offre Pass | E140: 1 | F140: 0,000 | G140: 0 | H140: 0,000 | I140: 1 | J140: 0,000 | K140: Mobile | L140: =VLOOKUP(D140,'CATALOGUE SMARTPHONES'!A:C,3,0) ->  | M140: =IFERROR((VLOOKUP(C140,'Baréme Relax'!B:D,3,0)),0) -> 0
A141: ABLOUNA | B141: 12 août 2017 | C141: 044004000010 | D141: Recharge Express | E141: 18 | F141: 19,800 | G141: 0 | H141: 0,000 | I141: 18 | J141: 19,800 | K141: Mobile | L141: =VLOOKUP(D141,'CATALOGUE SMARTPHONES'!A:C,3,0) ->  | M141: =IFERROR((VLOOKUP(C141,'Baréme Relax'!B:D,3,0)),0) -> 0
A142: SIGHW | B142: 12 août 2017 | C142: PRE10 | D142: offre Pass | E142: 4 | F142: 0,000 | G142: 0 | H142: 0,000 | I142: 4 | J142: 0,000 | K142: Mobile | L142: =VLOOKUP(D142,'CATALOGUE SMARTPHONES'!A:C,3,0) ->  | M142: =IFERROR((VLOOKUP(C142,'Baréme Relax'!B:D,3,0)),0) -> 0
A143: RIGRAIET | B143: 12 août 2017 | C143: ADV2 | D143: Avance 2 mois | E143: 1 | F143: 58,000 | G143: 0 | H143: 0,000 | I143: 1 | J143: 58,000 | K143: Mobile | L143: =VLOOKUP(D143,'CATALOGUE SMARTPHONES'!A:C,3,0) ->  | M143: =IFERROR((VLOOKUP(C143,'Baréme Relax'!B:D,3,0)),0) -> 0
A144: ABLOUNA | B144: 12 août 2017 | C144: PRE21 | D144: Melle5er | E144: 4 | F144: 0,000 | G144: 0 | H144: 0,000 | I144: 4 | J144: 0,000 | K144: Mobile | L144: =VLOOKUP(D144,'CATALOGUE SMARTPHONES'!A:C,3,0) ->  | M144: =IFERROR((VLOOKUP(C144,'Baréme Relax'!B:D,3,0)),0) -> 0
A145: RIGRAIET | B145: 12 août 2017 | C145: 044004000010 | D145: Recharge Express | E145: 50 | F145: 55,000 | G145: 0 | H145: 0,000 | I145: 50 | J145: 55,000 | K145: Mobile | L145: =VLOOKUP(D145,'CATALOGUE SMARTPHONES'!A:C,3,0) ->  | M145: =IFERROR((VLOOKUP(C145,'Baréme Relax'!B:D,3,0)),0) -> 0
A146: RIGRAIET | B146: 12 août 2017 | C146: PRE10 | D146: offre Pass | E146: 1 | F146: 0,000 | G146: 0 | H146: 0,000 | I146: 1 | J146: 0,000 | K146: Mobile | L146: =VLOOKUP(D146,'CATALOGUE SMARTPHONES'!A:C,3,0) ->  | M146: =IFERROR((VLOOKUP(C146,'Baréme Relax'!B:D,3,0)),0) -> 0
A147: RIGRAIET | B147: 12 août 2017 | C147: 044004000010 | D147: Recharge Express | E147: 2 | F147: 2,200 | G147: 0 | H147: 0,000 | I147: 2 | J147: 2,200 | K147: Mobile | L147: =VLOOKUP(D147,'CATALOGUE SMARTPHONES'!A:C,3,0) ->  | M147: =IFERROR((VLOOKUP(C147,'Baréme Relax'!B:D,3,0)),0) -> 0
A148: ASLOGHM | B148: 12 août 2017 | C148: 044004000010 | D148: Recharge Express | E148: 30 | F148: 33,000 | G148: 0 | H148: 0,000 | I148: 30 | J148: 33,000 | K148: Mobile | L148: =VLOOKUP(D148,'CATALOGUE SMARTPHONES'!A:C,3,0) ->  | M148: =IFERROR((VLOOKUP(C148,'Baréme Relax'!B:D,3,0)),0) -> 0
A149: RIGRAIET | B149: 12 août 2017 | C149: 044004000010 | D149: Recharge Express | E149: 25 | F149: 27,500 | G149: 0 | H149: 0,000 | I149: 25 | J149: 27,500 | K149: Mobile | L149: =VLOOKUP(D149,'CATALOGUE SMARTPHONES'!A:C,3,0) ->  | M149: =IFERROR((VLOOKUP(C149,'Baréme Relax'!B:D,3,0)),0) -> 0
A150: RIGRAIET | B150: 12 août 2017 | C150: HYB30 | D150: forfait mix 20 | E150: 1 | F150: 0,000 | G150: 0 | H150: 0,000 | I150: 1 | J150: 0,000 | K150: Mobile | L150: =VLOOKUP(D150,'CATALOGUE SMARTPHONES'!A:C,3,0) ->  | M150: =IFERROR((VLOOKUP(C150,'Baréme Relax'!B:D,3,0)),0) -> 0
A151: ABLOUNA | B151: 12 août 2017 | C151: P60712 | D151: Pack R??engagement HUAWEI GR5 2017 SILVER - forfait optima 50 - 12 mois | E151: 1 | F151: 0,000 | G151: 0 | H151: 0,000 | I151: 1 | J151: 0,000 | K151: Mobile | L151: =VLOOKUP(D151,'CATALOGUE SMARTPHONES'!A:C,3,0) ->  | M151: =IFERROR((VLOOKUP(C151,'Baréme Relax'!B:D,3,0)),0) -> 0
A152: SIGHW | B152: 12 août 2017 | C152: 044004000010 | D152: Recharge Express | E152: 2 | F152: 2,200 | G152: 0 | H152: 0,000 | I152: 2 | J152: 2,200 | K152: Mobile | L152: =VLOOKUP(D152,'CATALOGUE SMARTPHONES'!A:C,3,0) ->  | M152: =IFERROR((VLOOKUP(C152,'Baréme Relax'!B:D,3,0)),0) -> 0
A153: SIGHW | B153: 12 août 2017 | C153: P61147 | D153: Pack AIRBOX 4G MW40 - offre Simply - bonus internet 7,5Go + illimit?? | E153: 1 | F153: 0,000 | G153: 0 | H153: 0,000 | I153: 1 | J153: 0,000 | K153: Mobile | L153: =VLOOKUP(D153,'CATALOGUE SMARTPHONES'!A:C,3,0) ->  | M153: =IFERROR((VLOOKUP(C153,'Baréme Relax'!B:D,3,0)),0) -> 0
A154: RIGRAIET | B154: 12 août 2017 | C154: PRE21 | D154: Melle5er | E154: 5 | F154: 0,000 | G154: 0 | H154: 0,000 | I154: 5 | J154: 0,000 | K154: Mobile | L154: =VLOOKUP(D154,'CATALOGUE SMARTPHONES'!A:C,3,0) ->  | M154: =IFERROR((VLOOKUP(C154,'Baréme Relax'!B:D,3,0)),0) -> 0
A155: ABLOUNA | B155: 12 août 2017 | C155: POS01 | D155: forfait optima 50 | E155: 2 | F155: 0,000 | G155: 0 | H155: 0,000 | I155: 2 | J155: 0,000 | K155: Mobile | L155: =VLOOKUP(D155,'CATALOGUE SMARTPHONES'!A:C,3,0) ->  | M155: =IFERROR((VLOOKUP(C155,'Baréme Relax'!B:D,3,0)),0) -> 0
A156: SIGHW | B156: 12 août 2017 | C156: P4048 | D156: Pack Réengagement - forfait mix 15 - injection 1 Go - 12 mois | E156: 1 | F156: 0,000 | G156: 0 | H156: 0,000 | I156: 1 | J156: 0,000 | K156: Mobile | L156: =VLOOKUP(D156,'CATALOGUE SMARTPHONES'!A:C,3,0) ->  | M156: =IFERROR((VLOOKUP(C156,'Baréme Relax'!B:D,3,0)),0) -> 0
A157: ABLOUNA | B157: 12 août 2017 | C157: HYB35 | D157: Flybox MAX | E157: 1 | F157: 0,000 | G157: 0 | H157: 0,000 | I157: 1 | J157: 0,000 | K157: Mobile | L157: =VLOOKUP(D157,'CATALOGUE SMARTPHONES'!A:C,3,0) ->  | M157: =IFERROR((VLOOKUP(C157,'Baréme Relax'!B:D,3,0)),0) -> 0
A158: SIGHW | B158: 12 août 2017 | C158: 044004000010 | D158: Recharge Express | E158: 20 | F158: 22,000 | G158: 0 | H158: 0,000 | I158: 20 | J158: 22,000 | K158: Mobile | L158: =VLOOKUP(D158,'CATALOGUE SMARTPHONES'!A:C,3,0) ->  | M158: =IFERROR((VLOOKUP(C158,'Baréme Relax'!B:D,3,0)),0) -> 0
A159: SIGHW | B159: 12 août 2017 | C159: 044004000010 | D159: Recharge Express | E159: 20 | F159: 22,000 | G159: 0 | H159: 0,000 | I159: 20 | J159: 22,000 | K159: Mobile | L159: =VLOOKUP(D159,'CATALOGUE SMARTPHONES'!A:C,3,0) ->  | M159: =IFERROR((VLOOKUP(C159,'Baréme Relax'!B:D,3,0)),0) -> 0
A160: SIGHW | B160: 12 août 2017 | C160: P53327 | D160: Pack - offre Pass | E160: 4 | F160: 0,000 | G160: 0 | H160: 0,000 | I160: 4 | J160: 0,000 | K160: Mobile | L160: =VLOOKUP(D160,'CATALOGUE SMARTPHONES'!A:C,3,0) ->  | M160: =IFERROR((VLOOKUP(C160,'Baréme Relax'!B:D,3,0)),0) -> 0
A161: ABLOUNA | B161: 12 août 2017 | C161: PRE03 | D161: offre Simply | E161: 1 | F161: 0,000 | G161: 0 | H161: 0,000 | I161: 1 | J161: 0,000 | K161: Mobile | L161: =VLOOKUP(D161,'CATALOGUE SMARTPHONES'!A:C,3,0) ->  | M161: =IFERROR((VLOOKUP(C161,'Baréme Relax'!B:D,3,0)),0) -> 0
A162: ABLOUNA | B162: 12 août 2017 | C162: ADV2 | D162: Avance 2 mois | E162: 1 | F162: 110,000 | G162: 0 | H162: 0,000 | I162: 1 | J162: 110,000 | K162: Mobile | L162: =VLOOKUP(D162,'CATALOGUE SMARTPHONES'!A:C,3,0) ->  | M162: =IFERROR((VLOOKUP(C162,'Baréme Relax'!B:D,3,0)),0) -> 0
A163: RIGRAIET | B163: 12 août 2017 | C163: 999100001003 | D163: SERVICE TRANSFERT CONTACT | E163: 1 | F163: 3,000 | G163: 0 | H163: 0,000 | I163: 1 | J163: 3,000 | K163: Mobile | L163: =VLOOKUP(D163,'CATALOGUE SMARTPHONES'!A:C,3,0) ->  | M163: =IFERROR((VLOOKUP(C163,'Baréme Relax'!B:D,3,0)),0) -> 2
A164: ASLOGHM | B164: 12 août 2017 | C164: PRE21 | D164: Melle5er | E164: 3 | F164: 0,000 | G164: 0 | H164: 0,000 | I164: 3 | J164: 0,000 | K164: Mobile | L164: =VLOOKUP(D164,'CATALOGUE SMARTPHONES'!A:C,3,0) ->  | M164: =IFERROR((VLOOKUP(C164,'Baréme Relax'!B:D,3,0)),0) -> 0
A165: RIGRAIET | B165: 12 août 2017 | C165: P59928 | D165: Pack 2 mois - Flybox MAX - internet + voix | E165: 1 | F165: 0,000 | G165: 0 | H165: 0,000 | I165: 1 | J165: 0,000 | K165: Mobile | L165: =VLOOKUP(D165,'CATALOGUE SMARTPHONES'!A:C,3,0) ->  | M165: =IFERROR((VLOOKUP(C165,'Baréme Relax'!B:D,3,0)),0) -> 0
A166: SIGHW | B166: 12 août 2017 | C166: HYB01 | D166: forfait mix 15 | E166: 1 | F166: 0,000 | G166: 0 | H166: 0,000 | I166: 1 | J166: 0,000 | K166: Mobile | L166: =VLOOKUP(D166,'CATALOGUE SMARTPHONES'!A:C,3,0) ->  | M166: =IFERROR((VLOOKUP(C166,'Baréme Relax'!B:D,3,0)),0) -> 0
A167: RIGRAIET | B167: 12 août 2017 | C167: P4049 | D167: Pack Réengagement - forfait mix 20 - injection 1 Go - 12 mois | E167: 1 | F167: 0,000 | G167: 0 | H167: 0,000 | I167: 1 | J167: 0,000 | K167: Mobile | L167: =VLOOKUP(D167,'CATALOGUE SMARTPHONES'!A:C,3,0) ->  | M167: =IFERROR((VLOOKUP(C167,'Baréme Relax'!B:D,3,0)),0) -> 0
A168: ASLOGHM | B168: 12 août 2017 | C168: 044004000010 | D168: Recharge Express | E168: 5 | F168: 5,500 | G168: 0 | H168: 0,000 | I168: 5 | J168: 5,500 | K168: Mobile | L168: =VLOOKUP(D168,'CATALOGUE SMARTPHONES'!A:C,3,0) ->  | M168: =IFERROR((VLOOKUP(C168,'Baréme Relax'!B:D,3,0)),0) -> 0
A169: SIGHW | B169: 12 août 2017 | C169: 044004000010 | D169: Recharge Express | E169: 15 | F169: 16,500 | G169: 0 | H169: 0,000 | I169: 15 | J169: 16,500 | K169: Mobile | L169: =VLOOKUP(D169,'CATALOGUE SMARTPHONES'!A:C,3,0) ->  | M169: =IFERROR((VLOOKUP(C169,'Baréme Relax'!B:D,3,0)),0) -> 0
A170: SIGHW | B170: 12 août 2017 | C170: PRE21 | D170: Melle5er | E170: 3 | F170: 0,000 | G170: 0 | H170: 0,000 | I170: 3 | J170: 0,000 | K170: Mobile | L170: =VLOOKUP(D170,'CATALOGUE SMARTPHONES'!A:C,3,0) ->  | M170: =IFERROR((VLOOKUP(C170,'Baréme Relax'!B:D,3,0)),0) -> 0
A171: SIGHW | B171: 12 août 2017 | C171: 044004000010 | D171: Recharge Express | E171: 30 | F171: 33,000 | G171: 0 | H171: 0,000 | I171: 30 | J171: 33,000 | K171: Mobile | L171: =VLOOKUP(D171,'CATALOGUE SMARTPHONES'!A:C,3,0) ->  | M171: =IFERROR((VLOOKUP(C171,'Baréme Relax'!B:D,3,0)),0) -> 0
A172: ABLOUNA | B172: 12 août 2017 | C172: 044004000010 | D172: Recharge Express | E172: 20 | F172: 22,000 | G172: 0 | H172: 0,000 | I172: 20 | J172: 22,000 | K172: Mobile | L172: =VLOOKUP(D172,'CATALOGUE SMARTPHONES'!A:C,3,0) ->  | M172: =IFERROR((VLOOKUP(C172,'Baréme Relax'!B:D,3,0)),0) -> 0
A173: RIGRAIET | B173: 12 août 2017 | C173: HYB35 | D173: Flybox MAX | E173: 1 | F173: 0,000 | G173: 0 | H173: 0,000 | I173: 1 | J173: 0,000 | K173: Mobile | L173: =VLOOKUP(D173,'CATALOGUE SMARTPHONES'!A:C,3,0) ->  | M173: =IFERROR((VLOOKUP(C173,'Baréme Relax'!B:D,3,0)),0) -> 0
A174: RIGRAIET | B174: 12 août 2017 | C174: 044004000010 | D174: Recharge Express | E174: 20 | F174: 22,000 | G174: 0 | H174: 0,000 | I174: 20 | J174: 22,000 | K174: Mobile | L174: =VLOOKUP(D174,'CATALOGUE SMARTPHONES'!A:C,3,0) ->  | M174: =IFERROR((VLOOKUP(C174,'Baréme Relax'!B:D,3,0)),0) -> 0
A175: ASLOGHM | B175: 12 août 2017 | C175: 044004000010 | D175: Recharge Express | E175: 36 | F175: 39,600 | G175: 0 | H175: 0,000 | I175: 36 | J175: 39,600 | K175: Mobile | L175: =VLOOKUP(D175,'CATALOGUE SMARTPHONES'!A:C,3,0) ->  | M175: =IFERROR((VLOOKUP(C175,'Baréme Relax'!B:D,3,0)),0) -> 0
A176: ABLOUNA | B176: 12 août 2017 | C176: 044004000010 | D176: Recharge Express | E176: 5 | F176: 5,500 | G176: 0 | H176: 0,000 | I176: 5 | J176: 5,500 | K176: Mobile | L176: =VLOOKUP(D176,'CATALOGUE SMARTPHONES'!A:C,3,0) ->  | M176: =IFERROR((VLOOKUP(C176,'Baréme Relax'!B:D,3,0)),0) -> 0
A177: SIGHW | B177: 12 août 2017 | C177: 044004000010 | D177: Recharge Express | E177: 10 | F177: 11,000 | G177: 0 | H177: 0,000 | I177: 10 | J177: 11,000 | K177: Mobile | L177: =VLOOKUP(D177,'CATALOGUE SMARTPHONES'!A:C,3,0) ->  | M177: =IFERROR((VLOOKUP(C177,'Baréme Relax'!B:D,3,0)),0) -> 0
A178: SIGHW | B178: 12 août 2017 | C178: PRE17 | D178: 3alami | E178: 3 | F178: 0,000 | G178: 0 | H178: 0,000 | I178: 3 | J178: 0,000 | K178: Mobile | L178: =VLOOKUP(D178,'CATALOGUE SMARTPHONES'!A:C,3,0) ->  | M178: =IFERROR((VLOOKUP(C178,'Baréme Relax'!B:D,3,0)),0) -> 0
A179: ASLOGHM | B179: 12 août 2017 | C179: 999100001003 | D179: SERVICE TRANSFERT CONTACT | E179: 1 | F179: 3,000 | G179: 0 | H179: 0,000 | I179: 1 | J179: 3,000 | K179: Mobile | L179: =VLOOKUP(D179,'CATALOGUE SMARTPHONES'!A:C,3,0) ->  | M179: =IFERROR((VLOOKUP(C179,'Baréme Relax'!B:D,3,0)),0) -> 2
A180: ABLOUNA | B180: 12 août 2017 | C180: 044004000010 | D180: Recharge Express | E180: 12 | F180: 13,200 | G180: 0 | H180: 0,000 | I180: 12 | J180: 13,200 | K180: Mobile | L180: =VLOOKUP(D180,'CATALOGUE SMARTPHONES'!A:C,3,0) ->  | M180: =IFERROR((VLOOKUP(C180,'Baréme Relax'!B:D,3,0)),0) -> 0
A181: RIGRAIET | B181: 12 août 2017 | C181: 044004000010 | D181: Recharge Express | E181: 15 | F181: 16,500 | G181: 0 | H181: 0,000 | I181: 15 | J181: 16,500 | K181: Mobile | L181: =VLOOKUP(D181,'CATALOGUE SMARTPHONES'!A:C,3,0) ->  | M181: =IFERROR((VLOOKUP(C181,'Baréme Relax'!B:D,3,0)),0) -> 0
A182: ABLOUNA | B182: 12 août 2017 | C182: P59928 | D182: Pack 2 mois - Flybox MAX - internet + voix | E182: 1 | F182: 0,000 | G182: 0 | H182: 0,000 | I182: 1 | J182: 0,000 | K182: Mobile | L182: =VLOOKUP(D182,'CATALOGUE SMARTPHONES'!A:C,3,0) ->  | M182: =IFERROR((VLOOKUP(C182,'Baréme Relax'!B:D,3,0)),0) -> 0
A183: ABLOUNA | B183: 12 août 2017 | C183: P53287 | D183: Clé 3G E3531 é?Offre Pass é? Bonus Internet 3Go - 1 mois | E183: 1 | F183: 0,000 | G183: 0 | H183: 0,000 | I183: 1 | J183: 0,000 | K183: Mobile | L183: =VLOOKUP(D183,'CATALOGUE SMARTPHONES'!A:C,3,0) ->  | M183: =IFERROR((VLOOKUP(C183,'Baréme Relax'!B:D,3,0)),0) -> 0
A184: ABLOUNA | B184: 12 août 2017 | C184: 044004000010 | D184: Recharge Express | E184: 1 | F184: 1,100 | G184: 0 | H184: 0,000 | I184: 1 | J184: 1,100 | K184: Mobile | L184: =VLOOKUP(D184,'CATALOGUE SMARTPHONES'!A:C,3,0) ->  | M184: =IFERROR((VLOOKUP(C184,'Baréme Relax'!B:D,3,0)),0) -> 0
A185: RIGRAIET | B185: 12 août 2017 | C185: 044004000010 | D185: Recharge Express | E185: 1 | F185: 1,100 | G185: 0 | H185: 0,000 | I185: 1 | J185: 1,100 | K185: Mobile | L185: =VLOOKUP(D185,'CATALOGUE SMARTPHONES'!A:C,3,0) ->  | M185: =IFERROR((VLOOKUP(C185,'Baréme Relax'!B:D,3,0)),0) -> 0
A186: SIGHW | B186: 12 août 2017 | C186: PRE13 | D186: Edawa5 | E186: 1 | F186: 0,000 | G186: 0 | H186: 0,000 | I186: 1 | J186: 0,000 | K186: Mobile | L186: =VLOOKUP(D186,'CATALOGUE SMARTPHONES'!A:C,3,0) ->  | M186: =IFERROR((VLOOKUP(C186,'Baréme Relax'!B:D,3,0)),0) -> 0
A187: ABLOUNA | B187: 12 août 2017 | C187: ADV2 | D187: Avance 2 mois | E187: 1 | F187: 58,000 | G187: 0 | H187: 0,000 | I187: 1 | J187: 58,000 | K187: Mobile | L187: =VLOOKUP(D187,'CATALOGUE SMARTPHONES'!A:C,3,0) ->  | M187: =IFERROR((VLOOKUP(C187,'Baréme Relax'!B:D,3,0)),0) -> 0
A188: RIGRAIET | B188: 12 août 2017 | C188: 044004000010 | D188: Recharge Express | E188: 12 | F188: 13,200 | G188: 0 | H188: 0,000 | I188: 12 | J188: 13,200 | K188: Mobile | L188: =VLOOKUP(D188,'CATALOGUE SMARTPHONES'!A:C,3,0) ->  | M188: =IFERROR((VLOOKUP(C188,'Baréme Relax'!B:D,3,0)),0) -> 0
A189: SIGHW | B189: 12 août 2017 | C189: PRE03 | D189: offre Simply | E189: 1 | F189: 0,000 | G189: 0 | H189: 0,000 | I189: 1 | J189: 0,000 | K189: Mobile | L189: =VLOOKUP(D189,'CATALOGUE SMARTPHONES'!A:C,3,0) ->  | M189: =IFERROR((VLOOKUP(C189,'Baréme Relax'!B:D,3,0)),0) -> 0
A190: ABLOUNA | B190: 12 août 2017 | C190: 083013025002 | D190: HUAWEI GR5 2017 GOLD | E190: 1 | F190: 599,000 | G190: 0 | H190: 0,000 | I190: 1 | J190: 599,000 | K190: Mobile | L190: =VLOOKUP(D190,'CATALOGUE SMARTPHONES'!A:C,3,0) -> OK | M190: =IFERROR((VLOOKUP(C190,'Baréme Relax'!B:D,3,0)),0) -> 0
A191: RIGRAIET | B191: 12 août 2017 | C191: 085001000011 | D191: FLYBOX B310 | E191: 1 | F191: 0,000 | G191: 0 | H191: 0,000 | I191: 1 | J191: 0,000 | K191: Mobile | L191: =VLOOKUP(D191,'CATALOGUE SMARTPHONES'!A:C,3,0) ->  | M191: =IFERROR((VLOOKUP(C191,'Baréme Relax'!B:D,3,0)),0) -> 0
A192: SIGHW | B192: 12 août 2017 | C192: 046002000056 | D192: AIRBOX 4G MW40 | E192: 1 | F192: 119,000 | G192: 0 | H192: 0,000 | I192: 1 | J192: 119,000 | K192: Mobile | L192: =VLOOKUP(D192,'CATALOGUE SMARTPHONES'!A:C,3,0) ->  | M192: =IFERROR((VLOOKUP(C192,'Baréme Relax'!B:D,3,0)),0) -> 0
A193: RIGRAIET | B193: 12 août 2017 | C193: 043006000003 | D193: CARTE SIM 4G PRE MULTI SIM | E193: 2 | F193: 10,000 | G193: 0 | H193: 0,000 | I193: 2 | J193: 10,000 | K193: Mobile | L193: =VLOOKUP(D193,'CATALOGUE SMARTPHONES'!A:C,3,0) ->  | M193: =IFERROR((VLOOKUP(C193,'Baréme Relax'!B:D,3,0)),0) -> 0
A194: RIGRAIET | B194: 12 août 2017 | C194: 043008000001 | D194: CARTE SIM 4G FLYBOX | E194: 1 | F194: 0,000 | G194: 0 | H194: 0,000 | I194: 1 | J194: 0,000 | K194: Mobile | L194: =VLOOKUP(D194,'CATALOGUE SMARTPHONES'!A:C,3,0) ->  | M194: =IFERROR((VLOOKUP(C194,'Baréme Relax'!B:D,3,0)),0) -> 0
A195: RIGRAIET | B195: 12 août 2017 | C195: 043006000003 | D195: CARTE SIM 4G PRE MULTI SIM | E195: 2 | F195: 6,000 | G195: 0 | H195: 0,000 | I195: 2 | J195: 6,000 | K195: Mobile | L195: =VLOOKUP(D195,'CATALOGUE SMARTPHONES'!A:C,3,0) ->  | M195: =IFERROR((VLOOKUP(C195,'Baréme Relax'!B:D,3,0)),0) -> 0
A196: SIGHW | B196: 12 août 2017 | C196: 043007000004 | D196: CARTE SIM 4G DATA MULTI SIM | E196: 4 | F196: 20,000 | G196: 0 | H196: 0,000 | I196: 4 | J196: 20,000 | K196: Mobile | L196: =VLOOKUP(D196,'CATALOGUE SMARTPHONES'!A:C,3,0) ->  | M196: =IFERROR((VLOOKUP(C196,'Baréme Relax'!B:D,3,0)),0) -> 0
A197: RIGRAIET | B197: 12 août 2017 | C197: 188003000016 | D197: Modem Huawei HG532 | E197: 1 | F197: 0,000 | G197: 0 | H197: 0,000 | I197: 1 | J197: 0,000 | K197: ADSL | L197: =VLOOKUP(D197,'CATALOGUE SMARTPHONES'!A:C,3,0) ->  | M197: =IFERROR((VLOOKUP(C197,'Baréme Relax'!B:D,3,0)),0) -> 0
A198: SIGHW | B198: 12 août 2017 | C198: 043007000004 | D198: CARTE SIM 4G DATA MULTI SIM | E198: 1 | F198: 0,000 | G198: 0 | H198: 0,000 | I198: 1 | J198: 0,000 | K198: Mobile | L198: =VLOOKUP(D198,'CATALOGUE SMARTPHONES'!A:C,3,0) ->  | M198: =IFERROR((VLOOKUP(C198,'Baréme Relax'!B:D,3,0)),0) -> 0
A199: SIGHW | B199: 12 août 2017 | C199: 043006000003 | D199: CARTE SIM 4G PRE MULTI SIM | E199: 7 | F199: 0,000 | G199: 0 | H199: 0,000 | I199: 7 | J199: 0,000 | K199: Mobile | L199: =VLOOKUP(D199,'CATALOGUE SMARTPHONES'!A:C,3,0) ->  | M199: =IFERROR((VLOOKUP(C199,'Baréme Relax'!B:D,3,0)),0) -> 0
A200: ABLOUNA | B200: 12 août 2017 | C200: 043006000003 | D200: CARTE SIM 4G PRE MULTI SIM | E200: 2 | F200: 10,000 | G200: 0 | H200: 0,000 | I200: 2 | J200: 10,000 | K200: Mobile | L200: =VLOOKUP(D200,'CATALOGUE SMARTPHONES'!A:C,3,0) ->  | M200: =IFERROR((VLOOKUP(C200,'Baréme Relax'!B:D,3,0)),0) -> 0
... 880 more rows

Sheet GST-SOLD
A1: Numéro de série | B1: Utilisateur | C1: Code produit | D1: Nom du produit | E1: Date entrée | F1: Agence | G1: Code Agence | H1: Quantité | I1: Etat du produit | J1: Fournisseur
A2: 863605032642664 | B2: RIGRAIET | C2: 085001000011 | D2: FLYBOX B310 | E2: 2017-08-12 | F2: Franchise MSAKEN | G2: MSK0013F | H2: 1 | I2: SOLD | J2: Tunis Entrepot DCGP
A3: 892160100206713351 | B3: RIGRAIET | C3: 043008000001 | D3: CARTE SIM 4G FLYBOX | E3: 2017-08-12 | F3: Franchise MSAKEN | G3: MSK0013F | H3: 1 | I3: SOLD | J3: Tunis Entrepot DCGP
A4: TG6K17020004565 | B4: RIGRAIET | C4: 188003000016 | D4: Modem Huawei HG532 | E4: 2017-08-12 | F4: Franchise MSAKEN | G4: MSK0013F | H4: 1 | I4: SOLD | J4: Tunis Entrepot DCGP
A5: 892160100124729132 | B5: SIGHW | C5: 043007000004 | D5: CARTE SIM 4G DATA MULTI SIM | E5: 2017-08-10 | F5: Franchise MSAKEN | G5: MSK0013F | H5: 1 | I5: SOLD | J5: Tunis Entrepot DCGP
A6: 892160100122554918 | B6: SIGHW | C6: 043006000003 | D6: CARTE SIM 4G PRE MULTI SIM | E6: 2017-08-14 | F6: Franchise MSAKEN | G6: MSK0013F | H6: 1 | I6: SOLD | J6: Tunis Entrepot DCGP
B7: SIGHW | C7: 044004000010 | D7: Recharge Express | E7: 2017-08-10 | F7: Franchise MSAKEN | G7: MSK0013F | H7: 10 | I7: SOLD | J7: Tunis Entrepot DCGP
A8: 892160100122554937 | B8: ASLOGHM | C8: 043006000003 | D8: CARTE SIM 4G PRE MULTI SIM | E8: 2017-08-14 | F8: Franchise MSAKEN | G8: MSK0013F | H8: 1 | I8: SOLD | J8: Tunis Entrepot DCGP
A9: 892160100122555570 | B9: ABLOUNA | C9: 043006000003 | D9: CARTE SIM 4G PRE MULTI SIM | E9: 2017-08-10 | F9: Franchise MSAKEN | G9: MSK0013F | H9: 1 | I9: SOLD | J9: Tunis Entrepot DCGP
A10: 862497030355742 | B10: ABLOUNA | C10: 083013025002 | D10: HUAWEI GR5 2017 GOLD | E10: 2017-08-12 | F10: Franchise MSAKEN | G10: MSK0013F | H10: 1 | I10: SOLD | J10: Tunis Entrepot DCGP
A11: 892160100117566082 | B11: ABLOUNA | C11: 043006000007 | D11: CARTE SIM 4G POST MULTI SIM | E11: 2017-08-12 | F11: Franchise MSAKEN | G11: MSK0013F | H11: 1 | I11: SOLD | J11: Tunis Entrepot DCGP
A12: 862497030507847 | B12: ABLOUNA | C12: 083013025001 | D12: HUAWEI GR5 2017 SILVER | E12: 2017-08-12 | F12: Franchise MSAKEN | G12: MSK0013F | H12: 1 | I12: SOLD | J12: Tunis Entrepot DCGP
A13: 892160100123469163 | B13: ABLOUNA | C13: 043001000114 | D13: CARTE PREACTIVEE VD | E13: 2017-08-14 | F13: Franchise MSAKEN | G13: MSK0013F | H13: 1 | I13: SOLD | J13: Tunis Entrepot DCGP
A14: 352770077249508 | B14: ABLOUNA | C14: 045022002001 | D14: ORANGE IT 2110 | E14: 2017-08-14 | F14: Franchise MSAKEN | G14: MSK0013F | H14: 1 | I14: SOLD | J14: Tunis Entrepot DCGP
A15: 892160100122555679 | B15: RIGRAIET | C15: 043006000003 | D15: CARTE SIM 4G PRE MULTI SIM | E15: 2017-08-12 | F15: Franchise MSAKEN | G15: MSK0013F | H15: 1 | I15: SOLD | J15: Tunis Entrepot DCGP
B16: SIGHW | C16: 044004000010 | D16: Recharge Express | E16: 2017-08-14 | F16: Franchise MSAKEN | G16: MSK0013F | H16: 2 | I16: SOLD | J16: Tunis Entrepot DCGP
A17: 892160100122554890 | B17: SIGHW | C17: 043006000003 | D17: CARTE SIM 4G PRE MULTI SIM | E17: 2017-08-11 | F17: Franchise MSAKEN | G17: MSK0013F | H17: 1 | I17: SOLD | J17: Tunis Entrepot DCGP
B18: ABLOUNA | C18: 044004000010 | D18: Recharge Express | E18: 2017-08-10 | F18: Franchise MSAKEN | G18: MSK0013F | H18: 12 | I18: SOLD | J18: Tunis Entrepot DCGP
B19: RIGRAIET | C19: 044004000010 | D19: Recharge Express | E19: 2017-08-14 | F19: Franchise MSAKEN | G19: MSK0013F | H19: 5 | I19: SOLD | J19: Tunis Entrepot DCGP
A20: 892160100124729146 | B20: SIGHW | C20: 043007000004 | D20: CARTE SIM 4G DATA MULTI SIM | E20: 2017-08-14 | F20: Franchise MSAKEN | G20: MSK0013F | H20: 1 | I20: SOLD | J20: Tunis Entrepot DCGP
A21: 892160100124729143 | B21: ABLOUNA | C21: 043007000004 | D21: CARTE SIM 4G DATA MULTI SIM | E21: 2017-08-12 | F21: Franchise MSAKEN | G21: MSK0013F | H21: 1 | I21: SOLD | J21: Tunis Entrepot DCGP
B22: ASLOGHM | C22: 044004000010 | D22: Recharge Express | E22: 2017-08-14 | F22: Franchise MSAKEN | G22: MSK0013F | H22: 5 | I22: SOLD | J22: Tunis Entrepot DCGP
B23: RIGRAIET | C23: 044004000010 | D23: Recharge Express | E23: 2017-08-12 | F23: Franchise MSAKEN | G23: MSK0013F | H23: 10 | I23: SOLD | J23: Tunis Entrepot DCGP
A24: 892160100122555724 | B24: ABLOUNA | C24: 043006000003 | D24: CARTE SIM 4G PRE MULTI SIM | E24: 2017-08-12 | F24: Franchise MSAKEN | G24: MSK0013F | H24: 1 | I24: SOLD | J24: Tunis Entrepot DCGP
B25: ABLOUNA | C25: 044004000010 | D25: Recharge Express | E25: 2017-08-15 | F25: Franchise MSAKEN | G25: MSK0013F | H25: 5 | I25: SOLD | J25: Tunis Entrepot DCGP
B26: SIGHW | C26: 044004000010 | D26: Recharge Express | E26: 2017-08-10 | F26: Franchise MSAKEN | G26: MSK0013F | H26: 5 | I26: SOLD | J26: Tunis Entrepot DCGP
B27: ABLOUNA | C27: 044004000010 | D27: Recharge Express | E27: 2017-08-15 | F27: Franchise MSAKEN | G27: MSK0013F | H27: 12 | I27: SOLD | J27: Tunis Entrepot DCGP
A28: 892160100124728453 | B28: RIGRAIET | C28: 043007000004 | D28: CARTE SIM 4G DATA MULTI SIM | E28: 2017-08-12 | F28: Franchise MSAKEN | G28: MSK0013F | H28: 1 | I28: SOLD | J28: Tunis Entrepot DCGP
B29: SIGHW | C29: 044004000010 | D29: Recharge Express | E29: 2017-08-12 | F29: Franchise MSAKEN | G29: MSK0013F | H29: 15 | I29: SOLD | J29: Tunis Entrepot DCGP
A30: 892160100122555667 | B30: SIGHW | C30: 043006000003 | D30: CARTE SIM 4G PRE MULTI SIM | E30: 2017-08-12 | F30: Franchise MSAKEN | G30: MSK0013F | H30: 1 | I30: SOLD | J30: Tunis Entrepot DCGP
A31: 892160100122554895 | B31: ASLOGHM | C31: 043006000003 | D31: CARTE SIM 4G PRE MULTI SIM | E31: 2017-08-11 | F31: Franchise MSAKEN | G31: MSK0013F | H31: 1 | I31: SOLD | J31: Tunis Entrepot DCGP
B32: RIGRAIET | C32: 044004000010 | D32: Recharge Express | E32: 2017-08-14 | F32: Franchise MSAKEN | G32: MSK0013F | H32: 12 | I32: SOLD | J32: Tunis Entrepot DCGP
A33: 892160100122555674 | B33: SIGHW | C33: 043006000003 | D33: CARTE SIM 4G PRE MULTI SIM | E33: 2017-08-12 | F33: Franchise MSAKEN | G33: MSK0013F | H33: 1 | I33: SOLD | J33: Tunis Entrepot DCGP
B34: RIGRAIET | C34: 044004000010 | D34: Recharge Express | E34: 2017-08-11 | F34: Franchise MSAKEN | G34: MSK0013F | H34: 5 | I34: SOLD | J34: Tunis Entrepot DCGP
A35: 892160100122554906 | B35: RIGRAIET | C35: 043006000003 | D35: CARTE SIM 4G PRE MULTI SIM | E35: 2017-08-11 | F35: Franchise MSAKEN | G35: MSK0013F | H35: 1 | I35: SOLD | J35: Tunis Entrepot DCGP
B36: ABLOUNA | C36: 044004000010 | D36: Recharge Express | E36: 2017-08-11 | F36: Franchise MSAKEN | G36: MSK0013F | H36: 18 | I36: SOLD | J36: Tunis Entrepot DCGP
B37: ABLOUNA | C37: 044004000010 | D37: Recharge Express | E37: 2017-08-08 | F37: Franchise MSAKEN | G37: MSK0013F | H37: 20 | I37: SOLD | J37: Tunis Entrepot DCGP
A38: 892160100122555568 | B38: ABLOUNA | C38: 043006000003 | D38: CARTE SIM 4G PRE MULTI SIM | E38: 2017-08-08 | F38: Franchise MSAKEN | G38: MSK0013F | H38: 1 | I38: SOLD | J38: Tunis Entrepot DCGP
A39: 892160100124728419 | B39: ASLOGHM | C39: 043007000004 | D39: CARTE SIM 4G DATA MULTI SIM | E39: 2017-08-08 | F39: Franchise MSAKEN | G39: MSK0013F | H39: 1 | I39: SOLD | J39: Tunis Entrepot DCGP
A40: 892160100124728445 | B40: RIGRAIET | C40: 043007000004 | D40: CARTE SIM 4G DATA MULTI SIM | E40: 2017-08-11 | F40: Franchise MSAKEN | G40: MSK0013F | H40: 1 | I40: SOLD | J40: Tunis Entrepot DCGP
A41: 892160100122555689 | B41: ABLOUNA | C41: 043006000003 | D41: CARTE SIM 4G PRE MULTI SIM | E41: 2017-08-11 | F41: Franchise MSAKEN | G41: MSK0013F | H41: 1 | I41: SOLD | J41: Tunis Entrepot DCGP
A42: 892160100122554875 | B42: RIGRAIET | C42: 043006000003 | D42: CARTE SIM 4G PRE MULTI SIM | E42: 2017-08-11 | F42: Franchise MSAKEN | G42: MSK0013F | H42: 1 | I42: SOLD | J42: Tunis Entrepot DCGP
B43: RIGRAIET | C43: 044004000010 | D43: Recharge Express | E43: 2017-08-11 | F43: Franchise MSAKEN | G43: MSK0013F | H43: 5 | I43: SOLD | J43: Tunis Entrepot DCGP
A44: 892160100122554892 | B44: ASLOGHM | C44: 043006000003 | D44: CARTE SIM 4G PRE MULTI SIM | E44: 2017-08-11 | F44: Franchise MSAKEN | G44: MSK0013F | H44: 1 | I44: SOLD | J44: Tunis Entrepot DCGP
B45: SIGHW | C45: 044004000010 | D45: Recharge Express | E45: 2017-08-09 | F45: Franchise MSAKEN | G45: MSK0013F | H45: 20 | I45: SOLD | J45: Tunis Entrepot DCGP
B46: SIGHW | C46: 044004000010 | D46: Recharge Express | E46: 2017-08-09 | F46: Franchise MSAKEN | G46: MSK0013F | H46: 5 | I46: SOLD | J46: Tunis Entrepot DCGP
A47: 892160100122555464 | B47: SIGHW | C47: 043006000003 | D47: CARTE SIM 4G PRE MULTI SIM | E47: 2017-08-09 | F47: Franchise MSAKEN | G47: MSK0013F | H47: 1 | I47: SOLD | J47: Tunis Entrepot DCGP
A48: 892160100122555576 | B48: ABLOUNA | C48: 043006000003 | D48: CARTE SIM 4G PRE MULTI SIM | E48: 2017-08-09 | F48: Franchise MSAKEN | G48: MSK0013F | H48: 1 | I48: SOLD | J48: Tunis Entrepot DCGP
A49: 892160100122555609 | B49: RIGRAIET | C49: 043006000003 | D49: CARTE SIM 4G PRE MULTI SIM | E49: 2017-08-09 | F49: Franchise MSAKEN | G49: MSK0013F | H49: 1 | I49: SOLD | J49: Tunis Entrepot DCGP
B50: RIGRAIET | C50: 044004000010 | D50: Recharge Express | E50: 2017-08-14 | F50: Franchise MSAKEN | G50: MSK0013F | H50: 5 | I50: SOLD | J50: Tunis Entrepot DCGP
B51: SIGHW | C51: 044004000010 | D51: Recharge Express | E51: 2017-08-14 | F51: Franchise MSAKEN | G51: MSK0013F | H51: 5 | I51: SOLD | J51: Tunis Entrepot DCGP
B52: SIGHW | C52: 044004000010 | D52: Recharge Express | E52: 2017-08-14 | F52: Franchise MSAKEN | G52: MSK0013F | H52: 20 | I52: SOLD | J52: Tunis Entrepot DCGP
A53: 892160100122554886 | B53: ABLOUNA | C53: 043006000003 | D53: CARTE SIM 4G PRE MULTI SIM | E53: 2017-08-10 | F53: Franchise MSAKEN | G53: MSK0013F | H53: 1 | I53: SOLD | J53: Tunis Entrepot DCGP
B54: ASLOGHM | C54: 044004000010 | D54: Recharge Express | E54: 2017-08-10 | F54: Franchise MSAKEN | G54: MSK0013F | H54: 12 | I54: SOLD | J54: Tunis Entrepot DCGP
A55: 892160100122555653 | B55: SIGHW | C55: 043006000003 | D55: CARTE SIM 4G PRE MULTI SIM | E55: 2017-08-10 | F55: Franchise MSAKEN | G55: MSK0013F | H55: 1 | I55: SOLD | J55: Tunis Entrepot DCGP
B56: SIGHW | C56: 044004000010 | D56: Recharge Express | E56: 2017-08-12 | F56: Franchise MSAKEN | G56: MSK0013F | H56: 12 | I56: SOLD | J56: Tunis Entrepot DCGP
A57: 892160100122555573 | B57: ABLOUNA | C57: 043006000003 | D57: CARTE SIM 4G PRE MULTI SIM | E57: 2017-08-09 | F57: Franchise MSAKEN | G57: MSK0013F | H57: 1 | I57: SOLD | J57: Tunis Entrepot DCGP
B58: ABLOUNA | C58: 044004000010 | D58: Recharge Express | E58: 2017-08-09 | F58: Franchise MSAKEN | G58: MSK0013F | H58: 5 | I58: SOLD | J58: Tunis Entrepot DCGP
A59: 892160100124729140 | B59: RIGRAIET | C59: 043007000004 | D59: CARTE SIM 4G DATA MULTI SIM | E59: 2017-08-11 | F59: Franchise MSAKEN | G59: MSK0013F | H59: 1 | I59: SOLD | J59: Tunis Entrepot DCGP
B60: ABLOUNA | C60: 044004000010 | D60: Recharge Express | E60: 2017-08-15 | F60: Franchise MSAKEN | G60: MSK0013F | H60: 60 | I60: SOLD | J60: Tunis Entrepot DCGP
A61: 892160100124729145 | B61: ABLOUNA | C61: 043007000004 | D61: CARTE SIM 4G DATA MULTI SIM | E61: 2017-08-15 | F61: Franchise MSAKEN | G61: MSK0013F | H61: 1 | I61: SOLD | J61: Tunis Entrepot DCGP
B62: SIGHW | C62: 044004000010 | D62: Recharge Express | E62: 2017-08-12 | F62: Franchise MSAKEN | G62: MSK0013F | H62: 12 | I62: SOLD | J62: Tunis Entrepot DCGP
A63: 892160100122554853 | B63: SIGHW | C63: 043006000003 | D63: CARTE SIM 4G PRE MULTI SIM | E63: 2017-08-10 | F63: Franchise MSAKEN | G63: MSK0013F | H63: 1 | I63: SOLD | J63: Tunis Entrepot DCGP
A64: 892160100124729161 | B64: ABLOUNA | C64: 043007000004 | D64: CARTE SIM 4G DATA MULTI SIM | E64: 2017-08-09 | F64: Franchise MSAKEN | G64: MSK0013F | H64: 1 | I64: SOLD | J64: Tunis Entrepot DCGP
B65: SIGHW | C65: 044004000010 | D65: Recharge Express | E65: 2017-08-11 | F65: Franchise MSAKEN | G65: MSK0013F | H65: 25 | I65: SOLD | J65: Tunis Entrepot DCGP
B66: ASLOGHM | C66: 044004000010 | D66: Recharge Express | E66: 2017-08-11 | F66: Franchise MSAKEN | G66: MSK0013F | H66: 5 | I66: SOLD | J66: Tunis Entrepot DCGP
B67: ASLOGHM | C67: 044004000010 | D67: Recharge Express | E67: 2017-08-09 | F67: Franchise MSAKEN | G67: MSK0013F | H67: 20 | I67: SOLD | J67: Tunis Entrepot DCGP
A68: 892160100206713354 | B68: RIGRAIET | C68: 043008000001 | D68: CARTE SIM 4G FLYBOX | E68: 2017-08-11 | F68: Franchise MSAKEN | G68: MSK0013F | H68: 1 | I68: SOLD | J68: Tunis Entrepot DCGP
A69: 869907027307764 | B69: RIGRAIET | C69: 046002000041 | D69: CLE 4G E3372H | E69: 2017-08-14 | F69: Franchise MSAKEN | G69: MSK0013F | H69: 1 | I69: SOLD | J69: Tunis Entrepot DCGP
A70: 892160100124729144 | B70: RIGRAIET | C70: 043007000004 | D70: CARTE SIM 4G DATA MULTI SIM | E70: 2017-08-14 | F70: Franchise MSAKEN | G70: MSK0013F | H70: 1 | I70: SOLD | J70: Tunis Entrepot DCGP
B71: ASLOGHM | C71: 044004000010 | D71: Recharge Express | E71: 2017-08-12 | F71: Franchise MSAKEN | G71: MSK0013F | H71: 10 | I71: SOLD | J71: Tunis Entrepot DCGP
B72: SIGHW | C72: 044004000010 | D72: Recharge Express | E72: 2017-08-12 | F72: Franchise MSAKEN | G72: MSK0013F | H72: 10 | I72: SOLD | J72: Tunis Entrepot DCGP
A73: 892160100122555671 | B73: SIGHW | C73: 043006000003 | D73: CARTE SIM 4G PRE MULTI SIM | E73: 2017-08-12 | F73: Franchise MSAKEN | G73: MSK0013F | H73: 1 | I73: SOLD | J73: Tunis Entrepot DCGP
A74: 892160100122555672 | B74: SIGHW | C74: 043006000003 | D74: CARTE SIM 4G PRE MULTI SIM | E74: 2017-08-12 | F74: Franchise MSAKEN | G74: MSK0013F | H74: 1 | I74: SOLD | J74: Tunis Entrepot DCGP
B75: RIGRAIET | C75: 044004000010 | D75: Recharge Express | E75: 2017-08-09 | F75: Franchise MSAKEN | G75: MSK0013F | H75: 10 | I75: SOLD | J75: Tunis Entrepot DCGP
A76: 892160100206713349 | B76: SIGHW | C76: 043008000001 | D76: CARTE SIM 4G FLYBOX | E76: 2017-08-14 | F76: Franchise MSAKEN | G76: MSK0013F | H76: 1 | I76: SOLD | J76: Tunis Entrepot DCGP
A77: 892160100122555727 | B77: ABLOUNA | C77: 043006000003 | D77: CARTE SIM 4G PRE MULTI SIM | E77: 2017-08-15 | F77: Franchise MSAKEN | G77: MSK0013F | H77: 1 | I77: SOLD | J77: Tunis Entrepot DCGP
B78: ASLOGHM | C78: 044004000010 | D78: Recharge Express | E78: 2017-08-12 | F78: Franchise MSAKEN | G78: MSK0013F | H78: 10 | I78: SOLD | J78: Tunis Entrepot DCGP
A79: 892160100122555677 | B79: RIGRAIET | C79: 043006000003 | D79: CARTE SIM 4G PRE MULTI SIM | E79: 2017-08-12 | F79: Franchise MSAKEN | G79: MSK0013F | H79: 1 | I79: SOLD | J79: Tunis Entrepot DCGP
B80: RIGRAIET | C80: 999100001003 | D80: SERVICE TRANSFERT CONTACT | E80: 2017-08-11 | F80: Franchise MSAKEN | G80: MSK0013F | H80: 1 | I80: SOLD | J80: Tunis Entrepot DCGP
B81: ASLOGHM | C81: 044004000010 | D81: Recharge Express | E81: 2017-08-10 | F81: Franchise MSAKEN | G81: MSK0013F | H81: 10 | I81: SOLD | J81: Tunis Entrepot DCGP
B82: ABLOUNA | C82: 044004000010 | D82: Recharge Express | E82: 2017-08-10 | F82: Franchise MSAKEN | G82: MSK0013F | H82: 5 | I82: SOLD | J82: Tunis Entrepot DCGP
A83: 892160100122555569 | B83: ABLOUNA | C83: 043006000003 | D83: CARTE SIM 4G PRE MULTI SIM | E83: 2017-08-10 | F83: Franchise MSAKEN | G83: MSK0013F | H83: 1 | I83: SOLD | J83: Tunis Entrepot DCGP
B84: ASLOGHM | C84: 044004000010 | D84: Recharge Express | E84: 2017-08-08 | F84: Franchise MSAKEN | G84: MSK0013F | H84: 30 | I84: SOLD | J84: Tunis Entrepot DCGP
B85: RIGRAIET | C85: 044004000010 | D85: Recharge Express | E85: 2017-08-14 | F85: Franchise MSAKEN | G85: MSK0013F | H85: 15 | I85: SOLD | J85: Tunis Entrepot DCGP
A86: 892160100122555737 | B86: RIGRAIET | C86: 043006000003 | D86: CARTE SIM 4G PRE MULTI SIM | E86: 2017-08-14 | F86: Franchise MSAKEN | G86: MSK0013F | H86: 1 | I86: SOLD | J86: Tunis Entrepot DCGP
A87: 892160100122555723 | B87: ABLOUNA | C87: 043006000003 | D87: CARTE SIM 4G PRE MULTI SIM | E87: 2017-08-12 | F87: Franchise MSAKEN | G87: MSK0013F | H87: 1 | I87: SOLD | J87: Tunis Entrepot DCGP
B88: ABLOUNA | C88: 044004000010 | D88: Recharge Express | E88: 2017-08-12 | F88: Franchise MSAKEN | G88: MSK0013F | H88: 10 | I88: SOLD | J88: Tunis Entrepot DCGP
B89: ASLOGHM | C89: 044004000010 | D89: Recharge Express | E89: 2017-08-15 | F89: Franchise MSAKEN | G89: MSK0013F | H89: 12 | I89: SOLD | J89: Tunis Entrepot DCGP
B90: RIGRAIET | C90: 044004000010 | D90: Recharge Express | E90: 2017-08-14 | F90: Franchise MSAKEN | G90: MSK0013F | H90: 5 | I90: SOLD | J90: Tunis Entrepot DCGP
A91: 892160100122555651 | B91: SIGHW | C91: 043006000003 | D91: CARTE SIM 4G PRE MULTI SIM | E91: 2017-08-10 | F91: Franchise MSAKEN | G91: MSK0013F | H91: 1 | I91: SOLD | J91: Tunis Entrepot DCGP
A92: 892160100122554913 | B92: SIGHW | C92: 043006000003 | D92: CARTE SIM 4G PRE MULTI SIM | E92: 2017-08-14 | F92: Franchise MSAKEN | G92: MSK0013F | H92: 1 | I92: SOLD | J92: Tunis Entrepot DCGP
A93: 892160100124728448 | B93: ABLOUNA | C93: 043007000004 | D93: CARTE SIM 4G DATA MULTI SIM | E93: 2017-08-11 | F93: Franchise MSAKEN | G93: MSK0013F | H93: 1 | I93: SOLD | J93: Tunis Entrepot DCGP
A94: 892160100122554870 | B94: SIGHW | C94: 043006000003 | D94: CARTE SIM 4G PRE MULTI SIM | E94: 2017-08-11 | F94: Franchise MSAKEN | G94: MSK0013F | H94: 1 | I94: SOLD | J94: Tunis Entrepot DCGP
B95: SIGHW | C95: 044004000010 | D95: Recharge Express | E95: 2017-08-11 | F95: Franchise MSAKEN | G95: MSK0013F | H95: 5 | I95: SOLD | J95: Tunis Entrepot DCGP
A96: 892160100124729154 | B96: ASLOGHM | C96: 043007000004 | D96: CARTE SIM 4G DATA MULTI SIM | E96: 2017-08-15 | F96: Franchise MSAKEN | G96: MSK0013F | H96: 1 | I96: SOLD | J96: Tunis Entrepot DCGP
B97: ASLOGHM | C97: 044004000010 | D97: Recharge Express | E97: 2017-08-11 | F97: Franchise MSAKEN | G97: MSK0013F | H97: 5 | I97: SOLD | J97: Tunis Entrepot DCGP
B98: ASLOGHM | C98: 044004000010 | D98: Recharge Express | E98: 2017-08-11 | F98: Franchise MSAKEN | G98: MSK0013F | H98: 5 | I98: SOLD | J98: Tunis Entrepot DCGP
A99: 892160100122554902 | B99: ASLOGHM | C99: 043006000003 | D99: CARTE SIM 4G PRE MULTI SIM | E99: 2017-08-11 | F99: Franchise MSAKEN | G99: MSK0013F | H99: 1 | I99: SOLD | J99: Tunis Entrepot DCGP
A100: 892160100122554901 | B100: ASLOGHM | C100: 043006000003 | D100: CARTE SIM 4G PRE MULTI SIM | E100: 2017-08-11 | F100: Franchise MSAKEN | G100: MSK0013F | H100: 1 | I100: SOLD | J100: Tunis Entrepot DCGP
A101: 892160100122554866 | B101: SIGHW | C101: 043006000003 | D101: CARTE SIM 4G PRE MULTI SIM | E101: 2017-08-10 | F101: Franchise MSAKEN | G101: MSK0013F | H101: 1 | I101: SOLD | J101: Tunis Entrepot DCGP
A102: TG6K17020002818 | B102: ABLOUNA | C102: 188003000016 | D102: Modem Huawei HG532 | E102: 2017-08-11 | F102: Franchise MSAKEN | G102: MSK0013F | H102: 1 | I102: SOLD | J102: Tunis Entrepot DCGP
A103: 892160100122554909 | B103: SIGHW | C103: 043006000003 | D103: CARTE SIM 4G PRE MULTI SIM | E103: 2017-08-14 | F103: Franchise MSAKEN | G103: MSK0013F | H103: 1 | I103: SOLD | J103: Tunis Entrepot DCGP
A104: 357360080180653 | B104: RIGRAIET | C104: 083025001002 | D104: SERVICOM EASY 3 WHTE BLCK | E104: 2017-08-14 | F104: Franchise MSAKEN | G104: MSK0013F | H104: 1 | I104: SOLD | J104: Tunis Entrepot DCGP
B105: RIGRAIET | C105: 044004000010 | D105: Recharge Express | E105: 2017-08-14 | F105: Franchise MSAKEN | G105: MSK0013F | H105: 25 | I105: SOLD | J105: Tunis Entrepot DCGP
A106: 892160100124728441 | B106: ABLOUNA | C106: 043007000004 | D106: CARTE SIM 4G DATA MULTI SIM | E106: 2017-08-11 | F106: Franchise MSAKEN | G106: MSK0013F | H106: 1 | I106: SOLD | J106: Tunis Entrepot DCGP
A107: 892160100122555657 | B107: RIGRAIET | C107: 043006000003 | D107: CARTE SIM 4G PRE MULTI SIM | E107: 2017-08-10 | F107: Franchise MSAKEN | G107: MSK0013F | H107: 1 | I107: SOLD | J107: Tunis Entrepot DCGP
A108: 892160100122555574 | B108: ABLOUNA | C108: 043006000003 | D108: CARTE SIM 4G PRE MULTI SIM | E108: 2017-08-09 | F108: Franchise MSAKEN | G108: MSK0013F | H108: 1 | I108: SOLD | J108: Tunis Entrepot DCGP
B109: ABLOUNA | C109: 044004000010 | D109: Recharge Express | E109: 2017-08-09 | F109: Franchise MSAKEN | G109: MSK0013F | H109: 10 | I109: SOLD | J109: Tunis Entrepot DCGP
B110: ASLOGHM | C110: 044004000010 | D110: Recharge Express | E110: 2017-08-14 | F110: Franchise MSAKEN | G110: MSK0013F | H110: 9 | I110: SOLD | J110: Tunis Entrepot DCGP
A111: 869470014292697 | B111: ASLOGHM | C111: 046002000060 | D111: DOMINO E5220 WHITE | E111: 2017-08-08 | F111: Franchise MSAKEN | G111: MSK0013F | H111: 1 | I111: SOLD | J111: Tunis Entrepot DCGP
A112: 892160100124728417 | B112: ASLOGHM | C112: 043007000004 | D112: CARTE SIM 4G DATA MULTI SIM | E112: 2017-08-08 | F112: Franchise MSAKEN | G112: MSK0013F | H112: 1 | I112: SOLD | J112: Tunis Entrepot DCGP
A113: 892160100122555557 | B113: ASLOGHM | C113: 043006000003 | D113: CARTE SIM 4G PRE MULTI SIM | E113: 2017-08-08 | F113: Franchise MSAKEN | G113: MSK0013F | H113: 1 | I113: SOLD | J113: Tunis Entrepot DCGP
B114: ABLOUNA | C114: 044004000010 | D114: Recharge Express | E114: 2017-08-08 | F114: Franchise MSAKEN | G114: MSK0013F | H114: 5 | I114: SOLD | J114: Tunis Entrepot DCGP
A115: 892160100122554938 | B115: ASLOGHM | C115: 043006000003 | D115: CARTE SIM 4G PRE MULTI SIM | E115: 2017-08-14 | F115: Franchise MSAKEN | G115: MSK0013F | H115: 1 | I115: SOLD | J115: Tunis Entrepot DCGP
B116: RIGRAIET | C116: 999100001003 | D116: SERVICE TRANSFERT CONTACT | E116: 2017-08-10 | F116: Franchise MSAKEN | G116: MSK0013F | H116: 1 | I116: SOLD | J116: Tunis Entrepot DCGP
A117: 892160100122555567 | B117: ABLOUNA | C117: 043006000003 | D117: CARTE SIM 4G PRE MULTI SIM | E117: 2017-08-08 | F117: Franchise MSAKEN | G117: MSK0013F | H117: 1 | I117: SOLD | J117: Tunis Entrepot DCGP
A118: 892160100122555560 | B118: ASLOGHM | C118: 043006000003 | D118: CARTE SIM 4G PRE MULTI SIM | E118: 2017-08-08 | F118: Franchise MSAKEN | G118: MSK0013F | H118: 1 | I118: SOLD | J118: Tunis Entrepot DCGP
B119: ASLOGHM | C119: 044004000010 | D119: Recharge Express | E119: 2017-08-08 | F119: Franchise MSAKEN | G119: MSK0013F | H119: 20 | I119: SOLD | J119: Tunis Entrepot DCGP
A120: 892160100124729156 | B120: ASLOGHM | C120: 043007000004 | D120: CARTE SIM 4G DATA MULTI SIM | E120: 2017-08-14 | F120: Franchise MSAKEN | G120: MSK0013F | H120: 1 | I120: SOLD | J120: Tunis Entrepot DCGP
A121: 892160100124729152 | B121: ASLOGHM | C121: 043007000004 | D121: CARTE SIM 4G DATA MULTI SIM | E121: 2017-08-15 | F121: Franchise MSAKEN | G121: MSK0013F | H121: 1 | I121: SOLD | J121: Tunis Entrepot DCGP
A122: 892160100123469073 | B122: ABLOUNA | C122: 043001000114 | D122: CARTE PREACTIVEE VD | E122: 2017-08-15 | F122: Franchise MSAKEN | G122: MSK0013F | H122: 1 | I122: SOLD | J122: Tunis Entrepot DCGP
A123: 892160100123469072 | B123: ABLOUNA | C123: 043001000114 | D123: CARTE PREACTIVEE VD | E123: 2017-08-15 | F123: Franchise MSAKEN | G123: MSK0013F | H123: 1 | I123: SOLD | J123: Tunis Entrepot DCGP
B124: SIGHW | C124: 044004000010 | D124: Recharge Express | E124: 2017-08-14 | F124: Franchise MSAKEN | G124: MSK0013F | H124: 30 | I124: SOLD | J124: Tunis Entrepot DCGP
B125: RIGRAIET | C125: 044004000010 | D125: Recharge Express | E125: 2017-08-14 | F125: Franchise MSAKEN | G125: MSK0013F | H125: 5 | I125: SOLD | J125: Tunis Entrepot DCGP
B126: ABLOUNA | C126: 044004000010 | D126: Recharge Express | E126: 2017-08-15 | F126: Franchise MSAKEN | G126: MSK0013F | H126: 13 | I126: SOLD | J126: Tunis Entrepot DCGP
B127: ASLOGHM | C127: 044004000010 | D127: Recharge Express | E127: 2017-08-15 | F127: Franchise MSAKEN | G127: MSK0013F | H127: 5 | I127: SOLD | J127: Tunis Entrepot DCGP
B128: ASLOGHM | C128: 044004000010 | D128: Recharge Express | E128: 2017-08-15 | F128: Franchise MSAKEN | G128: MSK0013F | H128: 20 | I128: SOLD | J128: Tunis Entrepot DCGP
A129: 892160100122554940 | B129: ASLOGHM | C129: 043006000003 | D129: CARTE SIM 4G PRE MULTI SIM | E129: 2017-08-14 | F129: Franchise MSAKEN | G129: MSK0013F | H129: 1 | I129: SOLD | J129: Tunis Entrepot DCGP
A130: 892160100122555734 | B130: RIGRAIET | C130: 043006000003 | D130: CARTE SIM 4G PRE MULTI SIM | E130: 2017-08-14 | F130: Franchise MSAKEN | G130: MSK0013F | H130: 1 | I130: SOLD | J130: Tunis Entrepot DCGP
B131: ASLOGHM | C131: 044004000010 | D131: Recharge Express | E131: 2017-08-14 | F131: Franchise MSAKEN | G131: MSK0013F | H131: 5 | I131: SOLD | J131: Tunis Entrepot DCGP
A132: 892160100124729153 | B132: SIGHW | C132: 043007000004 | D132: CARTE SIM 4G DATA MULTI SIM | E132: 2017-08-15 | F132: Franchise MSAKEN | G132: MSK0013F | H132: 1 | I132: SOLD | J132: Tunis Entrepot DCGP
B133: RIGRAIET | C133: 999100001003 | D133: SERVICE TRANSFERT CONTACT | E133: 2017-08-11 | F133: Franchise MSAKEN | G133: MSK0013F | H133: 1 | I133: SOLD | J133: Tunis Entrepot DCGP
A134: 892160100122554907 | B134: RIGRAIET | C134: 043006000003 | D134: CARTE SIM 4G PRE MULTI SIM | E134: 2017-08-11 | F134: Franchise MSAKEN | G134: MSK0013F | H134: 1 | I134: SOLD | J134: Tunis Entrepot DCGP
B135: ABLOUNA | C135: 044004000010 | D135: Recharge Express | E135: 2017-08-11 | F135: Franchise MSAKEN | G135: MSK0013F | H135: 10 | I135: SOLD | J135: Tunis Entrepot DCGP
B136: RIGRAIET | C136: 044004000010 | D136: Recharge Express | E136: 2017-08-11 | F136: Franchise MSAKEN | G136: MSK0013F | H136: 12 | I136: SOLD | J136: Tunis Entrepot DCGP
A137: 892160100122555259 | B137: ABLOUNA | C137: 043006000003 | D137: CARTE SIM 4G PRE MULTI SIM | E137: 2017-08-10 | F137: Franchise MSAKEN | G137: MSK0013F | H137: 1 | I137: SOLD | J137: Tunis Entrepot DCGP
A138: 892160100122554905 | B138: RIGRAIET | C138: 043006000003 | D138: CARTE SIM 4G PRE MULTI SIM | E138: 2017-08-11 | F138: Franchise MSAKEN | G138: MSK0013F | H138: 1 | I138: SOLD | J138: Tunis Entrepot DCGP
B139: ABLOUNA | C139: 044004000010 | D139: Recharge Express | E139: 2017-08-10 | F139: Franchise MSAKEN | G139: MSK0013F | H139: 5 | I139: SOLD | J139: Tunis Entrepot DCGP
B140: ABLOUNA | C140: 044004000010 | D140: Recharge Express | E140: 2017-08-10 | F140: Franchise MSAKEN | G140: MSK0013F | H140: 30 | I140: SOLD | J140: Tunis Entrepot DCGP
B141: ABLOUNA | C141: 044004000010 | D141: Recharge Express | E141: 2017-08-10 | F141: Franchise MSAKEN | G141: MSK0013F | H141: 25 | I141: SOLD | J141: Tunis Entrepot DCGP
A142: 892160100122555697 | B142: ABLOUNA | C142: 043006000003 | D142: CARTE SIM 4G PRE MULTI SIM | E142: 2017-08-09 | F142: Franchise MSAKEN | G142: MSK0013F | H142: 1 | I142: SOLD | J142: Tunis Entrepot DCGP
A143: 892160100122555607 | B143: RIGRAIET | C143: 043006000003 | D143: CARTE SIM 4G PRE MULTI SIM | E143: 2017-08-09 | F143: Franchise MSAKEN | G143: MSK0013F | H143: 1 | I143: SOLD | J143: Tunis Entrepot DCGP
B144: RIGRAIET | C144: 044004000010 | D144: Recharge Express | E144: 2017-08-09 | F144: Franchise MSAKEN | G144: MSK0013F | H144: 25 | I144: SOLD | J144: Tunis Entrepot DCGP
A145: 892160100122555675 | B145: RIGRAIET | C145: 043006000003 | D145: CARTE SIM 4G PRE MULTI SIM | E145: 2017-08-12 | F145: Franchise MSAKEN | G145: MSK0013F | H145: 1 | I145: SOLD | J145: Tunis Entrepot DCGP
A146: 2168006000748 | B146: ABLOUNA | C146: 047006000161 | D146: Orange Wifi dock | E146: 2017-08-10 | F146: Franchise MSAKEN | G146: MSK0013F | H146: 1 | I146: SOLD | J146: Tunis Entrepot DCGP
A147: 867424023063575 | B147: ABLOUNA | C147: 046002000034 | D147: CLE 3G E3531 | E147: 2017-08-10 | F147: Franchise MSAKEN | G147: MSK0013F | H147: 1 | I147: SOLD | J147: Tunis Entrepot DCGP
A148: 892160100124729178 | B148: ABLOUNA | C148: 043007000004 | D148: CARTE SIM 4G DATA MULTI SIM | E148: 2017-08-10 | F148: Franchise MSAKEN | G148: MSK0013F | H148: 1 | I148: SOLD | J148: Tunis Entrepot DCGP
B149: RIGRAIET | C149: 044004000010 | D149: Recharge Express | E149: 2017-08-09 | F149: Franchise MSAKEN | G149: MSK0013F | H149: 12 | I149: SOLD | J149: Tunis Entrepot DCGP
B150: SIGHW | C150: 044004000010 | D150: Recharge Express | E150: 2017-08-09 | F150: Franchise MSAKEN | G150: MSK0013F | H150: 5 | I150: SOLD | J150: Tunis Entrepot DCGP
A151: 892160100122555699 | B151: RIGRAIET | C151: 043006000003 | D151: CARTE SIM 4G PRE MULTI SIM | E151: 2017-08-11 | F151: Franchise MSAKEN | G151: MSK0013F | H151: 1 | I151: SOLD | J151: Tunis Entrepot DCGP
A152: 892160100122554903 | B152: ASLOGHM | C152: 043006000003 | D152: CARTE SIM 4G PRE MULTI SIM | E152: 2017-08-11 | F152: Franchise MSAKEN | G152: MSK0013F | H152: 1 | I152: SOLD | J152: Tunis Entrepot DCGP
B153: ABLOUNA | C153: 044004000010 | D153: Recharge Express | E153: 2017-08-10 | F153: Franchise MSAKEN | G153: MSK0013F | H153: 25 | I153: SOLD | J153: Tunis Entrepot DCGP
A154: 357360080132340 | B154: RIGRAIET | C154: 083025001003 | D154: SERVICOM EASY 3 BLEU | E154: 2017-08-10 | F154: Franchise MSAKEN | G154: MSK0013F | H154: 1 | I154: SOLD | J154: Tunis Entrepot DCGP
B155: ABLOUNA | C155: 044004000010 | D155: Recharge Express | E155: 2017-08-10 | F155: Franchise MSAKEN | G155: MSK0013F | H155: 5 | I155: SOLD | J155: Tunis Entrepot DCGP
A156: 892160100122555716 | B156: RIGRAIET | C156: 043006000003 | D156: CARTE SIM 4G PRE MULTI SIM | E156: 2017-08-14 | F156: Franchise MSAKEN | G156: MSK0013F | H156: 1 | I156: SOLD | J156: Tunis Entrepot DCGP
B157: ABLOUNA | C157: 044004000010 | D157: Recharge Express | E157: 2017-08-15 | F157: Franchise MSAKEN | G157: MSK0013F | H157: 5 | I157: SOLD | J157: Tunis Entrepot DCGP
A158: 892160100123469137 | B158: ABLOUNA | C158: 043001000114 | D158: CARTE PREACTIVEE VD | E158: 2017-08-15 | F158: Franchise MSAKEN | G158: MSK0013F | H158: 1 | I158: SOLD | J158: Tunis Entrepot DCGP
A159: 892160100123469138 | B159: ABLOUNA | C159: 043001000114 | D159: CARTE PREACTIVEE VD | E159: 2017-08-15 | F159: Franchise MSAKEN | G159: MSK0013F | H159: 1 | I159: SOLD | J159: Tunis Entrepot DCGP
B160: ASLOGHM | C160: 044004000010 | D160: Recharge Express | E160: 2017-08-15 | F160: Franchise MSAKEN | G160: MSK0013F | H160: 5 | I160: SOLD | J160: Tunis Entrepot DCGP
B161: ABLOUNA | C161: 044004000010 | D161: Recharge Express | E161: 2017-08-15 | F161: Franchise MSAKEN | G161: MSK0013F | H161: 5 | I161: SOLD | J161: Tunis Entrepot DCGP
B162: RIGRAIET | C162: 044004000010 | D162: Recharge Express | E162: 2017-08-12 | F162: Franchise MSAKEN | G162: MSK0013F | H162: 10 | I162: SOLD | J162: Tunis Entrepot DCGP
A163: 892160100122554880 | B163: RIGRAIET | C163: 043006000003 | D163: CARTE SIM 4G PRE MULTI SIM | E163: 2017-08-10 | F163: Franchise MSAKEN | G163: MSK0013F | H163: 1 | I163: SOLD | J163: Tunis Entrepot DCGP
B164: ASLOGHM | C164: 044004000010 | D164: Recharge Express | E164: 2017-08-15 | F164: Franchise MSAKEN | G164: MSK0013F | H164: 5 | I164: SOLD | J164: Tunis Entrepot DCGP
B165: ASLOGHM | C165: 044004000010 | D165: Recharge Express | E165: 2017-08-15 | F165: Franchise MSAKEN | G165: MSK0013F | H165: 5 | I165: SOLD | J165: Tunis Entrepot DCGP
A166: 892160100123469074 | B166: ASLOGHM | C166: 043001000114 | D166: CARTE PREACTIVEE VD | E166: 2017-08-15 | F166: Franchise MSAKEN | G166: MSK0013F | H166: 1 | I166: SOLD | J166: Tunis Entrepot DCGP
A167: 892160100123469100 | B167: ASLOGHM | C167: 043001000114 | D167: CARTE PREACTIVEE VD | E167: 2017-08-15 | F167: Franchise MSAKEN | G167: MSK0013F | H167: 1 | I167: SOLD | J167: Tunis Entrepot DCGP
A168: 892160100122554946 | B168: ASLOGHM | C168: 043006000003 | D168: CARTE SIM 4G PRE MULTI SIM | E168: 2017-08-15 | F168: Franchise MSAKEN | G168: MSK0013F | H168: 1 | I168: SOLD | J168: Tunis Entrepot DCGP
A169: 892160100122555652 | B169: SIGHW | C169: 043006000003 | D169: CARTE SIM 4G PRE MULTI SIM | E169: 2017-08-10 | F169: Franchise MSAKEN | G169: MSK0013F | H169: 1 | I169: SOLD | J169: Tunis Entrepot DCGP
B170: ASLOGHM | C170: 044004000010 | D170: Recharge Express | E170: 2017-08-10 | F170: Franchise MSAKEN | G170: MSK0013F | H170: 12 | I170: SOLD | J170: Tunis Entrepot DCGP
A171: 892160100122554854 | B171: SIGHW | C171: 043006000003 | D171: CARTE SIM 4G PRE MULTI SIM | E171: 2017-08-10 | F171: Franchise MSAKEN | G171: MSK0013F | H171: 1 | I171: SOLD | J171: Tunis Entrepot DCGP
B172: SIGHW | C172: 044004000010 | D172: Recharge Express | E172: 2017-08-14 | F172: Franchise MSAKEN | G172: MSK0013F | H172: 12 | I172: SOLD | J172: Tunis Entrepot DCGP
B173: RIGRAIET | C173: 044004000010 | D173: Recharge Express | E173: 2017-08-12 | F173: Franchise MSAKEN | G173: MSK0013F | H173: 12 | I173: SOLD | J173: Tunis Entrepot DCGP
A174: 892160100206713346 | B174: ABLOUNA | C174: 043008000001 | D174: CARTE SIM 4G FLYBOX | E174: 2017-08-14 | F174: Franchise MSAKEN | G174: MSK0013F | H174: 1 | I174: SOLD | J174: Tunis Entrepot DCGP
A175: 863605032642987 | B175: ABLOUNA | C175: 085001000011 | D175: FLYBOX B310 | E175: 2017-08-14 | F175: Franchise MSAKEN | G175: MSK0013F | H175: 1 | I175: SOLD | J175: Tunis Entrepot DCGP
A176: 892160100124728460 | B176: RIGRAIET | C176: 043007000004 | D176: CARTE SIM 4G DATA MULTI SIM | E176: 2017-08-14 | F176: Franchise MSAKEN | G176: MSK0013F | H176: 1 | I176: SOLD | J176: Tunis Entrepot DCGP
A177: 892160100122554942 | B177: ASLOGHM | C177: 043006000003 | D177: CARTE SIM 4G PRE MULTI SIM | E177: 2017-08-14 | F177: Franchise MSAKEN | G177: MSK0013F | H177: 1 | I177: SOLD | J177: Tunis Entrepot DCGP
A178: 892160100124729174 | B178: RIGRAIET | C178: 043007000004 | D178: CARTE SIM 4G DATA MULTI SIM | E178: 2017-08-10 | F178: Franchise MSAKEN | G178: MSK0013F | H178: 1 | I178: SOLD | J178: Tunis Entrepot DCGP
A179: 892160100122554941 | B179: ASLOGHM | C179: 043006000003 | D179: CARTE SIM 4G PRE MULTI SIM | E179: 2017-08-14 | F179: Franchise MSAKEN | G179: MSK0013F | H179: 1 | I179: SOLD | J179: Tunis Entrepot DCGP
A180: 892160100124729147 | B180: SIGHW | C180: 043007000004 | D180: CARTE SIM 4G DATA MULTI SIM | E180: 2017-08-14 | F180: Franchise MSAKEN | G180: MSK0013F | H180: 1 | I180: SOLD | J180: Tunis Entrepot DCGP
B181: ASLOGHM | C181: 044004000010 | D181: Recharge Express | E181: 2017-08-09 | F181: Franchise MSAKEN | G181: MSK0013F | H181: 20 | I181: SOLD | J181: Tunis Entrepot DCGP
A182: 892160100122555738 | B182: RIGRAIET | C182: 043006000003 | D182: CARTE SIM 4G PRE MULTI SIM | E182: 2017-08-12 | F182: Franchise MSAKEN | G182: MSK0013F | H182: 1 | I182: SOLD | J182: Tunis Entrepot DCGP
B183: ABLOUNA | C183: 044004000010 | D183: Recharge Express | E183: 2017-08-10 | F183: Franchise MSAKEN | G183: MSK0013F | H183: 5 | I183: SOLD | J183: Tunis Entrepot DCGP
B184: RIGRAIET | C184: 044004000010 | D184: Recharge Express | E184: 2017-08-09 | F184: Franchise MSAKEN | G184: MSK0013F | H184: 10 | I184: SOLD | J184: Tunis Entrepot DCGP
B185: ABLOUNA | C185: 044004000010 | D185: Recharge Express | E185: 2017-08-14 | F185: Franchise MSAKEN | G185: MSK0013F | H185: 5 | I185: SOLD | J185: Tunis Entrepot DCGP
B186: ASLOGHM | C186: 044004000010 | D186: Recharge Express | E186: 2017-08-10 | F186: Franchise MSAKEN | G186: MSK0013F | H186: 5 | I186: SOLD | J186: Tunis Entrepot DCGP
A187: 892160100122555577 | B187: ASLOGHM | C187: 043006000003 | D187: CARTE SIM 4G PRE MULTI SIM | E187: 2017-08-09 | F187: Franchise MSAKEN | G187: MSK0013F | H187: 1 | I187: SOLD | J187: Tunis Entrepot DCGP
B188: RIGRAIET | C188: 044004000010 | D188: Recharge Express | E188: 2017-08-12 | F188: Franchise MSAKEN | G188: MSK0013F | H188: 25 | I188: SOLD | J188: Tunis Entrepot DCGP
B189: ABLOUNA | C189: 044004000010 | D189: Recharge Express | E189: 2017-08-12 | F189: Franchise MSAKEN | G189: MSK0013F | H189: 1 | I189: SOLD | J189: Tunis Entrepot DCGP
A190: 892160100122555707 | B190: RIGRAIET | C190: 043006000003 | D190: CARTE SIM 4G PRE MULTI SIM | E190: 2017-08-12 | F190: Franchise MSAKEN | G190: MSK0013F | H190: 1 | I190: SOLD | J190: Tunis Entrepot DCGP
B191: SIGHW | C191: 999100001003 | D191: SERVICE TRANSFERT CONTACT | E191: 2017-08-10 | F191: Franchise MSAKEN | G191: MSK0013F | H191: 1 | I191: SOLD | J191: Tunis Entrepot DCGP
B192: RIGRAIET | C192: 044004000010 | D192: Recharge Express | E192: 2017-08-09 | F192: Franchise MSAKEN | G192: MSK0013F | H192: 10 | I192: SOLD | J192: Tunis Entrepot DCGP
A193: 892160100122554865 | B193: SIGHW | C193: 043006000003 | D193: CARTE SIM 4G PRE MULTI SIM | E193: 2017-08-10 | F193: Franchise MSAKEN | G193: MSK0013F | H193: 1 | I193: SOLD | J193: Tunis Entrepot DCGP
A194: 892160100122555682 | B194: RIGRAIET | C194: 043006000003 | D194: CARTE SIM 4G PRE MULTI SIM | E194: 2017-08-11 | F194: Franchise MSAKEN | G194: MSK0013F | H194: 1 | I194: SOLD | J194: Tunis Entrepot DCGP
B195: RIGRAIET | C195: 044004000010 | D195: Recharge Express | E195: 2017-08-11 | F195: Franchise MSAKEN | G195: MSK0013F | H195: 5 | I195: SOLD | J195: Tunis Entrepot DCGP
B196: RIGRAIET | C196: 044004000010 | D196: Recharge Express | E196: 2017-08-11 | F196: Franchise MSAKEN | G196: MSK0013F | H196: 30 | I196: SOLD | J196: Tunis Entrepot DCGP
A197: 892160100124728447 | B197: ABLOUNA | C197: 043007000004 | D197: CARTE SIM 4G DATA MULTI SIM | E197: 2017-08-11 | F197: Franchise MSAKEN | G197: MSK0013F | H197: 1 | I197: SOLD | J197: Tunis Entrepot DCGP
B198: ABLOUNA | C198: 044004000010 | D198: Recharge Express | E198: 2017-08-11 | F198: Franchise MSAKEN | G198: MSK0013F | H198: 5 | I198: SOLD | J198: Tunis Entrepot DCGP
A199: 892160100122554899 | B199: ASLOGHM | C199: 043006000003 | D199: CARTE SIM 4G PRE MULTI SIM | E199: 2017-08-11 | F199: Franchise MSAKEN | G199: MSK0013F | H199: 1 | I199: SOLD | J199: Tunis Entrepot DCGP
B200: ABLOUNA | C200: 044004000010 | D200: Recharge Express | E200: 2017-08-11 | F200: Franchise MSAKEN | G200: MSK0013F | H200: 5 | I200: SOLD | J200: Tunis Entrepot DCGP
... 1119 more rows

Sheet Report-Sales
A1: Utilisateur | B1: Date | C1: Ref produit | D1: Nom produit | E1: Quantité payée | F1: Prix de vente TTC payé | G1: Quantité non payée | H1: Prix de vente non payé | I1: Quantité totale | J1: Montant total | K1: Marché
A2: SIGHW | B2: 15 août 2017 | C2: P53327 | D2: Pack - offre Pass | E2: 1 | F2: 0,000 | G2: 0 | H2: 0,000 | I2: 1 | J2: 0,000 | K2: Mobile
A3: ASLOGHM | B3: 15 août 2017 | C3: 044004000010 | D3: Recharge Express | E3: 30 | F3: 33,000 | G3: 0 | H3: 0,000 | I3: 30 | J3: 33,000 | K3: Mobile
A4: ASLOGHM | B4: 15 août 2017 | C4: 044004000010 | D4: Recharge Express | E4: 20 | F4: 22,000 | G4: 0 | H4: 0,000 | I4: 20 | J4: 22,000 | K4: Mobile
A5: RIGRAIET | B5: 15 août 2017 | C5: PRE21 | D5: Melle5er | E5: 1 | F5: 0,000 | G5: 0 | H5: 0,000 | I5: 1 | J5: 0,000 | K5: Mobile
A6: ASLOGHM | B6: 15 août 2017 | C6: PRE21 | D6: Melle5er | E6: 4 | F6: 0,000 | G6: 0 | H6: 0,000 | I6: 4 | J6: 0,000 | K6: Mobile
A7: ASLOGHM | B7: 15 août 2017 | C7: P56567 | D7: Pack Sim data - offre Simply 7,5 Go + illimité | E7: 1 | F7: 0,000 | G7: 0 | H7: 0,000 | I7: 1 | J7: 0,000 | K7: Mobile
A8: ASLOGHM | B8: 15 août 2017 | C8: PRE23 | D8: El Jam3ia Mobile | E8: 4 | F8: 0,000 | G8: 0 | H8: 0,000 | I8: 4 | J8: 0,000 | K8: Mobile
A9: ABLOUNA | B9: 15 août 2017 | C9: 044004000010 | D9: Recharge Express | E9: 13 | F9: 14,300 | G9: 0 | H9: 0,000 | I9: 13 | J9: 14,300 | K9: Mobile
A10: ASLOGHM | B10: 15 août 2017 | C10: 999100001003 | D10: SERVICE TRANSFERT CONTACT | E10: 1 | F10: 3,000 | G10: 0 | H10: 0,000 | I10: 1 | J10: 3,000 | K10: Mobile
A11: ASLOGHM | B11: 15 août 2017 | C11: PRE10 | D11: offre Pass | E11: 1 | F11: 0,000 | G11: 0 | H11: 0,000 | I11: 1 | J11: 0,000 | K11: Mobile
A12: ASLOGHM | B12: 15 août 2017 | C12: 044004000010 | D12: Recharge Express | E12: 24 | F12: 26,400 | G12: 0 | H12: 0,000 | I12: 24 | J12: 26,400 | K12: Mobile
A13: ABLOUNA | B13: 15 août 2017 | C13: 044004000010 | D13: Recharge Express | E13: 15 | F13: 16,500 | G13: 0 | H13: 0,000 | I13: 15 | J13: 16,500 | K13: Mobile
A14: SIGHW | B14: 15 août 2017 | C14: PRE10 | D14: offre Pass | E14: 1 | F14: 0,000 | G14: 0 | H14: 0,000 | I14: 1 | J14: 0,000 | K14: Mobile
A15: SIGHW | B15: 15 août 2017 | C15: PRE17 | D15: 3alami | E15: 1 | F15: 0,000 | G15: 0 | H15: 0,000 | I15: 1 | J15: 0,000 | K15: Mobile
A16: ABLOUNA | B16: 15 août 2017 | C16: 044004000010 | D16: Recharge Express | E16: 30 | F16: 33,000 | G16: 0 | H16: 0,000 | I16: 30 | J16: 33,000 | K16: Mobile
A17: ABLOUNA | B17: 15 août 2017 | C17: 044004000010 | D17: Recharge Express | E17: 12 | F17: 13,200 | G17: 0 | H17: 0,000 | I17: 12 | J17: 13,200 | K17: Mobile
A18: ABLOUNA | B18: 15 août 2017 | C18: PRE03 | D18: offre Simply | E18: 1 | F18: 0,000 | G18: 0 | H18: 0,000 | I18: 1 | J18: 0,000 | K18: Mobile
A19: ASLOGHM | B19: 15 août 2017 | C19: P53327 | D19: Pack - offre Pass | E19: 1 | F19: 0,000 | G19: 0 | H19: 0,000 | I19: 1 | J19: 0,000 | K19: Mobile
A20: SIGHW | B20: 15 août 2017 | C20: 044004000010 | D20: Recharge Express | E20: 25 | F20: 27,500 | G20: 0 | H20: 0,000 | I20: 25 | J20: 27,500 | K20: Mobile
A21: ABLOUNA | B21: 15 août 2017 | C21: PRE23 | D21: El Jam3ia Mobile | E21: 8 | F21: 0,000 | G21: 0 | H21: 0,000 | I21: 8 | J21: 0,000 | K21: Mobile
A22: ASLOGHM | B22: 15 août 2017 | C22: 044004000010 | D22: Recharge Express | E22: 30 | F22: 33,000 | G22: 0 | H22: 0,000 | I22: 30 | J22: 33,000 | K22: Mobile
A23: ABLOUNA | B23: 15 août 2017 | C23: 044004000010 | D23: Recharge Express | E23: 60 | F23: 66,000 | G23: 0 | H23: 0,000 | I23: 60 | J23: 66,000 | K23: Mobile
A24: ABLOUNA | B24: 15 août 2017 | C24: PRE17 | D24: 3alami | E24: 1 | F24: 0,000 | G24: 0 | H24: 0,000 | I24: 1 | J24: 0,000 | K24: Mobile
A25: ASLOGHM | B25: 15 août 2017 | C25: 044004000010 | D25: Recharge Express | E25: 10 | F25: 11,000 | G25: 0 | H25: 0,000 | I25: 10 | J25: 11,000 | K25: Mobile
A26: ABLOUNA | B26: 15 août 2017 | C26: PRE21 | D26: Melle5er | E26: 3 | F26: 0,000 | G26: 0 | H26: 0,000 | I26: 3 | J26: 0,000 | K26: Mobile
A27: ABLOUNA | B27: 15 août 2017 | C27: P56567 | D27: Pack Sim data - offre Simply 7,5 Go + illimité | E27: 1 | F27: 0,000 | G27: 0 | H27: 0,000 | I27: 1 | J27: 0,000 | K27: Mobile
A28: ASLOGHM | B28: 15 août 2017 | C28: PRE03 | D28: offre Simply | E28: 1 | F28: 0,000 | G28: 0 | H28: 0,000 | I28: 1 | J28: 0,000 | K28: Mobile
A29: ASLOGHM | B29: 15 août 2017 | C29: 044004000010 | D29: Recharge Express | E29: 15 | F29: 16,500 | G29: 0 | H29: 0,000 | I29: 15 | J29: 16,500 | K29: Mobile
A30: SIGHW | B30: 15 août 2017 | C30: 043007000004 | D30: CARTE SIM 4G DATA MULTI SIM | E30: 1 | F30: 5,000 | G30: 0 | H30: 0,000 | I30: 1 | J30: 5,000 | K30: Mobile
A31: ASLOGHM | B31: 15 août 2017 | C31: 043007000004 | D31: CARTE SIM 4G DATA MULTI SIM | E31: 1 | F31: 5,000 | G31: 0 | H31: 0,000 | I31: 1 | J31: 5,000 | K31: Mobile
A32: SIGHW | B32: 15 août 2017 | C32: 043006000003 | D32: CARTE SIM 4G PRE MULTI SIM | E32: 1 | F32: 0,000 | G32: 0 | H32: 0,000 | I32: 1 | J32: 0,000 | K32: Mobile
A33: ABLOUNA | B33: 15 août 2017 | C33: 043007000004 | D33: CARTE SIM 4G DATA MULTI SIM | E33: 1 | F33: 30,000 | G33: 0 | H33: 0,000 | I33: 1 | J33: 30,000 | K33: Mobile
A34: ABLOUNA | B34: 15 août 2017 | C34: 043006000003 | D34: CARTE SIM 4G PRE MULTI SIM | E34: 5 | F34: 0,000 | G34: 0 | H34: 0,000 | I34: 5 | J34: 0,000 | K34: Mobile
A35: ABLOUNA | B35: 15 août 2017 | C35: 188003000016 | D35: Modem Huawei HG532 | E35: 1 | F35: 0,000 | G35: 0 | H35: 0,000 | I35: 1 | J35: 0,000 | K35: ADSL
A36: RIGRAIET | B36: 15 août 2017 | C36: 043006000003 | D36: CARTE SIM 4G PRE MULTI SIM | E36: 1 | F36: 0,000 | G36: 0 | H36: 0,000 | I36: 1 | J36: 0,000 | K36: Mobile
A37: ASLOGHM | B37: 15 août 2017 | C37: 043001000114 | D37: CARTE PREACTIVEE VD | E37: 4 | F37: 12,000 | G37: 0 | H37: 0,000 | I37: 4 | J37: 12,000 | K37: Mobile
A38: ASLOGHM | B38: 15 août 2017 | C38: 043006000003 | D38: CARTE SIM 4G PRE MULTI SIM | E38: 2 | F38: 0,000 | G38: 0 | H38: 0,000 | I38: 2 | J38: 0,000 | K38: Mobile
A39: ASLOGHM | B39: 15 août 2017 | C39: 043006000003 | D39: CARTE SIM 4G PRE MULTI SIM | E39: 1 | F39: 3,000 | G39: 0 | H39: 0,000 | I39: 1 | J39: 3,000 | K39: Mobile
A40: ASLOGHM | B40: 15 août 2017 | C40: 043007000004 | D40: CARTE SIM 4G DATA MULTI SIM | E40: 1 | F40: 30,000 | G40: 0 | H40: 0,000 | I40: 1 | J40: 30,000 | K40: Mobile
A41: ABLOUNA | B41: 15 août 2017 | C41: 043006000003 | D41: CARTE SIM 4G PRE MULTI SIM | E41: 1 | F41: 3,000 | G41: 0 | H41: 0,000 | I41: 1 | J41: 3,000 | K41: Mobile
A42: ASLOGHM | B42: 15 août 2017 | C42: 043006000003 | D42: CARTE SIM 4G PRE MULTI SIM | E42: 3 | F42: 15,000 | G42: 0 | H42: 0,000 | I42: 3 | J42: 15,000 | K42: Mobile
A43: ABLOUNA | B43: 15 août 2017 | C43: 043001000114 | D43: CARTE PREACTIVEE VD | E43: 8 | F43: 24,000 | G43: 0 | H43: 0,000 | I43: 8 | J43: 24,000 | K43: Mobile
A44: RIGRAIET | B44: 14 août 2017 | C44: 044004000010 | D44: Recharge Express | E44: 30 | F44: 33,000 | G44: 0 | H44: 0,000 | I44: 30 | J44: 33,000 | K44: Mobile
A45: RIGRAIET | B45: 14 août 2017 | C45: PRE10 | D45: offre Pass | E45: 5 | F45: 0,000 | G45: 0 | H45: 0,000 | I45: 5 | J45: 0,000 | K45: Mobile
A46: RIGRAIET | B46: 14 août 2017 | C46: PRE21 | D46: Melle5er | E46: 6 | F46: 0,000 | G46: 0 | H46: 0,000 | I46: 6 | J46: 0,000 | K46: Mobile
A47: SIGHW | B47: 14 août 2017 | C47: PRE10 | D47: offre Pass | E47: 2 | F47: 0,000 | G47: 0 | H47: 0,000 | I47: 2 | J47: 0,000 | K47: Mobile
A48: RIGRAIET | B48: 14 août 2017 | C48: P53287 | D48: Clé 3G E3531 é?Offre Pass é? Bonus Internet 3Go - 1 mois | E48: 1 | F48: 0,000 | G48: 0 | H48: 0,000 | I48: 1 | J48: 0,000 | K48: Mobile
A49: ABLOUNA | B49: 14 août 2017 | C49: PRE23 | D49: El Jam3ia Mobile | E49: 2 | F49: 0,000 | G49: 0 | H49: 0,000 | I49: 2 | J49: 0,000 | K49: Mobile
A50: ABLOUNA | B50: 14 août 2017 | C50: HYB13 | D50: Flybox home | E50: 1 | F50: 0,000 | G50: 0 | H50: 0,000 | I50: 1 | J50: 0,000 | K50: Mobile
A51: ABLOUNA | B51: 14 août 2017 | C51: 044004000010 | D51: Recharge Express | E51: 5 | F51: 5,500 | G51: 0 | H51: 0,000 | I51: 5 | J51: 5,500 | K51: Mobile
A52: SIGHW | B52: 14 août 2017 | C52: 044004000010 | D52: Recharge Express | E52: 10 | F52: 11,000 | G52: 0 | H52: 0,000 | I52: 10 | J52: 11,000 | K52: Mobile
A53: RIGRAIET | B53: 14 août 2017 | C53: 999100001003 | D53: SERVICE TRANSFERT CONTACT | E53: 2 | F53: 6,000 | G53: 0 | H53: 0,000 | I53: 2 | J53: 6,000 | K53: Mobile
A54: RIGRAIET | B54: 14 août 2017 | C54: 044004000010 | D54: Recharge Express | E54: 15 | F54: 16,500 | G54: 0 | H54: 0,000 | I54: 15 | J54: 16,500 | K54: Mobile
A55: ABLOUNA | B55: 14 août 2017 | C55: PRE21 | D55: Melle5er | E55: 2 | F55: 0,000 | G55: 0 | H55: 0,000 | I55: 2 | J55: 0,000 | K55: Mobile
A56: ASLOGHM | B56: 14 août 2017 | C56: PRE17 | D56: 3alami | E56: 1 | F56: 0,000 | G56: 0 | H56: 0,000 | I56: 1 | J56: 0,000 | K56: Mobile
A57: RIGRAIET | B57: 14 août 2017 | C57: PRE03 | D57: offre Simply | E57: 1 | F57: 0,000 | G57: 0 | H57: 0,000 | I57: 1 | J57: 0,000 | K57: Mobile
A58: SIGHW | B58: 14 août 2017 | C58: 999100001003 | D58: SERVICE TRANSFERT CONTACT | E58: 2 | F58: 6,000 | G58: 0 | H58: 0,000 | I58: 2 | J58: 6,000 | K58: Mobile
A59: SIGHW | B59: 14 août 2017 | C59: ADV2 | D59: Avance 2 mois | E59: 1 | F59: 58,000 | G59: 0 | H59: 0,000 | I59: 1 | J59: 58,000 | K59: Mobile
A60: RIGRAIET | B60: 14 août 2017 | C60: HYB13 | D60: Flybox home | E60: 1 | F60: 0,000 | G60: 0 | H60: 0,000 | I60: 1 | J60: 0,000 | K60: Mobile
A61: RIGRAIET | B61: 14 août 2017 | C61: 044004000010 | D61: Recharge Express | E61: 25 | F61: 27,500 | G61: 0 | H61: 0,000 | I61: 25 | J61: 27,500 | K61: Mobile
A62: RIGRAIET | B62: 14 août 2017 | C62: 044004000010 | D62: Recharge Express | E62: 30 | F62: 33,000 | G62: 0 | H62: 0,000 | I62: 30 | J62: 33,000 | K62: Mobile
A63: SIGHW | B63: 14 août 2017 | C63: PRE17 | D63: 3alami | E63: 1 | F63: 0,000 | G63: 0 | H63: 0,000 | I63: 1 | J63: 0,000 | K63: Mobile
A64: SIGHW | B64: 14 août 2017 | C64: 044004000010 | D64: Recharge Express | E64: 90 | F64: 99,000 | G64: 0 | H64: 0,000 | I64: 90 | J64: 99,000 | K64: Mobile
A65: ASLOGHM | B65: 14 août 2017 | C65: P56567 | D65: Pack Sim data - offre Simply 7,5 Go + illimité | E65: 2 | F65: 0,000 | G65: 0 | H65: 0,000 | I65: 2 | J65: 0,000 | K65: Mobile
A66: ASLOGHM | B66: 14 août 2017 | C66: 044004000010 | D66: Recharge Express | E66: 9 | F66: 9,900 | G66: 0 | H66: 0,000 | I66: 9 | J66: 9,900 | K66: Mobile
A67: ASLOGHM | B67: 14 août 2017 | C67: 084006000285 | D67: CLE USB SANDISK 8GB | E67: 1 | F67: 6,900 | G67: 0 | H67: 0,000 | I67: 1 | J67: 6,900 | K67: Mobile
A68: ASLOGHM | B68: 14 août 2017 | C68: 047006000255 | D68: SANGLE PVC PORTABLE | E68: 1 | F68: 2,200 | G68: 0 | H68: 0,000 | I68: 1 | J68: 2,200 | K68: Mobile
A69: ABLOUNA | B69: 14 août 2017 | C69: 044004000010 | D69: Recharge Express | E69: 2 | F69: 2,200 | G69: 0 | H69: 0,000 | I69: 2 | J69: 2,200 | K69: Mobile
A70: SIGHW | B70: 14 août 2017 | C70: 044004000010 | D70: Recharge Express | E70: 15 | F70: 16,500 | G70: 0 | H70: 0,000 | I70: 15 | J70: 16,500 | K70: Mobile
A71: ABLOUNA | B71: 14 août 2017 | C71: 044004000010 | D71: Recharge Express | E71: 15 | F71: 16,500 | G71: 0 | H71: 0,000 | I71: 15 | J71: 16,500 | K71: Mobile
A72: RIGRAIET | B72: 14 août 2017 | C72: P60645 | D72: Pack R??engagement Orange TAB 7 _ 4G NOIR - Flybox home - 12 mois | E72: 1 | F72: 0,000 | G72: 0 | H72: 0,000 | I72: 1 | J72: 0,000 | K72: Mobile
A73: RIGRAIET | B73: 14 août 2017 | C73: 044004000010 | D73: Recharge Express | E73: 30 | F73: 33,000 | G73: 0 | H73: 0,000 | I73: 30 | J73: 33,000 | K73: Mobile
A74: SIGHW | B74: 14 août 2017 | C74: 044004000010 | D74: Recharge Express | E74: 44 | F74: 48,400 | G74: 0 | H74: 0,000 | I74: 44 | J74: 48,400 | K74: Mobile
A75: ASLOGHM | B75: 14 août 2017 | C75: PRE13 | D75: Edawa5 | E75: 2 | F75: 0,000 | G75: 0 | H75: 0,000 | I75: 2 | J75: 0,000 | K75: Mobile
A76: ASLOGHM | B76: 14 août 2017 | C76: PRE10 | D76: offre Pass | E76: 4 | F76: 0,000 | G76: 0 | H76: 0,000 | I76: 4 | J76: 0,000 | K76: Mobile
A77: ASLOGHM | B77: 14 août 2017 | C77: P53327 | D77: Pack - offre Pass | E77: 4 | F77: 0,000 | G77: 0 | H77: 0,000 | I77: 4 | J77: 0,000 | K77: Mobile
A78: ASLOGHM | B78: 14 août 2017 | C78: PRE21 | D78: Melle5er | E78: 5 | F78: 0,000 | G78: 0 | H78: 0,000 | I78: 5 | J78: 0,000 | K78: Mobile
A79: SIGHW | B79: 14 août 2017 | C79: 044004000010 | D79: Recharge Express | E79: 30 | F79: 33,000 | G79: 0 | H79: 0,000 | I79: 30 | J79: 33,000 | K79: Mobile
A80: SIGHW | B80: 14 août 2017 | C80: 044004000010 | D80: Recharge Express | E80: 25 | F80: 27,500 | G80: 0 | H80: 0,000 | I80: 25 | J80: 27,500 | K80: Mobile
A81: RIGRAIET | B81: 14 août 2017 | C81: 999100001003 | D81: SERVICE TRANSFERT CONTACT | E81: 2 | F81: 6,000 | G81: 0 | H81: 0,000 | I81: 2 | J81: 6,000 | K81: Mobile
A82: SIGHW | B82: 14 août 2017 | C82: P59928 | D82: Pack 2 mois - Flybox MAX - internet + voix | E82: 1 | F82: 0,000 | G82: 0 | H82: 0,000 | I82: 1 | J82: 0,000 | K82: Mobile
A83: SIGHW | B83: 14 août 2017 | C83: 044004000010 | D83: Recharge Express | E83: 40 | F83: 44,000 | G83: 0 | H83: 0,000 | I83: 40 | J83: 44,000 | K83: Mobile
A84: SIGHW | B84: 14 août 2017 | C84: P53327 | D84: Pack - offre Pass | E84: 2 | F84: 0,000 | G84: 0 | H84: 0,000 | I84: 2 | J84: 0,000 | K84: Mobile
A85: ABLOUNA | B85: 14 août 2017 | C85: 044004000010 | D85: Recharge Express | E85: 30 | F85: 33,000 | G85: 0 | H85: 0,000 | I85: 30 | J85: 33,000 | K85: Mobile
A86: ASLOGHM | B86: 14 août 2017 | C86: 044004000010 | D86: Recharge Express | E86: 30 | F86: 33,000 | G86: 0 | H86: 0,000 | I86: 30 | J86: 33,000 | K86: Mobile
A87: SIGHW | B87: 14 août 2017 | C87: PRE03 | D87: offre Simply | E87: 1 | F87: 0,000 | G87: 0 | H87: 0,000 | I87: 1 | J87: 0,000 | K87: Mobile
A88: SIGHW | B88: 14 août 2017 | C88: P56567 | D88: Pack Sim data - offre Simply 7,5 Go + illimité | E88: 1 | F88: 0,000 | G88: 0 | H88: 0,000 | I88: 1 | J88: 0,000 | K88: Mobile
A89: ASLOGHM | B89: 14 août 2017 | C89: PRE03 | D89: offre Simply | E89: 2 | F89: 0,000 | G89: 0 | H89: 0,000 | I89: 2 | J89: 0,000 | K89: Mobile
A90: RIGRAIET | B90: 14 août 2017 | C90: PRE13 | D90: Edawa5 | E90: 1 | F90: 0,000 | G90: 0 | H90: 0,000 | I90: 1 | J90: 0,000 | K90: Mobile
A91: RIGRAIET | B91: 14 août 2017 | C91: P53327 | D91: Pack - offre Pass | E91: 3 | F91: 0,000 | G91: 0 | H91: 0,000 | I91: 3 | J91: 0,000 | K91: Mobile
A92: SIGHW | B92: 14 août 2017 | C92: PRE21 | D92: Melle5er | E92: 5 | F92: 0,000 | G92: 0 | H92: 0,000 | I92: 5 | J92: 0,000 | K92: Mobile
A93: RIGRAIET | B93: 14 août 2017 | C93: P50759 | D93: Pack Clé 4G - Offre Pass - Bonus internet 5 Go- 2 mois | E93: 1 | F93: 0,000 | G93: 0 | H93: 0,000 | I93: 1 | J93: 0,000 | K93: Mobile
A94: RIGRAIET | B94: 14 août 2017 | C94: 044004000010 | D94: Recharge Express | E94: 24 | F94: 26,400 | G94: 0 | H94: 0,000 | I94: 24 | J94: 26,400 | K94: Mobile
A95: SIGHW | B95: 14 août 2017 | C95: 044004000010 | D95: Recharge Express | E95: 18 | F95: 19,800 | G95: 0 | H95: 0,000 | I95: 18 | J95: 19,800 | K95: Mobile
A96: ABLOUNA | B96: 14 août 2017 | C96: 044004000010 | D96: Recharge Express | E96: 24 | F96: 26,400 | G96: 0 | H96: 0,000 | I96: 24 | J96: 26,400 | K96: Mobile
A97: ABLOUNA | B97: 14 août 2017 | C97: 044004000010 | D97: Recharge Express | E97: 30 | F97: 33,000 | G97: 0 | H97: 0,000 | I97: 30 | J97: 33,000 | K97: Mobile
A98: ABLOUNA | B98: 14 août 2017 | C98: P50371 | D98: Pack FLYBOX B310 - FLYBOX B310-CARTE SIM 4G FLYBOX-Flybox home - 24 mois | E98: 1 | F98: 0,000 | G98: 0 | H98: 0,000 | I98: 1 | J98: 0,000 | K98: Mobile
A99: SIGHW | B99: 14 août 2017 | C99: 044004000010 | D99: Recharge Express | E99: 2 | F99: 2,200 | G99: 0 | H99: 0,000 | I99: 2 | J99: 2,200 | K99: Mobile
A100: SIGHW | B100: 14 août 2017 | C100: HYB35 | D100: Flybox MAX | E100: 1 | F100: 0,000 | G100: 0 | H100: 0,000 | I100: 1 | J100: 0,000 | K100: Mobile
A101: RIGRAIET | B101: 14 août 2017 | C101: 044004000010 | D101: Recharge Express | E101: 12 | F101: 13,200 | G101: 0 | H101: 0,000 | I101: 12 | J101: 13,200 | K101: Mobile
A102: SIGHW | B102: 14 août 2017 | C102: 044004000010 | D102: Recharge Express | E102: 24 | F102: 26,400 | G102: 0 | H102: 0,000 | I102: 24 | J102: 26,400 | K102: Mobile
A103: RIGRAIET | B103: 14 août 2017 | C103: P56567 | D103: Pack Sim data - offre Simply 7,5 Go + illimité | E103: 1 | F103: 0,000 | G103: 0 | H103: 0,000 | I103: 1 | J103: 0,000 | K103: Mobile
A104: SIGHW | B104: 14 août 2017 | C104: 043007000004 | D104: CARTE SIM 4G DATA MULTI SIM | E104: 2 | F104: 10,000 | G104: 0 | H104: 0,000 | I104: 2 | J104: 10,000 | K104: Mobile
A105: SIGHW | B105: 14 août 2017 | C105: 043006000003 | D105: CARTE SIM 4G PRE MULTI SIM | E105: 5 | F105: 0,000 | G105: 0 | H105: 0,000 | I105: 5 | J105: 0,000 | K105: Mobile
A106: ABLOUNA | B106: 14 août 2017 | C106: 085001000011 | D106: FLYBOX B310 | E106: 1 | F106: 0,000 | G106: 0 | H106: 0,000 | I106: 1 | J106: 0,000 | K106: Mobile
A107: RIGRAIET | B107: 14 août 2017 | C107: 079001000057 | D107: Orange TAB 7 - 4G NOIR | E107: 1 | F107: 69,000 | G107: 0 | H107: 0,000 | I107: 1 | J107: 69,000 | K107: Mobile
A108: ASLOGHM | B108: 14 août 2017 | C108: 043007000004 | D108: CARTE SIM 4G DATA MULTI SIM | E108: 2 | F108: 60,000 | G108: 0 | H108: 0,000 | I108: 2 | J108: 60,000 | K108: Mobile
A109: ASLOGHM | B109: 14 août 2017 | C109: 043006000003 | D109: CARTE SIM 4G PRE MULTI SIM | E109: 7 | F109: 0,000 | G109: 0 | H109: 0,000 | I109: 7 | J109: 0,000 | K109: Mobile
A110: ASLOGHM | B110: 14 août 2017 | C110: 043007000004 | D110: CARTE SIM 4G DATA MULTI SIM | E110: 4 | F110: 20,000 | G110: 0 | H110: 0,000 | I110: 4 | J110: 20,000 | K110: Mobile
A111: RIGRAIET | B111: 14 août 2017 | C111: 043006000003 | D111: CARTE SIM 4G PRE MULTI SIM | E111: 8 | F111: 0,000 | G111: 0 | H111: 0,000 | I111: 8 | J111: 0,000 | K111: Mobile
A112: RIGRAIET | B112: 14 août 2017 | C112: 043006000003 | D112: CARTE SIM 4G PRE MULTI SIM | E112: 1 | F112: 3,000 | G112: 0 | H112: 0,000 | I112: 1 | J112: 3,000 | K112: Mobile
A113: RIGRAIET | B113: 14 août 2017 | C113: 083025001002 | D113: SERVICOM EASY 3 WHTE BLCK | E113: 1 | F113: 39,900 | G113: 0 | H113: 0,000 | I113: 1 | J113: 39,900 | K113: Mobile
A114: RIGRAIET | B114: 14 août 2017 | C114: 043007000004 | D114: CARTE SIM 4G DATA MULTI SIM | E114: 1 | F114: 30,000 | G114: 0 | H114: 0,000 | I114: 1 | J114: 30,000 | K114: Mobile
A115: ASLOGHM | B115: 14 août 2017 | C115: 043006000003 | D115: CARTE SIM 4G PRE MULTI SIM | E115: 1 | F115: 3,000 | G115: 0 | H115: 0,000 | I115: 1 | J115: 3,000 | K115: Mobile
A116: ABLOUNA | B116: 14 août 2017 | C116: 043006000003 | D116: CARTE SIM 4G PRE MULTI SIM | E116: 1 | F116: 5,000 | G116: 0 | H116: 0,000 | I116: 1 | J116: 5,000 | K116: Mobile
A117: RIGRAIET | B117: 14 août 2017 | C117: 043006000003 | D117: CARTE SIM 4G PRE MULTI SIM | E117: 4 | F117: 20,000 | G117: 0 | H117: 0,000 | I117: 4 | J117: 20,000 | K117: Mobile
A118: SIGHW | B118: 14 août 2017 | C118: 043007000004 | D118: CARTE SIM 4G DATA MULTI SIM | E118: 1 | F118: 30,000 | G118: 0 | H118: 0,000 | I118: 1 | J118: 30,000 | K118: Mobile
A119: ABLOUNA | B119: 14 août 2017 | C119: 043008000001 | D119: CARTE SIM 4G FLYBOX | E119: 1 | F119: 0,000 | G119: 0 | H119: 0,000 | I119: 1 | J119: 0,000 | K119: Mobile
A120: SIGHW | B120: 14 août 2017 | C120: 043006000003 | D120: CARTE SIM 4G PRE MULTI SIM | E120: 3 | F120: 9,000 | G120: 0 | H120: 0,000 | I120: 3 | J120: 9,000 | K120: Mobile
A121: ABLOUNA | B121: 14 août 2017 | C121: 043006000003 | D121: CARTE SIM 4G PRE MULTI SIM | E121: 1 | F121: 0,000 | G121: 0 | H121: 0,000 | I121: 1 | J121: 0,000 | K121: Mobile
A122: RIGRAIET | B122: 14 août 2017 | C122: 046002000041 | D122: CLE 4G E3372H | E122: 1 | F122: 0,000 | G122: 0 | H122: 0,000 | I122: 1 | J122: 0,000 | K122: Mobile
A123: SIGHW | B123: 14 août 2017 | C123: 043006000003 | D123: CARTE SIM 4G PRE MULTI SIM | E123: 3 | F123: 15,000 | G123: 0 | H123: 0,000 | I123: 3 | J123: 15,000 | K123: Mobile
A124: RIGRAIET | B124: 14 août 2017 | C124: 085001000011 | D124: FLYBOX B310 | E124: 1 | F124: 0,000 | G124: 0 | H124: 0,000 | I124: 1 | J124: 0,000 | K124: Mobile
A125: RIGRAIET | B125: 14 août 2017 | C125: 046002000034 | D125: CLE 3G E3531 | E125: 1 | F125: 0,000 | G125: 0 | H125: 0,000 | I125: 1 | J125: 0,000 | K125: Mobile
A126: SIGHW | B126: 14 août 2017 | C126: 085001000011 | D126: FLYBOX B310 | E126: 1 | F126: 0,000 | G126: 0 | H126: 0,000 | I126: 1 | J126: 0,000 | K126: Mobile
A127: RIGRAIET | B127: 14 août 2017 | C127: 188003000016 | D127: Modem Huawei HG532 | E127: 1 | F127: 0,000 | G127: 0 | H127: 0,000 | I127: 1 | J127: 0,000 | K127: ADSL
A128: ABLOUNA | B128: 14 août 2017 | C128: 043001000114 | D128: CARTE PREACTIVEE VD | E128: 2 | F128: 6,000 | G128: 0 | H128: 0,000 | I128: 2 | J128: 6,000 | K128: Mobile
A129: ABLOUNA | B129: 14 août 2017 | C129: 045022002001 | D129: ORANGE IT 2110 | E129: 1 | F129: 32,000 | G129: 0 | H129: 0,000 | I129: 1 | J129: 32,000 | K129: Mobile
A130: ASLOGHM | B130: 14 août 2017 | C130: 043006000003 | D130: CARTE SIM 4G PRE MULTI SIM | E130: 1 | F130: 5,000 | G130: 0 | H130: 0,000 | I130: 1 | J130: 5,000 | K130: Mobile
A131: RIGRAIET | B131: 14 août 2017 | C131: 043007000004 | D131: CARTE SIM 4G DATA MULTI SIM | E131: 1 | F131: 40,000 | G131: 0 | H131: 0,000 | I131: 1 | J131: 40,000 | K131: Mobile
A132: RIGRAIET | B132: 14 août 2017 | C132: 043007000004 | D132: CARTE SIM 4G DATA MULTI SIM | E132: 3 | F132: 15,000 | G132: 0 | H132: 0,000 | I132: 3 | J132: 15,000 | K132: Mobile
A133: RIGRAIET | B133: 14 août 2017 | C133: 043007000004 | D133: CARTE SIM 4G DATA MULTI SIM | E133: 1 | F133: 14,000 | G133: 0 | H133: 0,000 | I133: 1 | J133: 14,000 | K133: Mobile
A134: RIGRAIET | B134: 14 août 2017 | C134: 043008000001 | D134: CARTE SIM 4G FLYBOX | E134: 1 | F134: 0,000 | G134: 0 | H134: 0,000 | I134: 1 | J134: 0,000 | K134: Mobile
A135: SIGHW | B135: 14 août 2017 | C135: 043008000001 | D135: CARTE SIM 4G FLYBOX | E135: 3 | F135: 0,000 | G135: 0 | H135: 0,000 | I135: 3 | J135: 0,000 | K135: Mobile
A136: ABLOUNA | B136: 12 août 2017 | C136: PRE10 | D136: offre Pass | E136: 1 | F136: 0,000 | G136: 0 | H136: 0,000 | I136: 1 | J136: 0,000 | K136: Mobile
A137: ABLOUNA | B137: 12 août 2017 | C137: P56567 | D137: Pack Sim data - offre Simply 7,5 Go + illimité | E137: 1 | F137: 0,000 | G137: 0 | H137: 0,000 | I137: 1 | J137: 0,000 | K137: Mobile
A138: SIGHW | B138: 12 août 2017 | C138: 044004000010 | D138: Recharge Express | E138: 24 | F138: 26,400 | G138: 0 | H138: 0,000 | I138: 24 | J138: 26,400 | K138: Mobile
A139: ABLOUNA | B139: 12 août 2017 | C139: P60702 | D139: Pack HUAWEI GR5 2017 GOLD - forfait optima 50 - 12 mois - Avance 2 mois | E139: 1 | F139: 0,000 | G139: 0 | H139: 0,000 | I139: 1 | J139: 0,000 | K139: Mobile
A140: RIGRAIET | B140: 12 août 2017 | C140: P53327 | D140: Pack - offre Pass | E140: 1 | F140: 0,000 | G140: 0 | H140: 0,000 | I140: 1 | J140: 0,000 | K140: Mobile
A141: ABLOUNA | B141: 12 août 2017 | C141: 044004000010 | D141: Recharge Express | E141: 18 | F141: 19,800 | G141: 0 | H141: 0,000 | I141: 18 | J141: 19,800 | K141: Mobile
A142: SIGHW | B142: 12 août 2017 | C142: PRE10 | D142: offre Pass | E142: 4 | F142: 0,000 | G142: 0 | H142: 0,000 | I142: 4 | J142: 0,000 | K142: Mobile
A143: RIGRAIET | B143: 12 août 2017 | C143: ADV2 | D143: Avance 2 mois | E143: 1 | F143: 58,000 | G143: 0 | H143: 0,000 | I143: 1 | J143: 58,000 | K143: Mobile
A144: ABLOUNA | B144: 12 août 2017 | C144: PRE21 | D144: Melle5er | E144: 4 | F144: 0,000 | G144: 0 | H144: 0,000 | I144: 4 | J144: 0,000 | K144: Mobile
A145: RIGRAIET | B145: 12 août 2017 | C145: 044004000010 | D145: Recharge Express | E145: 50 | F145: 55,000 | G145: 0 | H145: 0,000 | I145: 50 | J145: 55,000 | K145: Mobile
A146: RIGRAIET | B146: 12 août 2017 | C146: PRE10 | D146: offre Pass | E146: 1 | F146: 0,000 | G146: 0 | H146: 0,000 | I146: 1 | J146: 0,000 | K146: Mobile
A147: RIGRAIET | B147: 12 août 2017 | C147: 044004000010 | D147: Recharge Express | E147: 2 | F147: 2,200 | G147: 0 | H147: 0,000 | I147: 2 | J147: 2,200 | K147: Mobile
A148: ASLOGHM | B148: 12 août 2017 | C148: 044004000010 | D148: Recharge Express | E148: 30 | F148: 33,000 | G148: 0 | H148: 0,000 | I148: 30 | J148: 33,000 | K148: Mobile
A149: RIGRAIET | B149: 12 août 2017 | C149: 044004000010 | D149: Recharge Express | E149: 25 | F149: 27,500 | G149: 0 | H149: 0,000 | I149: 25 | J149: 27,500 | K149: Mobile
A150: RIGRAIET | B150: 12 août 2017 | C150: HYB30 | D150: forfait mix 20 | E150: 1 | F150: 0,000 | G150: 0 | H150: 0,000 | I150: 1 | J150: 0,000 | K150: Mobile
A151: ABLOUNA | B151: 12 août 2017 | C151: P60712 | D151: Pack R??engagement HUAWEI GR5 2017 SILVER - forfait optima 50 - 12 mois | E151: 1 | F151: 0,000 | G151: 0 | H151: 0,000 | I151: 1 | J151: 0,000 | K151: Mobile
A152: SIGHW | B152: 12 août 2017 | C152: 044004000010 | D152: Recharge Express | E152: 2 | F152: 2,200 | G152: 0 | H152: 0,000 | I152: 2 | J152: 2,200 | K152: Mobile
A153: SIGHW | B153: 12 août 2017 | C153: P61147 | D153: Pack AIRBOX 4G MW40 - offre Simply - bonus internet 7,5Go + illimit?? | E153: 1 | F153: 0,000 | G153: 0 | H153: 0,000 | I153: 1 | J153: 0,000 | K153: Mobile
A154: RIGRAIET | B154: 12 août 2017 | C154: PRE21 | D154: Melle5er | E154: 5 | F154: 0,000 | G154: 0 | H154: 0,000 | I154: 5 | J154: 0,000 | K154: Mobile
A155: ABLOUNA | B155: 12 août 2017 | C155: POS01 | D155: forfait optima 50 | E155: 2 | F155: 0,000 | G155: 0 | H155: 0,000 | I155: 2 | J155: 0,000 | K155: Mobile
A156: SIGHW | B156: 12 août 2017 | C156: P4048 | D156: Pack Réengagement - forfait mix 15 - injection 1 Go - 12 mois | E156: 1 | F156: 0,000 | G156: 0 | H156: 0,000 | I156: 1 | J156: 0,000 | K156: Mobile
A157: ABLOUNA | B157: 12 août 2017 | C157: HYB35 | D157: Flybox MAX | E157: 1 | F157: 0,000 | G157: 0 | H157: 0,000 | I157: 1 | J157: 0,000 | K157: Mobile
A158: SIGHW | B158: 12 août 2017 | C158: 044004000010 | D158: Recharge Express | E158: 20 | F158: 22,000 | G158: 0 | H158: 0,000 | I158: 20 | J158: 22,000 | K158: Mobile
A159: SIGHW | B159: 12 août 2017 | C159: 044004000010 | D159: Recharge Express | E159: 20 | F159: 22,000 | G159: 0 | H159: 0,000 | I159: 20 | J159: 22,000 | K159: Mobile
A160: SIGHW | B160: 12 août 2017 | C160: P53327 | D160: Pack - offre Pass | E160: 4 | F160: 0,000 | G160: 0 | H160: 0,000 | I160: 4 | J160: 0,000 | K160: Mobile
A161: ABLOUNA | B161: 12 août 2017 | C161: PRE03 | D161: offre Simply | E161: 1 | F161: 0,000 | G161: 0 | H161: 0,000 | I161: 1 | J161: 0,000 | K161: Mobile
A162: ABLOUNA | B162: 12 août 2017 | C162: ADV2 | D162: Avance 2 mois | E162: 1 | F162: 110,000 | G162: 0 | H162: 0,000 | I162: 1 | J162: 110,000 | K162: Mobile
A163: RIGRAIET | B163: 12 août 2017 | C163: 999100001003 | D163: SERVICE TRANSFERT CONTACT | E163: 1 | F163: 3,000 | G163: 0 | H163: 0,000 | I163: 1 | J163: 3,000 | K163: Mobile
A164: ASLOGHM | B164: 12 août 2017 | C164: PRE21 | D164: Melle5er | E164: 3 | F164: 0,000 | G164: 0 | H164: 0,000 | I164: 3 | J164: 0,000 | K164: Mobile
A165: RIGRAIET | B165: 12 août 2017 | C165: P59928 | D165: Pack 2 mois - Flybox MAX - internet + voix | E165: 1 | F165: 0,000 | G165: 0 | H165: 0,000 | I165: 1 | J165: 0,000 | K165: Mobile
A166: SIGHW | B166: 12 août 2017 | C166: HYB01 | D166: forfait mix 15 | E166: 1 | F166: 0,000 | G166: 0 | H166: 0,000 | I166: 1 | J166: 0,000 | K166: Mobile
A167: RIGRAIET | B167: 12 août 2017 | C167: P4049 | D167: Pack Réengagement - forfait mix 20 - injection 1 Go - 12 mois | E167: 1 | F167: 0,000 | G167: 0 | H167: 0,000 | I167: 1 | J167: 0,000 | K167: Mobile
A168: ASLOGHM | B168: 12 août 2017 | C168: 044004000010 | D168: Recharge Express | E168: 5 | F168: 5,500 | G168: 0 | H168: 0,000 | I168: 5 | J168: 5,500 | K168: Mobile
A169: SIGHW | B169: 12 août 2017 | C169: 044004000010 | D169: Recharge Express | E169: 15 | F169: 16,500 | G169: 0 | H169: 0,000 | I169: 15 | J169: 16,500 | K169: Mobile
A170: SIGHW | B170: 12 août 2017 | C170: PRE21 | D170: Melle5er | E170: 3 | F170: 0,000 | G170: 0 | H170: 0,000 | I170: 3 | J170: 0,000 | K170: Mobile
A171: SIGHW | B171: 12 août 2017 | C171: 044004000010 | D171: Recharge Express | E171: 30 | F171: 33,000 | G171: 0 | H171: 0,000 | I171: 30 | J171: 33,000 | K171: Mobile
A172: ABLOUNA | B172: 12 août 2017 | C172: 044004000010 | D172: Recharge Express | E172: 20 | F172: 22,000 | G172: 0 | H172: 0,000 | I172: 20 | J172: 22,000 | K172: Mobile
A173: RIGRAIET | B173: 12 août 2017 | C173: HYB35 | D173: Flybox MAX | E173: 1 | F173: 0,000 | G173: 0 | H173: 0,000 | I173: 1 | J173: 0,000 | K173: Mobile
A174: RIGRAIET | B174: 12 août 2017 | C174: 044004000010 | D174: Recharge Express | E174: 20 | F174: 22,000 | G174: 0 | H174: 0,000 | I174: 20 | J174: 22,000 | K174: Mobile
A175: ASLOGHM | B175: 12 août 2017 | C175: 044004000010 | D175: Recharge Express | E175: 36 | F175: 39,600 | G175: 0 | H175: 0,000 | I175: 36 | J175: 39,600 | K175: Mobile
A176: ABLOUNA | B176: 12 août 2017 | C176: 044004000010 | D176: Recharge Express | E176: 5 | F176: 5,500 | G176: 0 | H176: 0,000 | I176: 5 | J176: 5,500 | K176: Mobile
A177: SIGHW | B177: 12 août 2017 | C177: 044004000010 | D177: Recharge Express | E177: 10 | F177: 11,000 | G177: 0 | H177: 0,000 | I177: 10 | J177: 11,000 | K177: Mobile
A178: SIGHW | B178: 12 août 2017 | C178: PRE17 | D178: 3alami | E178: 3 | F178: 0,000 | G178: 0 | H178: 0,000 | I178: 3 | J178: 0,000 | K178: Mobile
A179: ASLOGHM | B179: 12 août 2017 | C179: 999100001003 | D179: SERVICE TRANSFERT CONTACT | E179: 1 | F179: 3,000 | G179: 0 | H179: 0,000 | I179: 1 | J179: 3,000 | K179: Mobile
A180: ABLOUNA | B180: 12 août 2017 | C180: 044004000010 | D180: Recharge Express | E180: 12 | F180: 13,200 | G180: 0 | H180: 0,000 | I180: 12 | J180: 13,200 | K180: Mobile
A181: RIGRAIET | B181: 12 août 2017 | C181: 044004000010 | D181: Recharge Express | E181: 15 | F181: 16,500 | G181: 0 | H181: 0,000 | I181: 15 | J181: 16,500 | K181: Mobile
A182: ABLOUNA | B182: 12 août 2017 | C182: P59928 | D182: Pack 2 mois - Flybox MAX - internet + voix | E182: 1 | F182: 0,000 | G182: 0 | H182: 0,000 | I182: 1 | J182: 0,000 | K182: Mobile
A183: ABLOUNA | B183: 12 août 2017 | C183: P53287 | D183: Clé 3G E3531 é?Offre Pass é? Bonus Internet 3Go - 1 mois | E183: 1 | F183: 0,000 | G183: 0 | H183: 0,000 | I183: 1 | J183: 0,000 | K183: Mobile
A184: ABLOUNA | B184: 12 août 2017 | C184: 044004000010 | D184: Recharge Express | E184: 1 | F184: 1,100 | G184: 0 | H184: 0,000 | I184: 1 | J184: 1,100 | K184: Mobile
A185: RIGRAIET | B185: 12 août 2017 | C185: 044004000010 | D185: Recharge Express | E185: 1 | F185: 1,100 | G185: 0 | H185: 0,000 | I185: 1 | J185: 1,100 | K185: Mobile
A186: SIGHW | B186: 12 août 2017 | C186: PRE13 | D186: Edawa5 | E186: 1 | F186: 0,000 | G186: 0 | H186: 0,000 | I186: 1 | J186: 0,000 | K186: Mobile
A187: ABLOUNA | B187: 12 août 2017 | C187: ADV2 | D187: Avance 2 mois | E187: 1 | F187: 58,000 | G187: 0 | H187: 0,000 | I187: 1 | J187: 58,000 | K187: Mobile
A188: RIGRAIET | B188: 12 août 2017 | C188: 044004000010 | D188: Recharge Express | E188: 12 | F188: 13,200 | G188: 0 | H188: 0,000 | I188: 12 | J188: 13,200 | K188: Mobile
A189: SIGHW | B189: 12 août 2017 | C189: PRE03 | D189: offre Simply | E189: 1 | F189: 0,000 | G189: 0 | H189: 0,000 | I189: 1 | J189: 0,000 | K189: Mobile
A190: ABLOUNA | B190: 12 août 2017 | C190: 083013025002 | D190: HUAWEI GR5 2017 GOLD | E190: 1 | F190: 599,000 | G190: 0 | H190: 0,000 | I190: 1 | J190: 599,000 | K190: Mobile
A191: RIGRAIET | B191: 12 août 2017 | C191: 085001000011 | D191: FLYBOX B310 | E191: 1 | F191: 0,000 | G191: 0 | H191: 0,000 | I191: 1 | J191: 0,000 | K191: Mobile
A192: SIGHW | B192: 12 août 2017 | C192: 046002000056 | D192: AIRBOX 4G MW40 | E192: 1 | F192: 119,000 | G192: 0 | H192: 0,000 | I192: 1 | J192: 119,000 | K192: Mobile
A193: RIGRAIET | B193: 12 août 2017 | C193: 043006000003 | D193: CARTE SIM 4G PRE MULTI SIM | E193: 2 | F193: 10,000 | G193: 0 | H193: 0,000 | I193: 2 | J193: 10,000 | K193: Mobile
A194: RIGRAIET | B194: 12 août 2017 | C194: 043008000001 | D194: CARTE SIM 4G FLYBOX | E194: 1 | F194: 0,000 | G194: 0 | H194: 0,000 | I194: 1 | J194: 0,000 | K194: Mobile
A195: RIGRAIET | B195: 12 août 2017 | C195: 043006000003 | D195: CARTE SIM 4G PRE MULTI SIM | E195: 2 | F195: 6,000 | G195: 0 | H195: 0,000 | I195: 2 | J195: 6,000 | K195: Mobile
A196: SIGHW | B196: 12 août 2017 | C196: 043007000004 | D196: CARTE SIM 4G DATA MULTI SIM | E196: 4 | F196: 20,000 | G196: 0 | H196: 0,000 | I196: 4 | J196: 20,000 | K196: Mobile
A197: RIGRAIET | B197: 12 août 2017 | C197: 188003000016 | D197: Modem Huawei HG532 | E197: 1 | F197: 0,000 | G197: 0 | H197: 0,000 | I197: 1 | J197: 0,000 | K197: ADSL
A198: SIGHW | B198: 12 août 2017 | C198: 043007000004 | D198: CARTE SIM 4G DATA MULTI SIM | E198: 1 | F198: 0,000 | G198: 0 | H198: 0,000 | I198: 1 | J198: 0,000 | K198: Mobile
A199: SIGHW | B199: 12 août 2017 | C199: 043006000003 | D199: CARTE SIM 4G PRE MULTI SIM | E199: 7 | F199: 0,000 | G199: 0 | H199: 0,000 | I199: 7 | J199: 0,000 | K199: Mobile
A200: ABLOUNA | B200: 12 août 2017 | C200: 043006000003 | D200: CARTE SIM 4G PRE MULTI SIM | E200: 2 | F200: 10,000 | G200: 0 | H200: 0,000 | I200: 2 | J200: 10,000 | K200: Mobile
... 828 more rows

Sheet TCD-Porta
A1: Créé par | B1: Date demande | C1: Numéro à porter | D1: Statut demande
A2: Siwar Ghodbane | B2: 2017-08-01T15:52:34 | C2: 28036291 | D2: Déconnectée
A3: Siwar Ghodbane | B3: 2017-08-01T17:58:56 | C3: 24281002 | D3: Déconnectée
A4: Siwar Ghodbane | B4: 2017-08-02T10:43:13 | C4: 21215848 | D4: Déconnectée | M4: Total Portabilité
A5: Siwar Ghodbane | B5: 2017-08-02T14:57:09 | C5: 23465886 | D5: Déconnectée | M5: Créé par | N5: Total
A6: Siwar Ghodbane | B6: 2017-08-03T09:14:49 | C6: 98581572 | D6: Déconnectée | M6: Abderahmen Bellalouna | N6: 4
A7: Siwar Ghodbane | B7: 2017-08-03T13:40:58 | C7: 53555590 | D7: Déconnectée | M7: Asma Loghmari | N7: 7
A8: Siwar Ghodbane | B8: 2017-08-03T17:09:59 | C8: 97146650 | D8: Déconnectée | M8: Rim Graiet | N8: 4
A9: Siwar Ghodbane | B9: 2017-08-03T17:55:18 | C9: 21030668 | D9: Déconnectée | M9: Siwar Ghodbane | N9: 26
A10: Siwar Ghodbane | B10: 2017-08-04T10:57:37 | C10: 25733267 | D10: Déconnectée | M10: Total général | N10: 41
A11: Siwar Ghodbane | B11: 2017-08-04T11:16:58 | C11: 28336470 | D11: Déconnectée
A12: Siwar Ghodbane | B12: 2017-08-04T13:24:04 | C12: 98403389 | D12: Déconnectée
A13: Siwar Ghodbane | B13: 2017-08-05T17:01:59 | C13: 20852119 | D13: Déconnectée
A14: Siwar Ghodbane | B14: 2017-08-05T18:09:42 | C14: 96688620 | D14: Déconnectée
A15: Asma Loghmari | B15: 2017-08-07T09:17:47 | C15: 26241810 | D15: Déconnectée
A16: Asma Loghmari | B16: 2017-08-07T13:56:12 | C16: 25222538 | D16: Déconnectée
A17: Asma Loghmari | B17: 2017-08-07T14:51:54 | C17: 50641541 | D17: Déconnectée
A18: Rim Graiet | B18: 2017-08-09T10:21:51 | C18: 28896663 | D18: Acceptée
A19: Siwar Ghodbane | B19: 2017-08-09T16:39:41 | C19: 21044773 | D19: Acceptée
A20: Siwar Ghodbane | B20: 2017-08-09T17:21:03 | C20: 21796295 | D20: Acceptée
A21: Asma Loghmari | B21: 2017-08-10T09:42:10 | C21: 98451719 | D21: Acceptée
A22: Siwar Ghodbane | B22: 2017-08-10T10:03:56 | C22: 29381643 | D22: Acceptée
A23: Siwar Ghodbane | B23: 2017-08-10T12:10:31 | C23: 96238412 | D23: Acceptée
A24: Siwar Ghodbane | B24: 2017-08-10T12:25:42 | C24: 96238330 | D24: Acceptée
A25: Siwar Ghodbane | B25: 2017-08-10T13:28:52 | C25: 96238404 | D25: Acceptée
A26: Siwar Ghodbane | B26: 2017-08-10T13:46:46 | C26: 96238427 | D26: Acceptée
A27: Abderahmen Bellalouna | B27: 2017-08-10T13:32:52 | C27: 92551962 | D27: Acceptée
A28: Siwar Ghodbane | B28: 2017-08-10T14:01:07 | C28: 96238413 | D28: Acceptée
A29: Siwar Ghodbane | B29: 2017-08-10T14:12:10 | C29: 96238418 | D29: Acceptée
A30: Siwar Ghodbane | B30: 2017-08-10T14:28:26 | C30: 96238327 | D30: Acceptée
A31: Siwar Ghodbane | B31: 2017-08-10T15:19:17 | C31: 94026651 | D31: Acceptée
A32: Siwar Ghodbane | B32: 2017-08-11T09:03:18 | C32: 20451719 | D32: Acceptée
A33: Siwar Ghodbane | B33: 2017-08-11T10:44:02 | C33: 25577417 | D33: Acceptée
A34: Asma Loghmari | B34: 2017-08-11T12:44:51 | C34: 52773664 | D34: Acceptée
A35: Rim Graiet | B35: 2017-08-11T15:08:23 | C35: 99616574 | D35: Acceptée
A36: Rim Graiet | B36: 2017-08-12T15:56:34 | C36: 95811961 | D36: Acceptée
A37: Asma Loghmari | B37: 2017-08-14T13:22:31 | C37: 96515373 | D37: Acceptée
A38: Asma Loghmari | B38: 2017-08-14T19:10:07 | C38: 22391305 | D38: Acceptée
A39: Abderahmen Bellalouna | B39: 2017-08-15T10:49:23 | C39: 93981979 | D39: Validée
A40: Abderahmen Bellalouna | B40: 2017-08-15T10:57:48 | C40: 25552447 | D40: Validée
A41: Abderahmen Bellalouna | B41: 2017-08-15T12:52:23 | C41: 22306446 | D41: Validée
A42: Rim Graiet | B42: 2017-08-15T13:21:08 | C42: 25239071 | D42: Validée

Sheet Reeng
A1: Utilisateurs | B1: Somme de Quantité payée | D1: CC | E1: QTE
A2: ABLOUNA | B2: =IFERROR((VLOOKUP(A2,D:E,2,0)),0) -> 1 | D2: ABLOUNA | E2: 1 | H2: R | I2: O | J2: R/O
A3: ASLOGHM | B3: =IFERROR((VLOOKUP(A3,D:E,2,0)),0) -> 3 | D3: ASLOGHM | E3: 3 | G3: Réengagement | H3: =SUM(E:E) -> 12 | I3: =juillet!D3 -> 46 | J3: =H3/I3 -> 0.2608695652
A4: RIGRAIET | B4: 4 | D4: RIGRAIET | E4: 4
A5: SIGHW | B5: 4 | D5: SIGHW | E5: 4
A6: AmiraX | B6: 0
A7: HanenX | B7: 0

Sheet PORTA
A1: Utilisateur | B1: Nombre de RIO | D1: LOG | E1: Nom et Prénom | F1: QTE
A2: ABLOUNA | B2: =IFERROR((VLOOKUP(A2,D:F,3,0)),0) -> 4 | D2: =VLOOKUP(E2,'Liste CC'!A:B,2,0) -> ABLOUNA | E2: Abderahmen Bellalouna | F2: 4
A3: ASLOGHM | B3: 7 | D3: =VLOOKUP(E3,'Liste CC'!A:B,2,0) -> ASLOGHM | E3: Asma Loghmari | F3: 7 | I3: R | J3: O | K3: R/O
A4: RIGRAIET | B4: 4 | D4: =VLOOKUP(E4,'Liste CC'!A:B,2,0) -> RIGRAIET | E4: Rim Graiet | F4: 4 | H4: Porta | I4: =SUM(F:F) -> 41 | J4: =juillet!I3 -> 100 | K4: =I4/J4 -> 0.41
A5: SIGHW | B5: 26 | D5: =VLOOKUP(E5,'Liste CC'!A:B,2,0) -> SIGHW | E5: Siwar Ghodbane | F5: 26
A6: AmiraX | B6: 0 | D6: =VLOOKUP(E6,'Liste CC'!A:B,2,0) -> 
A7: HanenX | B7: 0 | D7: =VLOOKUP(E7,'Liste CC'!A:B,2,0) -> 
B8: 0 | D8: =VLOOKUP(E8,'Liste CC'!A:B,2,0) -> 
B9: 0 | D9: =VLOOKUP(E9,'Liste CC'!A:B,2,0) -> 
B10: 0 | D10: =VLOOKUP(E10,'Liste CC'!A:B,2,0) -> 
B11: 0 | D11: =VLOOKUP(E11,'Liste CC'!A:B,2,0) -> 

Sheet Relax
A1: Utilisateur | B1: Quantité Relax | D1: CC | E1: QTE en Equi
A2: ABLOUNA | B2: =IFERROR((VLOOKUP(A2,D:E,2,0)),0) -> 0 | D2: ASLOGHM | E2: 4 | I2: R | J2: O | K2: R/O
A3: ASLOGHM | B3: =IFERROR((VLOOKUP(A3,D:E,2,0)),0) -> 4 | D3: RIGRAIET | E3: 32 | H3: Relax | I3: =SUM(E:E) -> 75 | J3: =juillet!J3 -> 70 | K3: =I3/J3 -> 1.071428571
A4: RIGRAIET | B4: 32 | D4: SIGHW | E4: 39
A5: SIGHW | B5: 39
A6: AmiraX | B6: 0
A7: HanenX | B7: 0

Sheet TCD-Réeng (hidden)
A1: Utilisateur | B1: Date | C1: Ref produit | D1: Nom produit | E1: Quantité payée | F1: Prix de vente TTC payé | G1: Quantité non payée | H1: Prix de vente non payé | I1: Quantité totale | J1: Montant total | K1: Marché
A2: RIGRAIET | B2: 14 août 2017 | C2: P60645 | D2: Pack R??engagement Orange TAB 7 _ 4G NOIR - Flybox home - 12 mois | E2: 1 | F2: 0,000 | G2: 0 | H2: 0,000 | I2: 1 | J2: 0,000 | K2: Mobile
A3: ABLOUNA | B3: 12 août 2017 | C3: P60712 | D3: Pack R??engagement HUAWEI GR5 2017 SILVER - forfait optima 50 - 12 mois | E3: 1 | F3: 0,000 | G3: 0 | H3: 0,000 | I3: 1 | J3: 0,000 | K3: Mobile
A4: SIGHW | B4: 12 août 2017 | C4: P4048 | D4: Pack Réengagement - forfait mix 15 - injection 1 Go - 12 mois | E4: 1 | F4: 0,000 | G4: 0 | H4: 0,000 | I4: 1 | J4: 0,000 | K4: Mobile | M4: Total des réengagements
A5: RIGRAIET | B5: 12 août 2017 | C5: P4049 | D5: Pack Réengagement - forfait mix 20 - injection 1 Go - 12 mois | E5: 1 | F5: 0,000 | G5: 0 | H5: 0,000 | I5: 1 | J5: 0,000 | K5: Mobile | M5: Utilisateur | N5: Total
A6: RIGRAIET | B6: 11 août 2017 | C6: P50329 | D6: Pack Réengagement - forfait mix 15 Crédit 5DT - 12 mois | E6: 1 | F6: 0,000 | G6: 0 | H6: 0,000 | I6: 1 | J6: 0,000 | K6: Mobile | M6: ABLOUNA | N6: 1
A7: RIGRAIET | B7: 11 août 2017 | C7: P3079 | D7: Pack de réengagement Flybox remise 20% | E7: 1 | F7: 0,000 | G7: 0 | H7: 0,000 | I7: 1 | J7: 0,000 | K7: Mobile | M7: ASLOGHM | N7: 3
A8: ASLOGHM | B8: 11 août 2017 | C8: P3078 | D8: Pack de réengagement IEW Forfait remise 20% | E8: 1 | F8: 0,000 | G8: 0 | H8: 0,000 | I8: 1 | J8: 0,000 | K8: Mobile | M8: RIGRAIET | N8: 4
A9: SIGHW | B9: 10 août 2017 | C9: P3901 | D9: Pack de réengagement Forfait clé 3G Access remise 20% | E9: 1 | F9: 0,000 | G9: 0 | H9: 0,000 | I9: 1 | J9: 0,000 | K9: Mobile | M9: SIGHW | N9: 4
A10: ASLOGHM | B10: 10 août 2017 | C10: P3079 | D10: Pack de réengagement Flybox remise 20% | E10: 1 | F10: 0,000 | G10: 0 | H10: 0,000 | I10: 1 | J10: 0,000 | K10: Mobile | M10: Total général | N10: 12
A11: ASLOGHM | B11: 7 août 2017 | C11: P4049 | D11: Pack Réengagement - forfait mix 20 - injection 1 Go - 12 mois | E11: 1 | F11: 0,000 | G11: 0 | H11: 0,000 | I11: 1 | J11: 0,000 | K11: Mobile
A12: SIGHW | B12: 4 août 2017 | C12: P4048 | D12: Pack Réengagement - forfait mix 15 - injection 1 Go - 12 mois | E12: 1 | F12: 0,000 | G12: 0 | H12: 0,000 | I12: 1 | J12: 0,000 | K12: Mobile
A13: SIGHW | B13: 1 août 2017 | C13: P4048 | D13: Pack Réengagement - forfait mix 15 - injection 1 Go - 12 mois | E13: 1 | F13: 0,000 | G13: 0 | H13: 0,000 | I13: 1 | J13: 0,000 | K13: Mobile

Sheet TCD-Relax (hidden)
A1: Utilisateur | B1: Date | C1: Ref produit | D1: Nom produit | E1: Quantité totale | F1: Relax | G1: Total Relax
A2: ASLOGHM | B2: 15 août 2017 | C2: 999100001003 | D2: SERVICE TRANSFERT CONTACT | E2: 1 | F2: 2 | G2: =E2*F2 -> 2
A3: RIGRAIET | B3: 14 août 2017 | C3: 999100001003 | D3: SERVICE TRANSFERT CONTACT | E3: 2 | F3: 2 | G3: 4
A4: SIGHW | B4: 14 août 2017 | C4: 999100001003 | D4: SERVICE TRANSFERT CONTACT | E4: 2 | F4: 2 | G4: 4 | M4: Somme de Total Relax
A5: RIGRAIET | B5: 14 août 2017 | C5: 999100001003 | D5: SERVICE TRANSFERT CONTACT | E5: 2 | F5: 2 | G5: 4 | M5: Utilisateur | N5: Total
A6: RIGRAIET | B6: 12 août 2017 | C6: 999100001003 | D6: SERVICE TRANSFERT CONTACT | E6: 1 | F6: 2 | G6: 2 | M6: ASLOGHM | N6: 4
A7: ASLOGHM | B7: 12 août 2017 | C7: 999100001003 | D7: SERVICE TRANSFERT CONTACT | E7: 1 | F7: 2 | G7: 2 | M7: RIGRAIET | N7: 32
A8: SIGHW | B8: 11 août 2017 | C8: 999100001003 | D8: SERVICE TRANSFERT CONTACT | E8: 1 | F8: 2 | G8: 2 | M8: SIGHW | N8: 39
A9: RIGRAIET | B9: 11 août 2017 | C9: 999100001003 | D9: SERVICE TRANSFERT CONTACT | E9: 4 | F9: 2 | G9: 8 | M9: Total général | N9: 75
A10: RIGRAIET | B10: 10 août 2017 | C10: 999100001003 | D10: SERVICE TRANSFERT CONTACT | E10: 1 | F10: 2 | G10: 2
A11: SIGHW | B11: 10 août 2017 | C11: 999100001003 | D11: SERVICE TRANSFERT CONTACT | E11: 2 | F11: 2 | G11: 4
A12: RIGRAIET | B12: 8 août 2017 | C12: 999100001003 | D12: SERVICE TRANSFERT CONTACT | E12: 1 | F12: 2 | G12: 2
A13: SIGHW | B13: 8 août 2017 | C13: 999100001003 | D13: SERVICE TRANSFERT CONTACT | E13: 2 | F13: 2 | G13: 4
A14: SIGHW | B14: 7 août 2017 | C14: 999100001003 | D14: SERVICE TRANSFERT CONTACT | E14: 3 | F14: 2 | G14: 6
A15: SIGHW | B15: 5 août 2017 | C15: 999100001003 | D15: SERVICE TRANSFERT CONTACT | E15: 1 | F15: 2 | G15: 2
A16: SIGHW | B16: 4 août 2017 | C16: 999100001003 | D16: SERVICE TRANSFERT CONTACT | E16: 3 | F16: 2 | G16: 6
A17: SIGHW | B17: 4 août 2017 | C17: 999100002001 | D17: ASSURANCE CASSE | E17: 1 | F17: 3 | G17: 3
A18: SIGHW | B18: 3 août 2017 | C18: 999100001003 | D18: SERVICE TRANSFERT CONTACT | E18: 2 | F18: 2 | G18: 4
A19: RIGRAIET | B19: 2 août 2017 | C19: 999100001003 | D19: SERVICE TRANSFERT CONTACT | E19: 2 | F19: 2 | G19: 4
A20: SIGHW | B20: 1 août 2017 | C20: 999100001003 | D20: SERVICE TRANSFERT CONTACT | E20: 2 | F20: 2 | G20: 4
A21: RIGRAIET | B21: 1 août 2017 | C21: 999100001003 | D21: SERVICE TRANSFERT CONTACT | E21: 3 | F21: 2 | G21: 6
